Workbook

Sheet Disclaimer
B4: Disclaimer
B5: 1 | C5: Neither the U.S. Department of Energy (DOE) National Energy Technology Laboratory (NETL) nor any person acting on behalf of these organizations:
C6: A. Makes any warranty or representation, express or implied, with respect to the accuracy, completeness, or usefulness of the information contained in this document, or that the use of any information, apparatus, method, or process disclosed in this document may not infringe on privately owned rights; or
C7: B. Assumes any liability with this report as to its use, or damages resulting from the use of any information, apparatus, method, or process disclosed in this document.
B8: 2 | C8: Reference herein to any specific commercial product, process, or service by trade name, trademark, manufacturer, or otherwise, does not necessarily constitute or imply its endorsement, recommendation, or favoring by NETL. The views and opinions of the authors expressed herein do not necessarily state or reflect those of NETL.
B10: Contact Information

Sheet Instructions
A1: Worksheet Descriptions
A2: A description of the worksheets that are viewable by default are below. There are various other worksheets that are hidden to simplify the user experience, but they can easily be unhidden to track all of the calculations/data. On all sheets, cells that are intended for user interaction are formatted with an orange background (the Input formatting option in Excel). In most cases, these cells use a drop-down to provide a user with the range of acceptable inputs for those cells.
A4: Worksheets | B4: Description
A5: generation_mix | B5: The generation_mix worksheet allows the user to browse and customize the generation mix for any selected Federal Energy Regulatory Commission (FERC) or Balancing Authority Area (BA) region. This generation mix represents the amount of electricity produced by each power plant type in that region. Note that this can be different than the mix that the region actually uses for electricity (consumption mix). The worksheet provides the various impact categories and the amount of each emission species for the selected FERC or BA, as well as two separate graphs discussed in more detail below.
A6: consumption_mix | B6: The consumption_mix worksheet allows the user to browse the consumption mix for any selected Federal Electricity Reliability Council (FERC) or Balancing Authority Area (BA) region. This consumption mix includes the net imports from the various BAs into the selected region. As a simple example, a given region could be exclusively renewable generation, which would have low CO2 emissions, but that region may also need to import electricity from a neighboring balancing authority area to meet demand. If that neighboring balancing authority area produces exclusively natural gas then the CO2 emissions for the consumption mix will be higher than the generation mix and will also more accurately reflect the electricity that's used in that region.
A7: consumption_vs_generation | B7: This sheet provides a table with a comparison between the generation and consumption mixes of each of the subregions. As noted above, there can be a significant differences between the two, and the consumption mix is a more accurate reflection of the electricity actually being consumed in an area.
A8: custom_mixes | B8: All of the custom mixes saved from the generation_mix tab are saved here - each row is a custom mix. This sheet is editable by default, so users can delete custom mixes that they don't need anymore or manually create a bunch of mixes.
A9: traci_factors | B9: The traci_factors worksheet contains all of the impact factors for the impact methods provided in this tool - Eutrophication Potential, Acidification Potential, Particulate Matter Formation Potential, Photochemical Smog Formation Potential, Ozone Depletion Potential, Water Consumption, and the various factors for Global Warming Potential as discussed below. This sheet is editable by default, so that the user may change or assign impact factors to species as desired.
A12: Generation mix technology options
A15: Technology | B15: Descriptions | C15: Source
A16: Biomass | B16: Power plants where more than 90% of electricity generation is from combusting biomass fuels. | C16: https://github.com/USEPA/ElectricityLCI
A17: Coal | B17: Power plants where more than 90% of electricity generation is from combusting coal. | C17: https://github.com/USEPA/ElectricityLCI
A18: Natural gas | B18: Power plants where more than 90% of electricity generation is from combusting natural gas. | C18: https://github.com/USEPA/ElectricityLCI
A19: Geothermal | B19: Power plants where more than 90% of electricity generation is geothermal energy. | C19: https://github.com/USEPA/ElectricityLCI
A20: Hydro | B20: Power plants where more than 90% of electricity generation is from hydroelectric power. | C20: https://github.com/USEPA/ElectricityLCI
A21: Mixed | B21: Power plants that use some mix of fuel - i.e., they don't reach the 90 percent threshhold for being classified as a single fuel source. As a result, these plants represent different things based on the power plants that exist in the specified area of interest. That is, mixed power plants in CAISO will not have the same inventory as mixed plants in ERCOT. | C21: https://github.com/USEPA/ElectricityLCI
A22: Nuclear | B22: Power plants where more than 90% of electricity generation is from thermonuclear generation. | C22: https://github.com/USEPA/ElectricityLCI
A23: Other fossil | B23: Power plants where more than 90% of electricity generation is from combusting other fossil fuels (blast furnace gas, other gas, tire-derived fuel). | C23: https://github.com/USEPA/ElectricityLCI
A24: Petroleum | B24: Power plants where more than 90% of electricity generation is from combusting petroleum-based fuels (diesel fuel oil or residual fuel oil). | C24: https://github.com/USEPA/ElectricityLCI
A25: Other fuels | B25: Power plants where more than 90% of electricity generation is from "other" fuels, inlcuding nonbiogenic MSW. | C25: https://github.com/USEPA/ElectricityLCI
A26: Solar | B26: Power plants where more than 90% of electricity generation is from solar photovoltaic cells. | C26: https://github.com/USEPA/ElectricityLCI
A27: Solar thermal | B27: Power plants where more than 90% of electricity generation is from solar-thermal generation. | C27: https://github.com/USEPA/ElectricityLCI
A28: Wind | B28: Power plants where more than 90% of electricity generation is from wind turbines. | C28: https://github.com/USEPA/ElectricityLCI
A29: SCPC | B29: Supercritical pulverized coal power plant. | C29: https://netl.doe.gov/energy-analysis/details?id=3236
A30: SCPC w/ CCS | B30: Supercritical pulverized coal power plant with carbon capture and storage in a saline aquifer. | C30: https://netl.doe.gov/energy-analysis/details?id=3236
A31: SubPC | B31: Sub-critical pulverized coal power plant. | C31: https://netl.doe.gov/energy-analysis/details?id=3234
A32: SubPC w/ CCS | B32: Sub-critical pulverized coal power plant with carbon capture and storage in a saline aquifer. | C32: https://netl.doe.gov/energy-analysis/details?id=3234
A33: NGCC | B33: Natural gas combined cycle power plant.
A34: NGCC w/ CCS | B34: Natural gas combined cycle power plant with carbon capture and storage in a saline aquifer.
A35: OxyPC w/ CCS | B35: Oxycombustion pulverized coal power plant with carbon capture and storage in a saline aquifer. | C35: https://netl.doe.gov/energy-analysis/details?id=3235
A36: SOFC Coal Conventional Gasifier w/ CCS | B36: Solid oxide fuel cell with a conventional coal gasifier with carbon capture and storage in a saline aquifer. | C36: https://netl.doe.gov/energy-analysis/details?id=3232
A37: SOFC NG w/ CCS | B37: Solid oxide fuel cell using natural gas with carbon capture and storage in a saline aquifer. | C37: https://netl.doe.gov/energy-analysis/details?id=3232
A38: SubPC w/ CCS w/ NG Aux | B38: Sub-critical pulverized coal power plant with carbon capture and storage in a saline aquifer. The steam and electricity loads for the carbon capture system are provided by a natural gas simple cycle turbine. | C38: Report under review
A41: Graph Details
A42: There are two graphs each n the generation_mix and consumption_mix worksheets. The graphs will be referred to as left and right based on their position on the page. generation_mix Left graph: This is a bar graph that shows how much each generation technology type contributes to that regions generation grid mix. The percent of each generation type can either be set to use the default mix for that FERC or Balancing Authority Area (as calculated using EIA data) or a custom mix that can be entered by the user. Additionally the impacts can be sorted by impact potential (in descending order) or by percent of mix (i.e., the percentage of electricity that technology contributes to the mix). Right graph: The right graph is a bar graph that can be used to choose an impact a category or a specific resource or emissions species. The graphs should show the same thing if both are set to the same impact category. Additionally, technologies can be filtered in the right graph to simplify the display. For example a user could compare only the Coal and Natural gas emissions of carbon dioxide given the chosen mix. consumption_mix Left graph: This is a bar graph that shows how much each Balancing Authority Area contributes to the consumption mix of the selected region. It is limited to showing the top 11 contributors plus the total. Underneath the label for each Balancing Authority Area in the graph, the percent of electricity contribution to the consumption mix for the selected region. Right graph: This is a bar graph that can be used to compare either the impacts or amounts of specific resources/emissions for different regions. If <Use FERC> is selected for the Balancing Authority in the drop-down, then only FERC regions will be available in the drop-down menus next to the graph. If a Balancing Authority is selected, then only Balancing Authority Areas will be available in the drop-downs. These graphs are automatically sorted in descending order of impact/emissions/resources.
A44: Global Warming Potential Options
A45: There are several options available for the impact factors associated with global warming potential. This selection is performed in the traci_factors worksheet (the "Global Warming Potential Options" header above is a link to the cell). Short descriptions and sources for the various iterations of factors is available in the table below.
A47: GWP Selection | B47: Description | C47: Source
A48: IPCC TAR, 2001, 20-yr | B48: IPCC Third Assessment Report (TAR) - 20-year time horizon | C48: https://www.ipcc.ch/site/assets/uploads/2018/03/TAR-06.pdf
A49: IPCC TAR, 2001, 100-yr | B49: IPCC Third Assessment Report (TAR) - 100-year time horizon | C49: https://www.ipcc.ch/site/assets/uploads/2018/03/TAR-06.pdf
A50: IPCC AR4, 2007, 20-yr | B50: IPCC Fourth Assessment Report (AR4) - 20-year time horizon | C50: https://www.ipcc.ch/site/assets/uploads/2018/02/ar4-wg1-chapter2-1.pdf
A51: IPCC AR4, 2007, 100-yr | B51: IPCC Fourth Assessment Report (AR4) - 100-year time horizon. This is the default set of values used by the The Tool for the Reduction and Assessment of Chemical and other environmental Impacts (TRACI) version 2.1. | C51: https://www.ipcc.ch/site/assets/uploads/2018/02/ar4-wg1-chapter2-1.pdf
A52: IPCC AR5, 2013, 20-yr, w/o climate carbon feedback | B52: IPCC Fifth Assessment Report (AR5) - 20-year time horizon. | C52: https://www.ipcc.ch/site/assets/uploads/2018/02/WG1AR5_Chapter08_FINAL.pdf
A53: IPCC AR5, 2013, 100-yr, w/o climate carbon feedback | B53: IPCC Fifth Assessment Report (AR5) - 100-year time horizon. | C53: https://www.ipcc.ch/site/assets/uploads/2018/02/WG1AR5_Chapter08_FINAL.pdf
A54: IPCC AR5, 2013, 20-yr, w/ climate carbon feedback | B54: IPCC Fifth Assessment Report (AR5) - 20-year time horizon with climate carbon feedbacks. | C54: https://www.ipcc.ch/site/assets/uploads/2018/07/WGI_AR5.Chap_.8_SM.pdf
A55: IPCC AR5, 2013, 100-yr, w/ climate carbon feedback | B55: IPCC Fifth Assessment Report (AR5) - 100-year time horizon with climate carbon feedbacks. NETL has been using factors with climate carbon feedbacks in impact calculations for reports and journal articles, most importantly the value for methane. Additionally, NETL uses the 1 and 2 kg CO2e adder for fossil-based methane emissions, for 20-yr and 100-yr respectively. NETL considers this set of GWP impacts as the default. | C55: https://www.ipcc.ch/site/assets/uploads/2018/07/WGI_AR5.Chap_.8_SM.pdf
A58: Annual Energy Outlook Mixes (external link)
A59: When loading custom mixes in the generation_mix page, the list includes generation mixes from the Energy Information Administration (EIA) 2019 Annual Energy Outlook (AEO) reference cases. The regions in the AEO are National Energy Modeling System (NEMS) regions, which do not align with Balancing Authority Areas. Because of this the AEO outlooks were manually aligned to FERC regions. As an AEO mix is selected, the FERC region selection will automatically change.
A61: Region and BA Lookup (link will launch tool)
A62: The generation_mix and consumption_mix worksheets have buttons to launch a tool for looking up your FERC or Balancing Authority Area (BA) by zip code. The cross-reference was built by finding the intersections between maps containing zip codes and then each of the region types. The zip code shapes are from a 2010 file, so if you're in an area with a newer post office, your zip code might not be found. There are also areas of the country which have overlapped BAs and even FERC regions - in those cases, the tool will return all of the FERC and BAs that it finds for your region.
A64: Federal Energy Regulatory Commission (FERC) Electric Power Markets (external link)
A65: FERC identifies 10 electricity power markets in the U.S. A map of those markets is available at the link above.
A66: Acronym/Abbreviation | B66: Full Name
A67: CAISO | B67: California Independent System Operator
A68: MISO | B68: Midcontinent Independent System Operator
A69: ISO-NE | B69: Independent System Operator - New England
A70: NYISO | B70: New York Independent System Operator
A71: Northwest | B71: Northwest
A72: PJM | B72: Pennsylvania-New Jersey-Maryland Interconnection
A73: Southeast | B73: Southeast
A74: Southwest | B74: Southwest
A75: SPP | B75: Southwest Power Pool
A76: ERCOT | B76: Electric Reliability Council of Texas
A78: U.S. Power Balancing Authorities (external link)
A79: The above link provides a map of the power balancing authorities in the U.S.
A81: EPA Tool for Reduction and Assessment of Chemicals and Other Environmental Impacts (TRACI) (external link)
A82: The above link provides the reference to the impact assessment used for this tool.
A83: Impact Category Name | B83: Units
A84: Global Warming Potential | B84: kg CO2e
A85: Acidification Potential | B85: kg SO2e
A86: Particulate Matter Formation Potential | B86: kg PM2.5e
A87: Photochemical Smog Formation Potential | B87: kg O3e
A88: Eutrophication Potential | B88: kg Ne
A89: Ozone Depletion Potential | B89: kg CFC-11e
A90: Water Consumption | B90: liters

Sheet generation_mix
A7: FERC Region | B7: US
A8: Balancing Authority | B8: Use FERC
A9: Impact Category for Graph | B9: Global Warming Potential
A10: Sort Graph | B10: by impact potential
A11: Custom mix | B11: Use default mix
C15: Default mix | D15: Custom mix | E15: Normalized custom mix
B16: Biomass | C16: =INDEX(generation_mix_calcs!$C$19:$Y$19,1,ROW()-ROW($B$15)) -> 0.005854209579 | D16: 0.005854209579 | E16: =D16/$D$39 -> 0.005854209579
B17: Coal | C17: =INDEX(generation_mix_calcs!$C$19:$Y$19,1,ROW()-ROW($B$15)) -> 0.2595918648 | D17: 0.2595918648 | E17: 0.2595918648
B18: Natural gas | C18: =INDEX(generation_mix_calcs!$C$19:$Y$19,1,ROW()-ROW($B$15)) -> 0.3207751097 | D18: 0.3207751097 | E18: 0.3207751097
B19: Geothermal | C19: =INDEX(generation_mix_calcs!$C$19:$Y$19,1,ROW()-ROW($B$15)) -> 0.003884592756 | D19: 0.003884592756 | E19: 0.003884592756
B20: Hydro | C20: =INDEX(generation_mix_calcs!$C$19:$Y$19,1,ROW()-ROW($B$15)) -> 0.06603557122 | D20: 0.06603557122 | E20: 0.06603557122
B21: Mixed | C21: =INDEX(generation_mix_calcs!$C$19:$Y$19,1,ROW()-ROW($B$15)) -> 0.07944122264 | D21: 0.07944122264 | E21: 0.07944122264
B22: Nuclear | C22: =INDEX(generation_mix_calcs!$C$19:$Y$19,1,ROW()-ROW($B$15)) -> 0.1960584945 | D22: 0.1960584945 | E22: 0.1960584945
B23: Other fossil | C23: =INDEX(generation_mix_calcs!$C$19:$Y$19,1,ROW()-ROW($B$15)) -> 0.0001300851769 | D23: 0.0001300851769 | E23: 0.0001300851769
B24: Petroleum | C24: =INDEX(generation_mix_calcs!$C$19:$Y$19,1,ROW()-ROW($B$15)) -> 0.002167019037 | D24: 0.002167019037 | E24: 0.002167019037
B25: Other fuels | C25: =INDEX(generation_mix_calcs!$C$19:$Y$19,1,ROW()-ROW($B$15)) -> 0.001140640785 | D25: 0.001140640785 | E25: 0.001140640785
B26: Solar | C26: =INDEX(generation_mix_calcs!$C$19:$Y$19,1,ROW()-ROW($B$15)) -> 0.007988419302 | D26: 0.007988419302 | E26: 0.007988419302
B27: Solar thermal | C27: =INDEX(generation_mix_calcs!$C$19:$Y$19,1,ROW()-ROW($B$15)) -> 0.0007814084658 | D27: 0.0007814084658 | E27: 0.0007814084658
B28: Wind | C28: =INDEX(generation_mix_calcs!$C$19:$Y$19,1,ROW()-ROW($B$15)) -> 0.0561513621 | D28: 0.0561513621 | E28: 0.0561513621
B29: SCPC | C29: =INDEX(generation_mix_calcs!$C$19:$Y$19,1,ROW()-ROW($B$15)) -> 0 | D29: 0 | E29: 0
B30: SCPC w/ CCS | C30: =INDEX(generation_mix_calcs!$C$19:$Y$19,1,ROW()-ROW($B$15)) -> 0 | D30: 0 | E30: 0
B31: SubPC | C31: =INDEX(generation_mix_calcs!$C$19:$Y$19,1,ROW()-ROW($B$15)) -> 0 | D31: 0 | E31: 0
B32: SubPC w/ CCS | C32: =INDEX(generation_mix_calcs!$C$19:$Y$19,1,ROW()-ROW($B$15)) -> 0 | D32: 0 | E32: 0
B33: NGCC | C33: =INDEX(generation_mix_calcs!$C$19:$Y$19,1,ROW()-ROW($B$15)) -> 0 | D33: 0 | E33: 0
B34: NGCC w/ CCS | C34: =INDEX(generation_mix_calcs!$C$19:$Y$19,1,ROW()-ROW($B$15)) -> 0 | D34: 0 | E34: 0
B35: OxyPC w/ CCS | C35: =INDEX(generation_mix_calcs!$C$19:$Y$19,1,ROW()-ROW($B$15)) -> 0 | D35: 0 | E35: 0
B36: SOFC Coal Conventional Gasifier w/ CCS | C36: =INDEX(generation_mix_calcs!$C$19:$Y$19,1,ROW()-ROW($B$15)) -> 0 | D36: 0 | E36: 0
B37: SOFC NG w/ CCS | C37: =INDEX(generation_mix_calcs!$C$19:$Y$19,1,ROW()-ROW($B$15)) -> 0 | D37: 0 | E37: 0
B38: SubPC w/ CCS w/ NG Aux | C38: =INDEX(generation_mix_calcs!$C$19:$Y$19,1,ROW()-ROW($B$15)) -> 0 | D38: 0 | E38: 0
B39: Total | C39: =SUM(C16:C38) -> 1 | D39: =SUM(D16:D38) -> 1 | E39: =SUM(E16:E38) -> 1
AC44: =ABS(AC46) -> 0.02583347757 | AD44: =ABS(AD46) -> 0.5758035773 | AE44: 0.4013556876 | AF44: 0.00147917702 | AG44: 0.000173439678 | AH44: 0.2221198269 | AI44: 0.04890231967 | AJ44: 0.0006966009477 | AK44: 0.01380885259 | AL44: 0.009797371069 | AM44: 0.0007982479518 | AN44: 0.000403547979 | AO44: 0.005893333167 | AP44: 0 | AQ44: 0 | AR44: 0 | AS44: 0 | AT44: 0 | AU44: 0 | AV44: 0 | AW44: 0 | AX44: 0 | AY44: 0
C45: =INDEX(C$67:C$73,MATCH($B$9,$B$67:$B$73,0),1) -> 603.6900384 | D45: =INDEX(generation_mix_calcs!AB$8:AB$14,MATCH($B$9,$B$67:$B$73,0),1) -> 7.072266478 | E45: =INDEX(generation_mix_calcs!AC$8:AC$14,MATCH($B$9,$B$67:$B$73,0),1) -> 297.9203696 | F45: =INDEX(generation_mix_calcs!AD$8:AD$14,MATCH($B$9,$B$67:$B$73,0),1) -> 201.0785355 | G45: =INDEX(generation_mix_calcs!AE$8:AE$14,MATCH($B$9,$B$67:$B$73,0),1) -> 0.4714425582 | H45: =INDEX(generation_mix_calcs!AF$8:AF$14,MATCH($B$9,$B$67:$B$73,0),1) -> 0.8583205401 | I45: =INDEX(generation_mix_calcs!AG$8:AG$14,MATCH($B$9,$B$67:$B$73,0),1) -> 87.87146738 | J45: =INDEX(generation_mix_calcs!AH$8:AH$14,MATCH($B$9,$B$67:$B$73,0),1) -> 3.891032687 | K45: =INDEX(generation_mix_calcs!AI$8:AI$14,MATCH($B$9,$B$67:$B$73,0),1) -> 0.1296212532 | L45: =INDEX(generation_mix_calcs!AJ$8:AJ$14,MATCH($B$9,$B$67:$B$73,0),1) -> 2.494256086 | M45: =INDEX(generation_mix_calcs!AK$8:AK$14,MATCH($B$9,$B$67:$B$73,0),1) -> 0.001393345525 | N45: =INDEX(generation_mix_calcs!AL$8:AL$14,MATCH($B$9,$B$67:$B$73,0),1) -> 0.1788318277 | O45: =INDEX(generation_mix_calcs!AM$8:AM$14,MATCH($B$9,$B$67:$B$73,0),1) -> 0.06638979375 | P45: =INDEX(generation_mix_calcs!AN$8:AN$14,MATCH($B$9,$B$67:$B$73,0),1) -> 1.656111317 | Q45: =INDEX(generation_mix_calcs!AO$8:AO$14,MATCH($B$9,$B$67:$B$73,0),1) -> 0 | R45: =INDEX(generation_mix_calcs!AP$8:AP$14,MATCH($B$9,$B$67:$B$73,0),1) -> 0 | S45: =INDEX(generation_mix_calcs!AQ$8:AQ$14,MATCH($B$9,$B$67:$B$73,0),1) -> 0 | T45: =INDEX(generation_mix_calcs!AR$8:AR$14,MATCH($B$9,$B$67:$B$73,0),1) -> 0 | U45: =INDEX(generation_mix_calcs!AS$8:AS$14,MATCH($B$9,$B$67:$B$73,0),1) -> 0 | V45: =INDEX(generation_mix_calcs!AT$8:AT$14,MATCH($B$9,$B$67:$B$73,0),1) -> 0 | W45: =INDEX(generation_mix_calcs!AU$8:AU$14,MATCH($B$9,$B$67:$B$73,0),1) -> 0 | X45: =INDEX(generation_mix_calcs!AV$8:AV$14,MATCH($B$9,$B$67:$B$73,0),1) -> 0 | Y45: =INDEX(generation_mix_calcs!AW$8:AW$14,MATCH($B$9,$B$67:$B$73,0),1) -> 0 | Z45: =INDEX(generation_mix_calcs!AX$8:AX$14,MATCH($B$9,$B$67:$B$73,0),1) -> 0 | AB45: 3 | AC45: TRUE | AD45: TRUE | AE45: TRUE | AF45: TRUE | AG45: TRUE | AH45: TRUE | AI45: TRUE | AJ45: TRUE | AK45: TRUE | AL45: TRUE | AM45: TRUE | AN45: TRUE | AO45: TRUE | AP45: FALSE | AQ45: FALSE | AR45: FALSE | AS45: FALSE | AT45: FALSE | AU45: FALSE | AV45: FALSE | AW45: FALSE | AX45: FALSE | AY45: FALSE
C46: =ROUND(C45,3-(1+INT($C$47))) -> 604 | D46: 7 | E46: 298 | F46: 201 | G46: 0 | H46: 1 | I46: 88 | J46: 4 | K46: 0 | L46: 2 | M46: 0 | N46: 0 | O46: 0 | P46: 2 | Q46: 0 | R46: 0 | S46: 0 | T46: 0 | U46: 0 | V46: 0 | W46: 0 | X46: 0 | Y46: 0 | Z46: 0 | AB46: =INDEX(B$66:B$2192,$AB$45,1) -> Acidification Potential | AC46: =INDEX(D$66:D$2192,$AB$45,1) -> 0.02583347757 | AD46: =INDEX(E$66:E$2192,$AB$45,1) -> 0.5758035773 | AE46: 0.4013556876 | AF46: 0.00147917702 | AG46: 0.000173439678 | AH46: 0.2221198269 | AI46: 0.04890231967 | AJ46: 0.0006966009477 | AK46: 0.01380885259 | AL46: 0.009797371069 | AM46: 0.0007982479518 | AN46: 0.000403547979 | AO46: 0.005893333167 | AP46: 0 | AQ46: 0 | AR46: 0 | AS46: 0 | AT46: 0 | AU46: 0 | AV46: 0 | AW46: 0 | AX46: 0 | AY46: 0
C47: =LOG(ABS(C45),10) -> 2.78081401 | AB47: =INDEX(A$66:A$2192,$AB$45,1) -> 0 | AC47: =D66 -> Biomass | AD47: =E66 -> Coal | AE47: Natural gas | AF47: Geothermal | AG47: Hydro | AH47: Mixed | AI47: Nuclear | AJ47: Other fossil | AK47: Petroleum | AL47: Other fuels | AM47: Solar | AN47: Solar thermal | AO47: Wind | AP47: SCPC | AQ47: SCPC w/ CCS | AR47: SubPC | AS47: SubPC w/ CCS | AT47: NGCC | AU47: NGCC w/ CCS | AV47: OxyPC w/ CCS | AW47: SOFC Coal Conventional Gasifier w/ CCS | AX47: SOFC NG w/ CCS | AY47: SubPC w/ CCS w/ NG Aux
C48: =TEXT(INT(C47),"0#") -> 02 | D48: =D45/$C$45 -> 0.01171506241 | E48: 0.4934988995 | F48: 0.3330824144 | G48: 0.0007809347981 | H48: 0.001421790133 | I48: 0.1455572592 | J48: 0.006445414766 | K48: 0.0002147149116 | L48: 0.004131683359 | M48: 2.308047899e-06 | N48: 0.0002962312053 | O48: 0.0001099733133 | P48: 0.002743313972 | Q48: 0 | R48: 0 | S48: 0 | T48: 0 | U48: 0 | V48: 0 | W48: 0 | X48: 0 | Y48: 0 | Z48: 0 | AB48: =IF(AND(AB47<>"input",AB45>8),AB46&" emissions to "&AB47,IF(AB45<=8,AB46,"Input of "&AB46)) -> Acidification Potential | AC48: =IF(AC45,AC47,"") -> Biomass | AD48: =IF(AD45,AD47,"") -> Coal | AE48: Natural gas | AF48: Geothermal | AG48: Hydro | AH48: Mixed | AI48: Nuclear | AJ48: Other fossil | AK48: Petroleum | AL48: Other fuels | AM48: Solar | AN48: Solar thermal | AO48: Wind
C49: =10^(INT(C48)-2) -> 1 | D49: =IF(INT($C$47)<-3,TEXT(D45/10^$C$48,"#,0.0#")&"E"&$C$48,) -> 0 | E49: =IF(INT($C$47)<-3,TEXT(E45/10^$C$48,"#,0.0#")&"E"&$C$48,) -> 0 | F49: 0 | G49: 0 | H49: 0 | I49: 0 | J49: 0 | K49: 0 | L49: 0 | M49: 0 | N49: 0 | O49: 0 | P49: 0 | Q49: 0 | R49: 0 | S49: 0 | T49: 0 | U49: 0 | V49: 0 | W49: 0 | X49: 0 | Y49: 0 | Z49: 0 | AB49: =IF(AB45>9,INDEX(drop_down_data!$V$11:$V$2154,AB45-9)&" of "&INDEX(drop_down_data!$U$11:$U$2154,AB45-9)&" per MWh",AB46&" "&IF(AB45="Global Warming Potential",traci_factors!$L$1&" ","")&INDEX(impact_text!B2:B8,MATCH(AB46,impact_text!$A$2:$A$8,0),1)) -> Acidification Potential kg SO₂-e/MWh delivered | AC49: =IF(AC45,AC46,"") -> 0.02583347757 | AD49: =IF(AD45,AD46,"") -> 0.5758035773 | AE49: 0.4013556876 | AF49: 0.00147917702 | AG49: 0.000173439678 | AH49: 0.2221198269 | AI49: 0.04890231967 | AJ49: 0.0006966009477 | AK49: 0.01380885259 | AL49: 0.009797371069 | AM49: 0.0007982479518 | AN49: 0.000403547979 | AO49: 0.005893333167
C50: =IF(C49<0.001,TEXT(C49,"#.00E+00"),C49) -> 1 | D50: =IF(D45=0,0,IF(INDEX(D67:D73,MATCH($B$9,$B$67:$B$73,0),1)<0,"-","")&IF(D45<$C$49,"<"&$C$51,IF(D46<0.001,D49,D46))) -> 7 | E50: =IF(E45=0,0,IF(INDEX(E67:E73,MATCH($B$9,$B$67:$B$73,0),1)<0,"-","")&IF(E45<$C$49,"<"&$C$51,IF(E46<0.001,E49,E46))) -> 298 | F50: 201 | G50: <1 | H50: <1 | I50: 88 | J50: 4 | K50: <1 | L50: 2 | M50: <1 | N50: <1 | O50: <1 | P50: 2 | Q50: 0 | R50: 0 | S50: 0 | T50: 0 | U50: 0 | V50: 0 | W50: 0 | X50: 0 | Y50: 0 | Z50: 0 | AC50: =IFERROR(RANK(AC44,$AC$44:$AY$44,0)+COLUMN()/1000,"") -> 5.029 | AD50: =IFERROR(RANK(AD44,$AC$44:$AY$44,0)+COLUMN()/1000,"") -> 1.03 | AE50: 2.031 | AF50: 9.032 | AG50: 13.033 | AH50: 3.034 | AI50: 4.035 | AJ50: 11.036 | AK50: 6.037 | AL50: 7.038 | AM50: 10.039 | AN50: 12.04 | AO50: 8.041 | AP50: =IFERROR(RANK(AP49,$AC$49:$AY$49,0)+COLUMN()/1000,"") -> 
C51: =IF(INT($C$47)<-3,TEXT(C49/10^$C$48,"#,0.00#")&"E"&$C$48,C49) -> 1 | D51: 1 | E51: 2 | F51: 3 | G51: 4 | H51: 5 | I51: 6 | J51: 7 | K51: 8 | L51: 9 | M51: 10 | N51: 11 | O51: 12 | P51: 13 | Q51: 14 | R51: 15 | S51: 16 | T51: 17 | U51: 18 | V51: 19 | W51: 20 | X51: 21 | Y51: 22 | Z51: 23 | AC51: =IFERROR(RANK(AC50,$AC$50:$AY$50,1),"") -> 5 | AD51: =IFERROR(RANK(AD50,$AC$50:$AY$50,1),"") -> 1 | AE51: 2 | AF51: 9 | AG51: 13 | AH51: 3 | AI51: 4 | AJ51: 11 | AK51: 6 | AL51: 7 | AM51: 10 | AN51: 12 | AO51: 8
D52: =IFERROR(IF($B$10=drop_down_data!$O$3,_xlfn.RANK.EQ(INDEX(generation_mix_calcs!AB$8:AB$14,MATCH($B$65,$B$67:$B$73,0)),INDEX(generation_mix_calcs!$AB$8:$AX$14,MATCH($B$65,$B$67:$B$73,0),),0)+COLUMN()/1000,_xlfn.RANK.EQ(D63,$D$63:$Z$63)+COLUMN()/1000),"") -> 4.004 | E52: =IFERROR(IF($B$10=drop_down_data!$O$3,_xlfn.RANK.EQ(INDEX(generation_mix_calcs!AC$8:AC$14,MATCH($B$65,$B$67:$B$73,0)),INDEX(generation_mix_calcs!$AB$8:$AX$14,MATCH($B$65,$B$67:$B$73,0),),0)+COLUMN()/1000,_xlfn.RANK.EQ(E63,$D$63:$Z$63)+COLUMN()/1000),"") -> 1.005 | F52: =IFERROR(IF($B$10=drop_down_data!$O$3,_xlfn.RANK.EQ(INDEX(generation_mix_calcs!AD$8:AD$14,MATCH($B$65,$B$67:$B$73,0)),INDEX(generation_mix_calcs!$AB$8:$AX$14,MATCH($B$65,$B$67:$B$73,0),),0)+COLUMN()/1000,_xlfn.RANK.EQ(F63,$D$63:$Z$63)+COLUMN()/1000),"") -> 2.006 | G52: =IFERROR(IF($B$10=drop_down_data!$O$3,_xlfn.RANK.EQ(INDEX(generation_mix_calcs!AE$8:AE$14,MATCH($B$65,$B$67:$B$73,0)),INDEX(generation_mix_calcs!$AB$8:$AX$14,MATCH($B$65,$B$67:$B$73,0),),0)+COLUMN()/1000,_xlfn.RANK.EQ(G63,$D$63:$Z$63)+COLUMN()/1000),"") -> 9.007 | H52: =IFERROR(IF($B$10=drop_down_data!$O$3,_xlfn.RANK.EQ(INDEX(generation_mix_calcs!AF$8:AF$14,MATCH($B$65,$B$67:$B$73,0)),INDEX(generation_mix_calcs!$AB$8:$AX$14,MATCH($B$65,$B$67:$B$73,0),),0)+COLUMN()/1000,_xlfn.RANK.EQ(H63,$D$63:$Z$63)+COLUMN()/1000),"") -> 8.008 | I52: =IFERROR(IF($B$10=drop_down_data!$O$3,_xlfn.RANK.EQ(INDEX(generation_mix_calcs!AG$8:AG$14,MATCH($B$65,$B$67:$B$73,0)),INDEX(generation_mix_calcs!$AB$8:$AX$14,MATCH($B$65,$B$67:$B$73,0),),0)+COLUMN()/1000,_xlfn.RANK.EQ(I63,$D$63:$Z$63)+COLUMN()/1000),"") -> 3.009 | J52: =IFERROR(IF($B$10=drop_down_data!$O$3,_xlfn.RANK.EQ(INDEX(generation_mix_calcs!AH$8:AH$14,MATCH($B$65,$B$67:$B$73,0)),INDEX(generation_mix_calcs!$AB$8:$AX$14,MATCH($B$65,$B$67:$B$73,0),),0)+COLUMN()/1000,_xlfn.RANK.EQ(J63,$D$63:$Z$63)+COLUMN()/1000),"") -> 5.01 | K52: =IFERROR(IF($B$10=drop_down_data!$O$3,_xlfn.RANK.EQ(INDEX(generation_mix_calcs!AI$8:AI$14,MATCH($B$65,$B$67:$B$73,0)),INDEX(generation_mix_calcs!$AB$8:$AX$14,MATCH($B$65,$B$67:$B$73,0),),0)+COLUMN()/1000,_xlfn.RANK.EQ(K63,$D$63:$Z$63)+COLUMN()/1000),"") -> 11.011 | L52: =IFERROR(IF($B$10=drop_down_data!$O$3,_xlfn.RANK.EQ(INDEX(generation_mix_calcs!AJ$8:AJ$14,MATCH($B$65,$B$67:$B$73,0)),INDEX(generation_mix_calcs!$AB$8:$AX$14,MATCH($B$65,$B$67:$B$73,0),),0)+COLUMN()/1000,_xlfn.RANK.EQ(L63,$D$63:$Z$63)+COLUMN()/1000),"") -> 6.012 | M52: =IFERROR(IF($B$10=drop_down_data!$O$3,_xlfn.RANK.EQ(INDEX(generation_mix_calcs!AK$8:AK$14,MATCH($B$65,$B$67:$B$73,0)),INDEX(generation_mix_calcs!$AB$8:$AX$14,MATCH($B$65,$B$67:$B$73,0),),0)+COLUMN()/1000,_xlfn.RANK.EQ(M63,$D$63:$Z$63)+COLUMN()/1000),"") -> 13.013 | N52: =IFERROR(IF($B$10=drop_down_data!$O$3,_xlfn.RANK.EQ(INDEX(generation_mix_calcs!AL$8:AL$14,MATCH($B$65,$B$67:$B$73,0)),INDEX(generation_mix_calcs!$AB$8:$AX$14,MATCH($B$65,$B$67:$B$73,0),),0)+COLUMN()/1000,_xlfn.RANK.EQ(N63,$D$63:$Z$63)+COLUMN()/1000),"") -> 10.014 | O52: =IFERROR(IF($B$10=drop_down_data!$O$3,_xlfn.RANK.EQ(INDEX(generation_mix_calcs!AM$8:AM$14,MATCH($B$65,$B$67:$B$73,0)),INDEX(generation_mix_calcs!$AB$8:$AX$14,MATCH($B$65,$B$67:$B$73,0),),0)+COLUMN()/1000,_xlfn.RANK.EQ(O63,$D$63:$Z$63)+COLUMN()/1000),"") -> 12.015 | P52: =IFERROR(IF($B$10=drop_down_data!$O$3,_xlfn.RANK.EQ(INDEX(generation_mix_calcs!AN$8:AN$14,MATCH($B$65,$B$67:$B$73,0)),INDEX(generation_mix_calcs!$AB$8:$AX$14,MATCH($B$65,$B$67:$B$73,0),),0)+COLUMN()/1000,_xlfn.RANK.EQ(P63,$D$63:$Z$63)+COLUMN()/1000),"") -> 7.016 | Q52: =IFERROR(IF($B$10=drop_down_data!$O$3,_xlfn.RANK.EQ(INDEX(generation_mix_calcs!AO$8:AO$14,MATCH($B$65,$B$67:$B$73,0)),INDEX(generation_mix_calcs!$AB$8:$AX$14,MATCH($B$65,$B$67:$B$73,0),),0)+COLUMN()/1000,_xlfn.RANK.EQ(Q63,$D$63:$Z$63)+COLUMN()/1000),"") -> 14.017 | R52: =IFERROR(IF($B$10=drop_down_data!$O$3,_xlfn.RANK.EQ(INDEX(generation_mix_calcs!AP$8:AP$14,MATCH($B$65,$B$67:$B$73,0)),INDEX(generation_mix_calcs!$AB$8:$AX$14,MATCH($B$65,$B$67:$B$73,0),),0)+COLUMN()/1000,_xlfn.RANK.EQ(R63,$D$63:$Z$63)+COLUMN()/1000),"") -> 14.018 | S52: =IFERROR(IF($B$10=drop_down_data!$O$3,_xlfn.RANK.EQ(INDEX(generation_mix_calcs!AQ$8:AQ$14,MATCH($B$65,$B$67:$B$73,0)),INDEX(generation_mix_calcs!$AB$8:$AX$14,MATCH($B$65,$B$67:$B$73,0),),0)+COLUMN()/1000,_xlfn.RANK.EQ(S63,$D$63:$Z$63)+COLUMN()/1000),"") -> 14.019 | T52: =IFERROR(IF($B$10=drop_down_data!$O$3,_xlfn.RANK.EQ(INDEX(generation_mix_calcs!AR$8:AR$14,MATCH($B$65,$B$67:$B$73,0)),INDEX(generation_mix_calcs!$AB$8:$AX$14,MATCH($B$65,$B$67:$B$73,0),),0)+COLUMN()/1000,_xlfn.RANK.EQ(T63,$D$63:$Z$63)+COLUMN()/1000),"") -> 14.02 | U52: =IFERROR(IF($B$10=drop_down_data!$O$3,_xlfn.RANK.EQ(INDEX(generation_mix_calcs!AS$8:AS$14,MATCH($B$65,$B$67:$B$73,0)),INDEX(generation_mix_calcs!$AB$8:$AX$14,MATCH($B$65,$B$67:$B$73,0),),0)+COLUMN()/1000,_xlfn.RANK.EQ(U63,$D$63:$Z$63)+COLUMN()/1000),"") -> 14.021 | V52: =IFERROR(IF($B$10=drop_down_data!$O$3,_xlfn.RANK.EQ(INDEX(generation_mix_calcs!AT$8:AT$14,MATCH($B$65,$B$67:$B$73,0)),INDEX(generation_mix_calcs!$AB$8:$AX$14,MATCH($B$65,$B$67:$B$73,0),),0)+COLUMN()/1000,_xlfn.RANK.EQ(V63,$D$63:$Z$63)+COLUMN()/1000),"") -> 14.022 | W52: =IFERROR(IF($B$10=drop_down_data!$O$3,_xlfn.RANK.EQ(INDEX(generation_mix_calcs!AU$8:AU$14,MATCH($B$65,$B$67:$B$73,0)),INDEX(generation_mix_calcs!$AB$8:$AX$14,MATCH($B$65,$B$67:$B$73,0),),0)+COLUMN()/1000,_xlfn.RANK.EQ(W63,$D$63:$Z$63)+COLUMN()/1000),"") -> 14.023 | X52: =IFERROR(IF($B$10=drop_down_data!$O$3,_xlfn.RANK.EQ(INDEX(generation_mix_calcs!AV$8:AV$14,MATCH($B$65,$B$67:$B$73,0)),INDEX(generation_mix_calcs!$AB$8:$AX$14,MATCH($B$65,$B$67:$B$73,0),),0)+COLUMN()/1000,_xlfn.RANK.EQ(X63,$D$63:$Z$63)+COLUMN()/1000),"") -> 14.024 | Y52: =IFERROR(IF($B$10=drop_down_data!$O$3,_xlfn.RANK.EQ(INDEX(generation_mix_calcs!AW$8:AW$14,MATCH($B$65,$B$67:$B$73,0)),INDEX(generation_mix_calcs!$AB$8:$AX$14,MATCH($B$65,$B$67:$B$73,0),),0)+COLUMN()/1000,_xlfn.RANK.EQ(Y63,$D$63:$Z$63)+COLUMN()/1000),"") -> 14.025 | Z52: =IFERROR(IF($B$10=drop_down_data!$O$3,_xlfn.RANK.EQ(INDEX(generation_mix_calcs!AX$8:AX$14,MATCH($B$65,$B$67:$B$73,0)),INDEX(generation_mix_calcs!$AB$8:$AX$14,MATCH($B$65,$B$67:$B$73,0),),0)+COLUMN()/1000,_xlfn.RANK.EQ(Z63,$D$63:$Z$63)+COLUMN()/1000),"") -> 14.026 | AC52: 1 | AD52: 2 | AE52: 3 | AF52: 4 | AG52: 5 | AH52: 6 | AI52: 7 | AJ52: 8 | AK52: 9 | AL52: 10 | AM52: 11 | AN52: 12 | AO52: 13 | AP52: 14 | AQ52: 15 | AR52: 16 | AS52: 17 | AT52: 18 | AU52: 19 | AV52: 20 | AW52: 21 | AX52: 22 | AY52: 23
D53: =_xlfn.RANK.EQ(D$52,$D$52:$Z$52,1) -> 4 | E53: =_xlfn.RANK.EQ(E$52,$D$52:$Z$52,1) -> 1 | F53: 2 | G53: 9 | H53: 8 | I53: 3 | J53: 5 | K53: 11 | L53: 6 | M53: 13 | N53: 10 | O53: 12 | P53: 7 | Q53: 14 | R53: 15 | S53: 16 | T53: 17 | U53: 18 | V53: 19 | W53: 20 | X53: 21 | Y53: 22 | Z53: 23 | AC53: =IFERROR(INDEX($AC$48:$AY$48,1,MATCH(AC52,$AC$51:$AY$51,0)),"") -> Coal | AD53: =IFERROR(INDEX($AC$48:$AY$48,1,MATCH(AD52,$AC$51:$AY$51,0)),"") -> Natural gas | AE53: Mixed | AF53: Nuclear | AG53: Biomass | AH53: Petroleum | AI53: Other fuels | AJ53: Wind | AK53: Geothermal | AL53: Solar | AM53: Other fossil | AN53: Solar thermal | AO53: Hydro
D54: =MATCH(D51,$D$53:$Z$53,0) -> 2 | E54: =MATCH(E51,$D$53:$Z$53,0) -> 3 | F54: 6 | G54: 1 | H54: 7 | I54: 9 | J54: 13 | K54: 5 | L54: 4 | M54: 11 | N54: 8 | O54: 12 | P54: 10 | Q54: 14 | R54: 15 | S54: 16 | T54: 17 | U54: 18 | V54: 19 | W54: 20 | X54: 21 | Y54: 22 | Z54: 23 | AB54: =MAX(COUNTIF($AC$45:$AY$45,TRUE),1) -> 13 | AC54: =IFERROR((INDEX($AC$49:$AY$49,1,MATCH(AC52,$AC$51:$AY$51,0))),"") -> 0.5758035773 | AD54: =IFERROR(ABS(INDEX($AC$49:$AY$49,1,MATCH(AD52,$AC$51:$AY$51,0))),"") -> 0.4013556876 | AE54: 0.2221198269 | AF54: 0.04890231967 | AG54: 0.02583347757 | AH54: 0.01380885259 | AI54: 0.009797371069 | AJ54: 0.005893333167 | AK54: 0.00147917702 | AL54: 0.0007982479518 | AM54: 0.0006966009477 | AN54: 0.000403547979 | AO54: 0.000173439678
C55: =IF(C47<=-4,TEXT(C46,"#.##E+00"),C46) -> 604 | D55: =INDEX($D$50:$Z$50,1,D54) -> 298 | E55: =INDEX($D$50:$Z$50,1,E54) -> 201 | F55: 88 | G55: 7 | H55: 4 | I55: 2 | J55: 2 | K55: <1 | L55: <1 | M55: <1 | N55: <1 | O55: <1 | P55: <1 | Q55: 0 | R55: 0 | S55: 0 | T55: 0 | U55: 0 | V55: 0 | W55: 0 | X55: 0 | Y55: 0 | Z55: 0 | AB55: =LOG(ABS(AC54),10) -> -0.2397256413 | AC55: =IFERROR(LOG(ABS(AC54),10),"") -> -0.2397256413 | AD55: =IFERROR(LOG(ABS(AD54),10),"") -> -0.3964705782 | AE55: -0.6534126736 | AF55: -1.31067054 | AG55: -1.587817127 | AH55: -1.859842407 | AI55: -2.008890443 | AJ55: -2.229639006 | AK55: -2.829979849 | AL55: -3.097862187 | AM55: -3.157015939 | AN55: -3.394104823 | AO55: -3.760851541
C56: =B65&" "&IF($B$9="Global Warming Potential",traci_factors!$L$1&" ","")&INDEX(impact_text!B2:B8,MATCH(generation_mix!B65,impact_text!$A$2:$A$8,0),1) -> Global Warming Potential IPCC AR5, 2013, 100-yr, w/ climate carbon feedback kg CO₂-e/MWh delivered | AB56: =10^(INT(AB55)-2) -> 0.001 | AC56: =IFERROR(3-(1+INT(AC55)),"") -> 3 | AD56: =IFERROR(3-(1+INT(AD55)),"") -> 3 | AE56: 3 | AF56: 4 | AG56: 4 | AH56: 4 | AI56: 5 | AJ56: 5 | AK56: 5 | AL56: 6 | AM56: 6 | AN56: 6 | AO56: 6
AB57: =IF($AC$54>0.001,TEXT(AB56,"#,##0"&AC58),TEXT(AB56,"#E+##")) -> 0.001 | AC57: =IF(AC56="","",IF(AC54<$AB$56,"<"&TEXT($AB$56,IF($AB$56<0.001,"#E+##","#,###"&AC58)),IF(AC54=0,"0",TEXT(ROUND(AC54,AC56),IF(AC54<0.001,"#.0E+##",IF(AC56=0,"#,###","#.###")))))) -> .576 | AD57: =IF(AD56="","",IF(AD54<$AB$56,"<"&TEXT($AB$56,IF($AB$56<0.001,"#E+##","#,###"&AD58)),IF(AD54=0,"0",TEXT(ROUND(AD54,AD56),IF(AD54<0.001,"#.0E+##",IF(AD56=0,"#,###","#.###")))))) -> .401 | AE57: .222 | AF57: .049 | AG57: .026 | AH57: .014 | AI57: .01 | AJ57: .006 | AK57: .001 | AL57: <.001 | AM57: <.001 | AN57: <.001 | AO57: <.001
AC58: =IF(AC56>=1,"."&REPT("0",$AC$56),"") -> .000 | AD58: =IF(AD56>=1,"."&REPT("0",$AC$56),"") -> .000 | AE58: .000 | AF58: .000 | AG58: .000 | AH58: .000 | AI58: =IF(AI56>=1,"."&REPT("0",IF($AC$56>=0,$AC$56,0)),"") -> .000 | AJ58: =IF(AJ56>=1,"."&REPT("0",IF($AC$56>=0,$AC$56,0)),"") -> .000 | AK58: .000 | AL58: .000 | AM58: .000 | AN58: .000 | AO58: .000 | AP58: .000 | AQ58: .000 | AR58: .000 | AS58: .000 | AT58: .000 | AU58: .000 | AV58: .000 | AW58: .000 | AX58: .000 | AY58: .000
AC59: =IF(AC54=0,"0",IF(ABS(AC54)>$AB$56,IF(ABS($AC$54)>0.001,TEXT(AC54,"#,##0"&AC58),TEXT(AC54,"#.00E+00")),"<"&$AB$57)) -> 0.576 | AD59: =IF(AD54=0,"0",IF(ABS(AD54)>$AB$56,IF(ABS($AC$54)>0.001,TEXT(AD54,"#,##0"&AD58),TEXT(AD54,"#.00E+00")),"<"&$AB$57)) -> 0.401 | AE59: 0.222 | AF59: 0.049 | AG59: 0.026 | AH59: 0.014 | AI59: 0.010 | AJ59: 0.006 | AK59: 0.001 | AL59: <0.001 | AM59: <0.001 | AN59: <0.001 | AO59: <0.001
C61: =PROPER(C66)&" - "&TEXT(C63,"0.0%") -> Total - 100.0% | D61: Biomass - 0.6% | E61: Coal - 26.0% | F61: Natural Gas - 32.1% | G61: Geothermal - 0.4% | H61: Hydro - 6.6% | I61: Mixed - 7.9% | J61: Nuclear - 19.6% | K61: Other Fossil - 0.0% | L61: Petroleum - 0.2% | M61: Other Fuels - 0.1% | N61: Solar - 0.8% | O61: Solar Thermal - 0.1% | P61: Wind - 5.6% | Q61: =Q66&" - "&TEXT(Q63,"0.0%") -> SCPC - 0.0% | R61: =R66&" - "&TEXT(R63,"0.0%") -> SCPC w/ CCS - 0.0% | S61: SubPC - 0.0% | T61: SubPC w/ CCS - 0.0% | U61: NGCC - 0.0% | V61: NGCC w/ CCS - 0.0% | W61: OxyPC w/ CCS - 0.0% | X61: SOFC Coal Conventional Gasifier w/ CCS - 0.0% | Y61: SOFC NG w/ CCS - 0.0% | Z61: SubPC w/ CCS w/ NG Aux - 0.0%
C62: Total | D62: =PROPER(D64) -> Coal - 26.0% | E62: Natural Gas - 32.1% | F62: Mixed - 7.9% | G62: Biomass - 0.6% | H62: Nuclear - 19.6% | I62: Petroleum - 0.2% | J62: Wind - 5.6% | K62: Hydro - 6.6% | L62: Geothermal - 0.4% | M62: Solar - 0.8% | N62: Other Fossil - 0.0% | O62: Solar Thermal - 0.1% | P62: Other Fuels - 0.1% | Q62: =Q66 -> SCPC | R62: SCPC w/ CCS | S62: SubPC | T62: SubPC w/ CCS | U62: NGCC | V62: NGCC w/ CCS | W62: OxyPC w/ CCS | X62: SOFC Coal Conventional Gasifier w/ CCS | Y62: SOFC NG w/ CCS | Z62: SubPC w/ CCS w/ NG Aux
C63: =SUM(D63:Z63) -> 1 | D63: =generation_mix_calcs!C21 -> 0.005854209579 | E63: =generation_mix_calcs!D21 -> 0.2595918648 | F63: =generation_mix_calcs!E21 -> 0.3207751097 | G63: =generation_mix_calcs!F21 -> 0.003884592756 | H63: =generation_mix_calcs!G21 -> 0.06603557122 | I63: =generation_mix_calcs!H21 -> 0.07944122264 | J63: =generation_mix_calcs!I21 -> 0.1960584945 | K63: =generation_mix_calcs!J21 -> 0.0001300851769 | L63: =generation_mix_calcs!K21 -> 0.002167019037 | M63: =generation_mix_calcs!L21 -> 0.001140640785 | N63: =generation_mix_calcs!M21 -> 0.007988419302 | O63: =generation_mix_calcs!N21 -> 0.0007814084658 | P63: =generation_mix_calcs!O21 -> 0.0561513621 | Q63: =generation_mix_calcs!P21 -> 0 | R63: =generation_mix_calcs!Q21 -> 0 | S63: =generation_mix_calcs!R21 -> 0 | T63: =generation_mix_calcs!S21 -> 0 | U63: =generation_mix_calcs!T21 -> 0 | V63: =generation_mix_calcs!U21 -> 0 | W63: =generation_mix_calcs!V21 -> 0 | X63: =generation_mix_calcs!W21 -> 0 | Y63: =generation_mix_calcs!X21 -> 0 | Z63: =generation_mix_calcs!Y21 -> 0
C64: Total | D64: =INDEX($D$61:$Z$61,1,D54) -> Coal - 26.0% | E64: =INDEX($D$61:$BW$61,1,E54) -> Natural Gas - 32.1% | F64: Mixed - 7.9% | G64: Biomass - 0.6% | H64: Nuclear - 19.6% | I64: Petroleum - 0.2% | J64: Wind - 5.6% | K64: Hydro - 6.6% | L64: Geothermal - 0.4% | M64: Solar - 0.8% | N64: Other Fossil - 0.0% | O64: Solar Thermal - 0.1% | P64: Other Fuels - 0.1% | Q64: SCPC - 0.0% | R64: SCPC w/ CCS - 0.0% | S64: SubPC - 0.0% | T64: SubPC w/ CCS - 0.0% | U64: NGCC - 0.0% | V64: NGCC w/ CCS - 0.0% | W64: OxyPC w/ CCS - 0.0% | X64: SOFC Coal Conventional Gasifier w/ CCS - 0.0% | Y64: SOFC NG w/ CCS - 0.0% | Z64: SubPC w/ CCS w/ NG Aux - 0.0%
B65: =INDEX(B$67:B$73,MATCH($B$9,$B$67:$B$73,0),1) -> Global Warming Potential | C65: =C46 -> 604 | D65: =INDEX($D$46:$Z$46,1,D54)*IF(INDEX($D$67:$Z$73,MATCH($B$9,$B$67:$B$73,0),D54)<0,-1,1) -> 298 | E65: =INDEX($D$46:$Z$46,1,E54)*IF(INDEX($D$67:$Z$73,MATCH($B$9,$B$67:$B$73,0),E54)<0,-1,1) -> 201 | F65: 88 | G65: 7 | H65: 4 | I65: 2 | J65: 2 | K65: 1 | L65: 0 | M65: 0 | N65: 0 | O65: 0 | P65: 0 | Q65: 0 | R65: 0 | S65: 0 | T65: 0 | U65: 0 | V65: 0 | W65: 0 | X65: 0 | Y65: 0 | Z65: 0
B66: Impact Category | C66: Total | D66: Biomass | E66: Coal | F66: Natural gas | G66: Geothermal | H66: Hydro | I66: Mixed | J66: Nuclear | K66: Other fossil | L66: Petroleum | M66: Other fuels | N66: Solar | O66: Solar thermal | P66: Wind | Q66: SCPC | R66: SCPC w/ CCS | S66: SubPC | T66: SubPC w/ CCS | U66: NGCC | V66: NGCC w/ CCS | W66: OxyPC w/ CCS | X66: SOFC Coal Conventional Gasifier w/ CCS | Y66: SOFC NG w/ CCS | Z66: SubPC w/ CCS w/ NG Aux
B67: Eutrophication Potential | C67: =SUM(D67:Z67) -> 0.06696877049 | D67: =generation_mix_calcs!C8 -> 0.001523480368 | E67: =generation_mix_calcs!D8 -> 0.0197681565 | F67: =generation_mix_calcs!E8 -> 0.02907933546 | G67: =generation_mix_calcs!F8 -> 1.320421221e-05 | H67: =generation_mix_calcs!G8 -> 1.240684996e-05 | I67: =generation_mix_calcs!H8 -> 0.008005972982 | J67: =generation_mix_calcs!I8 -> 0.004386993389 | K67: =generation_mix_calcs!J8 -> 4.368978771e-05 | L67: =generation_mix_calcs!K8 -> 0.0004899647428 | M67: =generation_mix_calcs!L8 -> 0.0004713410095 | N67: =generation_mix_calcs!M8 -> 5.527055953e-05 | O67: =generation_mix_calcs!N8 -> 5.925086659e-05 | P67: =generation_mix_calcs!O8 -> 0.003059703758 | Q67: =generation_mix_calcs!P8 -> 0 | R67: =generation_mix_calcs!Q8 -> 0 | S67: =generation_mix_calcs!R8 -> 0 | T67: =generation_mix_calcs!S8 -> 0 | U67: =generation_mix_calcs!T8 -> 0 | V67: =generation_mix_calcs!U8 -> 0 | W67: =generation_mix_calcs!V8 -> 0 | X67: =generation_mix_calcs!W8 -> 0 | Y67: =generation_mix_calcs!X8 -> 0 | Z67: =generation_mix_calcs!Y8 -> 0
B68: Acidification Potential | C68: =SUM(D68:Z68) -> 1.30706546 | D68: =generation_mix_calcs!C9 -> 0.02583347757 | E68: =generation_mix_calcs!D9 -> 0.5758035773 | F68: =generation_mix_calcs!E9 -> 0.4013556876 | G68: =generation_mix_calcs!F9 -> 0.00147917702 | H68: =generation_mix_calcs!G9 -> 0.000173439678 | I68: =generation_mix_calcs!H9 -> 0.2221198269 | J68: =generation_mix_calcs!I9 -> 0.04890231967 | K68: =generation_mix_calcs!J9 -> 0.0006966009477 | L68: =generation_mix_calcs!K9 -> 0.01380885259 | M68: =generation_mix_calcs!L9 -> 0.009797371069 | N68: =generation_mix_calcs!M9 -> 0.0007982479518 | O68: =generation_mix_calcs!N9 -> 0.000403547979 | P68: =generation_mix_calcs!O9 -> 0.005893333167 | Q68: =generation_mix_calcs!P9 -> 0 | R68: =generation_mix_calcs!Q9 -> 0 | S68: =generation_mix_calcs!R9 -> 0 | T68: =generation_mix_calcs!S9 -> 0 | U68: =generation_mix_calcs!T9 -> 0 | V68: =generation_mix_calcs!U9 -> 0 | W68: =generation_mix_calcs!V9 -> 0 | X68: =generation_mix_calcs!W9 -> 0 | Y68: =generation_mix_calcs!X9 -> 0 | Z68: =generation_mix_calcs!Y9 -> 0
B69: Particulate Matter Formation Potential | C69: 0.1093275544 | D69: =generation_mix_calcs!C10 -> 0.001316778831 | E69: =generation_mix_calcs!D10 -> 0.06557163732 | F69: =generation_mix_calcs!E10 -> 0.01538472289 | G69: =generation_mix_calcs!F10 -> 4.115954772e-05 | H69: =generation_mix_calcs!G10 -> 0.0002743311682 | I69: =generation_mix_calcs!H10 -> 0.0179741936 | J69: =generation_mix_calcs!I10 -> 0.002718631812 | K69: =generation_mix_calcs!J10 -> 1.047408178e-05 | L69: =generation_mix_calcs!K10 -> 0.00101838536 | M69: =generation_mix_calcs!L10 -> 0.00360159168 | N69: =generation_mix_calcs!M10 -> 0.0001616020962 | O69: =generation_mix_calcs!N10 -> 8.748598105e-06 | P69: =generation_mix_calcs!O10 -> 0.001245297426 | Q69: =generation_mix_calcs!P10 -> 0 | R69: =generation_mix_calcs!Q10 -> 0 | S69: =generation_mix_calcs!R10 -> 0 | T69: =generation_mix_calcs!S10 -> 0 | U69: =generation_mix_calcs!T10 -> 0 | V69: =generation_mix_calcs!U10 -> 0 | W69: =generation_mix_calcs!V10 -> 0 | X69: =generation_mix_calcs!W10 -> 0 | Y69: =generation_mix_calcs!X10 -> 0 | Z69: =generation_mix_calcs!Y10 -> 0
B70: Photochemical Smog Formation Potential | C70: 27.45800672 | D70: =generation_mix_calcs!C11 -> 0.8368841579 | E70: =generation_mix_calcs!D11 -> 8.12955206 | F70: =generation_mix_calcs!E11 -> 13.48071088 | G70: =generation_mix_calcs!F11 -> 0.00180568431 | H70: =generation_mix_calcs!G11 -> 0.002260923755 | I70: =generation_mix_calcs!H11 -> 3.580000477 | J70: =generation_mix_calcs!I11 -> 0.4143717426 | K70: =generation_mix_calcs!J11 -> 0.02379495903 | L70: =generation_mix_calcs!K11 -> 0.2168948072 | M70: =generation_mix_calcs!L11 -> 0.1821960682 | N70: =generation_mix_calcs!M11 -> 0.009085346088 | O70: =generation_mix_calcs!N11 -> 0.4972866457 | P70: =generation_mix_calcs!O11 -> 0.08316296542 | Q70: =generation_mix_calcs!P11 -> 0 | R70: =generation_mix_calcs!Q11 -> 0 | S70: =generation_mix_calcs!R11 -> 0 | T70: =generation_mix_calcs!S11 -> 0 | U70: =generation_mix_calcs!T11 -> 0 | V70: =generation_mix_calcs!U11 -> 0 | W70: =generation_mix_calcs!V11 -> 0 | X70: =generation_mix_calcs!W11 -> 0 | Y70: =generation_mix_calcs!X11 -> 0 | Z70: =generation_mix_calcs!Y11 -> 0
B71: Global Warming Potential | C71: 603.6900384 | D71: =generation_mix_calcs!C12 -> 7.072266478 | E71: =generation_mix_calcs!D12 -> 297.9203696 | F71: =generation_mix_calcs!E12 -> 201.0785355 | G71: =generation_mix_calcs!F12 -> 0.4714425582 | H71: =generation_mix_calcs!G12 -> 0.8583205401 | I71: =generation_mix_calcs!H12 -> 87.87146738 | J71: =generation_mix_calcs!I12 -> 3.891032687 | K71: =generation_mix_calcs!J12 -> 0.1296212532 | L71: =generation_mix_calcs!K12 -> 2.494256086 | M71: =generation_mix_calcs!L12 -> 0.001393345525 | N71: =generation_mix_calcs!M12 -> 0.1788318277 | O71: =generation_mix_calcs!N12 -> 0.06638979375 | P71: =generation_mix_calcs!O12 -> 1.656111317 | Q71: =generation_mix_calcs!P12 -> 0 | R71: =generation_mix_calcs!Q12 -> 0 | S71: =generation_mix_calcs!R12 -> 0 | T71: =generation_mix_calcs!S12 -> 0 | U71: =generation_mix_calcs!T12 -> 0 | V71: =generation_mix_calcs!U12 -> 0 | W71: =generation_mix_calcs!V12 -> 0 | X71: =generation_mix_calcs!W12 -> 0 | Y71: =generation_mix_calcs!X12 -> 0 | Z71: =generation_mix_calcs!Y12 -> 0
B72: Ozone Depletion Potential | C72: 8.699014434e-06 | D72: =generation_mix_calcs!C13 -> 4.058967794e-07 | E72: =generation_mix_calcs!D13 -> 6.20802129e-06 | F72: =generation_mix_calcs!E13 -> 6.24442793e-07 | G72: =generation_mix_calcs!F13 -> 3.839782648e-14 | H72: =generation_mix_calcs!G13 -> 1.235739816e-10 | I72: =generation_mix_calcs!H13 -> 1.441437161e-06 | J72: =generation_mix_calcs!I13 -> 8.989786556e-10 | K72: =generation_mix_calcs!J13 -> 4.809744609e-12 | L72: =generation_mix_calcs!K13 -> 1.347640666e-08 | M72: =generation_mix_calcs!L13 -> 3.06032494e-13 | N72: =generation_mix_calcs!M13 -> 3.838534003e-09 | O72: =generation_mix_calcs!N13 -> 5.576706023e-12 | P72: =generation_mix_calcs!O13 -> 8.68187648e-10 | Q72: =generation_mix_calcs!P13 -> 0 | R72: =generation_mix_calcs!Q13 -> 0 | S72: =generation_mix_calcs!R13 -> 0 | T72: =generation_mix_calcs!S13 -> 0 | U72: =generation_mix_calcs!T13 -> 0 | V72: =generation_mix_calcs!U13 -> 0 | W72: =generation_mix_calcs!V13 -> 0 | X72: =generation_mix_calcs!W13 -> 0 | Y72: =generation_mix_calcs!X13 -> 0 | Z72: =generation_mix_calcs!Y13 -> 0
B73: Water Consumption | C73: 1879.682534 | D73: =generation_mix_calcs!C14 -> 0.206829908 | E73: =generation_mix_calcs!D14 -> 2113.247223 | F73: =generation_mix_calcs!E14 -> 191.118556 | G73: =generation_mix_calcs!F14 -> 0.4943456852 | H73: =generation_mix_calcs!G14 -> 0.03793576695 | I73: =generation_mix_calcs!H14 -> -578.8577397 | J73: =generation_mix_calcs!I14 -> 156.3454313 | K73: =generation_mix_calcs!J14 -> 3.556113805e-05 | L73: =generation_mix_calcs!K14 -> 0.9253324522 | M73: =generation_mix_calcs!L14 -> -2.29315874e-05 | N73: =generation_mix_calcs!M14 -> -0.0001699907854 | O73: =generation_mix_calcs!N14 -> -3.859323324 | P73: =generation_mix_calcs!O14 -> 0.02410056623 | Q73: =generation_mix_calcs!P14 -> 0 | R73: =generation_mix_calcs!Q14 -> 0 | S73: =generation_mix_calcs!R14 -> 0 | T73: =generation_mix_calcs!S14 -> 0 | U73: =generation_mix_calcs!T14 -> 0 | V73: =generation_mix_calcs!U14 -> 0 | W73: =generation_mix_calcs!V14 -> 0 | X73: =generation_mix_calcs!W14 -> 0 | Y73: =generation_mix_calcs!X14 -> 0 | Z73: =generation_mix_calcs!Y14 -> 0
A74: Category | B74: Emission | C74: Total | D74: Biomass | E74: Coal | F74: Natural gas | G74: Geothermal | H74: Hydro | I74: Mixed | J74: Nuclear | K74: Other fossil | L74: Petroleum | M74: OTHF | N74: Solar | O74: Solar thermal | P74: Wind | Q74: SCPC | R74: SCPC w/ CCS | S74: SubPC | T74: SubPC w/ CCS | U74: NGCC | V74: NGCC w/ CCS | W74: OxyPC w/ CCS | X74: SOFC Coal Conventional Gasifier w/ CCS | Y74: SOFC NG w/ CCS | Z74: SubPC w/ CCS w/ NG Aux
A75: Elementary flows/resource | B75: Heat | C75: =SUM(D75:Z75) -> 10454.9881 | D75: =generation_mix_calcs!C24 -> 84.63911977 | E75: =generation_mix_calcs!D24 -> 3091.286425 | F75: =generation_mix_calcs!E24 -> 2707.893198 | G75: =generation_mix_calcs!F24 -> 39.51737844 | H75: =generation_mix_calcs!G24 -> 671.9489194 | I75: =generation_mix_calcs!H24 -> 900.7522295 | J75: =generation_mix_calcs!I24 -> 2259.766986 | K75: =generation_mix_calcs!J24 -> 1.21505701 | L75: =generation_mix_calcs!K24 -> 25.18392216 | M75: =generation_mix_calcs!L24 -> 11.59549541 | N75: =generation_mix_calcs!M24 -> 81.26499201 | O75: =generation_mix_calcs!N24 -> 8.673912835 | P75: =generation_mix_calcs!O24 -> 571.2504623 | Q75: =generation_mix_calcs!P24 -> 0 | R75: =generation_mix_calcs!Q24 -> 0 | S75: =generation_mix_calcs!R24 -> 0 | T75: =generation_mix_calcs!S24 -> 0 | U75: =generation_mix_calcs!T24 -> 0 | V75: =generation_mix_calcs!U24 -> 0 | W75: =generation_mix_calcs!V24 -> 0 | X75: =generation_mix_calcs!W24 -> 0 | Y75: =generation_mix_calcs!X24 -> 0 | Z75: =generation_mix_calcs!Y24 -> 0
A76: Elementary flows/resource | B76: Water | C76: =SUM(D76:Z76) -> 180.5305696 | D76: =generation_mix_calcs!C25 -> 0 | E76: =generation_mix_calcs!D25 -> 0.493455972 | F76: =generation_mix_calcs!E25 -> 179.6190774 | G76: =generation_mix_calcs!F25 -> 0 | H76: =generation_mix_calcs!G25 -> 0 | I76: =generation_mix_calcs!H25 -> 0.4180362127 | J76: =generation_mix_calcs!I25 -> 0 | K76: =generation_mix_calcs!J25 -> 0 | L76: =generation_mix_calcs!K25 -> 0 | M76: =generation_mix_calcs!L25 -> 0 | N76: =generation_mix_calcs!M25 -> 0 | O76: =generation_mix_calcs!N25 -> 0 | P76: =generation_mix_calcs!O25 -> 0 | Q76: =generation_mix_calcs!P25 -> 0 | R76: =generation_mix_calcs!Q25 -> 0 | S76: =generation_mix_calcs!R25 -> 0 | T76: =generation_mix_calcs!S25 -> 0 | U76: =generation_mix_calcs!T25 -> 0 | V76: =generation_mix_calcs!U25 -> 0 | W76: =generation_mix_calcs!V25 -> 0 | X76: =generation_mix_calcs!W25 -> 0 | Y76: =generation_mix_calcs!X25 -> 0 | Z76: =generation_mix_calcs!Y25 -> 0
A77: Elementary flows/resource | B77: Water, brackish | C77: 3227.025122 | D77: =generation_mix_calcs!C26 -> 0 | E77: =generation_mix_calcs!D26 -> 199.2209609 | F77: =generation_mix_calcs!E26 -> 2951.766194 | G77: =generation_mix_calcs!F26 -> 0 | H77: =generation_mix_calcs!G26 -> 0 | I77: =generation_mix_calcs!H26 -> 64.14932007 | J77: =generation_mix_calcs!I26 -> 11.88864663 | K77: =generation_mix_calcs!J26 -> 0 | L77: =generation_mix_calcs!K26 -> 0 | M77: =generation_mix_calcs!L26 -> 0 | N77: =generation_mix_calcs!M26 -> 0 | O77: =generation_mix_calcs!N26 -> 0 | P77: =generation_mix_calcs!O26 -> 0 | Q77: =generation_mix_calcs!P26 -> 0 | R77: =generation_mix_calcs!Q26 -> 0 | S77: =generation_mix_calcs!R26 -> 0 | T77: =generation_mix_calcs!S26 -> 0 | U77: =generation_mix_calcs!T26 -> 0 | V77: =generation_mix_calcs!U26 -> 0 | W77: =generation_mix_calcs!V26 -> 0 | X77: =generation_mix_calcs!W26 -> 0 | Y77: =generation_mix_calcs!X26 -> 0 | Z77: =generation_mix_calcs!Y26 -> 0
A78: Elementary flows/resource | B78: Water, fresh | C78: 25204.84544 | D78: =generation_mix_calcs!C27 -> 0.2114353166 | E78: =generation_mix_calcs!D27 -> 9748.04858 | F78: =generation_mix_calcs!E27 -> 7346.591739 | G78: =generation_mix_calcs!F27 -> 0 | H78: =generation_mix_calcs!G27 -> 0 | I78: =generation_mix_calcs!H27 -> 3225.72378 | J78: =generation_mix_calcs!I27 -> 4884.269907 | K78: =generation_mix_calcs!J27 -> 0 | L78: =generation_mix_calcs!K27 -> 0 | M78: =generation_mix_calcs!L27 -> 0 | N78: =generation_mix_calcs!M27 -> 0 | O78: =generation_mix_calcs!N27 -> 2.585525111e-25 | P78: =generation_mix_calcs!O27 -> 0 | Q78: =generation_mix_calcs!P27 -> 0 | R78: =generation_mix_calcs!Q27 -> 0 | S78: =generation_mix_calcs!R27 -> 0 | T78: =generation_mix_calcs!S27 -> 0 | U78: =generation_mix_calcs!T27 -> 0 | V78: =generation_mix_calcs!U27 -> 0 | W78: =generation_mix_calcs!V27 -> 0 | X78: =generation_mix_calcs!W27 -> 0 | Y78: =generation_mix_calcs!X27 -> 0 | Z78: =generation_mix_calcs!Y27 -> 0
A79: Elementary flows/resource | B79: Water, reclaimed | C79: 571.2022954 | D79: =generation_mix_calcs!C28 -> 0 | E79: =generation_mix_calcs!D28 -> 102.5443179 | F79: =generation_mix_calcs!E28 -> 28.39682506 | G79: =generation_mix_calcs!F28 -> 0 | H79: =generation_mix_calcs!G28 -> 0 | I79: =generation_mix_calcs!H28 -> 416.9145492 | J79: =generation_mix_calcs!I28 -> 23.34660322 | K79: =generation_mix_calcs!J28 -> 0 | L79: =generation_mix_calcs!K28 -> 0 | M79: =generation_mix_calcs!L28 -> 0 | N79: =generation_mix_calcs!M28 -> 0 | O79: =generation_mix_calcs!N28 -> 0 | P79: =generation_mix_calcs!O28 -> 0 | Q79: =generation_mix_calcs!P28 -> 0 | R79: =generation_mix_calcs!Q28 -> 0 | S79: =generation_mix_calcs!R28 -> 0 | T79: =generation_mix_calcs!S28 -> 0 | U79: =generation_mix_calcs!T28 -> 0 | V79: =generation_mix_calcs!U28 -> 0 | W79: =generation_mix_calcs!V28 -> 0 | X79: =generation_mix_calcs!W28 -> 0 | Y79: =generation_mix_calcs!X28 -> 0 | Z79: =generation_mix_calcs!Y28 -> 0
A80: Elementary flows/resource | B80: Water, reclaimed | C80: 571.2022954 | D80: =generation_mix_calcs!C29 -> 0 | E80: =generation_mix_calcs!D29 -> 102.5443179 | F80: =generation_mix_calcs!E29 -> 28.39682506 | G80: =generation_mix_calcs!F29 -> 0 | H80: =generation_mix_calcs!G29 -> 0 | I80: =generation_mix_calcs!H29 -> 416.9145492 | J80: =generation_mix_calcs!I29 -> 23.34660322 | K80: =generation_mix_calcs!J29 -> 0 | L80: =generation_mix_calcs!K29 -> 0 | M80: =generation_mix_calcs!L29 -> 0 | N80: =generation_mix_calcs!M29 -> 0 | O80: =generation_mix_calcs!N29 -> 0 | P80: =generation_mix_calcs!O29 -> 0 | Q80: =generation_mix_calcs!P29 -> 0 | R80: =generation_mix_calcs!Q29 -> 0 | S80: =generation_mix_calcs!R29 -> 0 | T80: =generation_mix_calcs!S29 -> 0 | U80: =generation_mix_calcs!T29 -> 0 | V80: =generation_mix_calcs!U29 -> 0 | W80: =generation_mix_calcs!V29 -> 0 | X80: =generation_mix_calcs!W29 -> 0 | Y80: =generation_mix_calcs!X29 -> 0 | Z80: =generation_mix_calcs!Y29 -> 0
A81: Elementary flows/resource | B81: Water, saline | C81: 3784.092977 | D81: =generation_mix_calcs!C30 -> 0 | E81: =generation_mix_calcs!D30 -> 47.58420708 | F81: =generation_mix_calcs!E30 -> 1737.311409 | G81: =generation_mix_calcs!F30 -> 0 | H81: =generation_mix_calcs!G30 -> 0 | I81: =generation_mix_calcs!H30 -> 431.3219117 | J81: =generation_mix_calcs!I30 -> 1090.804058 | K81: =generation_mix_calcs!J30 -> 0 | L81: =generation_mix_calcs!K30 -> 477.0713913 | M81: =generation_mix_calcs!L30 -> 0 | N81: =generation_mix_calcs!M30 -> 0 | O81: =generation_mix_calcs!N30 -> 0 | P81: =generation_mix_calcs!O30 -> 0 | Q81: =generation_mix_calcs!P30 -> 0 | R81: =generation_mix_calcs!Q30 -> 0 | S81: =generation_mix_calcs!R30 -> 0 | T81: =generation_mix_calcs!S30 -> 0 | U81: =generation_mix_calcs!T30 -> 0 | V81: =generation_mix_calcs!U30 -> 0 | W81: =generation_mix_calcs!V30 -> 0 | X81: =generation_mix_calcs!W30 -> 0 | Y81: =generation_mix_calcs!X30 -> 0 | Z81: =generation_mix_calcs!Y30 -> 0
A82: Elementary flows/resource/air | B82: Air | C82: 2.766648441 | D82: =generation_mix_calcs!C31 -> 0 | E82: =generation_mix_calcs!D31 -> 0.01324808809 | F82: =generation_mix_calcs!E31 -> 3.700169846e-06 | G82: =generation_mix_calcs!F31 -> 0.003635114953 | H82: =generation_mix_calcs!G31 -> 0 | I82: =generation_mix_calcs!H31 -> 0.04896784489 | J82: =generation_mix_calcs!I31 -> 2.700793693 | K82: =generation_mix_calcs!J31 -> 0 | L82: =generation_mix_calcs!K31 -> 0 | M82: =generation_mix_calcs!L31 -> 0 | N82: =generation_mix_calcs!M31 -> 0 | O82: =generation_mix_calcs!N31 -> 0 | P82: =generation_mix_calcs!O31 -> 0 | Q82: =generation_mix_calcs!P31 -> 0 | R82: =generation_mix_calcs!Q31 -> 0 | S82: =generation_mix_calcs!R31 -> 0 | T82: =generation_mix_calcs!S31 -> 0 | U82: =generation_mix_calcs!T31 -> 0 | V82: =generation_mix_calcs!U31 -> 0 | W82: =generation_mix_calcs!V31 -> 0 | X82: =generation_mix_calcs!W31 -> 0 | Y82: =generation_mix_calcs!X31 -> 0 | Z82: =generation_mix_calcs!Y31 -> 0
A83: Elementary flows/resource/air | B83: Carbon dioxide | C83: 0.03963402248 | D83: =generation_mix_calcs!C32 -> 4.229929787e-08 | E83: =generation_mix_calcs!D32 -> 0.0004291790102 | F83: =generation_mix_calcs!E32 -> 0.0001905414106 | G83: =generation_mix_calcs!F32 -> 4.199034006e-05 | H83: =generation_mix_calcs!G32 -> 2.923119177e-09 | I83: =generation_mix_calcs!H32 -> 0.0007530103826 | J83: =generation_mix_calcs!I32 -> 0.03821916483 | K83: =generation_mix_calcs!J32 -> 1.574655775e-09 | L83: =generation_mix_calcs!K32 -> 4.648943537e-10 | M83: =generation_mix_calcs!L32 -> 0 | N83: =generation_mix_calcs!M32 -> 0 | O83: =generation_mix_calcs!N32 -> 8.911298805e-08 | P83: =generation_mix_calcs!O32 -> 1.366981332e-10 | Q83: =generation_mix_calcs!P32 -> 0 | R83: =generation_mix_calcs!Q32 -> 0 | S83: =generation_mix_calcs!R32 -> 0 | T83: =generation_mix_calcs!S32 -> 0 | U83: =generation_mix_calcs!T32 -> 0 | V83: =generation_mix_calcs!U32 -> 0 | W83: =generation_mix_calcs!V32 -> 0 | X83: =generation_mix_calcs!W32 -> 0 | Y83: =generation_mix_calcs!X32 -> 0 | Z83: =generation_mix_calcs!Y32 -> 0
A84: Elementary flows/resource/air | B84: Energy, solar | C84: 0.2352736146 | D84: =generation_mix_calcs!C33 -> 2.171653338e-05 | E84: =generation_mix_calcs!D33 -> 0.1170352191 | F84: =generation_mix_calcs!E33 -> 0.08242036567 | G84: =generation_mix_calcs!F33 -> 1.551315066e-23 | H84: =generation_mix_calcs!G33 -> 4.515005493e-05 | I84: =generation_mix_calcs!H33 -> 0.03302294926 | J84: =generation_mix_calcs!I33 -> 2.288898119e-05 | K84: =generation_mix_calcs!J33 -> 0 | L84: =generation_mix_calcs!K33 -> 0.002674896182 | M84: =generation_mix_calcs!L33 -> 0 | N84: =generation_mix_calcs!M33 -> 3.850123588e-07 | O84: =generation_mix_calcs!N33 -> 0 | P84: =generation_mix_calcs!O33 -> 3.004382757e-05 | Q84: =generation_mix_calcs!P33 -> 0 | R84: =generation_mix_calcs!Q33 -> 0 | S84: =generation_mix_calcs!R33 -> 0 | T84: =generation_mix_calcs!S33 -> 0 | U84: =generation_mix_calcs!T33 -> 0 | V84: =generation_mix_calcs!U33 -> 0 | W84: =generation_mix_calcs!V33 -> 0 | X84: =generation_mix_calcs!W33 -> 0 | Y84: =generation_mix_calcs!X33 -> 0 | Z84: =generation_mix_calcs!Y33 -> 0
A85: Elementary flows/resource/air | B85: Energy, wind | C85: 0.8335101209 | D85: =generation_mix_calcs!C34 -> 7.694204194e-05 | E85: =generation_mix_calcs!D34 -> 0.4146016461 | F85: =generation_mix_calcs!E34 -> 0.2920166888 | G85: =generation_mix_calcs!F34 -> 1.551315066e-23 | H85: =generation_mix_calcs!G34 -> 0.0001599674018 | I85: =generation_mix_calcs!H34 -> 0.1169887792 | J85: =generation_mix_calcs!I34 -> 8.109604421e-05 | K85: =generation_mix_calcs!J34 -> 0 | L85: =generation_mix_calcs!K34 -> 0.009477201199 | M85: =generation_mix_calcs!L34 -> 0 | N85: =generation_mix_calcs!M34 -> 1.364105244e-06 | O85: =generation_mix_calcs!N34 -> 0 | P85: =generation_mix_calcs!O34 -> 0.0001064360113 | Q85: =generation_mix_calcs!P34 -> 0 | R85: =generation_mix_calcs!Q34 -> 0 | S85: =generation_mix_calcs!R34 -> 0 | T85: =generation_mix_calcs!S34 -> 0 | U85: =generation_mix_calcs!T34 -> 0 | V85: =generation_mix_calcs!U34 -> 0 | W85: =generation_mix_calcs!V34 -> 0 | X85: =generation_mix_calcs!W34 -> 0 | Y85: =generation_mix_calcs!X34 -> 0 | Z85: =generation_mix_calcs!Y34 -> 0
A86: Elementary flows/resource/air | B86: Methane | C86: 6.86012157e-05 | D86: =generation_mix_calcs!C35 -> 0 | E86: =generation_mix_calcs!D35 -> 3.281280103e-07 | F86: =generation_mix_calcs!E35 -> 9.209197394e-11 | G86: =generation_mix_calcs!F35 -> 1.92430715e-08 | H86: =generation_mix_calcs!G35 -> 0 | I86: =generation_mix_calcs!H35 -> 1.214735001e-06 | J86: =generation_mix_calcs!I35 -> 6.703901752e-05 | K86: =generation_mix_calcs!J35 -> 0 | L86: =generation_mix_calcs!K35 -> 0 | M86: =generation_mix_calcs!L35 -> 0 | N86: =generation_mix_calcs!M35 -> 0 | O86: =generation_mix_calcs!N35 -> 0 | P86: =generation_mix_calcs!O35 -> 0 | Q86: =generation_mix_calcs!P35 -> 0 | R86: =generation_mix_calcs!Q35 -> 0 | S86: =generation_mix_calcs!R35 -> 0 | T86: =generation_mix_calcs!S35 -> 0 | U86: =generation_mix_calcs!T35 -> 0 | V86: =generation_mix_calcs!U35 -> 0 | W86: =generation_mix_calcs!V35 -> 0 | X86: =generation_mix_calcs!W35 -> 0 | Y86: =generation_mix_calcs!X35 -> 0 | Z86: =generation_mix_calcs!Y35 -> 0
A87: Elementary flows/resource/air | B87: Natural gas | C87: 19.46288076 | D87: =generation_mix_calcs!C36 -> 0.001327847648 | E87: =generation_mix_calcs!D36 -> 8.455510321 | F87: =generation_mix_calcs!E36 -> 5.040768134 | G87: =generation_mix_calcs!F36 -> 0.004171376587 | H87: =generation_mix_calcs!G36 -> 0.002760679765 | I87: =generation_mix_calcs!H36 -> 2.363723802 | J87: =generation_mix_calcs!I36 -> 3.428944807 | K87: =generation_mix_calcs!J36 -> 0 | L87: =generation_mix_calcs!K36 -> 0.1635755397 | M87: =generation_mix_calcs!L36 -> 0 | N87: =generation_mix_calcs!M36 -> 2.35414072e-05 | O87: =generation_mix_calcs!N36 -> 0 | P87: =generation_mix_calcs!O36 -> 0.002074712816 | Q87: =generation_mix_calcs!P36 -> 0 | R87: =generation_mix_calcs!Q36 -> 0 | S87: =generation_mix_calcs!R36 -> 0 | T87: =generation_mix_calcs!S36 -> 0 | U87: =generation_mix_calcs!T36 -> 0 | V87: =generation_mix_calcs!U36 -> 0 | W87: =generation_mix_calcs!V36 -> 0 | X87: =generation_mix_calcs!W36 -> 0 | Y87: =generation_mix_calcs!X36 -> 0 | Z87: =generation_mix_calcs!Y36 -> 0
A88: Elementary flows/resource/air | B88: Nitrogen | C88: 3.042562068e-05 | D88: =generation_mix_calcs!C37 -> 0 | E88: =generation_mix_calcs!D37 -> 1.458567844e-07 | F88: =generation_mix_calcs!E37 -> 4.076319157e-11 | G88: =generation_mix_calcs!F37 -> 7.870794559e-12 | H88: =generation_mix_calcs!G37 -> 0 | I88: =generation_mix_calcs!H37 -> 5.388591777e-07 | J88: =generation_mix_calcs!I37 -> 2.974085609e-05 | K88: =generation_mix_calcs!J37 -> 0 | L88: =generation_mix_calcs!K37 -> 0 | M88: =generation_mix_calcs!L37 -> 0 | N88: =generation_mix_calcs!M37 -> 0 | O88: =generation_mix_calcs!N37 -> 0 | P88: =generation_mix_calcs!O37 -> 0 | Q88: =generation_mix_calcs!P37 -> 0 | R88: =generation_mix_calcs!Q37 -> 0 | S88: =generation_mix_calcs!R37 -> 0 | T88: =generation_mix_calcs!S37 -> 0 | U88: =generation_mix_calcs!T37 -> 0 | V88: =generation_mix_calcs!U37 -> 0 | W88: =generation_mix_calcs!V37 -> 0 | X88: =generation_mix_calcs!W37 -> 0 | Y88: =generation_mix_calcs!X37 -> 0 | Z88: =generation_mix_calcs!Y37 -> 0
A89: Elementary flows/resource/air | B89: Oxygen | C89: 0.0001736784056 | D89: =generation_mix_calcs!C38 -> 0 | E89: =generation_mix_calcs!D38 -> 8.316658045e-07 | F89: =generation_mix_calcs!E38 -> 2.327285543e-10 | G89: =generation_mix_calcs!F38 -> 1.582273133e-07 | H89: =generation_mix_calcs!G38 -> 0 | I89: =generation_mix_calcs!H38 -> 3.074587514e-06 | J89: =generation_mix_calcs!I38 -> 0.0001696136922 | K89: =generation_mix_calcs!J38 -> 0 | L89: =generation_mix_calcs!K38 -> 0 | M89: =generation_mix_calcs!L38 -> 0 | N89: =generation_mix_calcs!M38 -> 0 | O89: =generation_mix_calcs!N38 -> 0 | P89: =generation_mix_calcs!O38 -> 0 | Q89: =generation_mix_calcs!P38 -> 0 | R89: =generation_mix_calcs!Q38 -> 0 | S89: =generation_mix_calcs!R38 -> 0 | T89: =generation_mix_calcs!S38 -> 0 | U89: =generation_mix_calcs!T38 -> 0 | V89: =generation_mix_calcs!U38 -> 0 | W89: =generation_mix_calcs!V38 -> 0 | X89: =generation_mix_calcs!W38 -> 0 | Y89: =generation_mix_calcs!X38 -> 0 | Z89: =generation_mix_calcs!Y38 -> 0
A90: Elementary flows/resource/air | B90: Shale gas | C90: 3.94301747e-05 | D90: =generation_mix_calcs!C39 -> 0 | E90: =generation_mix_calcs!D39 -> 1.88967401e-07 | F90: =generation_mix_calcs!E39 -> 5.275656492e-11 | G90: =generation_mix_calcs!F39 -> 3.201060261e-08 | H90: =generation_mix_calcs!G39 -> 0 | I90: =generation_mix_calcs!H39 -> 6.980678306e-07 | J90: =generation_mix_calcs!I39 -> 3.851107611e-05 | K90: =generation_mix_calcs!J39 -> 0 | L90: =generation_mix_calcs!K39 -> 0 | M90: =generation_mix_calcs!L39 -> 0 | N90: =generation_mix_calcs!M39 -> 0 | O90: =generation_mix_calcs!N39 -> 0 | P90: =generation_mix_calcs!O39 -> 0 | Q90: =generation_mix_calcs!P39 -> 0 | R90: =generation_mix_calcs!Q39 -> 0 | S90: =generation_mix_calcs!R39 -> 0 | T90: =generation_mix_calcs!S39 -> 0 | U90: =generation_mix_calcs!T39 -> 0 | V90: =generation_mix_calcs!U39 -> 0 | W90: =generation_mix_calcs!V39 -> 0 | X90: =generation_mix_calcs!W39 -> 0 | Y90: =generation_mix_calcs!X39 -> 0 | Z90: =generation_mix_calcs!Y39 -> 0
A91: Elementary flows/resource/air/subterranean | B91: Natural gas | C91: 3790.064001 | D91: =generation_mix_calcs!C40 -> 0.5257230432 | E91: =generation_mix_calcs!D40 -> 27.61799429 | F91: =generation_mix_calcs!E40 -> 3510.707746 | G91: =generation_mix_calcs!F40 -> 0 | H91: =generation_mix_calcs!G40 -> 0.09657468113 | I91: =generation_mix_calcs!H40 -> 250.5116955 | J91: =generation_mix_calcs!I40 -> 0 | K91: =generation_mix_calcs!J40 -> 0.02525171794 | L91: =generation_mix_calcs!K40 -> 0.01573886018 | M91: =generation_mix_calcs!L40 -> 0 | N91: =generation_mix_calcs!M40 -> 0 | O91: =generation_mix_calcs!N40 -> 0.5614740347 | P91: =generation_mix_calcs!O40 -> 0.00180242627 | Q91: =generation_mix_calcs!P40 -> 0 | R91: =generation_mix_calcs!Q40 -> 0 | S91: =generation_mix_calcs!R40 -> 0 | T91: =generation_mix_calcs!S40 -> 0 | U91: =generation_mix_calcs!T40 -> 0 | V91: =generation_mix_calcs!U40 -> 0 | W91: =generation_mix_calcs!V40 -> 0 | X91: =generation_mix_calcs!W40 -> 0 | Y91: =generation_mix_calcs!X40 -> 0 | Z91: =generation_mix_calcs!Y40 -> 0
A92: Elementary flows/resource/biotic | B92: Biomass | C92: 3.446020129e-23 | D92: =generation_mix_calcs!C41 -> 0 | E92: =generation_mix_calcs!D41 -> 1.859212807e-24 | F92: =generation_mix_calcs!E41 -> 1.327837764e-33 | G92: =generation_mix_calcs!F41 -> 1.551315066e-23 | H92: =generation_mix_calcs!G41 -> 0 | I92: =generation_mix_calcs!H41 -> 1.316134649e-24 | J92: =generation_mix_calcs!I41 -> 1.577170317e-23 | K92: =generation_mix_calcs!J41 -> 0 | L92: =generation_mix_calcs!K41 -> 0 | M92: =generation_mix_calcs!L41 -> 0 | N92: =generation_mix_calcs!M41 -> 0 | O92: =generation_mix_calcs!N41 -> 0 | P92: =generation_mix_calcs!O41 -> 0 | Q92: =generation_mix_calcs!P41 -> 0 | R92: =generation_mix_calcs!Q41 -> 0 | S92: =generation_mix_calcs!R41 -> 0 | T92: =generation_mix_calcs!S41 -> 0 | U92: =generation_mix_calcs!T41 -> 0 | V92: =generation_mix_calcs!U41 -> 0 | W92: =generation_mix_calcs!V41 -> 0 | X92: =generation_mix_calcs!W41 -> 0 | Y92: =generation_mix_calcs!X41 -> 0 | Z92: =generation_mix_calcs!Y41 -> 0
A93: Elementary flows/resource/biotic | B93: Wood | C93: -2.995551823e-08 | D93: =generation_mix_calcs!C42 -> 0 | E93: =generation_mix_calcs!D42 -> -1.435102476e-10 | F93: =generation_mix_calcs!E42 -> -4.012068942e-14 | G93: =generation_mix_calcs!F42 -> -2.91706252e-13 | H93: =generation_mix_calcs!G42 -> 0 | I93: =generation_mix_calcs!H42 -> -5.305138454e-10 | J93: =generation_mix_calcs!I42 -> -2.928116231e-08 | K93: =generation_mix_calcs!J42 -> 0 | L93: =generation_mix_calcs!K42 -> 0 | M93: =generation_mix_calcs!L42 -> 0 | N93: =generation_mix_calcs!M42 -> 0 | O93: =generation_mix_calcs!N42 -> 0 | P93: =generation_mix_calcs!O42 -> 0 | Q93: =generation_mix_calcs!P42 -> 0 | R93: =generation_mix_calcs!Q42 -> 0 | S93: =generation_mix_calcs!R42 -> 0 | T93: =generation_mix_calcs!S42 -> 0 | U93: =generation_mix_calcs!T42 -> 0 | V93: =generation_mix_calcs!U42 -> 0 | W93: =generation_mix_calcs!V42 -> 0 | X93: =generation_mix_calcs!W42 -> 0 | Y93: =generation_mix_calcs!X42 -> 0 | Z93: =generation_mix_calcs!Y42 -> 0
A94: Elementary flows/resource/ground | B94: Aggregate | C94: 0.003404963563 | D94: =generation_mix_calcs!C43 -> 0 | E94: =generation_mix_calcs!D43 -> 1.620690671e-05 | F94: =generation_mix_calcs!E43 -> 4.518931745e-09 | G94: =generation_mix_calcs!F43 -> 3.270408047e-05 | H94: =generation_mix_calcs!G43 -> 0 | I94: =generation_mix_calcs!H43 -> 6.002507859e-05 | J94: =generation_mix_calcs!I43 -> 0.003296022979 | K94: =generation_mix_calcs!J43 -> 0 | L94: =generation_mix_calcs!K43 -> 0 | M94: =generation_mix_calcs!L43 -> 0 | N94: =generation_mix_calcs!M43 -> 0 | O94: =generation_mix_calcs!N43 -> 0 | P94: =generation_mix_calcs!O43 -> 0 | Q94: =generation_mix_calcs!P43 -> 0 | R94: =generation_mix_calcs!Q43 -> 0 | S94: =generation_mix_calcs!R43 -> 0 | T94: =generation_mix_calcs!S43 -> 0 | U94: =generation_mix_calcs!T43 -> 0 | V94: =generation_mix_calcs!U43 -> 0 | W94: =generation_mix_calcs!V43 -> 0 | X94: =generation_mix_calcs!W43 -> 0 | Y94: =generation_mix_calcs!X43 -> 0 | Z94: =generation_mix_calcs!Y43 -> 0
A95: Elementary flows/resource/ground | B95: Aluminum | C95: 2.807117021e-12 | D95: =generation_mix_calcs!C44 -> 0 | E95: =generation_mix_calcs!D44 -> 1.345565913e-14 | F95: =generation_mix_calcs!E44 -> 3.762206997e-18 | G95: =generation_mix_calcs!F44 -> 1.123819636e-16 | H95: =generation_mix_calcs!G44 -> 0 | I95: =generation_mix_calcs!H44 -> 4.97160222e-14 | J95: =generation_mix_calcs!I44 -> 2.743829196e-12 | K95: =generation_mix_calcs!J44 -> 0 | L95: =generation_mix_calcs!K44 -> 0 | M95: =generation_mix_calcs!L44 -> 0 | N95: =generation_mix_calcs!M44 -> 0 | O95: =generation_mix_calcs!N44 -> 0 | P95: =generation_mix_calcs!O44 -> 0 | Q95: =generation_mix_calcs!P44 -> 0 | R95: =generation_mix_calcs!Q44 -> 0 | S95: =generation_mix_calcs!R44 -> 0 | T95: =generation_mix_calcs!S44 -> 0 | U95: =generation_mix_calcs!T44 -> 0 | V95: =generation_mix_calcs!U44 -> 0 | W95: =generation_mix_calcs!V44 -> 0 | X95: =generation_mix_calcs!W44 -> 0 | Y95: =generation_mix_calcs!X44 -> 0 | Z95: =generation_mix_calcs!Y44 -> 0
A96: Elementary flows/resource/ground | B96: Anhydrite | C96: 8.380514044e-16 | D96: =generation_mix_calcs!C45 -> 0 | E96: =generation_mix_calcs!D45 -> 4.006057877e-18 | F96: =generation_mix_calcs!E45 -> 1.120809295e-21 | G96: =generation_mix_calcs!F45 -> 2.215182386e-18 | H96: =generation_mix_calcs!G45 -> 0 | I96: =generation_mix_calcs!H45 -> 1.482318578e-17 | J96: =generation_mix_calcs!I45 -> 8.170058576e-16 | K96: =generation_mix_calcs!J45 -> 0 | L96: =generation_mix_calcs!K45 -> 0 | M96: =generation_mix_calcs!L45 -> 0 | N96: =generation_mix_calcs!M45 -> 0 | O96: =generation_mix_calcs!N45 -> 0 | P96: =generation_mix_calcs!O45 -> 0 | Q96: =generation_mix_calcs!P45 -> 0 | R96: =generation_mix_calcs!Q45 -> 0 | S96: =generation_mix_calcs!R45 -> 0 | T96: =generation_mix_calcs!S45 -> 0 | U96: =generation_mix_calcs!T45 -> 0 | V96: =generation_mix_calcs!U45 -> 0 | W96: =generation_mix_calcs!V45 -> 0 | X96: =generation_mix_calcs!W45 -> 0 | Y96: =generation_mix_calcs!X45 -> 0 | Z96: =generation_mix_calcs!Y45 -> 0
A97: Elementary flows/resource/ground | B97: Antimony | C97: 1.753537903e-09 | D97: =generation_mix_calcs!C46 -> 0 | E97: =generation_mix_calcs!D46 -> 8.40847216e-12 | F97: =generation_mix_calcs!E46 -> 2.348702281e-15 | G97: =generation_mix_calcs!F46 -> 2.03666952e-13 | H97: =generation_mix_calcs!G46 -> 0 | I97: =generation_mix_calcs!H46 -> 3.105398503e-11 | J97: =generation_mix_calcs!I46 -> 1.713869431e-09 | K97: =generation_mix_calcs!J46 -> 0 | L97: =generation_mix_calcs!K46 -> 0 | M97: =generation_mix_calcs!L46 -> 0 | N97: =generation_mix_calcs!M46 -> 0 | O97: =generation_mix_calcs!N46 -> 0 | P97: =generation_mix_calcs!O46 -> 0 | Q97: =generation_mix_calcs!P46 -> 0 | R97: =generation_mix_calcs!Q46 -> 0 | S97: =generation_mix_calcs!R46 -> 0 | T97: =generation_mix_calcs!S46 -> 0 | U97: =generation_mix_calcs!T46 -> 0 | V97: =generation_mix_calcs!U46 -> 0 | W97: =generation_mix_calcs!V46 -> 0 | X97: =generation_mix_calcs!W46 -> 0 | Y97: =generation_mix_calcs!X46 -> 0 | Z97: =generation_mix_calcs!Y46 -> 0
A98: Elementary flows/resource/ground | B98: Barite | C98: 0.0008342957782 | D98: =generation_mix_calcs!C47 -> 5.90959461e-08 | E98: =generation_mix_calcs!D47 -> 0.0004773721828 | F98: =generation_mix_calcs!E47 -> 0.0002244353107 | G98: =generation_mix_calcs!F47 -> 0 | H98: =generation_mix_calcs!G47 -> 1.228642328e-07 | I98: =generation_mix_calcs!H47 -> 0.0001248502484 | J98: =generation_mix_calcs!I47 -> 6.228646051e-08 | K98: =generation_mix_calcs!J47 -> 0 | L98: =generation_mix_calcs!K47 -> 7.281544419e-06 | M98: =generation_mix_calcs!L47 -> 0 | N98: =generation_mix_calcs!M47 -> 1.047711861e-09 | O98: =generation_mix_calcs!N47 -> 0 | P98: =generation_mix_calcs!O47 -> 1.111974159e-07 | Q98: =generation_mix_calcs!P47 -> 0 | R98: =generation_mix_calcs!Q47 -> 0 | S98: =generation_mix_calcs!R47 -> 0 | T98: =generation_mix_calcs!S47 -> 0 | U98: =generation_mix_calcs!T47 -> 0 | V98: =generation_mix_calcs!U47 -> 0 | W98: =generation_mix_calcs!V47 -> 0 | X98: =generation_mix_calcs!W47 -> 0 | Y98: =generation_mix_calcs!X47 -> 0 | Z98: =generation_mix_calcs!Y47 -> 0
A99: Elementary flows/resource/ground | B99: Barium sulfate | C99: 2.329290508e-15 | D99: =generation_mix_calcs!C48 -> 0 | E99: =generation_mix_calcs!D48 -> 1.114828659e-17 | F99: =generation_mix_calcs!E48 -> 3.112565941e-21 | G99: =generation_mix_calcs!F48 -> 4.048996376e-18 | H99: =generation_mix_calcs!G48 -> 0 | I99: =generation_mix_calcs!H48 -> 4.121667391e-17 | J99: =generation_mix_calcs!I48 -> 2.272873438e-15 | K99: =generation_mix_calcs!J48 -> 0 | L99: =generation_mix_calcs!K48 -> 0 | M99: =generation_mix_calcs!L48 -> 0 | N99: =generation_mix_calcs!M48 -> 0 | O99: =generation_mix_calcs!N48 -> 0 | P99: =generation_mix_calcs!O48 -> 0 | Q99: =generation_mix_calcs!P48 -> 0 | R99: =generation_mix_calcs!Q48 -> 0 | S99: =generation_mix_calcs!R48 -> 0 | T99: =generation_mix_calcs!S48 -> 0 | U99: =generation_mix_calcs!T48 -> 0 | V99: =generation_mix_calcs!U48 -> 0 | W99: =generation_mix_calcs!V48 -> 0 | X99: =generation_mix_calcs!W48 -> 0 | Y99: =generation_mix_calcs!X48 -> 0 | Z99: =generation_mix_calcs!Y48 -> 0
A100: Elementary flows/resource/ground | B100: Basalt | C100: 1.611016065e-06 | D100: =generation_mix_calcs!C49 -> 0 | E100: =generation_mix_calcs!D49 -> 7.71443573e-09 | F100: =generation_mix_calcs!E49 -> 2.155951638e-12 | G100: =generation_mix_calcs!F49 -> 1.399703156e-10 | H100: =generation_mix_calcs!G49 -> 0 | I100: =generation_mix_calcs!H49 -> 2.852916553e-08 | J100: =generation_mix_calcs!I49 -> 1.574630337e-06 | K100: =generation_mix_calcs!J49 -> 0 | L100: =generation_mix_calcs!K49 -> 0 | M100: =generation_mix_calcs!L49 -> 0 | N100: =generation_mix_calcs!M49 -> 0 | O100: =generation_mix_calcs!N49 -> 0 | P100: =generation_mix_calcs!O49 -> 0 | Q100: =generation_mix_calcs!P49 -> 0 | R100: =generation_mix_calcs!Q49 -> 0 | S100: =generation_mix_calcs!R49 -> 0 | T100: =generation_mix_calcs!S49 -> 0 | U100: =generation_mix_calcs!T49 -> 0 | V100: =generation_mix_calcs!U49 -> 0 | W100: =generation_mix_calcs!V49 -> 0 | X100: =generation_mix_calcs!W49 -> 0 | Y100: =generation_mix_calcs!X49 -> 0 | Z100: =generation_mix_calcs!Y49 -> 0
A101: Elementary flows/resource/ground | B101: Bauxite | C101: 0.009047365693 | D101: =generation_mix_calcs!C50 -> 0 | E101: =generation_mix_calcs!D50 -> 4.15980947e-05 | F101: =generation_mix_calcs!E50 -> 1.142226033e-08 | G101: =generation_mix_calcs!F50 -> 0.0005148804733 | H101: =generation_mix_calcs!G50 -> 0 | I101: =generation_mix_calcs!H50 -> 0.0001558609823 | J101: =generation_mix_calcs!I50 -> 0.00833501472 | K101: =generation_mix_calcs!J50 -> 0 | L101: =generation_mix_calcs!K50 -> 0 | M101: =generation_mix_calcs!L50 -> 0 | N101: =generation_mix_calcs!M50 -> 0 | O101: =generation_mix_calcs!N50 -> 0 | P101: =generation_mix_calcs!O50 -> 0 | Q101: =generation_mix_calcs!P50 -> 0 | R101: =generation_mix_calcs!Q50 -> 0 | S101: =generation_mix_calcs!R50 -> 0 | T101: =generation_mix_calcs!S50 -> 0 | U101: =generation_mix_calcs!T50 -> 0 | V101: =generation_mix_calcs!U50 -> 0 | W101: =generation_mix_calcs!V50 -> 0 | X101: =generation_mix_calcs!W50 -> 0 | Y101: =generation_mix_calcs!X50 -> 0 | Z101: =generation_mix_calcs!Y50 -> 0
A102: Elementary flows/resource/ground | B102: Bentonite | C102: 0.006492318064 | D102: =generation_mix_calcs!C51 -> 4.278439535e-07 | E102: =generation_mix_calcs!D51 -> 0.003458144747 | F102: =generation_mix_calcs!E51 -> 0.00162487163 | G102: =generation_mix_calcs!F51 -> 1.89872776e-07 | H102: =generation_mix_calcs!G51 -> 8.895148074e-07 | I102: =generation_mix_calcs!H51 -> 0.0009118656562 | J102: =generation_mix_calcs!I51 -> 0.0004423991018 | K102: =generation_mix_calcs!J51 -> 0 | L102: =generation_mix_calcs!K51 -> 5.271706365e-05 | M102: =generation_mix_calcs!L51 -> 0 | N102: =generation_mix_calcs!M51 -> 7.585244242e-09 | O102: =generation_mix_calcs!N51 -> 0 | P102: =generation_mix_calcs!O51 -> 8.050491643e-07 | Q102: =generation_mix_calcs!P51 -> 0 | R102: =generation_mix_calcs!Q51 -> 0 | S102: =generation_mix_calcs!R51 -> 0 | T102: =generation_mix_calcs!S51 -> 0 | U102: =generation_mix_calcs!T51 -> 0 | V102: =generation_mix_calcs!U51 -> 0 | W102: =generation_mix_calcs!V51 -> 0 | X102: =generation_mix_calcs!W51 -> 0 | Y102: =generation_mix_calcs!X51 -> 0 | Z102: =generation_mix_calcs!Y51 -> 0
A103: Elementary flows/resource/ground | B103: Beryllium | C103: 5.265804889e-07 | D103: =generation_mix_calcs!C52 -> 5.027041226e-11 | E103: =generation_mix_calcs!D52 -> 2.561454442e-07 | F103: =generation_mix_calcs!E52 -> 1.907764756e-07 | G103: =generation_mix_calcs!F52 -> 0 | H103: =generation_mix_calcs!G52 -> 1.045153863e-10 | I103: =generation_mix_calcs!H52 -> 7.319136169e-08 | J103: =generation_mix_calcs!I52 -> 5.298444741e-11 | K103: =generation_mix_calcs!J52 -> 0 | L103: =generation_mix_calcs!K52 -> 6.191737557e-09 | M103: =generation_mix_calcs!L52 -> 0 | N103: =generation_mix_calcs!M52 -> 8.912439968e-13 | O103: =generation_mix_calcs!N52 -> 0 | P103: =generation_mix_calcs!O52 -> 6.680827872e-11 | Q103: =generation_mix_calcs!P52 -> 0 | R103: =generation_mix_calcs!Q52 -> 0 | S103: =generation_mix_calcs!R52 -> 0 | T103: =generation_mix_calcs!S52 -> 0 | U103: =generation_mix_calcs!T52 -> 0 | V103: =generation_mix_calcs!U52 -> 0 | W103: =generation_mix_calcs!V52 -> 0 | X103: =generation_mix_calcs!W52 -> 0 | Y103: =generation_mix_calcs!X52 -> 0 | Z103: =generation_mix_calcs!Y52 -> 0
A104: Elementary flows/resource/ground | B104: Borax | C104: 9.440038613e-10 | D104: =generation_mix_calcs!C53 -> 0 | E104: =generation_mix_calcs!D53 -> 4.342721472e-12 | F104: =generation_mix_calcs!E53 -> 1.192198422e-15 | G104: =generation_mix_calcs!F53 -> 5.314814883e-11 | H104: =generation_mix_calcs!G53 -> 0 | I104: =generation_mix_calcs!H53 -> 1.626746432e-11 | J104: =generation_mix_calcs!I53 -> 8.702443345e-10 | K104: =generation_mix_calcs!J53 -> 0 | L104: =generation_mix_calcs!K53 -> 0 | M104: =generation_mix_calcs!L53 -> 0 | N104: =generation_mix_calcs!M53 -> 0 | O104: =generation_mix_calcs!N53 -> 0 | P104: =generation_mix_calcs!O53 -> 0 | Q104: =generation_mix_calcs!P53 -> 0 | R104: =generation_mix_calcs!Q53 -> 0 | S104: =generation_mix_calcs!R53 -> 0 | T104: =generation_mix_calcs!S53 -> 0 | U104: =generation_mix_calcs!T53 -> 0 | V104: =generation_mix_calcs!U53 -> 0 | W104: =generation_mix_calcs!V53 -> 0 | X104: =generation_mix_calcs!W53 -> 0 | Y104: =generation_mix_calcs!X53 -> 0 | Z104: =generation_mix_calcs!Y53 -> 0
A105: Elementary flows/resource/ground | B105: Boron | C105: 0.004915988803 | D105: =generation_mix_calcs!C54 -> 3.482174401e-07 | E105: =generation_mix_calcs!D54 -> 0.002812856659 | F105: =generation_mix_calcs!E54 -> 0.001322464472 | G105: =generation_mix_calcs!F54 -> 0 | H105: =generation_mix_calcs!G54 -> 7.239662185e-07 | I105: =generation_mix_calcs!H54 -> 0.0007356612444 | J105: =generation_mix_calcs!I54 -> 3.670172535e-07 | K105: =generation_mix_calcs!J54 -> 0 | L105: =generation_mix_calcs!K54 -> 4.290583238e-05 | M105: =generation_mix_calcs!L54 -> 0 | N105: =generation_mix_calcs!M54 -> 6.173546011e-09 | O105: =generation_mix_calcs!N54 -> 0 | P105: =generation_mix_calcs!O54 -> 6.552205699e-07 | Q105: =generation_mix_calcs!P54 -> 0 | R105: =generation_mix_calcs!Q54 -> 0 | S105: =generation_mix_calcs!R54 -> 0 | T105: =generation_mix_calcs!S54 -> 0 | U105: =generation_mix_calcs!T54 -> 0 | V105: =generation_mix_calcs!U54 -> 0 | W105: =generation_mix_calcs!V54 -> 0 | X105: =generation_mix_calcs!W54 -> 0 | Y105: =generation_mix_calcs!X54 -> 0 | Z105: =generation_mix_calcs!Y54 -> 0
A106: Elementary flows/resource/ground | B106: Calcium carbonate | C106: 1.828819862e-08 | D106: =generation_mix_calcs!C55 -> 0 | E106: =generation_mix_calcs!D55 -> 8.771184057e-11 | F106: =generation_mix_calcs!E55 -> 2.448647059e-14 | G106: =generation_mix_calcs!F55 -> 7.302799076e-13 | H106: =generation_mix_calcs!G55 -> 0 | I106: =generation_mix_calcs!H55 -> 3.238895618e-10 | J106: =generation_mix_calcs!I55 -> 1.787584245e-08 | K106: =generation_mix_calcs!J55 -> 0 | L106: =generation_mix_calcs!K55 -> 0 | M106: =generation_mix_calcs!L55 -> 0 | N106: =generation_mix_calcs!M55 -> 0 | O106: =generation_mix_calcs!N55 -> 0 | P106: =generation_mix_calcs!O55 -> 0 | Q106: =generation_mix_calcs!P55 -> 0 | R106: =generation_mix_calcs!Q55 -> 0 | S106: =generation_mix_calcs!R55 -> 0 | T106: =generation_mix_calcs!S55 -> 0 | U106: =generation_mix_calcs!T55 -> 0 | V106: =generation_mix_calcs!U55 -> 0 | W106: =generation_mix_calcs!V55 -> 0 | X106: =generation_mix_calcs!W55 -> 0 | Y106: =generation_mix_calcs!X55 -> 0 | Z106: =generation_mix_calcs!Y55 -> 0
A107: Elementary flows/resource/ground | B107: Calcium chloride | C107: 2.392214586e-13 | D107: =generation_mix_calcs!C56 -> 0 | E107: =generation_mix_calcs!D56 -> 1.144051286e-15 | F107: =generation_mix_calcs!E56 -> 3.198232893e-19 | G107: =generation_mix_calcs!F56 -> 4.13825281e-16 | H107: =generation_mix_calcs!G56 -> 0 | I107: =generation_mix_calcs!H56 -> 4.233017179e-15 | J107: =generation_mix_calcs!I56 -> 2.33430245e-13 | K107: =generation_mix_calcs!J56 -> 0 | L107: =generation_mix_calcs!K56 -> 0 | M107: =generation_mix_calcs!L56 -> 0 | N107: =generation_mix_calcs!M56 -> 0 | O107: =generation_mix_calcs!N56 -> 0 | P107: =generation_mix_calcs!O56 -> 0 | Q107: =generation_mix_calcs!P56 -> 0 | R107: =generation_mix_calcs!Q56 -> 0 | S107: =generation_mix_calcs!R56 -> 0 | T107: =generation_mix_calcs!S56 -> 0 | U107: =generation_mix_calcs!T56 -> 0 | V107: =generation_mix_calcs!U56 -> 0 | W107: =generation_mix_calcs!V56 -> 0 | X107: =generation_mix_calcs!W56 -> 0 | Y107: =generation_mix_calcs!X56 -> 0 | Z107: =generation_mix_calcs!Y56 -> 0
A108: Elementary flows/resource/ground | B108: Cerium | C108: 9.645279159e-06 | D108: =generation_mix_calcs!C57 -> 9.20798237e-10 | E108: =generation_mix_calcs!D57 -> 4.69174828e-06 | F108: =generation_mix_calcs!E57 -> 3.494434127e-06 | G108: =generation_mix_calcs!F57 -> 0 | H108: =generation_mix_calcs!G57 -> 1.914398134e-09 | I108: =generation_mix_calcs!H57 -> 1.340637546e-06 | J108: =generation_mix_calcs!I57 -> 9.705109541e-10 | K108: =generation_mix_calcs!J57 -> 0 | L108: =generation_mix_calcs!K57 -> 1.134134528e-07 | M108: =generation_mix_calcs!L57 -> 0 | N108: =generation_mix_calcs!M57 -> 1.632482934e-11 | O108: =generation_mix_calcs!N57 -> 0 | P108: =generation_mix_calcs!O57 -> 1.223720723e-09 | Q108: =generation_mix_calcs!P57 -> 0 | R108: =generation_mix_calcs!Q57 -> 0 | S108: =generation_mix_calcs!R57 -> 0 | T108: =generation_mix_calcs!S57 -> 0 | U108: =generation_mix_calcs!T57 -> 0 | V108: =generation_mix_calcs!U57 -> 0 | W108: =generation_mix_calcs!V57 -> 0 | X108: =generation_mix_calcs!W57 -> 0 | Y108: =generation_mix_calcs!X57 -> 0 | Z108: =generation_mix_calcs!Y57 -> 0
A109: Elementary flows/resource/ground | B109: Chromium | C109: 2.193422961e-06 | D109: =generation_mix_calcs!C58 -> 0 | E109: =generation_mix_calcs!D58 -> 1.047183159e-08 | F109: =generation_mix_calcs!E58 -> 2.919815298e-12 | G109: =generation_mix_calcs!F58 -> 1.468674036e-08 | H109: =generation_mix_calcs!G58 -> 0 | I109: =generation_mix_calcs!H58 -> 3.872239231e-08 | J109: =generation_mix_calcs!I58 -> 2.129539077e-06 | K109: =generation_mix_calcs!J58 -> 0 | L109: =generation_mix_calcs!K58 -> 0 | M109: =generation_mix_calcs!L58 -> 0 | N109: =generation_mix_calcs!M58 -> 0 | O109: =generation_mix_calcs!N58 -> 0 | P109: =generation_mix_calcs!O58 -> 0 | Q109: =generation_mix_calcs!P58 -> 0 | R109: =generation_mix_calcs!Q58 -> 0 | S109: =generation_mix_calcs!R58 -> 0 | T109: =generation_mix_calcs!S58 -> 0 | U109: =generation_mix_calcs!T58 -> 0 | V109: =generation_mix_calcs!U58 -> 0 | W109: =generation_mix_calcs!V58 -> 0 | X109: =generation_mix_calcs!W58 -> 0 | Y109: =generation_mix_calcs!X58 -> 0 | Z109: =generation_mix_calcs!Y58 -> 0
A110: Elementary flows/resource/ground | B110: Chromium ore | C110: 0.0001561758941 | D110: =generation_mix_calcs!C59 -> 0 | E110: =generation_mix_calcs!D59 -> 7.491856112e-07 | F110: =generation_mix_calcs!E59 -> 2.091701424e-10 | G110: =generation_mix_calcs!F59 -> 1.480845368e-09 | H110: =generation_mix_calcs!G59 -> 0 | I110: =generation_mix_calcs!H59 -> 2.766143051e-06 | J110: =generation_mix_calcs!I59 -> 0.0001526588755 | K110: =generation_mix_calcs!J59 -> 0 | L110: =generation_mix_calcs!K59 -> 0 | M110: =generation_mix_calcs!L59 -> 0 | N110: =generation_mix_calcs!M59 -> 0 | O110: =generation_mix_calcs!N59 -> 0 | P110: =generation_mix_calcs!O59 -> 0 | Q110: =generation_mix_calcs!P59 -> 0 | R110: =generation_mix_calcs!Q59 -> 0 | S110: =generation_mix_calcs!R59 -> 0 | T110: =generation_mix_calcs!S59 -> 0 | U110: =generation_mix_calcs!T59 -> 0 | V110: =generation_mix_calcs!U59 -> 0 | W110: =generation_mix_calcs!V59 -> 0 | X110: =generation_mix_calcs!W59 -> 0 | Y110: =generation_mix_calcs!X59 -> 0 | Z110: =generation_mix_calcs!Y59 -> 0
A111: Elementary flows/resource/ground | B111: Clay | C111: 0.0217970161 | D111: =generation_mix_calcs!C60 -> 1.322483488e-06 | E111: =generation_mix_calcs!D60 -> 0.01069743166 | F111: =generation_mix_calcs!E60 -> 0.005022548229 | G111: =generation_mix_calcs!F60 -> 2.259136311e-05 | H111: =generation_mix_calcs!G60 -> 2.749527333e-06 | I111: =generation_mix_calcs!H60 -> 0.002849025632 | J111: =generation_mix_calcs!I60 -> 0.003035884686 | K111: =generation_mix_calcs!J60 -> 0 | L111: =generation_mix_calcs!K60 -> 0.0001629506403 | M111: =generation_mix_calcs!L60 -> 0 | N111: =generation_mix_calcs!M60 -> 2.344630601e-08 | O111: =generation_mix_calcs!N60 -> 0 | P111: =generation_mix_calcs!O60 -> 2.48844051e-06 | Q111: =generation_mix_calcs!P60 -> 0 | R111: =generation_mix_calcs!Q60 -> 0 | S111: =generation_mix_calcs!R60 -> 0 | T111: =generation_mix_calcs!S60 -> 0 | U111: =generation_mix_calcs!T60 -> 0 | V111: =generation_mix_calcs!U60 -> 0 | W111: =generation_mix_calcs!V60 -> 0 | X111: =generation_mix_calcs!W60 -> 0 | Y111: =generation_mix_calcs!X60 -> 0 | Z111: =generation_mix_calcs!Y60 -> 0
A112: Elementary flows/resource/ground | B112: Coal | C112: 30.91632274 | D112: =generation_mix_calcs!C61 -> 0.002797576724 | E112: =generation_mix_calcs!D61 -> 15.57437875 | F112: =generation_mix_calcs!E61 -> 10.6180603 | G112: =generation_mix_calcs!F61 -> 0 | H112: =generation_mix_calcs!G61 -> 0.005816340046 | I112: =generation_mix_calcs!H61 -> 4.363714624 | J112: =generation_mix_calcs!I61 -> 0.002948614307 | K112: =generation_mix_calcs!J61 -> 0 | L112: =generation_mix_calcs!K61 -> 0.3445944787 | M112: =generation_mix_calcs!L61 -> 0 | N112: =generation_mix_calcs!M61 -> 4.959822982e-05 | O112: =generation_mix_calcs!N61 -> 0 | P112: =generation_mix_calcs!O61 -> 0.003962462225 | Q112: =generation_mix_calcs!P61 -> 0 | R112: =generation_mix_calcs!Q61 -> 0 | S112: =generation_mix_calcs!R61 -> 0 | T112: =generation_mix_calcs!S61 -> 0 | U112: =generation_mix_calcs!T61 -> 0 | V112: =generation_mix_calcs!U61 -> 0 | W112: =generation_mix_calcs!V61 -> 0 | X112: =generation_mix_calcs!W61 -> 0 | Y112: =generation_mix_calcs!X61 -> 0 | Z112: =generation_mix_calcs!Y61 -> 0
A113: Elementary flows/resource/ground | B113: Coal, anthracite | C113: 9.734084433 | D113: =generation_mix_calcs!C62 -> 6.115106665e-05 | E113: =generation_mix_calcs!D62 -> 0.3865217763 | F113: =generation_mix_calcs!E62 -> 0.2751704377 | G113: =generation_mix_calcs!F62 -> 0.04210075297 | H113: =generation_mix_calcs!G62 -> 4.213030726e-06 | I113: =generation_mix_calcs!H62 -> 0.2453781012 | J113: =generation_mix_calcs!I62 -> 8.784715913 | K113: =generation_mix_calcs!J62 -> 2.275349883e-06 | L113: =generation_mix_calcs!K62 -> 6.699601349e-07 | M113: =generation_mix_calcs!L62 -> 0 | N113: =generation_mix_calcs!M62 -> 0 | O113: =generation_mix_calcs!N62 -> 0.0001289445796 | P113: =generation_mix_calcs!O62 -> 1.976100337e-07 | Q113: =generation_mix_calcs!P62 -> 0 | R113: =generation_mix_calcs!Q62 -> 0 | S113: =generation_mix_calcs!R62 -> 0 | T113: =generation_mix_calcs!S62 -> 0 | U113: =generation_mix_calcs!T62 -> 0 | V113: =generation_mix_calcs!U62 -> 0 | W113: =generation_mix_calcs!V62 -> 0 | X113: =generation_mix_calcs!W62 -> 0 | Y113: =generation_mix_calcs!X62 -> 0 | Z113: =generation_mix_calcs!Y62 -> 0
A114: Elementary flows/resource/ground | B114: Coal, bituminous | C114: 1769.082132 | D114: =generation_mix_calcs!C63 -> 0 | E114: =generation_mix_calcs!D63 -> 1461.722974 | F114: =generation_mix_calcs!E63 -> 0.2563490181 | G114: =generation_mix_calcs!F63 -> 0 | H114: =generation_mix_calcs!G63 -> 0 | I114: =generation_mix_calcs!H63 -> 307.1028086 | J114: =generation_mix_calcs!I63 -> 0 | K114: =generation_mix_calcs!J63 -> 0 | L114: =generation_mix_calcs!K63 -> 0 | M114: =generation_mix_calcs!L63 -> 0 | N114: =generation_mix_calcs!M63 -> 0 | O114: =generation_mix_calcs!N63 -> 0 | P114: =generation_mix_calcs!O63 -> 0 | Q114: =generation_mix_calcs!P63 -> 0 | R114: =generation_mix_calcs!Q63 -> 0 | S114: =generation_mix_calcs!R63 -> 0 | T114: =generation_mix_calcs!S63 -> 0 | U114: =generation_mix_calcs!T63 -> 0 | V114: =generation_mix_calcs!U63 -> 0 | W114: =generation_mix_calcs!V63 -> 0 | X114: =generation_mix_calcs!W63 -> 0 | Y114: =generation_mix_calcs!X63 -> 0 | Z114: =generation_mix_calcs!Y63 -> 0
A115: Elementary flows/resource/ground | B115: Coal, lignite | C115: 263.773186 | D115: =generation_mix_calcs!C64 -> 6.415584916e-08 | E115: =generation_mix_calcs!D64 -> 213.1563558 | F115: =generation_mix_calcs!E64 -> 0.0002891534564 | G115: =generation_mix_calcs!F64 -> 0.000160984467 | H115: =generation_mix_calcs!G64 -> 4.433529692e-09 | I115: =generation_mix_calcs!H64 -> 50.45055593 | J115: =generation_mix_calcs!I64 -> 0.1658239436 | K115: =generation_mix_calcs!J64 -> 2.38829918e-09 | L115: =generation_mix_calcs!K64 -> 7.051108065e-10 | M115: =generation_mix_calcs!L64 -> 0 | N115: =generation_mix_calcs!M64 -> 0 | O115: =generation_mix_calcs!N64 -> 1.351587309e-07 | P115: =generation_mix_calcs!O64 -> 2.073316877e-10 | Q115: =generation_mix_calcs!P64 -> 0 | R115: =generation_mix_calcs!Q64 -> 0 | S115: =generation_mix_calcs!R64 -> 0 | T115: =generation_mix_calcs!S64 -> 0 | U115: =generation_mix_calcs!T64 -> 0 | V115: =generation_mix_calcs!U64 -> 0 | W115: =generation_mix_calcs!V64 -> 0 | X115: =generation_mix_calcs!W64 -> 0 | Y115: =generation_mix_calcs!X64 -> 0 | Z115: =generation_mix_calcs!Y64 -> 0
A116: Elementary flows/resource/ground | B116: Coal, sub-bituminous | C116: 1965.962209 | D116: =generation_mix_calcs!C65 -> 0 | E116: =generation_mix_calcs!D65 -> 1731.175452 | F116: =generation_mix_calcs!E65 -> 0.00290349882 | G116: =generation_mix_calcs!F65 -> 0 | H116: =generation_mix_calcs!G65 -> 0 | I116: =generation_mix_calcs!H65 -> 234.7838537 | J116: =generation_mix_calcs!I65 -> 0 | K116: =generation_mix_calcs!J65 -> 0 | L116: =generation_mix_calcs!K65 -> 0 | M116: =generation_mix_calcs!L65 -> 0 | N116: =generation_mix_calcs!M65 -> 0 | O116: =generation_mix_calcs!N65 -> 0 | P116: =generation_mix_calcs!O65 -> 0 | Q116: =generation_mix_calcs!P65 -> 0 | R116: =generation_mix_calcs!Q65 -> 0 | S116: =generation_mix_calcs!R65 -> 0 | T116: =generation_mix_calcs!S65 -> 0 | U116: =generation_mix_calcs!T65 -> 0 | V116: =generation_mix_calcs!U65 -> 0 | W116: =generation_mix_calcs!V65 -> 0 | X116: =generation_mix_calcs!W65 -> 0 | Y116: =generation_mix_calcs!X65 -> 0 | Z116: =generation_mix_calcs!Y65 -> 0
A117: Elementary flows/resource/ground | B117: Cobalt | C117: 2.633200098e-07 | D117: =generation_mix_calcs!C66 -> 2.513520614e-11 | E117: =generation_mix_calcs!D66 -> 1.280689318e-07 | F117: =generation_mix_calcs!E66 -> 9.538823784e-08 | G117: =generation_mix_calcs!F66 -> 4.827961611e-14 | H117: =generation_mix_calcs!G66 -> 5.225769317e-11 | I117: =generation_mix_calcs!H66 -> 3.65949927e-08 | J117: =generation_mix_calcs!I66 -> 6.068770698e-11 | K117: =generation_mix_calcs!J66 -> 0 | L117: =generation_mix_calcs!K66 -> 3.09586878e-09 | M117: =generation_mix_calcs!L66 -> 0 | N117: =generation_mix_calcs!M66 -> 4.456219985e-13 | O117: =generation_mix_calcs!N66 -> 0 | P117: =generation_mix_calcs!O66 -> 3.340413936e-11 | Q117: =generation_mix_calcs!P66 -> 0 | R117: =generation_mix_calcs!Q66 -> 0 | S117: =generation_mix_calcs!R66 -> 0 | T117: =generation_mix_calcs!S66 -> 0 | U117: =generation_mix_calcs!T66 -> 0 | V117: =generation_mix_calcs!U66 -> 0 | W117: =generation_mix_calcs!V66 -> 0 | X117: =generation_mix_calcs!W66 -> 0 | Y117: =generation_mix_calcs!X66 -> 0 | Z117: =generation_mix_calcs!Y66 -> 0
A118: Elementary flows/resource/ground | B118: Colemanite | C118: 1.807847119e-05 | D118: =generation_mix_calcs!C67 -> 0 | E118: =generation_mix_calcs!D67 -> 8.664749387e-08 | F118: =generation_mix_calcs!E67 -> 2.420091408e-11 | G118: =generation_mix_calcs!F67 -> 5.598812625e-10 | H118: =generation_mix_calcs!G67 -> 0 | I118: =generation_mix_calcs!H67 -> 3.201605358e-07 | J118: =generation_mix_calcs!I67 -> 1.767107907e-05 | K118: =generation_mix_calcs!J67 -> 0 | L118: =generation_mix_calcs!K67 -> 0 | M118: =generation_mix_calcs!L67 -> 0 | N118: =generation_mix_calcs!M67 -> 0 | O118: =generation_mix_calcs!N67 -> 0 | P118: =generation_mix_calcs!O67 -> 0 | Q118: =generation_mix_calcs!P67 -> 0 | R118: =generation_mix_calcs!Q67 -> 0 | S118: =generation_mix_calcs!R67 -> 0 | T118: =generation_mix_calcs!S67 -> 0 | U118: =generation_mix_calcs!T67 -> 0 | V118: =generation_mix_calcs!U67 -> 0 | W118: =generation_mix_calcs!V67 -> 0 | X118: =generation_mix_calcs!W67 -> 0 | Y118: =generation_mix_calcs!X67 -> 0 | Z118: =generation_mix_calcs!Y67 -> 0
A119: Elementary flows/resource/ground | B119: Copper | C119: 0.005497436365 | D119: =generation_mix_calcs!C68 -> 4.400506408e-07 | E119: =generation_mix_calcs!D68 -> 0.002462632992 | F119: =generation_mix_calcs!E68 -> 0.001670200026 | G119: =generation_mix_calcs!F68 -> 5.395957095e-08 | H119: =generation_mix_calcs!G68 -> 9.14893287e-07 | I119: =generation_mix_calcs!H68 -> 0.0006995822061 | J119: =generation_mix_calcs!I68 -> 0.0006087754507 | K119: =generation_mix_calcs!J68 -> 0 | L119: =generation_mix_calcs!K68 -> 5.420386072e-05 | M119: =generation_mix_calcs!L68 -> 0 | N119: =generation_mix_calcs!M68 -> 7.801656566e-09 | O119: =generation_mix_calcs!N68 -> 0 | P119: =generation_mix_calcs!O68 -> 6.251239974e-07 | Q119: =generation_mix_calcs!P68 -> 0 | R119: =generation_mix_calcs!Q68 -> 0 | S119: =generation_mix_calcs!R68 -> 0 | T119: =generation_mix_calcs!S68 -> 0 | U119: =generation_mix_calcs!T68 -> 0 | V119: =generation_mix_calcs!U68 -> 0 | W119: =generation_mix_calcs!V68 -> 0 | X119: =generation_mix_calcs!W68 -> 0 | Y119: =generation_mix_calcs!X68 -> 0 | Z119: =generation_mix_calcs!Y68 -> 0
A120: Elementary flows/resource/ground | B120: Copper ore | C120: 9.545758156e-07 | D120: =generation_mix_calcs!C69 -> 0 | E120: =generation_mix_calcs!D69 -> 4.571121667e-09 | F120: =generation_mix_calcs!E69 -> 1.277865375e-12 | G120: =generation_mix_calcs!F69 -> 6.443381341e-12 | H120: =generation_mix_calcs!G69 -> 0 | I120: =generation_mix_calcs!H69 -> 1.690563997e-08 | J120: =generation_mix_calcs!I69 -> 9.330913327e-07 | K120: =generation_mix_calcs!J69 -> 0 | L120: =generation_mix_calcs!K69 -> 0 | M120: =generation_mix_calcs!L69 -> 0 | N120: =generation_mix_calcs!M69 -> 0 | O120: =generation_mix_calcs!N69 -> 0 | P120: =generation_mix_calcs!O69 -> 0 | Q120: =generation_mix_calcs!P69 -> 0 | R120: =generation_mix_calcs!Q69 -> 0 | S120: =generation_mix_calcs!R69 -> 0 | T120: =generation_mix_calcs!S69 -> 0 | U120: =generation_mix_calcs!T69 -> 0 | V120: =generation_mix_calcs!U69 -> 0 | W120: =generation_mix_calcs!V69 -> 0 | X120: =generation_mix_calcs!W69 -> 0 | Y120: =generation_mix_calcs!X69 -> 0 | Z120: =generation_mix_calcs!Y69 -> 0
A121: Elementary flows/resource/ground | B121: Diatomite | C121: 0.001133787164 | D121: =generation_mix_calcs!C70 -> 8.030987545e-08 | E121: =generation_mix_calcs!D70 -> 0.0006487375354 | F121: =generation_mix_calcs!E70 -> 0.0003050018311 | G121: =generation_mix_calcs!F70 -> 0 | H121: =generation_mix_calcs!G70 -> 1.66969342e-07 | I121: =generation_mix_calcs!H70 -> 0.0001696679021 | J121: =generation_mix_calcs!I70 -> 8.464570273e-08 | K121: =generation_mix_calcs!J70 -> 0 | L121: =generation_mix_calcs!K70 -> 9.895432157e-06 | M121: =generation_mix_calcs!L70 -> 0 | N121: =generation_mix_calcs!M70 -> 1.423813555e-09 | O121: =generation_mix_calcs!N70 -> 0 | P121: =generation_mix_calcs!O70 -> 1.511144369e-07 | Q121: =generation_mix_calcs!P70 -> 0 | R121: =generation_mix_calcs!Q70 -> 0 | S121: =generation_mix_calcs!R70 -> 0 | T121: =generation_mix_calcs!S70 -> 0 | U121: =generation_mix_calcs!T70 -> 0 | V121: =generation_mix_calcs!U70 -> 0 | W121: =generation_mix_calcs!V70 -> 0 | X121: =generation_mix_calcs!W70 -> 0 | Y121: =generation_mix_calcs!X70 -> 0 | Z121: =generation_mix_calcs!Y70 -> 0
A122: Elementary flows/resource/ground | B122: Dolomite | C122: 0.001307499156 | D122: =generation_mix_calcs!C71 -> 1.012553141e-07 | E122: =generation_mix_calcs!D71 -> 0.0005814131713 | F122: =generation_mix_calcs!E71 -> 0.0004559897113 | G122: =generation_mix_calcs!F71 -> 3.959739943e-08 | H122: =generation_mix_calcs!G71 -> 6.997311192e-09 | I122: =generation_mix_calcs!H71 -> 0.0001469488642 | J122: =generation_mix_calcs!I71 -> 0.0001227810327 | K122: =generation_mix_calcs!J71 -> 3.769383255e-09 | L122: =generation_mix_calcs!K71 -> 1.112855914e-09 | M122: =generation_mix_calcs!L71 -> 0 | N122: =generation_mix_calcs!M71 -> 0 | O122: =generation_mix_calcs!N71 -> 2.133171009e-07 | P122: =generation_mix_calcs!O71 -> 3.272255832e-10 | Q122: =generation_mix_calcs!P71 -> 0 | R122: =generation_mix_calcs!Q71 -> 0 | S122: =generation_mix_calcs!R71 -> 0 | T122: =generation_mix_calcs!S71 -> 0 | U122: =generation_mix_calcs!T71 -> 0 | V122: =generation_mix_calcs!U71 -> 0 | W122: =generation_mix_calcs!V71 -> 0 | X122: =generation_mix_calcs!W71 -> 0 | Y122: =generation_mix_calcs!X71 -> 0 | Z122: =generation_mix_calcs!Y71 -> 0
A123: Elementary flows/resource/ground | B123: Energy, geothermal | C123: 3.446020129e-23 | D123: =generation_mix_calcs!C72 -> 0 | E123: =generation_mix_calcs!D72 -> 1.859212807e-24 | F123: =generation_mix_calcs!E72 -> 1.327837764e-33 | G123: =generation_mix_calcs!F72 -> 1.551315066e-23 | H123: =generation_mix_calcs!G72 -> 0 | I123: =generation_mix_calcs!H72 -> 1.316134649e-24 | J123: =generation_mix_calcs!I72 -> 1.577170317e-23 | K123: =generation_mix_calcs!J72 -> 0 | L123: =generation_mix_calcs!K72 -> 0 | M123: =generation_mix_calcs!L72 -> 0 | N123: =generation_mix_calcs!M72 -> 0 | O123: =generation_mix_calcs!N72 -> 0 | P123: =generation_mix_calcs!O72 -> 0 | Q123: =generation_mix_calcs!P72 -> 0 | R123: =generation_mix_calcs!Q72 -> 0 | S123: =generation_mix_calcs!R72 -> 0 | T123: =generation_mix_calcs!S72 -> 0 | U123: =generation_mix_calcs!T72 -> 0 | V123: =generation_mix_calcs!U72 -> 0 | W123: =generation_mix_calcs!V72 -> 0 | X123: =generation_mix_calcs!W72 -> 0 | Y123: =generation_mix_calcs!X72 -> 0 | Z123: =generation_mix_calcs!Y72 -> 0
A124: Elementary flows/resource/ground | B124: Feldspar group | C124: 0.0007593809285 | D124: =generation_mix_calcs!C73 -> 4.724110321e-08 | E124: =generation_mix_calcs!D73 -> 0.0003820468483 | F124: =generation_mix_calcs!E73 -> 0.000179412966 | G124: =generation_mix_calcs!F73 -> 2.328783877e-08 | H124: =generation_mix_calcs!G73 -> 9.821726e-08 | I124: =generation_mix_calcs!H73 -> 0.0001014400752 | J124: =generation_mix_calcs!I73 -> 9.040172199e-05 | K124: =generation_mix_calcs!J73 -> 0 | L124: =generation_mix_calcs!K73 -> 5.820842446e-06 | M124: =generation_mix_calcs!L73 -> 0 | N124: =generation_mix_calcs!M73 -> 8.375373852e-10 | O124: =generation_mix_calcs!N73 -> 0 | P124: =generation_mix_calcs!O73 -> 8.889084521e-08 | Q124: =generation_mix_calcs!P73 -> 0 | R124: =generation_mix_calcs!Q73 -> 0 | S124: =generation_mix_calcs!R73 -> 0 | T124: =generation_mix_calcs!S73 -> 0 | U124: =generation_mix_calcs!T73 -> 0 | V124: =generation_mix_calcs!U73 -> 0 | W124: =generation_mix_calcs!V73 -> 0 | X124: =generation_mix_calcs!W73 -> 0 | Y124: =generation_mix_calcs!X73 -> 0 | Z124: =generation_mix_calcs!Y73 -> 0
A125: Elementary flows/resource/ground | B125: Fluorite | C125: 0.000193527729 | D125: =generation_mix_calcs!C74 -> 1.01612939e-08 | E125: =generation_mix_calcs!D74 -> 8.231011532e-05 | F125: =generation_mix_calcs!E74 -> 3.859075049e-05 | G125: =generation_mix_calcs!F74 -> 2.610981925e-06 | H125: =generation_mix_calcs!G74 -> 2.112597668e-08 | I125: =generation_mix_calcs!H74 -> 2.233122606e-05 | J125: =generation_mix_calcs!I74 -> 4.638203759e-05 | K125: =generation_mix_calcs!J74 -> 0 | L125: =generation_mix_calcs!K74 -> 1.252030262e-06 | M125: =generation_mix_calcs!L74 -> 0 | N125: =generation_mix_calcs!M74 -> 1.801495508e-10 | O125: =generation_mix_calcs!N74 -> 0 | P125: =generation_mix_calcs!O74 -> 1.911991765e-08 | Q125: =generation_mix_calcs!P74 -> 0 | R125: =generation_mix_calcs!Q74 -> 0 | S125: =generation_mix_calcs!R74 -> 0 | T125: =generation_mix_calcs!S74 -> 0 | U125: =generation_mix_calcs!T74 -> 0 | V125: =generation_mix_calcs!U74 -> 0 | W125: =generation_mix_calcs!V74 -> 0 | X125: =generation_mix_calcs!W74 -> 0 | Y125: =generation_mix_calcs!X74 -> 0 | Z125: =generation_mix_calcs!Y74 -> 0
... 156 more rows

Sheet consumption_mix
A7: FERC Region | B7: US
A8: Balancing Authority | B8: Use FERC
A9: Impact Category for Graph | B9: Global Warming Potential
P12: =IF(B8="Use FERC","FERC Region","Balancing Authority Area") -> FERC Region
P13: =IF(P14>9,INDEX(drop_down_data!$V$11:$V$2154,P14-9)&" of "&INDEX(drop_down_data!$U$11:$U$2154,P14-9)&" per MWh",P17&" "&IF($P$17="Global Warming Potential",traci_factors!$L$1&" ","")&INDEX(impact_text!B2:B8,MATCH(consumption_mix!P17,impact_text!$A$2:$A$8,0),1)) -> Global Warming Potential IPCC AR5, 2013, 100-yr, w/ climate carbon feedback kg CO₂-e/MWh delivered | Q13: =INDEX(distribution_losses!$B$2:$B$78,MATCH(Q$16,distribution_losses!$A$2:$A$78,0)) -> 0.04441079207 | R13: =INDEX(distribution_losses!$B$2:$B$78,MATCH(R$16,distribution_losses!$A$2:$A$78,0)) -> 0.0479800517 | S13: =INDEX(distribution_losses!$B$2:$B$78,MATCH(S$16,distribution_losses!$A$2:$A$78,0)) -> 0.04885206689 | T13: =INDEX(distribution_losses!$B$2:$B$78,MATCH(T$16,distribution_losses!$A$2:$A$78,0)) -> 0.04629347316 | U13: =INDEX(distribution_losses!$B$2:$B$78,MATCH(U$16,distribution_losses!$A$2:$A$78,0)) -> 0.0455923929
P14: 6 | Q14: 12 | R14: 2 | S14: 3 | T14: 5 | U14: 10
P15: =INDEX(B$54:B$2191,$P$14,1) -> Global Warming Potential | Q15: =IFERROR(IF(AND(Q14>1),MAX(Q30:Q32),"")*(1+Q$13),"") -> 586.4598456 | R15: =IFERROR(IF(AND(R14>1),MAX(R30:R32),"")*(1+R$13),"") -> 438.8340587 | S15: 662.6615476 | T15: 765.6964499 | U15: 583.3527214
P16: =INDEX(A$54:A$2192,$P$14,1) -> 0 | Q16: =IF(Q14>1,INDEX(ba_ferc_mapping!cons_labels,Q14,1),"") -> US | R16: =IF(R14>1,INDEX(ba_ferc_mapping!cons_labels,R14,1),"") -> CAISO | S16: =IF(S14>1,INDEX(ba_ferc_mapping!cons_labels,S14,1),"") -> ERCOT | T16: =IF(T14>1,INDEX(ba_ferc_mapping!cons_labels,T14,1),"") -> MISO | U16: =IF(U14>1,INDEX(ba_ferc_mapping!cons_labels,U14,1),"") -> Southeast
D17: 1 | E17: 2 | F17: 3 | G17: 4 | H17: 5 | I17: 6 | J17: 7 | K17: 8 | L17: 9 | M17: 10 | N17: 11 | P17: =IF(AND(P16<>"input",P14>8),P15&" emissions to "&P16,IF(P14<=8,P15,"Input of "&P15)) -> Global Warming Potential
D18: =IFERROR(_xlfn.RANK.EQ(INDEX(consumption_mix_calcs!C$1:C$7,MATCH($B$37,$B$55:$B$61,0)),INDEX(consumption_mix_calcs!$C$1:$BU$7,MATCH($B$37,$B$55:$B$61,0),),0)+COLUMN()/1000,"") -> 65.004 | E18: =IFERROR(_xlfn.RANK.EQ(INDEX(consumption_mix_calcs!D$1:D$7,MATCH($B$37,$B$55:$B$61,0)),INDEX(consumption_mix_calcs!$C$1:$BU$7,MATCH($B$37,$B$55:$B$61,0),),0)+COLUMN()/1000,"") -> 28.005 | F18: =IFERROR(_xlfn.RANK.EQ(INDEX(consumption_mix_calcs!E$1:E$7,MATCH($B$37,$B$55:$B$61,0)),INDEX(consumption_mix_calcs!$C$1:$BU$7,MATCH($B$37,$B$55:$B$61,0),),0)+COLUMN()/1000,"") -> 55.006 | G18: =IFERROR(_xlfn.RANK.EQ(INDEX(consumption_mix_calcs!F$1:F$7,MATCH($B$37,$B$55:$B$61,0)),INDEX(consumption_mix_calcs!$C$1:$BU$7,MATCH($B$37,$B$55:$B$61,0),),0)+COLUMN()/1000,"") -> 25.007 | H18: =IFERROR(_xlfn.RANK.EQ(INDEX(consumption_mix_calcs!G$1:G$7,MATCH($B$37,$B$55:$B$61,0)),INDEX(consumption_mix_calcs!$C$1:$BU$7,MATCH($B$37,$B$55:$B$61,0),),0)+COLUMN()/1000,"") -> 45.008 | I18: =IFERROR(_xlfn.RANK.EQ(INDEX(consumption_mix_calcs!H$1:H$7,MATCH($B$37,$B$55:$B$61,0)),INDEX(consumption_mix_calcs!$C$1:$BU$7,MATCH($B$37,$B$55:$B$61,0),),0)+COLUMN()/1000,"") -> 50.009 | J18: =IFERROR(_xlfn.RANK.EQ(INDEX(consumption_mix_calcs!I$1:I$7,MATCH($B$37,$B$55:$B$61,0)),INDEX(consumption_mix_calcs!$C$1:$BU$7,MATCH($B$37,$B$55:$B$61,0),),0)+COLUMN()/1000,"") -> 39.01 | K18: =IFERROR(_xlfn.RANK.EQ(INDEX(consumption_mix_calcs!J$1:J$7,MATCH($B$37,$B$55:$B$61,0)),INDEX(consumption_mix_calcs!$C$1:$BU$7,MATCH($B$37,$B$55:$B$61,0),),0)+COLUMN()/1000,"") -> 26.011 | L18: =IFERROR(_xlfn.RANK.EQ(INDEX(consumption_mix_calcs!K$1:K$7,MATCH($B$37,$B$55:$B$61,0)),INDEX(consumption_mix_calcs!$C$1:$BU$7,MATCH($B$37,$B$55:$B$61,0),),0)+COLUMN()/1000,"") -> 7.012 | M18: =IFERROR(_xlfn.RANK.EQ(INDEX(consumption_mix_calcs!L$1:L$7,MATCH($B$37,$B$55:$B$61,0)),INDEX(consumption_mix_calcs!$C$1:$BU$7,MATCH($B$37,$B$55:$B$61,0),),0)+COLUMN()/1000,"") -> 53.013 | N18: =IFERROR(_xlfn.RANK.EQ(INDEX(consumption_mix_calcs!M$1:M$7,MATCH($B$37,$B$55:$B$61,0)),INDEX(consumption_mix_calcs!$C$1:$BU$7,MATCH($B$37,$B$55:$B$61,0),),0)+COLUMN()/1000,"") -> 13.014 | O18: =IFERROR(_xlfn.RANK.EQ(INDEX(consumption_mix_calcs!N$1:N$7,MATCH($B$37,$B$55:$B$61,0)),INDEX(consumption_mix_calcs!$C$1:$BU$7,MATCH($B$37,$B$55:$B$61,0),),0)+COLUMN()/1000,"") -> 15.015 | P18: =IFERROR(_xlfn.RANK.EQ(INDEX(consumption_mix_calcs!O$1:O$7,MATCH($B$37,$B$55:$B$61,0)),INDEX(consumption_mix_calcs!$C$1:$BU$7,MATCH($B$37,$B$55:$B$61,0),),0)+COLUMN()/1000,"") -> 19.016 | Q18: =IFERROR(_xlfn.RANK.EQ(INDEX(consumption_mix_calcs!P$1:P$7,MATCH($B$37,$B$55:$B$61,0)),INDEX(consumption_mix_calcs!$C$1:$BU$7,MATCH($B$37,$B$55:$B$61,0),),0)+COLUMN()/1000,"") -> 69.017 | R18: =IFERROR(_xlfn.RANK.EQ(INDEX(consumption_mix_calcs!Q$1:Q$7,MATCH($B$37,$B$55:$B$61,0)),INDEX(consumption_mix_calcs!$C$1:$BU$7,MATCH($B$37,$B$55:$B$61,0),),0)+COLUMN()/1000,"") -> 40.018 | S18: =IFERROR(_xlfn.RANK.EQ(INDEX(consumption_mix_calcs!R$1:R$7,MATCH($B$37,$B$55:$B$61,0)),INDEX(consumption_mix_calcs!$C$1:$BU$7,MATCH($B$37,$B$55:$B$61,0),),0)+COLUMN()/1000,"") -> 43.019 | T18: =IFERROR(_xlfn.RANK.EQ(INDEX(consumption_mix_calcs!S$1:S$7,MATCH($B$37,$B$55:$B$61,0)),INDEX(consumption_mix_calcs!$C$1:$BU$7,MATCH($B$37,$B$55:$B$61,0),),0)+COLUMN()/1000,"") -> 3.02 | U18: =IFERROR(_xlfn.RANK.EQ(INDEX(consumption_mix_calcs!T$1:T$7,MATCH($B$37,$B$55:$B$61,0)),INDEX(consumption_mix_calcs!$C$1:$BU$7,MATCH($B$37,$B$55:$B$61,0),),0)+COLUMN()/1000,"") -> 27.021 | V18: =IFERROR(_xlfn.RANK.EQ(INDEX(consumption_mix_calcs!U$1:U$7,MATCH($B$37,$B$55:$B$61,0)),INDEX(consumption_mix_calcs!$C$1:$BU$7,MATCH($B$37,$B$55:$B$61,0),),0)+COLUMN()/1000,"") -> 8.022 | W18: =IFERROR(_xlfn.RANK.EQ(INDEX(consumption_mix_calcs!V$1:V$7,MATCH($B$37,$B$55:$B$61,0)),INDEX(consumption_mix_calcs!$C$1:$BU$7,MATCH($B$37,$B$55:$B$61,0),),0)+COLUMN()/1000,"") -> 48.023 | X18: =IFERROR(_xlfn.RANK.EQ(INDEX(consumption_mix_calcs!W$1:W$7,MATCH($B$37,$B$55:$B$61,0)),INDEX(consumption_mix_calcs!$C$1:$BU$7,MATCH($B$37,$B$55:$B$61,0),),0)+COLUMN()/1000,"") -> 42.024 | Y18: =IFERROR(_xlfn.RANK.EQ(INDEX(consumption_mix_calcs!X$1:X$7,MATCH($B$37,$B$55:$B$61,0)),INDEX(consumption_mix_calcs!$C$1:$BU$7,MATCH($B$37,$B$55:$B$61,0),),0)+COLUMN()/1000,"") -> 69.025 | Z18: =IFERROR(_xlfn.RANK.EQ(INDEX(consumption_mix_calcs!Y$1:Y$7,MATCH($B$37,$B$55:$B$61,0)),INDEX(consumption_mix_calcs!$C$1:$BU$7,MATCH($B$37,$B$55:$B$61,0),),0)+COLUMN()/1000,"") -> 54.026 | AA18: =IFERROR(_xlfn.RANK.EQ(INDEX(consumption_mix_calcs!Z$1:Z$7,MATCH($B$37,$B$55:$B$61,0)),INDEX(consumption_mix_calcs!$C$1:$BU$7,MATCH($B$37,$B$55:$B$61,0),),0)+COLUMN()/1000,"") -> 66.027 | AB18: =IFERROR(_xlfn.RANK.EQ(INDEX(consumption_mix_calcs!AA$1:AA$7,MATCH($B$37,$B$55:$B$61,0)),INDEX(consumption_mix_calcs!$C$1:$BU$7,MATCH($B$37,$B$55:$B$61,0),),0)+COLUMN()/1000,"") -> 57.028 | AC18: =IFERROR(_xlfn.RANK.EQ(INDEX(consumption_mix_calcs!AB$1:AB$7,MATCH($B$37,$B$55:$B$61,0)),INDEX(consumption_mix_calcs!$C$1:$BU$7,MATCH($B$37,$B$55:$B$61,0),),0)+COLUMN()/1000,"") -> 11.029 | AD18: =IFERROR(_xlfn.RANK.EQ(INDEX(consumption_mix_calcs!AC$1:AC$7,MATCH($B$37,$B$55:$B$61,0)),INDEX(consumption_mix_calcs!$C$1:$BU$7,MATCH($B$37,$B$55:$B$61,0),),0)+COLUMN()/1000,"") -> 51.03 | AE18: =IFERROR(_xlfn.RANK.EQ(INDEX(consumption_mix_calcs!AD$1:AD$7,MATCH($B$37,$B$55:$B$61,0)),INDEX(consumption_mix_calcs!$C$1:$BU$7,MATCH($B$37,$B$55:$B$61,0),),0)+COLUMN()/1000,"") -> 49.031 | AF18: =IFERROR(_xlfn.RANK.EQ(INDEX(consumption_mix_calcs!AE$1:AE$7,MATCH($B$37,$B$55:$B$61,0)),INDEX(consumption_mix_calcs!$C$1:$BU$7,MATCH($B$37,$B$55:$B$61,0),),0)+COLUMN()/1000,"") -> 17.032 | AG18: =IFERROR(_xlfn.RANK.EQ(INDEX(consumption_mix_calcs!AF$1:AF$7,MATCH($B$37,$B$55:$B$61,0)),INDEX(consumption_mix_calcs!$C$1:$BU$7,MATCH($B$37,$B$55:$B$61,0),),0)+COLUMN()/1000,"") -> 14.033 | AH18: =IFERROR(_xlfn.RANK.EQ(INDEX(consumption_mix_calcs!AG$1:AG$7,MATCH($B$37,$B$55:$B$61,0)),INDEX(consumption_mix_calcs!$C$1:$BU$7,MATCH($B$37,$B$55:$B$61,0),),0)+COLUMN()/1000,"") -> 18.034 | AI18: =IFERROR(_xlfn.RANK.EQ(INDEX(consumption_mix_calcs!AH$1:AH$7,MATCH($B$37,$B$55:$B$61,0)),INDEX(consumption_mix_calcs!$C$1:$BU$7,MATCH($B$37,$B$55:$B$61,0),),0)+COLUMN()/1000,"") -> 58.035 | AJ18: =IFERROR(_xlfn.RANK.EQ(INDEX(consumption_mix_calcs!AI$1:AI$7,MATCH($B$37,$B$55:$B$61,0)),INDEX(consumption_mix_calcs!$C$1:$BU$7,MATCH($B$37,$B$55:$B$61,0),),0)+COLUMN()/1000,"") -> 1.036 | AK18: =IFERROR(_xlfn.RANK.EQ(INDEX(consumption_mix_calcs!AJ$1:AJ$7,MATCH($B$37,$B$55:$B$61,0)),INDEX(consumption_mix_calcs!$C$1:$BU$7,MATCH($B$37,$B$55:$B$61,0),),0)+COLUMN()/1000,"") -> 59.037 | AL18: =IFERROR(_xlfn.RANK.EQ(INDEX(consumption_mix_calcs!AK$1:AK$7,MATCH($B$37,$B$55:$B$61,0)),INDEX(consumption_mix_calcs!$C$1:$BU$7,MATCH($B$37,$B$55:$B$61,0),),0)+COLUMN()/1000,"") -> 64.038 | AM18: =IFERROR(_xlfn.RANK.EQ(INDEX(consumption_mix_calcs!AL$1:AL$7,MATCH($B$37,$B$55:$B$61,0)),INDEX(consumption_mix_calcs!$C$1:$BU$7,MATCH($B$37,$B$55:$B$61,0),),0)+COLUMN()/1000,"") -> 29.039 | AN18: =IFERROR(_xlfn.RANK.EQ(INDEX(consumption_mix_calcs!AM$1:AM$7,MATCH($B$37,$B$55:$B$61,0)),INDEX(consumption_mix_calcs!$C$1:$BU$7,MATCH($B$37,$B$55:$B$61,0),),0)+COLUMN()/1000,"") -> 56.04 | AO18: =IFERROR(_xlfn.RANK.EQ(INDEX(consumption_mix_calcs!AN$1:AN$7,MATCH($B$37,$B$55:$B$61,0)),INDEX(consumption_mix_calcs!$C$1:$BU$7,MATCH($B$37,$B$55:$B$61,0),),0)+COLUMN()/1000,"") -> 46.041 | AP18: =IFERROR(_xlfn.RANK.EQ(INDEX(consumption_mix_calcs!AO$1:AO$7,MATCH($B$37,$B$55:$B$61,0)),INDEX(consumption_mix_calcs!$C$1:$BU$7,MATCH($B$37,$B$55:$B$61,0),),0)+COLUMN()/1000,"") -> 69.042 | AQ18: =IFERROR(_xlfn.RANK.EQ(INDEX(consumption_mix_calcs!AP$1:AP$7,MATCH($B$37,$B$55:$B$61,0)),INDEX(consumption_mix_calcs!$C$1:$BU$7,MATCH($B$37,$B$55:$B$61,0),),0)+COLUMN()/1000,"") -> 10.043 | AR18: =IFERROR(_xlfn.RANK.EQ(INDEX(consumption_mix_calcs!AQ$1:AQ$7,MATCH($B$37,$B$55:$B$61,0)),INDEX(consumption_mix_calcs!$C$1:$BU$7,MATCH($B$37,$B$55:$B$61,0),),0)+COLUMN()/1000,"") -> 23.044 | AS18: =IFERROR(_xlfn.RANK.EQ(INDEX(consumption_mix_calcs!AR$1:AR$7,MATCH($B$37,$B$55:$B$61,0)),INDEX(consumption_mix_calcs!$C$1:$BU$7,MATCH($B$37,$B$55:$B$61,0),),0)+COLUMN()/1000,"") -> 31.045 | AT18: =IFERROR(_xlfn.RANK.EQ(INDEX(consumption_mix_calcs!AS$1:AS$7,MATCH($B$37,$B$55:$B$61,0)),INDEX(consumption_mix_calcs!$C$1:$BU$7,MATCH($B$37,$B$55:$B$61,0),),0)+COLUMN()/1000,"") -> 52.046 | AU18: =IFERROR(_xlfn.RANK.EQ(INDEX(consumption_mix_calcs!AT$1:AT$7,MATCH($B$37,$B$55:$B$61,0)),INDEX(consumption_mix_calcs!$C$1:$BU$7,MATCH($B$37,$B$55:$B$61,0),),0)+COLUMN()/1000,"") -> 2.047 | AV18: =IFERROR(_xlfn.RANK.EQ(INDEX(consumption_mix_calcs!AU$1:AU$7,MATCH($B$37,$B$55:$B$61,0)),INDEX(consumption_mix_calcs!$C$1:$BU$7,MATCH($B$37,$B$55:$B$61,0),),0)+COLUMN()/1000,"") -> 67.048 | AW18: =IFERROR(_xlfn.RANK.EQ(INDEX(consumption_mix_calcs!AV$1:AV$7,MATCH($B$37,$B$55:$B$61,0)),INDEX(consumption_mix_calcs!$C$1:$BU$7,MATCH($B$37,$B$55:$B$61,0),),0)+COLUMN()/1000,"") -> 9.049 | AX18: =IFERROR(_xlfn.RANK.EQ(INDEX(consumption_mix_calcs!AW$1:AW$7,MATCH($B$37,$B$55:$B$61,0)),INDEX(consumption_mix_calcs!$C$1:$BU$7,MATCH($B$37,$B$55:$B$61,0),),0)+COLUMN()/1000,"") -> 35.05 | AY18: =IFERROR(_xlfn.RANK.EQ(INDEX(consumption_mix_calcs!AX$1:AX$7,MATCH($B$37,$B$55:$B$61,0)),INDEX(consumption_mix_calcs!$C$1:$BU$7,MATCH($B$37,$B$55:$B$61,0),),0)+COLUMN()/1000,"") -> 41.051 | AZ18: =IFERROR(_xlfn.RANK.EQ(INDEX(consumption_mix_calcs!AY$1:AY$7,MATCH($B$37,$B$55:$B$61,0)),INDEX(consumption_mix_calcs!$C$1:$BU$7,MATCH($B$37,$B$55:$B$61,0),),0)+COLUMN()/1000,"") -> 34.052 | BA18: =IFERROR(_xlfn.RANK.EQ(INDEX(consumption_mix_calcs!AZ$1:AZ$7,MATCH($B$37,$B$55:$B$61,0)),INDEX(consumption_mix_calcs!$C$1:$BU$7,MATCH($B$37,$B$55:$B$61,0),),0)+COLUMN()/1000,"") -> 21.053 | BB18: =IFERROR(_xlfn.RANK.EQ(INDEX(consumption_mix_calcs!BA$1:BA$7,MATCH($B$37,$B$55:$B$61,0)),INDEX(consumption_mix_calcs!$C$1:$BU$7,MATCH($B$37,$B$55:$B$61,0),),0)+COLUMN()/1000,"") -> 22.054 | BC18: =IFERROR(_xlfn.RANK.EQ(INDEX(consumption_mix_calcs!BB$1:BB$7,MATCH($B$37,$B$55:$B$61,0)),INDEX(consumption_mix_calcs!$C$1:$BU$7,MATCH($B$37,$B$55:$B$61,0),),0)+COLUMN()/1000,"") -> 63.055 | BD18: =IFERROR(_xlfn.RANK.EQ(INDEX(consumption_mix_calcs!BC$1:BC$7,MATCH($B$37,$B$55:$B$61,0)),INDEX(consumption_mix_calcs!$C$1:$BU$7,MATCH($B$37,$B$55:$B$61,0),),0)+COLUMN()/1000,"") -> 61.056 | BE18: =IFERROR(_xlfn.RANK.EQ(INDEX(consumption_mix_calcs!BD$1:BD$7,MATCH($B$37,$B$55:$B$61,0)),INDEX(consumption_mix_calcs!$C$1:$BU$7,MATCH($B$37,$B$55:$B$61,0),),0)+COLUMN()/1000,"") -> 36.057 | BF18: =IFERROR(_xlfn.RANK.EQ(INDEX(consumption_mix_calcs!BE$1:BE$7,MATCH($B$37,$B$55:$B$61,0)),INDEX(consumption_mix_calcs!$C$1:$BU$7,MATCH($B$37,$B$55:$B$61,0),),0)+COLUMN()/1000,"") -> 16.058 | BG18: =IFERROR(_xlfn.RANK.EQ(INDEX(consumption_mix_calcs!BF$1:BF$7,MATCH($B$37,$B$55:$B$61,0)),INDEX(consumption_mix_calcs!$C$1:$BU$7,MATCH($B$37,$B$55:$B$61,0),),0)+COLUMN()/1000,"") -> 62.059 | BH18: =IFERROR(_xlfn.RANK.EQ(INDEX(consumption_mix_calcs!BG$1:BG$7,MATCH($B$37,$B$55:$B$61,0)),INDEX(consumption_mix_calcs!$C$1:$BU$7,MATCH($B$37,$B$55:$B$61,0),),0)+COLUMN()/1000,"") -> 32.06 | BI18: =IFERROR(_xlfn.RANK.EQ(INDEX(consumption_mix_calcs!BH$1:BH$7,MATCH($B$37,$B$55:$B$61,0)),INDEX(consumption_mix_calcs!$C$1:$BU$7,MATCH($B$37,$B$55:$B$61,0),),0)+COLUMN()/1000,"") -> 30.061 | BJ18: =IFERROR(_xlfn.RANK.EQ(INDEX(consumption_mix_calcs!BI$1:BI$7,MATCH($B$37,$B$55:$B$61,0)),INDEX(consumption_mix_calcs!$C$1:$BU$7,MATCH($B$37,$B$55:$B$61,0),),0)+COLUMN()/1000,"") -> 20.062 | BK18: =IFERROR(_xlfn.RANK.EQ(INDEX(consumption_mix_calcs!BJ$1:BJ$7,MATCH($B$37,$B$55:$B$61,0)),INDEX(consumption_mix_calcs!$C$1:$BU$7,MATCH($B$37,$B$55:$B$61,0),),0)+COLUMN()/1000,"") -> 68.063 | BL18: =IFERROR(_xlfn.RANK.EQ(INDEX(consumption_mix_calcs!BK$1:BK$7,MATCH($B$37,$B$55:$B$61,0)),INDEX(consumption_mix_calcs!$C$1:$BU$7,MATCH($B$37,$B$55:$B$61,0),),0)+COLUMN()/1000,"") -> 5.064 | BM18: =IFERROR(_xlfn.RANK.EQ(INDEX(consumption_mix_calcs!BL$1:BL$7,MATCH($B$37,$B$55:$B$61,0)),INDEX(consumption_mix_calcs!$C$1:$BU$7,MATCH($B$37,$B$55:$B$61,0),),0)+COLUMN()/1000,"") -> 4.065 | BN18: =IFERROR(_xlfn.RANK.EQ(INDEX(consumption_mix_calcs!BM$1:BM$7,MATCH($B$37,$B$55:$B$61,0)),INDEX(consumption_mix_calcs!$C$1:$BU$7,MATCH($B$37,$B$55:$B$61,0),),0)+COLUMN()/1000,"") -> 47.066 | BO18: =IFERROR(_xlfn.RANK.EQ(INDEX(consumption_mix_calcs!BN$1:BN$7,MATCH($B$37,$B$55:$B$61,0)),INDEX(consumption_mix_calcs!$C$1:$BU$7,MATCH($B$37,$B$55:$B$61,0),),0)+COLUMN()/1000,"") -> 44.067 | BP18: =IFERROR(_xlfn.RANK.EQ(INDEX(consumption_mix_calcs!BO$1:BO$7,MATCH($B$37,$B$55:$B$61,0)),INDEX(consumption_mix_calcs!$C$1:$BU$7,MATCH($B$37,$B$55:$B$61,0),),0)+COLUMN()/1000,"") -> 24.068 | BQ18: =IFERROR(_xlfn.RANK.EQ(INDEX(consumption_mix_calcs!BP$1:BP$7,MATCH($B$37,$B$55:$B$61,0)),INDEX(consumption_mix_calcs!$C$1:$BU$7,MATCH($B$37,$B$55:$B$61,0),),0)+COLUMN()/1000,"") -> 6.069 | BR18: =IFERROR(_xlfn.RANK.EQ(INDEX(consumption_mix_calcs!BQ$1:BQ$7,MATCH($B$37,$B$55:$B$61,0)),INDEX(consumption_mix_calcs!$C$1:$BU$7,MATCH($B$37,$B$55:$B$61,0),),0)+COLUMN()/1000,"") -> 33.07 | BS18: =IFERROR(_xlfn.RANK.EQ(INDEX(consumption_mix_calcs!BR$1:BR$7,MATCH($B$37,$B$55:$B$61,0)),INDEX(consumption_mix_calcs!$C$1:$BU$7,MATCH($B$37,$B$55:$B$61,0),),0)+COLUMN()/1000,"") -> 38.071 | BT18: =IFERROR(_xlfn.RANK.EQ(INDEX(consumption_mix_calcs!BS$1:BS$7,MATCH($B$37,$B$55:$B$61,0)),INDEX(consumption_mix_calcs!$C$1:$BU$7,MATCH($B$37,$B$55:$B$61,0),),0)+COLUMN()/1000,"") -> 37.072 | BU18: =IFERROR(_xlfn.RANK.EQ(INDEX(consumption_mix_calcs!BT$1:BT$7,MATCH($B$37,$B$55:$B$61,0)),INDEX(consumption_mix_calcs!$C$1:$BU$7,MATCH($B$37,$B$55:$B$61,0),),0)+COLUMN()/1000,"") -> 12.073 | BV18: =IFERROR(_xlfn.RANK.EQ(INDEX(consumption_mix_calcs!BU$1:BU$7,MATCH($B$37,$B$55:$B$61,0)),INDEX(consumption_mix_calcs!$C$1:$BU$7,MATCH($B$37,$B$55:$B$61,0),),0)+COLUMN()/1000,"") -> 60.074
D19: =SMALL($D$18:$BX$18,D$17) -> 1.036 | E19: =SMALL($D$18:$BX$18,E$17) -> 2.047 | F19: 3.02 | G19: 4.065 | H19: 5.064 | I19: 6.069 | J19: 7.012 | K19: 8.022 | L19: 9.049 | M19: 10.043 | N19: 11.029
D20: =MATCH(D19,$D$18:$BX$18,0) -> 33 | E20: =MATCH(E19,$D$18:$BX$18,0) -> 44 | F20: 17 | G20: 62 | H20: 61 | I20: 66 | J20: 9 | K20: 19 | L20: 46 | M20: 40 | N20: 26 | P20: =MAX(COUNT(Q15:U15),1) -> 5 | Q20: =IFERROR(_xlfn.RANK.EQ(Q15,$Q$15:$U$15,0)+COLUMN()/1000,"") -> 3.017 | R20: =IFERROR(_xlfn.RANK.EQ(R15,$Q$15:$U$15,0)+COLUMN()/1000,"") -> 5.018 | S20: 2.019 | T20: 1.02 | U20: 4.021
C21: =B37&" "&IF($B$9="Global Warming Potential",traci_factors!$L$1&" ","")&INDEX(impact_text!B2:B8,MATCH(consumption_mix!B37,impact_text!$A$2:$A$8,0),1) -> Global Warming Potential IPCC AR5, 2013, 100-yr, w/ climate carbon feedback kg CO₂-e/MWh delivered | Q21: =RANK(Q20,$Q$20:$U$20,1) -> 3 | R21: =RANK(R20,$Q$20:$U$20,1) -> 5 | S21: 2 | T21: 1 | U21: 4
C22: =IF(INT($C$29)<-3,TEXT(C25/10^$C$23,"#,0.00#")&"E"&$C$23,C25) -> 1 | D22: =IF(INT($C$29)<-3,TEXT(D27/10^$C$23,"#,0.0#")&"E"&$C$23,) -> 0 | E22: =IF(INT($C$29)<-3,TEXT(E27/10^$C$23,"#,0.0#")&"E"&$C$23,) -> 0 | F22: 0 | G22: 0 | H22: 0 | I22: 0 | J22: =IF(INT($C$29)<-3,TEXT(J27/10^$C$23,"#,0.0#")&"E"&$C$23,$C$24) -> 1 | K22: =IF(INT($C$29)<-3,TEXT(K27/10^$C$23,"#,0.0#")&"E"&$C$23,$C$24) -> 1 | L22: 1 | M22: 1 | N22: 1 | Q22: 1 | R22: 2 | S22: 3 | T22: 4 | U22: 5
C23: =TEXT(INT(C29),"0#") -> 02 | Q23: =IFERROR(INDEX($Q$16:$U$16,1,MATCH(Q22,$Q$21:$U$21,0)),"") -> MISO | R23: =IFERROR(INDEX($Q$16:$U$16,1,MATCH(R22,$Q$21:$U$21,0)),"") -> ERCOT | S23: US | T23: Southeast | U23: CAISO
C24: =IF(C25<0.001,TEXT(C25,"#.00E+00"),C25) -> 1 | Q24: =IFERROR(INDEX($Q$15:$U$15,1,MATCH(Q22,$Q$21:$U$21,0)),"") -> 765.6964499 | R24: =IFERROR(INDEX($Q$15:$U$15,1,MATCH(R22,$Q$21:$U$21,0)),"") -> 662.6615476 | S24: 586.4598456 | T24: 583.3527214 | U24: 438.8340587
C25: =10^(INT(C29)-2) -> 1 | P25: =LOG10(ABS(Q24)) -> 2.884056634 | Q25: =IFERROR(LOG(ABS(Q24),10),"") -> 2.884056634 | R25: =IFERROR(LOG(ABS(R24),10),"") -> 2.82129177 | S25: 2.768238282 | T25: 2.765931228 | U25: 2.642300327
D26: =D28/$C$28 -> 0.1979522184 | E26: =E28/$C$28 -> 0.1843003413 | F26: 0.09044368601 | G26: 0.06996587031 | H26: 0.06313993174 | I26: 0.03412969283 | J26: 0.02901023891 | K26: 0.02218430034 | L26: 0.02218430034 | M26: 0.02218430034 | N26: 0.02218430034 | P26: =10^(INT(P25)-2) -> 1 | Q26: =IFERROR(3-(1+INT(Q25)),"") -> 0 | R26: =IFERROR(3-(1+INT(R25)),"") -> 0 | S26: 0 | T26: 0 | U26: 0
C27: =INDEX(C$55:C$61,MATCH($B$9,$B$55:$B$61,0),1) -> 586.4598456 | D27: =INDEX($D$55:$BX$61,MATCH($B$37,$B$55:$B$61,0),D20) -> 116.1383533 | E27: =INDEX($D$55:$BX$61,MATCH($B$37,$B$55:$B$61,0),E20) -> 107.7338505 | F27: 52.54023403 | G27: 41.40831655 | H27: 36.67695187 | I27: 19.51822234 | J27: 17.31627892 | K27: 13.29047276 | L27: 13.23355974 | M27: 12.63333022 | N27: 12.53100502 | P27: =IF($Q$24>0.001,TEXT(P26,"#,##0"&Q28),TEXT(P26,"#E+##")) -> 1 | Q27: =IF(Q26="","",IF(Q24<$AB$56,"<"&TEXT($AB$56,IF($AB$56<0.001,"#E+##","#,###"&Q28)),IF(Q24=0,"0",TEXT(ROUND(Q24,Q26),IF(Q24<0.001,"#.0E+##",IF(Q26=0,"#,###","#.###")))))) -> 766 | R27: =IF(R26="","",IF(R24<$AB$56,"<"&TEXT($AB$56,IF($AB$56<0.001,"#E+##","#,###"&R28)),IF(R24=0,"0",TEXT(ROUND(R24,R26),IF(R24<0.001,"#.0E+##",IF(R26=0,"#,###","#.###")))))) -> 663 | S27: 586 | T27: 583 | U27: 439
C28: =ROUND(C27,3-(1+INT($C$29))) -> 586 | D28: =ROUND(D27,3-(1+INT($C$29))) -> 116 | E28: =ROUND(E27,3-(1+INT($C$29))) -> 108 | F28: 53 | G28: 41 | H28: 37 | I28: 20 | J28: 17 | K28: 13 | L28: 13 | M28: 13 | N28: 13 | P28: =IFERROR(3-(1+INT(P27)),"") -> 1 | Q28: =IF(Q26>=1,"."&IFERROR(REPT("0",$Q$26),""),"") ->  | S28: =IF(S26>=1,"."&IFERROR(REPT("0",$Q$26),""),"") ->  | T28: =IF(T26>=1,"."&IFERROR(REPT("0",$Q$26),""),"") -> 
C29: =LOG(ABS(C27),10) -> 2.768238282 | P29: =IF($AC$54>0.001,TEXT(P28,"#,##0"&Q30),TEXT(P28,"#E+##")) -> 1 | Q29: =IF(Q24=0,"0",IF(Q24>$P$26,IF($Q$24>0.001,TEXT(Q24,"#,##0"&Q28),TEXT(Q24,"#.00E+00")),"<"&$P$27)) -> 766 | R29: =IF(R24=0,"0",IF(R24>$P$26,IF($Q$24>0.001,TEXT(R24,"#,##0"&R28),TEXT(R24,"#.00E+00")),"<"&$P$27)) -> 663 | S29: =IF(S24=0,"0",IF(S24>$P$26,IF($Q$24>0.001,TEXT(S24,"#,##0"&S28),TEXT(S24,"#.00E+00")),"<"&$P$27)) -> 586 | T29: 583 | U29: =IF(U24=0,"0",IF(ABS(U24)>$P$26,IF($Q$24>0.001,TEXT(U24,"#,##0"&U28),TEXT(U24,"#.00E+00")),"<"&$P$27)) -> 439
Q30: =IF($B$8="Use FERC",IF($P14>9,(TRANSPOSE(MMULT(INDEX(ferc_consumption_mix_data!$B$2:$BR$12,MATCH(consumption_mix!Q$16,ferc_consumption_mix_data!$A$2:$A$12,0),),TRANSPOSE(INDEX(ba_genmix_inventory!$C$2:$BS$2145,$P14-9,))))),""),IF($P14>9,(TRANSPOSE(MMULT(INDEX(ferc_consumption_mix_data!$B$2:$BR$12,MATCH(consumption_mix!Q$16,ba_consumption_mix_data!$A$2:$A$69,0),),TRANSPOSE(INDEX(ba_genmix_inventory!$C$2:$BS$2145,$P14-9,))))),"")) ->  | R30: =IF($B$8="Use FERC",IF($P14>9,(TRANSPOSE(MMULT(INDEX(ferc_consumption_mix_data!$B$2:$BR$12,MATCH(consumption_mix!R$16,ferc_consumption_mix_data!$A$2:$A$12,0),),TRANSPOSE(INDEX(ba_genmix_inventory!$C$2:$BS$2145,$P14-9,))))),""),IF($P14>9,(TRANSPOSE(MMULT(INDEX(ferc_consumption_mix_data!$B$2:$BR$12,MATCH(consumption_mix!R$16,ba_consumption_mix_data!$A$2:$A$69,0),),TRANSPOSE(INDEX(ba_genmix_inventory!$C$2:$BS$2145,$P14-9,))))),"")) ->  | S30: =IF($B$8="Use FERC",IF($P14>9,(TRANSPOSE(MMULT(INDEX(ferc_consumption_mix_data!$B$2:$BR$12,MATCH(consumption_mix!S$16,ferc_consumption_mix_data!$A$2:$A$12,0),),TRANSPOSE(INDEX(ba_genmix_inventory!$C$2:$BS$2145,$P14-9,))))),""),IF($P14>9,(TRANSPOSE(MMULT(INDEX(ferc_consumption_mix_data!$B$2:$BR$12,MATCH(consumption_mix!S$16,ba_consumption_mix_data!$A$2:$A$69,0),),TRANSPOSE(INDEX(ba_genmix_inventory!$C$2:$BS$2145,$P14-9,))))),"")) ->  | T30: =IF($B$8="Use FERC",IF($P14>9,(TRANSPOSE(MMULT(INDEX(ferc_consumption_mix_data!$B$2:$BR$12,MATCH(consumption_mix!T$16,ferc_consumption_mix_data!$A$2:$A$12,0),),TRANSPOSE(INDEX(ba_genmix_inventory!$C$2:$BS$2145,$P14-9,))))),""),IF($P14>9,(TRANSPOSE(MMULT(INDEX(ferc_consumption_mix_data!$B$2:$BR$12,MATCH(consumption_mix!T$16,ba_consumption_mix_data!$A$2:$A$69,0),),TRANSPOSE(INDEX(ba_genmix_inventory!$C$2:$BS$2145,$P14-9,))))),"")) ->  | U30: =IF($B$8="Use FERC",IF($P14>9,(TRANSPOSE(MMULT(INDEX(ferc_consumption_mix_data!$B$2:$BR$12,MATCH(consumption_mix!U$16,ferc_consumption_mix_data!$A$2:$A$12,0),),TRANSPOSE(INDEX(ba_genmix_inventory!$C$2:$BS$2145,$P14-9,))))),""),IF($P14>9,(TRANSPOSE(MMULT(INDEX(ferc_consumption_mix_data!$B$2:$BR$12,MATCH(consumption_mix!U$16,ba_consumption_mix_data!$A$2:$A$69,0),),TRANSPOSE(INDEX(ba_genmix_inventory!$C$2:$BS$2145,$P14-9,))))),"")) -> 
C31: =SUM(D31:N31) -> 0.7236508766 | D31: =INDEX($D$35:$BX$35,1,D$20) -> 0.1504004627 | E31: =INDEX($D$35:$BX$35,1,E$20) -> 0.1880882643 | F31: 0.07962384031 | G31: 0.05849352208 | H31: 0.05664898979 | I31: 0.03695506964 | J31: 0.04512877243 | K31: 0.02975634641 | L31: 0.01498280723 | M31: 0.03558615334 | N31: 0.02798664825 | Q31: =IF($B$8="Use FERC",IF($P14<9,SUMPRODUCT(TRANSPOSE(MMULT(INDEX(ferc_consumption_mix_data!$B$2:$BR$12,MATCH(consumption_mix!Q$16,ferc_consumption_mix_data!$A$2:$A$12,0),),TRANSPOSE(ba_genmix_inventory!$C$2:$BS$2145))),INDEX(traci_factors!$D$2:$J$2145,,MATCH(consumption_mix!$P$15,traci_factors!$D$1:$J$1,0))),""),"") -> 561.5221999 | R31: =IF($B$8="Use FERC",IF($P14<9,SUMPRODUCT(TRANSPOSE(MMULT(INDEX(ferc_consumption_mix_data!$B$2:$BR$12,MATCH(consumption_mix!R$16,ferc_consumption_mix_data!$A$2:$A$12,0),),TRANSPOSE(ba_genmix_inventory!$C$2:$BS$2145))),INDEX(traci_factors!$D$2:$J$2145,,MATCH(consumption_mix!$P$15,traci_factors!$D$1:$J$1,0))),""),"") -> 418.7427594 | S31: =IF($B$8="Use FERC",IF($P14<9,SUMPRODUCT(TRANSPOSE(MMULT(INDEX(ferc_consumption_mix_data!$B$2:$BR$12,MATCH(consumption_mix!S$16,ferc_consumption_mix_data!$A$2:$A$12,0),),TRANSPOSE(ba_genmix_inventory!$C$2:$BS$2145))),INDEX(traci_factors!$D$2:$J$2145,,MATCH(consumption_mix!$P$15,traci_factors!$D$1:$J$1,0))),""),"") -> 631.7969602 | T31: =IF($B$8="Use FERC",IF($P14<9,SUMPRODUCT(TRANSPOSE(MMULT(INDEX(ferc_consumption_mix_data!$B$2:$BR$12,MATCH(consumption_mix!T$16,ferc_consumption_mix_data!$A$2:$A$12,0),),TRANSPOSE(ba_genmix_inventory!$C$2:$BS$2145))),INDEX(traci_factors!$D$2:$J$2145,,MATCH(consumption_mix!$P$15,traci_factors!$D$1:$J$1,0))),""),"") -> 731.8180507 | U31: =IF($B$8="Use FERC",IF($P14<9,SUMPRODUCT(TRANSPOSE(MMULT(INDEX(ferc_consumption_mix_data!$B$2:$BR$12,MATCH(consumption_mix!U$16,ferc_consumption_mix_data!$A$2:$A$12,0),),TRANSPOSE(ba_genmix_inventory!$C$2:$BS$2145))),INDEX(traci_factors!$D$2:$J$2145,,MATCH(consumption_mix!$P$15,traci_factors!$D$1:$J$1,0))),""),"") -> 557.9159961
C32: =IF(C28<0.001,TEXT(C28,"0.00E+00"),C28) -> 586 | D32: =IF(D28=0,0,IF(ABS(D27)<$C$25,"<"&$C$22,IF(ABS(D28)<0.001,D22,D28))) -> 116 | E32: =IF(E28=0,0,IF(ABS(E27)<$C$25,"<"&$C$22,IF(ABS(E28)<0.001,E22,E28))) -> 108 | F32: 53 | G32: 41 | H32: 37 | I32: 20 | J32: 17 | K32: 13 | L32: 13 | M32: 13 | N32: 13 | Q32: =IFERROR(IF($B$8<>"Use FERC",IF($P14<9,SUMPRODUCT(TRANSPOSE(MMULT(INDEX(ba_consumption_mix_data!$B$2:$BR$60,MATCH(consumption_mix!Q$16,ba_consumption_mix_data!$A$2:$A$60,0),),TRANSPOSE(ba_genmix_inventory!$C$2:$BS$2145))),INDEX(traci_factors!$D$2:$J$2145,,MATCH(consumption_mix!$P$15,traci_factors!$D$1:$J$1,0))),""),""),NA()) ->  | R32: =IFERROR(IF($B$8<>"Use FERC",IF($P14<9,SUMPRODUCT(TRANSPOSE(MMULT(INDEX(ba_consumption_mix_data!$B$2:$BR$60,MATCH(consumption_mix!R$16,ba_consumption_mix_data!$A$2:$A$60,0),),TRANSPOSE(ba_genmix_inventory!$C$2:$BS$2145))),INDEX(traci_factors!$D$2:$J$2145,,MATCH(consumption_mix!$P$15,traci_factors!$D$1:$J$1,0))),""),""),NA()) ->  | S32: =IFERROR(IF($B$8<>"Use FERC",IF($P14<9,SUMPRODUCT(TRANSPOSE(MMULT(INDEX(ba_consumption_mix_data!$B$2:$BR$60,MATCH(consumption_mix!S$16,ba_consumption_mix_data!$A$2:$A$60,0),),TRANSPOSE(ba_genmix_inventory!$C$2:$BS$2145))),INDEX(traci_factors!$D$2:$J$2145,,MATCH(consumption_mix!$P$15,traci_factors!$D$1:$J$1,0))),""),""),NA()) ->  | T32: =IFERROR(IF($B$8<>"Use FERC",IF($P14<9,SUMPRODUCT(TRANSPOSE(MMULT(INDEX(ba_consumption_mix_data!$B$2:$BR$60,MATCH(consumption_mix!T$16,ba_consumption_mix_data!$A$2:$A$60,0),),TRANSPOSE(ba_genmix_inventory!$C$2:$BS$2145))),INDEX(traci_factors!$D$2:$J$2145,,MATCH(consumption_mix!$P$15,traci_factors!$D$1:$J$1,0))),""),""),NA()) ->  | U32: =IFERROR(IF($B$8<>"Use FERC",IF($P14<9,SUMPRODUCT(TRANSPOSE(MMULT(INDEX(ba_consumption_mix_data!$B$2:$BR$60,MATCH(consumption_mix!U$16,ba_consumption_mix_data!$A$2:$A$60,0),),TRANSPOSE(ba_genmix_inventory!$C$2:$BS$2145))),INDEX(traci_factors!$D$2:$J$2145,,MATCH(consumption_mix!$P$15,traci_factors!$D$1:$J$1,0))),""),""),NA()) -> 
C33: =C36&" - "&TEXT(C$31,"0.0%") -> Total - 72.4% | D33: =D36&" - "&TEXT(D$31,"0.0%") -> Midcontinent Independent System Operator, Inc. (MISO) - 15.0% | E33: =E36&" - "&TEXT(E$31,"0.0%") -> PJM Interconnection, LLC (PJM) - 18.8% | F33: Electric Reliability Council of Texas, Inc. (ERCOT) - 8.0% | G33: Southwest Power Pool (SPP) - 5.8% | H33: Southern Company Services, Inc. - Trans (Southeast) - 5.7% | I33: Tennessee Valley Authority (Southeast) - 3.7% | J33: California Independent System Operator (CAISO) - 4.5% | K33: Florida Power & Light Co. (Southeast) - 3.0% | L33: PacifiCorp East (Northwest) - 1.5% | M33: New York Independent System Operator (NYISO) - 3.6% | N33: ISO-NE (ISO-NE) - 2.8%
C34: Total | D34: =D54 -> Alcoa Power Generating, Inc. - Yadkin Division (Southeast) | E34: =E54 -> Arizona Public Service Company (Southwest) | F34: Arlington Valley, LLC - AVBA (Southwest) | G34: Associated Electric Cooperative, Inc. (MISO) | H34: Avista Corporation (Northwest) | I34: B.C. Hydro & Power Authority (Canada) | J34: Balancing Authority of Northern California (CAISO) | K34: Bonneville Power Administration (Northwest) | L34: California Independent System Operator (CAISO) | M34: City of Tacoma, Department of Public Utilities, Light Division (Northwest) | N34: Duke Energy Carolinas (Southeast)
C35: =SUM(D35:BX35) -> 1 | D35: =IF(consumption_mix_calcs!C20<>"",consumption_mix_calcs!C20,"") -> 0.0004813240987 | E35: =IF(consumption_mix_calcs!D20<>"",consumption_mix_calcs!D20,"") -> 0.004745406482 | F35: =IF(consumption_mix_calcs!E20<>"",consumption_mix_calcs!E20,"") -> 0.0004289353934 | G35: =IF(consumption_mix_calcs!F20<>"",consumption_mix_calcs!F20,"") -> 0.005477999597 | H35: =IF(consumption_mix_calcs!G20<>"",consumption_mix_calcs!G20,"") -> 0.00217913467 | I35: =IF(consumption_mix_calcs!H20<>"",consumption_mix_calcs!H20,"") -> 0.003091475064 | J35: =IF(consumption_mix_calcs!I20<>"",consumption_mix_calcs!I20,"") -> 0.002982508901 | K35: =IF(consumption_mix_calcs!J20<>"",consumption_mix_calcs!J20,"") -> 0.03144716972 | L35: =IF(consumption_mix_calcs!K20<>"",consumption_mix_calcs!K20,"") -> 0.04512877243 | M35: =IF(consumption_mix_calcs!L20<>"",consumption_mix_calcs!L20,"") -> 0.001185917413 | N35: =IF(consumption_mix_calcs!M20<>"",consumption_mix_calcs!M20,"") -> 0.02477333707 | O35: =IF(consumption_mix_calcs!N20<>"",consumption_mix_calcs!N20,"") -> 0.01104439169 | P35: =IF(consumption_mix_calcs!O20<>"",consumption_mix_calcs!O20,"") -> 0.01532242703 | Q35: =IF(consumption_mix_calcs!P20<>"",consumption_mix_calcs!P20,"") -> 0.0006725320993 | R35: =IF(consumption_mix_calcs!Q20<>"",consumption_mix_calcs!Q20,"") -> 0.001759291099 | S35: =IF(consumption_mix_calcs!R20<>"",consumption_mix_calcs!R20,"") -> 0.0007142862708 | T35: =IF(consumption_mix_calcs!S20<>"",consumption_mix_calcs!S20,"") -> 0.07962384031 | U35: =IF(consumption_mix_calcs!T20<>"",consumption_mix_calcs!T20,"") -> 0.005481046158 | V35: =IF(consumption_mix_calcs!U20<>"",consumption_mix_calcs!U20,"") -> 0.02975634641 | W35: =IF(consumption_mix_calcs!V20<>"",consumption_mix_calcs!V20,"") -> 0.0004797993963 | X35: =IF(consumption_mix_calcs!W20<>"",consumption_mix_calcs!W20,"") -> 0.00159479808 | Y35: =IF(consumption_mix_calcs!X20<>"",consumption_mix_calcs!X20,"") -> 0 | Z35: =IF(consumption_mix_calcs!Y20<>"",consumption_mix_calcs!Y20,"") -> 0.0004733733876 | AA35: =IF(consumption_mix_calcs!Z20<>"",consumption_mix_calcs!Z20,"") -> 1.502132336e-06 | AB35: =IF(consumption_mix_calcs!AA20<>"",consumption_mix_calcs!AA20,"") -> 0.005823710673 | AC35: =IF(consumption_mix_calcs!AB20<>"",consumption_mix_calcs!AB20,"") -> 0.02798664825 | AD35: =IF(consumption_mix_calcs!AC20<>"",consumption_mix_calcs!AC20,"") -> 0.003380986894 | AE35: =IF(consumption_mix_calcs!AD20<>"",consumption_mix_calcs!AD20,"") -> 0.001282976261 | AF35: =IF(consumption_mix_calcs!AE20<>"",consumption_mix_calcs!AE20,"") -> 0.006645054046 | AG35: =IF(consumption_mix_calcs!AF20<>"",consumption_mix_calcs!AF20,"") -> 0.00878729723 | AH35: =IF(consumption_mix_calcs!AG20<>"",consumption_mix_calcs!AG20,"") -> 0.009246220092 | AI35: =IF(consumption_mix_calcs!AH20<>"",consumption_mix_calcs!AH20,"") -> 0.002250803599 | AJ35: =IF(consumption_mix_calcs!AI20<>"",consumption_mix_calcs!AI20,"") -> 0.1504004627 | AK35: =IF(consumption_mix_calcs!AJ20<>"",consumption_mix_calcs!AJ20,"") -> 0.001048229284 | AL35: =IF(consumption_mix_calcs!AK20<>"",consumption_mix_calcs!AK20,"") -> 0.0001497860171 | AM35: =IF(consumption_mix_calcs!AL20<>"",consumption_mix_calcs!AL20,"") -> 0.007095666411 | AN35: =IF(consumption_mix_calcs!AM20<>"",consumption_mix_calcs!AM20,"") -> 0.0004005346494 | AO35: =IF(consumption_mix_calcs!AN20<>"",consumption_mix_calcs!AN20,"") -> 0.00076764378 | AP35: =IF(consumption_mix_calcs!AO20<>"",consumption_mix_calcs!AO20,"") -> 0 | AQ35: =IF(consumption_mix_calcs!AP20<>"",consumption_mix_calcs!AP20,"") -> 0.03558615334 | AR35: =IF(consumption_mix_calcs!AQ20<>"",consumption_mix_calcs!AQ20,"") -> 0.005651949005 | AS35: =IF(consumption_mix_calcs!AR20<>"",consumption_mix_calcs!AR20,"") -> 0.00227135981 | AT35: =IF(consumption_mix_calcs!AS20<>"",consumption_mix_calcs!AS20,"") -> 0.004671368512 | AU35: =IF(consumption_mix_calcs!AT20<>"",consumption_mix_calcs!AT20,"") -> 0.1880882643 | AV35: =IF(consumption_mix_calcs!AU20<>"",consumption_mix_calcs!AU20,"") -> 0.0009162965604 | AW35: =IF(consumption_mix_calcs!AV20<>"",consumption_mix_calcs!AV20,"") -> 0.01498280723 | AX35: =IF(consumption_mix_calcs!AW20<>"",consumption_mix_calcs!AW20,"") -> 0.006149045449 | AY35: =IF(consumption_mix_calcs!AX20<>"",consumption_mix_calcs!AX20,"") -> 0.003241879469 | AZ35: =IF(consumption_mix_calcs!AY20<>"",consumption_mix_calcs!AY20,"") -> 0.002668745786 | BA35: =IF(consumption_mix_calcs!AZ20<>"",consumption_mix_calcs!AZ20,"") -> 0.009443132501 | BB35: =IF(consumption_mix_calcs!BA20<>"",consumption_mix_calcs!BA20,"") -> 0.0057834635 | BC35: =IF(consumption_mix_calcs!BB20<>"",consumption_mix_calcs!BB20,"") -> 0.002290376961 | BD35: =IF(consumption_mix_calcs!BC20<>"",consumption_mix_calcs!BC20,"") -> 0.002133544413 | BE35: =IF(consumption_mix_calcs!BD20<>"",consumption_mix_calcs!BD20,"") -> 0.003500141185 | BF35: =IF(consumption_mix_calcs!BE20<>"",consumption_mix_calcs!BE20,"") -> 0.01733265212 | BG35: =IF(consumption_mix_calcs!BF20<>"",consumption_mix_calcs!BF20,"") -> 0.002229041717 | BH35: =IF(consumption_mix_calcs!BG20<>"",consumption_mix_calcs!BG20,"") -> 0.002607486015 | BI35: =IF(consumption_mix_calcs!BH20<>"",consumption_mix_calcs!BH20,"") -> 0.006763180768 | BJ35: =IF(consumption_mix_calcs!BI20<>"",consumption_mix_calcs!BI20,"") -> 0.005982506012 | BK35: =IF(consumption_mix_calcs!BJ20<>"",consumption_mix_calcs!BJ20,"") -> 0.0008296165574 | BL35: =IF(consumption_mix_calcs!BK20<>"",consumption_mix_calcs!BK20,"") -> 0.05664898979 | BM35: =IF(consumption_mix_calcs!BL20<>"",consumption_mix_calcs!BL20,"") -> 0.05849352208 | BN35: =IF(consumption_mix_calcs!BM20<>"",consumption_mix_calcs!BM20,"") -> 0.00146228941 | BO35: =IF(consumption_mix_calcs!BN20<>"",consumption_mix_calcs!BN20,"") -> 0.001017512477 | BP35: =IF(consumption_mix_calcs!BO20<>"",consumption_mix_calcs!BO20,"") -> 0.005811243255 | BQ35: =IF(consumption_mix_calcs!BP20<>"",consumption_mix_calcs!BP20,"") -> 0.03695506964 | BR35: =IF(consumption_mix_calcs!BQ20<>"",consumption_mix_calcs!BQ20,"") -> 0.002327445978 | BS35: =IF(consumption_mix_calcs!BR20<>"",consumption_mix_calcs!BR20,"") -> 0.002725775539 | BT35: =IF(consumption_mix_calcs!BS20<>"",consumption_mix_calcs!BS20,"") -> 0.007163377542 | BU35: =IF(consumption_mix_calcs!BT20<>"",consumption_mix_calcs!BT20,"") -> 0.009131901883 | BV35: =IF(consumption_mix_calcs!BU20<>"",consumption_mix_calcs!BU20,"") -> 0.001028226326 | BW35: =IF(consumption_mix_calcs!BV20<>"",consumption_mix_calcs!BV20,"") ->  | BX35: =IF(consumption_mix_calcs!BW20<>"",consumption_mix_calcs!BW20,"") -> 
C36: Total | D36: =INDEX($D$54:$BX$54,1,D20) -> Midcontinent Independent System Operator, Inc. (MISO) | E36: =INDEX($D$54:$BX$54,1,E20) -> PJM Interconnection, LLC (PJM) | F36: Electric Reliability Council of Texas, Inc. (ERCOT) | G36: Southwest Power Pool (SPP) | H36: Southern Company Services, Inc. - Trans (Southeast) | I36: Tennessee Valley Authority (Southeast) | J36: California Independent System Operator (CAISO) | K36: Florida Power & Light Co. (Southeast) | L36: PacifiCorp East (Northwest) | M36: New York Independent System Operator (NYISO) | N36: ISO-NE (ISO-NE)
B37: =INDEX(B$55:B$61,MATCH($B$9,$B$55:$B$61,0),1) -> Global Warming Potential | C37: =C28 -> 586 | D37: =D28 -> 116 | E37: 108 | F37: 53 | G37: 41 | H37: 37 | I37: 20 | J37: 17 | K37: 13 | L37: 13 | M37: 13 | N37: 13
B54: Impact Category | C54: Total | D54: =IF(consumption_mix_calcs!C22<>"",consumption_mix_calcs!C22&" ("&IFERROR(INDEX(ba_ferc_mapping!$B$2:$B$71,MATCH(consumption_mix_calcs!C22,ba_ferc_mapping!$A$2:$A$71,0),1)&")","Canada)"),"") -> Alcoa Power Generating, Inc. - Yadkin Division (Southeast) | E54: =IF(consumption_mix_calcs!D22<>"",consumption_mix_calcs!D22&" ("&IFERROR(INDEX(ba_ferc_mapping!$B$2:$B$71,MATCH(consumption_mix_calcs!D22,ba_ferc_mapping!$A$2:$A$71,0),1)&")","Canada)"),"") -> Arizona Public Service Company (Southwest) | F54: =IF(consumption_mix_calcs!E22<>"",consumption_mix_calcs!E22&" ("&IFERROR(INDEX(ba_ferc_mapping!$B$2:$B$71,MATCH(consumption_mix_calcs!E22,ba_ferc_mapping!$A$2:$A$71,0),1)&")","Canada)"),"") -> Arlington Valley, LLC - AVBA (Southwest) | G54: =IF(consumption_mix_calcs!F22<>"",consumption_mix_calcs!F22&" ("&IFERROR(INDEX(ba_ferc_mapping!$B$2:$B$71,MATCH(consumption_mix_calcs!F22,ba_ferc_mapping!$A$2:$A$71,0),1)&")","Canada)"),"") -> Associated Electric Cooperative, Inc. (MISO) | H54: =IF(consumption_mix_calcs!G22<>"",consumption_mix_calcs!G22&" ("&IFERROR(INDEX(ba_ferc_mapping!$B$2:$B$71,MATCH(consumption_mix_calcs!G22,ba_ferc_mapping!$A$2:$A$71,0),1)&")","Canada)"),"") -> Avista Corporation (Northwest) | I54: =IF(consumption_mix_calcs!H22<>"",consumption_mix_calcs!H22&" ("&IFERROR(INDEX(ba_ferc_mapping!$B$2:$B$71,MATCH(consumption_mix_calcs!H22,ba_ferc_mapping!$A$2:$A$71,0),1)&")","Canada)"),"") -> B.C. Hydro & Power Authority (Canada) | J54: =IF(consumption_mix_calcs!I22<>"",consumption_mix_calcs!I22&" ("&IFERROR(INDEX(ba_ferc_mapping!$B$2:$B$71,MATCH(consumption_mix_calcs!I22,ba_ferc_mapping!$A$2:$A$71,0),1)&")","Canada)"),"") -> Balancing Authority of Northern California (CAISO) | K54: =IF(consumption_mix_calcs!J22<>"",consumption_mix_calcs!J22&" ("&IFERROR(INDEX(ba_ferc_mapping!$B$2:$B$71,MATCH(consumption_mix_calcs!J22,ba_ferc_mapping!$A$2:$A$71,0),1)&")","Canada)"),"") -> Bonneville Power Administration (Northwest) | L54: =IF(consumption_mix_calcs!K22<>"",consumption_mix_calcs!K22&" ("&IFERROR(INDEX(ba_ferc_mapping!$B$2:$B$71,MATCH(consumption_mix_calcs!K22,ba_ferc_mapping!$A$2:$A$71,0),1)&")","Canada)"),"") -> California Independent System Operator (CAISO) | M54: =IF(consumption_mix_calcs!L22<>"",consumption_mix_calcs!L22&" ("&IFERROR(INDEX(ba_ferc_mapping!$B$2:$B$71,MATCH(consumption_mix_calcs!L22,ba_ferc_mapping!$A$2:$A$71,0),1)&")","Canada)"),"") -> City of Tacoma, Department of Public Utilities, Light Division (Northwest) | N54: =IF(consumption_mix_calcs!M22<>"",consumption_mix_calcs!M22&" ("&IFERROR(INDEX(ba_ferc_mapping!$B$2:$B$71,MATCH(consumption_mix_calcs!M22,ba_ferc_mapping!$A$2:$A$71,0),1)&")","Canada)"),"") -> Duke Energy Carolinas (Southeast) | O54: =IF(consumption_mix_calcs!N22<>"",consumption_mix_calcs!N22&" ("&IFERROR(INDEX(ba_ferc_mapping!$B$2:$B$71,MATCH(consumption_mix_calcs!N22,ba_ferc_mapping!$A$2:$A$71,0),1)&")","Canada)"),"") -> Duke Energy Florida, Inc. (Southeast) | P54: =IF(consumption_mix_calcs!O22<>"",consumption_mix_calcs!O22&" ("&IFERROR(INDEX(ba_ferc_mapping!$B$2:$B$71,MATCH(consumption_mix_calcs!O22,ba_ferc_mapping!$A$2:$A$71,0),1)&")","Canada)"),"") -> Duke Energy Progress East (Southeast) | Q54: =IF(consumption_mix_calcs!P22<>"",consumption_mix_calcs!P22&" ("&IFERROR(INDEX(ba_ferc_mapping!$B$2:$B$71,MATCH(consumption_mix_calcs!P22,ba_ferc_mapping!$A$2:$A$71,0),1)&")","Canada)"),"") -> Duke Energy Progress West (Southeast) | R54: =IF(consumption_mix_calcs!Q22<>"",consumption_mix_calcs!Q22&" ("&IFERROR(INDEX(ba_ferc_mapping!$B$2:$B$71,MATCH(consumption_mix_calcs!Q22,ba_ferc_mapping!$A$2:$A$71,0),1)&")","Canada)"),"") -> El Paso Electric Company (Southwest) | S54: =IF(consumption_mix_calcs!R22<>"",consumption_mix_calcs!R22&" ("&IFERROR(INDEX(ba_ferc_mapping!$B$2:$B$71,MATCH(consumption_mix_calcs!R22,ba_ferc_mapping!$A$2:$A$71,0),1)&")","Canada)"),"") -> Electric Energy, Inc. (MISO) | T54: =IF(consumption_mix_calcs!S22<>"",consumption_mix_calcs!S22&" ("&IFERROR(INDEX(ba_ferc_mapping!$B$2:$B$71,MATCH(consumption_mix_calcs!S22,ba_ferc_mapping!$A$2:$A$71,0),1)&")","Canada)"),"") -> Electric Reliability Council of Texas, Inc. (ERCOT) | U54: =IF(consumption_mix_calcs!T22<>"",consumption_mix_calcs!T22&" ("&IFERROR(INDEX(ba_ferc_mapping!$B$2:$B$71,MATCH(consumption_mix_calcs!T22,ba_ferc_mapping!$A$2:$A$71,0),1)&")","Canada)"),"") -> Florida Municipal Power Pool (Southeast) | V54: =IF(consumption_mix_calcs!U22<>"",consumption_mix_calcs!U22&" ("&IFERROR(INDEX(ba_ferc_mapping!$B$2:$B$71,MATCH(consumption_mix_calcs!U22,ba_ferc_mapping!$A$2:$A$71,0),1)&")","Canada)"),"") -> Florida Power & Light Co. (Southeast) | W54: =IF(consumption_mix_calcs!V22<>"",consumption_mix_calcs!V22&" ("&IFERROR(INDEX(ba_ferc_mapping!$B$2:$B$71,MATCH(consumption_mix_calcs!V22,ba_ferc_mapping!$A$2:$A$71,0),1)&")","Canada)"),"") -> Gainesville Regional Utilities (Southeast) | X54: =IF(consumption_mix_calcs!W22<>"",consumption_mix_calcs!W22&" ("&IFERROR(INDEX(ba_ferc_mapping!$B$2:$B$71,MATCH(consumption_mix_calcs!W22,ba_ferc_mapping!$A$2:$A$71,0),1)&")","Canada)"),"") -> Gila River Power, LLC (Southwest) | Y54: =IF(consumption_mix_calcs!X22<>"",consumption_mix_calcs!X22&" ("&IFERROR(INDEX(ba_ferc_mapping!$B$2:$B$71,MATCH(consumption_mix_calcs!X22,ba_ferc_mapping!$A$2:$A$71,0),1)&")","Canada)"),"") -> Gridforce South (Southwest) | Z54: =IF(consumption_mix_calcs!Y22<>"",consumption_mix_calcs!Y22&" ("&IFERROR(INDEX(ba_ferc_mapping!$B$2:$B$71,MATCH(consumption_mix_calcs!Y22,ba_ferc_mapping!$A$2:$A$71,0),1)&")","Canada)"),"") -> Griffith Energy, LLC (Southwest) | AA54: =IF(consumption_mix_calcs!Z22<>"",consumption_mix_calcs!Z22&" ("&IFERROR(INDEX(ba_ferc_mapping!$B$2:$B$71,MATCH(consumption_mix_calcs!Z22,ba_ferc_mapping!$A$2:$A$71,0),1)&")","Canada)"),"") -> Homestead, City of (Southeast) | AB54: =IF(consumption_mix_calcs!AA22<>"",consumption_mix_calcs!AA22&" ("&IFERROR(INDEX(ba_ferc_mapping!$B$2:$B$71,MATCH(consumption_mix_calcs!AA22,ba_ferc_mapping!$A$2:$A$71,0),1)&")","Canada)"),"") -> Hydro-Quebec TransEnergie (Canada) | AC54: =IF(consumption_mix_calcs!AB22<>"",consumption_mix_calcs!AB22&" ("&IFERROR(INDEX(ba_ferc_mapping!$B$2:$B$71,MATCH(consumption_mix_calcs!AB22,ba_ferc_mapping!$A$2:$A$71,0),1)&")","Canada)"),"") -> ISO-NE (ISO-NE) | AD54: =IF(consumption_mix_calcs!AC22<>"",consumption_mix_calcs!AC22&" ("&IFERROR(INDEX(ba_ferc_mapping!$B$2:$B$71,MATCH(consumption_mix_calcs!AC22,ba_ferc_mapping!$A$2:$A$71,0),1)&")","Canada)"),"") -> Idaho Power Company (Northwest) | AE54: =IF(consumption_mix_calcs!AD22<>"",consumption_mix_calcs!AD22&" ("&IFERROR(INDEX(ba_ferc_mapping!$B$2:$B$71,MATCH(consumption_mix_calcs!AD22,ba_ferc_mapping!$A$2:$A$71,0),1)&")","Canada)"),"") -> Imperial Irrigation District (CAISO) | AF54: =IF(consumption_mix_calcs!AE22<>"",consumption_mix_calcs!AE22&" ("&IFERROR(INDEX(ba_ferc_mapping!$B$2:$B$71,MATCH(consumption_mix_calcs!AE22,ba_ferc_mapping!$A$2:$A$71,0),1)&")","Canada)"),"") -> JEA (Southeast) | AG54: =IF(consumption_mix_calcs!AF22<>"",consumption_mix_calcs!AF22&" ("&IFERROR(INDEX(ba_ferc_mapping!$B$2:$B$71,MATCH(consumption_mix_calcs!AF22,ba_ferc_mapping!$A$2:$A$71,0),1)&")","Canada)"),"") -> LG&E and KU Services Company as agent for Louisville Gas and Electric Company and Kentucky Utilities Company (MISO) | AH54: =IF(consumption_mix_calcs!AG22<>"",consumption_mix_calcs!AG22&" ("&IFERROR(INDEX(ba_ferc_mapping!$B$2:$B$71,MATCH(consumption_mix_calcs!AG22,ba_ferc_mapping!$A$2:$A$71,0),1)&")","Canada)"),"") -> Los Angeles Department of Water and Power (CAISO) | AI54: =IF(consumption_mix_calcs!AH22<>"",consumption_mix_calcs!AH22&" ("&IFERROR(INDEX(ba_ferc_mapping!$B$2:$B$71,MATCH(consumption_mix_calcs!AH22,ba_ferc_mapping!$A$2:$A$71,0),1)&")","Canada)"),"") -> Manitoba Hydro (Canada) | AJ54: =IF(consumption_mix_calcs!AI22<>"",consumption_mix_calcs!AI22&" ("&IFERROR(INDEX(ba_ferc_mapping!$B$2:$B$71,MATCH(consumption_mix_calcs!AI22,ba_ferc_mapping!$A$2:$A$71,0),1)&")","Canada)"),"") -> Midcontinent Independent System Operator, Inc. (MISO) | AK54: =IF(consumption_mix_calcs!AJ22<>"",consumption_mix_calcs!AJ22&" ("&IFERROR(INDEX(ba_ferc_mapping!$B$2:$B$71,MATCH(consumption_mix_calcs!AJ22,ba_ferc_mapping!$A$2:$A$71,0),1)&")","Canada)"),"") -> NaturEner Power Watch, LLC (GWA) (Northwest) | AL54: =IF(consumption_mix_calcs!AK22<>"",consumption_mix_calcs!AK22&" ("&IFERROR(INDEX(ba_ferc_mapping!$B$2:$B$71,MATCH(consumption_mix_calcs!AK22,ba_ferc_mapping!$A$2:$A$71,0),1)&")","Canada)"),"") -> NaturEner Wind Watch, LLC (Northwest) | AM54: =IF(consumption_mix_calcs!AL22<>"",consumption_mix_calcs!AL22&" ("&IFERROR(INDEX(ba_ferc_mapping!$B$2:$B$71,MATCH(consumption_mix_calcs!AL22,ba_ferc_mapping!$A$2:$A$71,0),1)&")","Canada)"),"") -> Nevada Power Company (Northwest) | AN54: =IF(consumption_mix_calcs!AM22<>"",consumption_mix_calcs!AM22&" ("&IFERROR(INDEX(ba_ferc_mapping!$B$2:$B$71,MATCH(consumption_mix_calcs!AM22,ba_ferc_mapping!$A$2:$A$71,0),1)&")","Canada)"),"") -> New Brunswick System Operator (Canada) | AO54: =IF(consumption_mix_calcs!AN22<>"",consumption_mix_calcs!AN22&" ("&IFERROR(INDEX(ba_ferc_mapping!$B$2:$B$71,MATCH(consumption_mix_calcs!AN22,ba_ferc_mapping!$A$2:$A$71,0),1)&")","Canada)"),"") -> New Harquahala Generating Company, LLC - HGBA (Southwest) | AP54: =IF(consumption_mix_calcs!AO22<>"",consumption_mix_calcs!AO22&" ("&IFERROR(INDEX(ba_ferc_mapping!$B$2:$B$71,MATCH(consumption_mix_calcs!AO22,ba_ferc_mapping!$A$2:$A$71,0),1)&")","Canada)"),"") -> New Smyrna Beach, Utilities Commission of (Southeast) | AQ54: =IF(consumption_mix_calcs!AP22<>"",consumption_mix_calcs!AP22&" ("&IFERROR(INDEX(ba_ferc_mapping!$B$2:$B$71,MATCH(consumption_mix_calcs!AP22,ba_ferc_mapping!$A$2:$A$71,0),1)&")","Canada)"),"") -> New York Independent System Operator (NYISO) | AR54: =IF(consumption_mix_calcs!AQ22<>"",consumption_mix_calcs!AQ22&" ("&IFERROR(INDEX(ba_ferc_mapping!$B$2:$B$71,MATCH(consumption_mix_calcs!AQ22,ba_ferc_mapping!$A$2:$A$71,0),1)&")","Canada)"),"") -> NorthWestern Corporation (Northwest) | AS54: =IF(consumption_mix_calcs!AR22<>"",consumption_mix_calcs!AR22&" ("&IFERROR(INDEX(ba_ferc_mapping!$B$2:$B$71,MATCH(consumption_mix_calcs!AR22,ba_ferc_mapping!$A$2:$A$71,0),1)&")","Canada)"),"") -> Ohio Valley Electric Corporation (PJM) | AT54: =IF(consumption_mix_calcs!AS22<>"",consumption_mix_calcs!AS22&" ("&IFERROR(INDEX(ba_ferc_mapping!$B$2:$B$71,MATCH(consumption_mix_calcs!AS22,ba_ferc_mapping!$A$2:$A$71,0),1)&")","Canada)"),"") -> Ontario IESO (Canada) | AU54: =IF(consumption_mix_calcs!AT22<>"",consumption_mix_calcs!AT22&" ("&IFERROR(INDEX(ba_ferc_mapping!$B$2:$B$71,MATCH(consumption_mix_calcs!AT22,ba_ferc_mapping!$A$2:$A$71,0),1)&")","Canada)"),"") -> PJM Interconnection, LLC (PJM) | AV54: =IF(consumption_mix_calcs!AU22<>"",consumption_mix_calcs!AU22&" ("&IFERROR(INDEX(ba_ferc_mapping!$B$2:$B$71,MATCH(consumption_mix_calcs!AU22,ba_ferc_mapping!$A$2:$A$71,0),1)&")","Canada)"),"") -> PUD No. 1 of Douglas County (Northwest) | AW54: =IF(consumption_mix_calcs!AV22<>"",consumption_mix_calcs!AV22&" ("&IFERROR(INDEX(ba_ferc_mapping!$B$2:$B$71,MATCH(consumption_mix_calcs!AV22,ba_ferc_mapping!$A$2:$A$71,0),1)&")","Canada)"),"") -> PacifiCorp East (Northwest) | AX54: =IF(consumption_mix_calcs!AW22<>"",consumption_mix_calcs!AW22&" ("&IFERROR(INDEX(ba_ferc_mapping!$B$2:$B$71,MATCH(consumption_mix_calcs!AW22,ba_ferc_mapping!$A$2:$A$71,0),1)&")","Canada)"),"") -> PacifiCorp West (Northwest) | AY54: =IF(consumption_mix_calcs!AX22<>"",consumption_mix_calcs!AX22&" ("&IFERROR(INDEX(ba_ferc_mapping!$B$2:$B$71,MATCH(consumption_mix_calcs!AX22,ba_ferc_mapping!$A$2:$A$71,0),1)&")","Canada)"),"") -> Portland General Electric Company (Northwest) | AZ54: =IF(consumption_mix_calcs!AY22<>"",consumption_mix_calcs!AY22&" ("&IFERROR(INDEX(ba_ferc_mapping!$B$2:$B$71,MATCH(consumption_mix_calcs!AY22,ba_ferc_mapping!$A$2:$A$71,0),1)&")","Canada)"),"") -> PowerSouth Energy Cooperative (Southeast) | BA54: =IF(consumption_mix_calcs!AZ22<>"",consumption_mix_calcs!AZ22&" ("&IFERROR(INDEX(ba_ferc_mapping!$B$2:$B$71,MATCH(consumption_mix_calcs!AZ22,ba_ferc_mapping!$A$2:$A$71,0),1)&")","Canada)"),"") -> Public Service Company of Colorado (Northwest) | BB54: =IF(consumption_mix_calcs!BA22<>"",consumption_mix_calcs!BA22&" ("&IFERROR(INDEX(ba_ferc_mapping!$B$2:$B$71,MATCH(consumption_mix_calcs!BA22,ba_ferc_mapping!$A$2:$A$71,0),1)&")","Canada)"),"") -> Public Service Company of New Mexico (Southwest) | BC54: =IF(consumption_mix_calcs!BB22<>"",consumption_mix_calcs!BB22&" ("&IFERROR(INDEX(ba_ferc_mapping!$B$2:$B$71,MATCH(consumption_mix_calcs!BB22,ba_ferc_mapping!$A$2:$A$71,0),1)&")","Canada)"),"") -> Public Utility District No. 1 of Chelan County (Northwest) | BD54: =IF(consumption_mix_calcs!BC22<>"",consumption_mix_calcs!BC22&" ("&IFERROR(INDEX(ba_ferc_mapping!$B$2:$B$71,MATCH(consumption_mix_calcs!BC22,ba_ferc_mapping!$A$2:$A$71,0),1)&")","Canada)"),"") -> Public Utility District No. 2 of Grant County, Washington (Northwest) | BE54: =IF(consumption_mix_calcs!BD22<>"",consumption_mix_calcs!BD22&" ("&IFERROR(INDEX(ba_ferc_mapping!$B$2:$B$71,MATCH(consumption_mix_calcs!BD22,ba_ferc_mapping!$A$2:$A$71,0),1)&")","Canada)"),"") -> Puget Sound Energy, Inc. (Northwest) | BF54: =IF(consumption_mix_calcs!BE22<>"",consumption_mix_calcs!BE22&" ("&IFERROR(INDEX(ba_ferc_mapping!$B$2:$B$71,MATCH(consumption_mix_calcs!BE22,ba_ferc_mapping!$A$2:$A$71,0),1)&")","Canada)"),"") -> Salt River Project Agricultural Improvement and Power District (Southwest) | BG54: =IF(consumption_mix_calcs!BF22<>"",consumption_mix_calcs!BF22&" ("&IFERROR(INDEX(ba_ferc_mapping!$B$2:$B$71,MATCH(consumption_mix_calcs!BF22,ba_ferc_mapping!$A$2:$A$71,0),1)&")","Canada)"),"") -> Seattle City Light (Northwest) | BH54: =IF(consumption_mix_calcs!BG22<>"",consumption_mix_calcs!BG22&" ("&IFERROR(INDEX(ba_ferc_mapping!$B$2:$B$71,MATCH(consumption_mix_calcs!BG22,ba_ferc_mapping!$A$2:$A$71,0),1)&")","Canada)"),"") -> Seminole Electric Cooperative (Southeast) | BI54: =IF(consumption_mix_calcs!BH22<>"",consumption_mix_calcs!BH22&" ("&IFERROR(INDEX(ba_ferc_mapping!$B$2:$B$71,MATCH(consumption_mix_calcs!BH22,ba_ferc_mapping!$A$2:$A$71,0),1)&")","Canada)"),"") -> South Carolina Electric & Gas Company (Southeast) | BJ54: =IF(consumption_mix_calcs!BI22<>"",consumption_mix_calcs!BI22&" ("&IFERROR(INDEX(ba_ferc_mapping!$B$2:$B$71,MATCH(consumption_mix_calcs!BI22,ba_ferc_mapping!$A$2:$A$71,0),1)&")","Canada)"),"") -> South Carolina Public Service Authority (Southeast) | BK54: =IF(consumption_mix_calcs!BJ22<>"",consumption_mix_calcs!BJ22&" ("&IFERROR(INDEX(ba_ferc_mapping!$B$2:$B$71,MATCH(consumption_mix_calcs!BJ22,ba_ferc_mapping!$A$2:$A$71,0),1)&")","Canada)"),"") -> Southeastern Power Administration (Southeast) | BL54: =IF(consumption_mix_calcs!BK22<>"",consumption_mix_calcs!BK22&" ("&IFERROR(INDEX(ba_ferc_mapping!$B$2:$B$71,MATCH(consumption_mix_calcs!BK22,ba_ferc_mapping!$A$2:$A$71,0),1)&")","Canada)"),"") -> Southern Company Services, Inc. - Trans (Southeast) | BM54: =IF(consumption_mix_calcs!BL22<>"",consumption_mix_calcs!BL22&" ("&IFERROR(INDEX(ba_ferc_mapping!$B$2:$B$71,MATCH(consumption_mix_calcs!BL22,ba_ferc_mapping!$A$2:$A$71,0),1)&")","Canada)"),"") -> Southwest Power Pool (SPP) | BN54: =IF(consumption_mix_calcs!BM22<>"",consumption_mix_calcs!BM22&" ("&IFERROR(INDEX(ba_ferc_mapping!$B$2:$B$71,MATCH(consumption_mix_calcs!BM22,ba_ferc_mapping!$A$2:$A$71,0),1)&")","Canada)"),"") -> Southwestern Power Administration (SPP) | BO54: =IF(consumption_mix_calcs!BN22<>"",consumption_mix_calcs!BN22&" ("&IFERROR(INDEX(ba_ferc_mapping!$B$2:$B$71,MATCH(consumption_mix_calcs!BN22,ba_ferc_mapping!$A$2:$A$71,0),1)&")","Canada)"),"") -> Tallahassee, City of (Southeast) | BP54: =IF(consumption_mix_calcs!BO22<>"",consumption_mix_calcs!BO22&" ("&IFERROR(INDEX(ba_ferc_mapping!$B$2:$B$71,MATCH(consumption_mix_calcs!BO22,ba_ferc_mapping!$A$2:$A$71,0),1)&")","Canada)"),"") -> Tampa Electric Company (Southeast) | BQ54: =IF(consumption_mix_calcs!BP22<>"",consumption_mix_calcs!BP22&" ("&IFERROR(INDEX(ba_ferc_mapping!$B$2:$B$71,MATCH(consumption_mix_calcs!BP22,ba_ferc_mapping!$A$2:$A$71,0),1)&")","Canada)"),"") -> Tennessee Valley Authority (Southeast) | BR54: =IF(consumption_mix_calcs!BQ22<>"",consumption_mix_calcs!BQ22&" ("&IFERROR(INDEX(ba_ferc_mapping!$B$2:$B$71,MATCH(consumption_mix_calcs!BQ22,ba_ferc_mapping!$A$2:$A$71,0),1)&")","Canada)"),"") -> Tucson Electric Power (Southwest) | BS54: =IF(consumption_mix_calcs!BR22<>"",consumption_mix_calcs!BR22&" ("&IFERROR(INDEX(ba_ferc_mapping!$B$2:$B$71,MATCH(consumption_mix_calcs!BR22,ba_ferc_mapping!$A$2:$A$71,0),1)&")","Canada)"),"") -> Turlock Irrigation District (CAISO) | BT54: =IF(consumption_mix_calcs!BS22<>"",consumption_mix_calcs!BS22&" ("&IFERROR(INDEX(ba_ferc_mapping!$B$2:$B$71,MATCH(consumption_mix_calcs!BS22,ba_ferc_mapping!$A$2:$A$71,0),1)&")","Canada)"),"") -> Western Area Power Administration - Desert Southwest Region (Southwest) | BU54: =IF(consumption_mix_calcs!BT22<>"",consumption_mix_calcs!BT22&" ("&IFERROR(INDEX(ba_ferc_mapping!$B$2:$B$71,MATCH(consumption_mix_calcs!BT22,ba_ferc_mapping!$A$2:$A$71,0),1)&")","Canada)"),"") -> Western Area Power Administration - Rocky Mountain Region (Northwest) | BV54: =IF(consumption_mix_calcs!BU22<>"",consumption_mix_calcs!BU22&" ("&IFERROR(INDEX(ba_ferc_mapping!$B$2:$B$71,MATCH(consumption_mix_calcs!BU22,ba_ferc_mapping!$A$2:$A$71,0),1)&")","Canada)"),"") -> Western Area Power Administration - Upper Great Plains West (Northwest) | BW54: =IF(consumption_mix_calcs!BV22<>"",consumption_mix_calcs!BV22&" ("&IFERROR(INDEX(ba_ferc_mapping!$B$2:$B$71,MATCH(consumption_mix_calcs!BV22,ba_ferc_mapping!$A$2:$A$71,0),1)&")","Canada)"),"") ->  | BX54: =IF(consumption_mix_calcs!BW22<>"",consumption_mix_calcs!BW22&" ("&IFERROR(INDEX(ba_ferc_mapping!$B$2:$B$71,MATCH(consumption_mix_calcs!BW22,ba_ferc_mapping!$A$2:$A$71,0),1)&")","Canada)"),"") -> 
B55: Eutrophication Potential | C55: =SUM(D55:BX55) -> 0.0648094071 | D55: =IF(consumption_mix_calcs!C8<>"",consumption_mix_calcs!C8,"") -> 1.199337251e-25 | E55: =IF(consumption_mix_calcs!D8<>"",consumption_mix_calcs!D8,"") -> 0.0005079556069 | F55: =IF(consumption_mix_calcs!E8<>"",consumption_mix_calcs!E8,"") -> 2.810500808e-05 | G55: =IF(consumption_mix_calcs!F8<>"",consumption_mix_calcs!F8,"") -> 0.0006558474809 | H55: =IF(consumption_mix_calcs!G8<>"",consumption_mix_calcs!G8,"") -> 4.548212914e-05 | I55: =IF(consumption_mix_calcs!H8<>"",consumption_mix_calcs!H8,"") -> 8.020711826e-05 | J55: =IF(consumption_mix_calcs!I8<>"",consumption_mix_calcs!I8,"") -> 0.0001476956807 | K55: =IF(consumption_mix_calcs!J8<>"",consumption_mix_calcs!J8,"") -> 0.0007212953319 | L55: =IF(consumption_mix_calcs!K8<>"",consumption_mix_calcs!K8,"") -> 0.002674302259 | M55: =IF(consumption_mix_calcs!L8<>"",consumption_mix_calcs!L8,"") -> 8.727206764e-06 | N55: =IF(consumption_mix_calcs!M8<>"",consumption_mix_calcs!M8,"") -> 0.001024691437 | O55: =IF(consumption_mix_calcs!N8<>"",consumption_mix_calcs!N8,"") -> 0.0009210192349 | P55: =IF(consumption_mix_calcs!O8<>"",consumption_mix_calcs!O8,"") -> 0.0007836194348 | Q55: =IF(consumption_mix_calcs!P8<>"",consumption_mix_calcs!P8,"") -> 0 | R55: =IF(consumption_mix_calcs!Q8<>"",consumption_mix_calcs!Q8,"") -> 0.0001832930427 | S55: =IF(consumption_mix_calcs!R8<>"",consumption_mix_calcs!R8,"") -> 7.52410469e-05 | T55: =IF(consumption_mix_calcs!S8<>"",consumption_mix_calcs!S8,"") -> 0.007536264303 | U55: =IF(consumption_mix_calcs!T8<>"",consumption_mix_calcs!T8,"") -> 0.0003466890961 | V55: =IF(consumption_mix_calcs!U8<>"",consumption_mix_calcs!U8,"") -> 0.001921266664 | W55: =IF(consumption_mix_calcs!V8<>"",consumption_mix_calcs!V8,"") -> 4.402409812e-05 | X55: =IF(consumption_mix_calcs!W8<>"",consumption_mix_calcs!W8,"") -> 0.0001809065456 | Y55: =IF(consumption_mix_calcs!X8<>"",consumption_mix_calcs!X8,"") -> 0 | Z55: =IF(consumption_mix_calcs!Y8<>"",consumption_mix_calcs!Y8,"") -> 3.038512481e-05 | AA55: =IF(consumption_mix_calcs!Z8<>"",consumption_mix_calcs!Z8,"") -> 2.036036665e-06 | AB55: =IF(consumption_mix_calcs!AA8<>"",consumption_mix_calcs!AA8,"") -> 2.888831874e-05 | AC55: =IF(consumption_mix_calcs!AB8<>"",consumption_mix_calcs!AB8,"") -> 0.001597180324 | AD55: =IF(consumption_mix_calcs!AC8<>"",consumption_mix_calcs!AC8,"") -> 9.224566742e-05 | AE55: =IF(consumption_mix_calcs!AD8<>"",consumption_mix_calcs!AD8,"") -> 2.551184892e-05 | AF55: =IF(consumption_mix_calcs!AE8<>"",consumption_mix_calcs!AE8,"") -> 0.0006480700079 | AG55: =IF(consumption_mix_calcs!AF8<>"",consumption_mix_calcs!AF8,"") -> 0.0005314813001 | AH55: =IF(consumption_mix_calcs!AG8<>"",consumption_mix_calcs!AG8,"") -> 0.0006661433651 | AI55: =IF(consumption_mix_calcs!AH8<>"",consumption_mix_calcs!AH8,"") -> 2.863136041e-06 | AJ55: =IF(consumption_mix_calcs!AI8<>"",consumption_mix_calcs!AI8,"") -> 0.01314807438 | AK55: =IF(consumption_mix_calcs!AJ8<>"",consumption_mix_calcs!AJ8,"") -> 4.953469675e-05 | AL55: =IF(consumption_mix_calcs!AK8<>"",consumption_mix_calcs!AK8,"") -> 5.598956147e-06 | AM55: =IF(consumption_mix_calcs!AL8<>"",consumption_mix_calcs!AL8,"") -> 0.000451996358 | AN55: =IF(consumption_mix_calcs!AM8<>"",consumption_mix_calcs!AM8,"") -> 2.402061627e-05 | AO55: =IF(consumption_mix_calcs!AN8<>"",consumption_mix_calcs!AN8,"") -> 4.873873018e-05 | AP55: =IF(consumption_mix_calcs!AO8<>"",consumption_mix_calcs!AO8,"") -> 0 | AQ55: =IF(consumption_mix_calcs!AP8<>"",consumption_mix_calcs!AP8,"") -> 0.001928802704 | AR55: =IF(consumption_mix_calcs!AQ8<>"",consumption_mix_calcs!AQ8,"") -> 0.0003367221055 | AS55: =IF(consumption_mix_calcs!AR8<>"",consumption_mix_calcs!AR8,"") -> 0.0002051298587 | AT55: =IF(consumption_mix_calcs!AS8<>"",consumption_mix_calcs!AS8,"") -> 0.0001278716728 | AU55: =IF(consumption_mix_calcs!AT8<>"",consumption_mix_calcs!AT8,"") -> 0.01029488685 | AV55: =IF(consumption_mix_calcs!AU8<>"",consumption_mix_calcs!AU8,"") -> 9.809142242e-27 | AW55: =IF(consumption_mix_calcs!AV8<>"",consumption_mix_calcs!AV8,"") -> 0.001134385115 | AX55: =IF(consumption_mix_calcs!AW8<>"",consumption_mix_calcs!AW8,"") -> 0.0002416318829 | AY55: =IF(consumption_mix_calcs!AX8<>"",consumption_mix_calcs!AX8,"") -> 0.0001768061102 | AZ55: =IF(consumption_mix_calcs!AY8<>"",consumption_mix_calcs!AY8,"") -> 0.0002490388975 | BA55: =IF(consumption_mix_calcs!AZ8<>"",consumption_mix_calcs!AZ8,"") -> 0.0006362073235 | BB55: =IF(consumption_mix_calcs!BA8<>"",consumption_mix_calcs!BA8,"") -> 0.0004326186994 | BC55: =IF(consumption_mix_calcs!BB8<>"",consumption_mix_calcs!BB8,"") -> 3.462889256e-26 | BD55: =IF(consumption_mix_calcs!BC8<>"",consumption_mix_calcs!BC8,"") -> 5.53142011e-26 | BE55: =IF(consumption_mix_calcs!BD8<>"",consumption_mix_calcs!BD8,"") -> 0.000324105512 | BF55: =IF(consumption_mix_calcs!BE8<>"",consumption_mix_calcs!BE8,"") -> 0.0008673598944 | BG55: =IF(consumption_mix_calcs!BF8<>"",consumption_mix_calcs!BF8,"") -> 5.179504068e-06 | BH55: =IF(consumption_mix_calcs!BG8<>"",consumption_mix_calcs!BG8,"") -> 0.0001460947544 | BI55: =IF(consumption_mix_calcs!BH8<>"",consumption_mix_calcs!BH8,"") -> 0.0003405180326 | BJ55: =IF(consumption_mix_calcs!BI8<>"",consumption_mix_calcs!BI8,"") -> 0.0003961149533 | BK55: =IF(consumption_mix_calcs!BJ8<>"",consumption_mix_calcs!BJ8,"") -> 1.434032608e-07 | BL55: =IF(consumption_mix_calcs!BK8<>"",consumption_mix_calcs!BK8,"") -> 0.004037948678 | BM55: =IF(consumption_mix_calcs!BL8<>"",consumption_mix_calcs!BL8,"") -> 0.004265831094 | BN55: =IF(consumption_mix_calcs!BM8<>"",consumption_mix_calcs!BM8,"") -> 3.964665311e-05 | BO55: =IF(consumption_mix_calcs!BN8<>"",consumption_mix_calcs!BN8,"") -> 7.731161301e-05 | BP55: =IF(consumption_mix_calcs!BO8<>"",consumption_mix_calcs!BO8,"") -> 0.0004718030725 | BQ55: =IF(consumption_mix_calcs!BP8<>"",consumption_mix_calcs!BP8,"") -> 0.00177523403 | BR55: =IF(consumption_mix_calcs!BQ8<>"",consumption_mix_calcs!BQ8,"") -> 0.0001716303304 | BS55: =IF(consumption_mix_calcs!BR8<>"",consumption_mix_calcs!BR8,"") -> 0.0001385170189 | BT55: =IF(consumption_mix_calcs!BS8<>"",consumption_mix_calcs!BS8,"") -> 0.0001882215535 | BU55: =IF(consumption_mix_calcs!BT8<>"",consumption_mix_calcs!BT8,"") -> 0.0005574729227 | BV55: =IF(consumption_mix_calcs!BU8<>"",consumption_mix_calcs!BU8,"") -> 2.771268152e-06 | BW55: =IF(consumption_mix_calcs!BV8<>"",consumption_mix_calcs!BV8,"") ->  | BX55: =IF(consumption_mix_calcs!BW8<>"",consumption_mix_calcs!BW8,"") -> 
B56: Acidification Potential | C56: =SUM(D56:BX56) -> 1.237163726 | D56: =IF(consumption_mix_calcs!C9<>"",consumption_mix_calcs!C9,"") -> 4.603462017e-24 | E56: =IF(consumption_mix_calcs!D9<>"",consumption_mix_calcs!D9,"") -> 0.008981498011 | F56: =IF(consumption_mix_calcs!E9<>"",consumption_mix_calcs!E9,"") -> 0.0003924212405 | G56: =IF(consumption_mix_calcs!F9<>"",consumption_mix_calcs!F9,"") -> 0.01629348598 | H56: =IF(consumption_mix_calcs!G9<>"",consumption_mix_calcs!G9,"") -> 0.000590800903 | I56: =IF(consumption_mix_calcs!H9<>"",consumption_mix_calcs!H9,"") -> 0.001315537875 | J56: =IF(consumption_mix_calcs!I9<>"",consumption_mix_calcs!I9,"") -> 0.00215792806 | K56: =IF(consumption_mix_calcs!J9<>"",consumption_mix_calcs!J9,"") -> 0.009389066579 | L56: =IF(consumption_mix_calcs!K9<>"",consumption_mix_calcs!K9,"") -> 0.03596088807 | M56: =IF(consumption_mix_calcs!L9<>"",consumption_mix_calcs!L9,"") -> 0.0007427809778 | N56: =IF(consumption_mix_calcs!M9<>"",consumption_mix_calcs!M9,"") -> 0.01487475077 | O56: =IF(consumption_mix_calcs!N9<>"",consumption_mix_calcs!N9,"") -> 0.01544982084 | P56: =IF(consumption_mix_calcs!O9<>"",consumption_mix_calcs!O9,"") -> 0.01313639794 | Q56: =IF(consumption_mix_calcs!P9<>"",consumption_mix_calcs!P9,"") -> 0 | R56: =IF(consumption_mix_calcs!Q9<>"",consumption_mix_calcs!Q9,"") -> 0.00258301108 | S56: =IF(consumption_mix_calcs!R9<>"",consumption_mix_calcs!R9,"") -> 0.002697663607 | T56: =IF(consumption_mix_calcs!S9<>"",consumption_mix_calcs!S9,"") -> 0.1445397405 | U56: =IF(consumption_mix_calcs!T9<>"",consumption_mix_calcs!T9,"") -> 0.005889906965 | V56: =IF(consumption_mix_calcs!U9<>"",consumption_mix_calcs!U9,"") -> 0.02619772449 | W56: =IF(consumption_mix_calcs!V9<>"",consumption_mix_calcs!V9,"") -> 0.0006573472047 | X56: =IF(consumption_mix_calcs!W9<>"",consumption_mix_calcs!W9,"") -> 0.00264272617 | Y56: =IF(consumption_mix_calcs!X9<>"",consumption_mix_calcs!X9,"") -> 0 | Z56: =IF(consumption_mix_calcs!Y9<>"",consumption_mix_calcs!Y9,"") -> 0.0004340802978 | AA56: =IF(consumption_mix_calcs!Z9<>"",consumption_mix_calcs!Z9,"") -> 2.90869836e-05 | AB56: =IF(consumption_mix_calcs!AA9<>"",consumption_mix_calcs!AA9,"") -> 0.0002959688308 | AC56: =IF(consumption_mix_calcs!AB9<>"",consumption_mix_calcs!AB9,"") -> 0.02082836797 | AD56: =IF(consumption_mix_calcs!AC9<>"",consumption_mix_calcs!AC9,"") -> 0.0009388328633 | AE56: =IF(consumption_mix_calcs!AD9<>"",consumption_mix_calcs!AD9,"") -> 0.0004541016972 | AF56: =IF(consumption_mix_calcs!AE9<>"",consumption_mix_calcs!AE9,"") -> 0.01442980898 | AG56: =IF(consumption_mix_calcs!AF9<>"",consumption_mix_calcs!AF9,"") -> 0.01202496269 | AH56: =IF(consumption_mix_calcs!AG9<>"",consumption_mix_calcs!AG9,"") -> 0.01033881653 | AI56: =IF(consumption_mix_calcs!AH9<>"",consumption_mix_calcs!AH9,"") -> 1.045892802e-05 | AJ56: =IF(consumption_mix_calcs!AI9<>"",consumption_mix_calcs!AI9,"") -> 0.2928793066 | AK56: =IF(consumption_mix_calcs!AJ9<>"",consumption_mix_calcs!AJ9,"") -> 7.679410429e-05 | AL56: =IF(consumption_mix_calcs!AK9<>"",consumption_mix_calcs!AK9,"") -> 8.492721997e-06 | AM56: =IF(consumption_mix_calcs!AL9<>"",consumption_mix_calcs!AL9,"") -> 0.006927052977 | AN56: =IF(consumption_mix_calcs!AM9<>"",consumption_mix_calcs!AM9,"") -> 0.000472261026 | AO56: =IF(consumption_mix_calcs!AN9<>"",consumption_mix_calcs!AN9,"") -> 0.0006729481458 | AP56: =IF(consumption_mix_calcs!AO9<>"",consumption_mix_calcs!AO9,"") -> 0 | AQ56: =IF(consumption_mix_calcs!AP9<>"",consumption_mix_calcs!AP9,"") -> 0.026968598 | AR56: =IF(consumption_mix_calcs!AQ9<>"",consumption_mix_calcs!AQ9,"") -> 0.009734341668 | AS56: =IF(consumption_mix_calcs!AR9<>"",consumption_mix_calcs!AR9,"") -> 0.005198185169 | AT56: =IF(consumption_mix_calcs!AS9<>"",consumption_mix_calcs!AS9,"") -> 0.001400902429 | AU56: =IF(consumption_mix_calcs!AT9<>"",consumption_mix_calcs!AT9,"") -> 0.2132590191 | AV56: =IF(consumption_mix_calcs!AU9<>"",consumption_mix_calcs!AU9,"") -> 3.765080562e-25 | AW56: =IF(consumption_mix_calcs!AV9<>"",consumption_mix_calcs!AV9,"") -> 0.02488551669 | AX56: =IF(consumption_mix_calcs!AW9<>"",consumption_mix_calcs!AW9,"") -> 0.002847612884 | AY56: =IF(consumption_mix_calcs!AX9<>"",consumption_mix_calcs!AX9,"") -> 0.002545458559 | AZ56: =IF(consumption_mix_calcs!AY9<>"",consumption_mix_calcs!AY9,"") -> 0.003957983457 | BA56: =IF(consumption_mix_calcs!AZ9<>"",consumption_mix_calcs!AZ9,"") -> 0.009388851303 | BB56: =IF(consumption_mix_calcs!BA9<>"",consumption_mix_calcs!BA9,"") -> 0.007129980709 | BC56: =IF(consumption_mix_calcs!BB9<>"",consumption_mix_calcs!BB9,"") -> 1.32917402e-24 | BD56: =IF(consumption_mix_calcs!BC9<>"",consumption_mix_calcs!BC9,"") -> 2.123146125e-24 | BE56: =IF(consumption_mix_calcs!BD9<>"",consumption_mix_calcs!BD9,"") -> 0.003371375698 | BF56: =IF(consumption_mix_calcs!BE9<>"",consumption_mix_calcs!BE9,"") -> 0.01284191959 | BG56: =IF(consumption_mix_calcs!BF9<>"",consumption_mix_calcs!BF9,"") -> 8.203399634e-05 | BH56: =IF(consumption_mix_calcs!BG9<>"",consumption_mix_calcs!BG9,"") -> 0.003373558672 | BI56: =IF(consumption_mix_calcs!BH9<>"",consumption_mix_calcs!BH9,"") -> 0.00585573201 | BJ56: =IF(consumption_mix_calcs!BI9<>"",consumption_mix_calcs!BI9,"") -> 0.007044161221 | BK56: =IF(consumption_mix_calcs!BJ9<>"",consumption_mix_calcs!BJ9,"") -> 1.787639259e-06 | BL56: =IF(consumption_mix_calcs!BK9<>"",consumption_mix_calcs!BK9,"") -> 0.06474425154 | BM56: =IF(consumption_mix_calcs!BL9<>"",consumption_mix_calcs!BL9,"") -> 0.09477309782 | BN56: =IF(consumption_mix_calcs!BM9<>"",consumption_mix_calcs!BM9,"") -> 0.001487667835 | BO56: =IF(consumption_mix_calcs!BN9<>"",consumption_mix_calcs!BN9,"") -> 0.0009510735142 | BP56: =IF(consumption_mix_calcs!BO9<>"",consumption_mix_calcs!BO9,"") -> 0.009070047069 | BQ56: =IF(consumption_mix_calcs!BP9<>"",consumption_mix_calcs!BP9,"") -> 0.04022155327 | BR56: =IF(consumption_mix_calcs!BQ9<>"",consumption_mix_calcs!BQ9,"") -> 0.00381541523 | BS56: =IF(consumption_mix_calcs!BR9<>"",consumption_mix_calcs!BR9,"") -> 0.001902752251 | BT56: =IF(consumption_mix_calcs!BS9<>"",consumption_mix_calcs!BS9,"") -> 0.002956742983 | BU56: =IF(consumption_mix_calcs!BT9<>"",consumption_mix_calcs!BT9,"") -> 0.01203399631 | BV56: =IF(consumption_mix_calcs!BU9<>"",consumption_mix_calcs!BU9,"") -> 5.270992591e-06 | BW56: =IF(consumption_mix_calcs!BV9<>"",consumption_mix_calcs!BV9,"") ->  | BX56: =IF(consumption_mix_calcs!BW9<>"",consumption_mix_calcs!BW9,"") -> 
B57: Particulate Matter Formation Potential | C57: 0.1031848025 | D57: =IF(consumption_mix_calcs!C10<>"",consumption_mix_calcs!C10,"") -> 1.850411203e-25 | E57: =IF(consumption_mix_calcs!D10<>"",consumption_mix_calcs!D10,"") -> 0.0006020854876 | F57: =IF(consumption_mix_calcs!E10<>"",consumption_mix_calcs!E10,"") -> 1.06855449e-05 | G57: =IF(consumption_mix_calcs!F10<>"",consumption_mix_calcs!F10,"") -> 0.0009847733967 | H57: =IF(consumption_mix_calcs!G10<>"",consumption_mix_calcs!G10,"") -> 3.329755889e-05 | I57: =IF(consumption_mix_calcs!H10<>"",consumption_mix_calcs!H10,"") -> 7.753525906e-05 | J57: =IF(consumption_mix_calcs!I10<>"",consumption_mix_calcs!I10,"") -> 5.761392228e-05 | K57: =IF(consumption_mix_calcs!J10<>"",consumption_mix_calcs!J10,"") -> 0.0006302850842 | L57: =IF(consumption_mix_calcs!K10<>"",consumption_mix_calcs!K10,"") -> 0.001516592456 | M57: =IF(consumption_mix_calcs!L10<>"",consumption_mix_calcs!L10,"") -> 3.841866163e-05 | N57: =IF(consumption_mix_calcs!M10<>"",consumption_mix_calcs!M10,"") -> 0.001205174116 | O57: =IF(consumption_mix_calcs!N10<>"",consumption_mix_calcs!N10,"") -> 0.001287738549 | P57: =IF(consumption_mix_calcs!O10<>"",consumption_mix_calcs!O10,"") -> 0.001240984331 | Q57: =IF(consumption_mix_calcs!P10<>"",consumption_mix_calcs!P10,"") -> 0 | R57: =IF(consumption_mix_calcs!Q10<>"",consumption_mix_calcs!Q10,"") -> 0.0001053490891 | S57: =IF(consumption_mix_calcs!R10<>"",consumption_mix_calcs!R10,"") -> 0.0001876146427 | T57: =IF(consumption_mix_calcs!S10<>"",consumption_mix_calcs!S10,"") -> 0.01042302838 | U57: =IF(consumption_mix_calcs!T10<>"",consumption_mix_calcs!T10,"") -> 0.000733199089 | V57: =IF(consumption_mix_calcs!U10<>"",consumption_mix_calcs!U10,"") -> 0.001224982159 | W57: =IF(consumption_mix_calcs!V10<>"",consumption_mix_calcs!V10,"") -> 4.581078816e-05 | X57: =IF(consumption_mix_calcs!W10<>"",consumption_mix_calcs!W10,"") -> 8.365945339e-05 | Y57: =IF(consumption_mix_calcs!X10<>"",consumption_mix_calcs!X10,"") -> 0 | Z57: =IF(consumption_mix_calcs!Y10<>"",consumption_mix_calcs!Y10,"") -> 1.130675257e-05 | AA57: =IF(consumption_mix_calcs!Z10<>"",consumption_mix_calcs!Z10,"") -> 5.399766569e-07 | AB57: =IF(consumption_mix_calcs!AA10<>"",consumption_mix_calcs!AA10,"") -> 4.1249139e-05 | AC57: =IF(consumption_mix_calcs!AB10<>"",consumption_mix_calcs!AB10,"") -> 0.0009908222989 | AD57: =IF(consumption_mix_calcs!AC10<>"",consumption_mix_calcs!AC10,"") -> 4.688123273e-05 | AE57: =IF(consumption_mix_calcs!AD10<>"",consumption_mix_calcs!AD10,"") -> 1.39726176e-05 | AF57: =IF(consumption_mix_calcs!AE10<>"",consumption_mix_calcs!AE10,"") -> 0.001258601548 | AG57: =IF(consumption_mix_calcs!AF10<>"",consumption_mix_calcs!AF10,"") -> 0.002434949409 | AH57: =IF(consumption_mix_calcs!AG10<>"",consumption_mix_calcs!AG10,"") -> 0.0008088664676 | AI57: =IF(consumption_mix_calcs!AH10<>"",consumption_mix_calcs!AH10,"") -> 1.0068329e-05 | AJ57: =IF(consumption_mix_calcs!AI10<>"",consumption_mix_calcs!AI10,"") -> 0.02311668679 | AK57: =IF(consumption_mix_calcs!AJ10<>"",consumption_mix_calcs!AJ10,"") -> 6.76489401e-06 | AL57: =IF(consumption_mix_calcs!AK10<>"",consumption_mix_calcs!AK10,"") -> 7.555205303e-07 | AM57: =IF(consumption_mix_calcs!AL10<>"",consumption_mix_calcs!AL10,"") -> 0.0003953525052 | AN57: =IF(consumption_mix_calcs!AM10<>"",consumption_mix_calcs!AM10,"") -> 3.800143598e-05 | AO57: =IF(consumption_mix_calcs!AN10<>"",consumption_mix_calcs!AN10,"") -> 1.325134469e-05 | AP57: =IF(consumption_mix_calcs!AO10<>"",consumption_mix_calcs!AO10,"") -> 0 | AQ57: =IF(consumption_mix_calcs!AP10<>"",consumption_mix_calcs!AP10,"") -> 0.001291051136 | AR57: =IF(consumption_mix_calcs!AQ10<>"",consumption_mix_calcs!AQ10,"") -> 0.0009349668665 | AS57: =IF(consumption_mix_calcs!AR10<>"",consumption_mix_calcs!AR10,"") -> 0.0006086577293 | AT57: =IF(consumption_mix_calcs!AS10<>"",consumption_mix_calcs!AS10,"") -> 8.064175231e-05 | AU57: =IF(consumption_mix_calcs!AT10<>"",consumption_mix_calcs!AT10,"") -> 0.02163673999 | AV57: =IF(consumption_mix_calcs!AU10<>"",consumption_mix_calcs!AU10,"") -> 1.513414736e-26 | AW57: =IF(consumption_mix_calcs!AV10<>"",consumption_mix_calcs!AV10,"") -> 0.00157781505 | AX57: =IF(consumption_mix_calcs!AW10<>"",consumption_mix_calcs!AW10,"") -> 8.512274287e-05 | AY57: =IF(consumption_mix_calcs!AX10<>"",consumption_mix_calcs!AX10,"") -> 0.000250346232 | AZ57: =IF(consumption_mix_calcs!AY10<>"",consumption_mix_calcs!AY10,"") -> 0.0003409933494 | BA57: =IF(consumption_mix_calcs!AZ10<>"",consumption_mix_calcs!AZ10,"") -> 0.001400133719 | BB57: =IF(consumption_mix_calcs!BA10<>"",consumption_mix_calcs!BA10,"") -> 0.000357571692 | BC57: =IF(consumption_mix_calcs!BB10<>"",consumption_mix_calcs!BB10,"") -> 5.342758316e-26 | BD57: =IF(consumption_mix_calcs!BC10<>"",consumption_mix_calcs!BC10,"") -> 8.534214815e-26 | BE57: =IF(consumption_mix_calcs!BD10<>"",consumption_mix_calcs!BD10,"") -> 0.0001026678118 | BF57: =IF(consumption_mix_calcs!BE10<>"",consumption_mix_calcs!BE10,"") -> 0.001314900105 | BG57: =IF(consumption_mix_calcs!BF10<>"",consumption_mix_calcs!BF10,"") -> 1.230201953e-06 | BH57: =IF(consumption_mix_calcs!BG10<>"",consumption_mix_calcs!BG10,"") -> 0.0006032696467 | BI57: =IF(consumption_mix_calcs!BH10<>"",consumption_mix_calcs!BH10,"") -> 0.0004139869062 | BJ57: =IF(consumption_mix_calcs!BI10<>"",consumption_mix_calcs!BI10,"") -> 0.0009329714931 | BK57: =IF(consumption_mix_calcs!BJ10<>"",consumption_mix_calcs!BJ10,"") -> 5.470442426e-07 | BL57: =IF(consumption_mix_calcs!BK10<>"",consumption_mix_calcs!BK10,"") -> 0.005934383819 | BM57: =IF(consumption_mix_calcs!BL10<>"",consumption_mix_calcs!BL10,"") -> 0.007549133347 | BN57: =IF(consumption_mix_calcs!BM10<>"",consumption_mix_calcs!BM10,"") -> 0.0001672371927 | BO57: =IF(consumption_mix_calcs!BN10<>"",consumption_mix_calcs!BN10,"") -> 4.87340692e-05 | BP57: =IF(consumption_mix_calcs!BO10<>"",consumption_mix_calcs!BO10,"") -> 0.0007776712373 | BQ57: =IF(consumption_mix_calcs!BP10<>"",consumption_mix_calcs!BP10,"") -> 0.005639171542 | BR57: =IF(consumption_mix_calcs!BQ10<>"",consumption_mix_calcs!BQ10,"") -> 0.0004392546802 | BS57: =IF(consumption_mix_calcs!BR10<>"",consumption_mix_calcs!BR10,"") -> 0.0001203180004 | BT57: =IF(consumption_mix_calcs!BS10<>"",consumption_mix_calcs!BS10,"") -> 0.0001428280922 | BU57: =IF(consumption_mix_calcs!BT10<>"",consumption_mix_calcs!BT10,"") -> 0.0007551140584 | BV57: =IF(consumption_mix_calcs!BU10<>"",consumption_mix_calcs!BU10,"") -> 4.448081267e-07 | BW57: =IF(consumption_mix_calcs!BV10<>"",consumption_mix_calcs!BV10,"") ->  | BX57: =IF(consumption_mix_calcs!BW10<>"",consumption_mix_calcs!BW10,"") -> 
B58: Photochemical Smog Formation Potential | C58: 26.32180286 | D58: =IF(consumption_mix_calcs!C11<>"",consumption_mix_calcs!C11,"") -> 6.706602812e-08 | E58: =IF(consumption_mix_calcs!D11<>"",consumption_mix_calcs!D11,"") -> 0.2445116469 | F58: =IF(consumption_mix_calcs!E11<>"",consumption_mix_calcs!E11,"") -> 0.01381822869 | G58: =IF(consumption_mix_calcs!F11<>"",consumption_mix_calcs!F11,"") -> 0.2916189153 | H58: =IF(consumption_mix_calcs!G11<>"",consumption_mix_calcs!G11,"") -> 0.01949101212 | I58: =IF(consumption_mix_calcs!H11<>"",consumption_mix_calcs!H11,"") -> 0.04251189758 | J58: =IF(consumption_mix_calcs!I11<>"",consumption_mix_calcs!I11,"") -> 0.07217386254 | K58: =IF(consumption_mix_calcs!J11<>"",consumption_mix_calcs!J11,"") -> 0.2303626421 | L58: =IF(consumption_mix_calcs!K11<>"",consumption_mix_calcs!K11,"") -> 1.528687504 | M58: =IF(consumption_mix_calcs!L11<>"",consumption_mix_calcs!L11,"") -> 0.004886108019 | N58: =IF(consumption_mix_calcs!M11<>"",consumption_mix_calcs!M11,"") -> 0.3242574643 | O58: =IF(consumption_mix_calcs!N11<>"",consumption_mix_calcs!N11,"") -> 0.3868160883 | P58: =IF(consumption_mix_calcs!O11<>"",consumption_mix_calcs!O11,"") -> 0.276771028 | Q58: =IF(consumption_mix_calcs!P11<>"",consumption_mix_calcs!P11,"") -> 0 | R58: =IF(consumption_mix_calcs!Q11<>"",consumption_mix_calcs!Q11,"") -> 0.08438076888 | S58: =IF(consumption_mix_calcs!R11<>"",consumption_mix_calcs!R11,"") -> 0.02804743153 | T58: =IF(consumption_mix_calcs!S11<>"",consumption_mix_calcs!S11,"") -> 3.306331821 | U58: =IF(consumption_mix_calcs!T11<>"",consumption_mix_calcs!T11,"") -> 0.1446039766 | V58: =IF(consumption_mix_calcs!U11<>"",consumption_mix_calcs!U11,"") -> 0.8093190642 | W58: =IF(consumption_mix_calcs!V11<>"",consumption_mix_calcs!V11,"") -> 0.01895652384 | X58: =IF(consumption_mix_calcs!W11<>"",consumption_mix_calcs!W11,"") -> 0.09235149979 | Y58: =IF(consumption_mix_calcs!X11<>"",consumption_mix_calcs!X11,"") -> 0 | Z58: =IF(consumption_mix_calcs!Y11<>"",consumption_mix_calcs!Y11,"") -> 0.01529113427 | AA58: =IF(consumption_mix_calcs!Z11<>"",consumption_mix_calcs!Z11,"") -> 0.001011586063 | AB58: =IF(consumption_mix_calcs!AA11<>"",consumption_mix_calcs!AA11,"") -> 0.008859672742 | AC58: =IF(consumption_mix_calcs!AB11<>"",consumption_mix_calcs!AB11,"") -> 0.5795756564 | AD58: =IF(consumption_mix_calcs!AC11<>"",consumption_mix_calcs!AC11,"") -> 0.03117529148 | AE58: =IF(consumption_mix_calcs!AD11<>"",consumption_mix_calcs!AD11,"") -> 0.01183452237 | AF58: =IF(consumption_mix_calcs!AE11<>"",consumption_mix_calcs!AE11,"") -> 0.2909297271 | AG58: =IF(consumption_mix_calcs!AF11<>"",consumption_mix_calcs!AF11,"") -> 0.2173501901 | AH58: =IF(consumption_mix_calcs!AG11<>"",consumption_mix_calcs!AG11,"") -> 0.2947720741 | AI58: =IF(consumption_mix_calcs!AH11<>"",consumption_mix_calcs!AH11,"") -> 0.0001414220986 | AJ58: =IF(consumption_mix_calcs!AI11<>"",consumption_mix_calcs!AI11,"") -> 5.471056642 | AK58: =IF(consumption_mix_calcs!AJ11<>"",consumption_mix_calcs!AJ11,"") -> 0.0008322437088 | AL58: =IF(consumption_mix_calcs!AK11<>"",consumption_mix_calcs!AK11,"") -> 9.200393725e-05 | AM58: =IF(consumption_mix_calcs!AL11<>"",consumption_mix_calcs!AL11,"") -> 0.3080254989 | AN58: =IF(consumption_mix_calcs!AM11<>"",consumption_mix_calcs!AM11,"") -> 0.009513661391 | AO58: =IF(consumption_mix_calcs!AN11<>"",consumption_mix_calcs!AN11,"") -> 0.02366699138 | AP58: =IF(consumption_mix_calcs!AO11<>"",consumption_mix_calcs!AO11,"") -> 0 | AQ58: =IF(consumption_mix_calcs!AP11<>"",consumption_mix_calcs!AP11,"") -> 0.7207953698 | AR58: =IF(consumption_mix_calcs!AQ11<>"",consumption_mix_calcs!AQ11,"") -> 0.1549061835 | AS58: =IF(consumption_mix_calcs!AR11<>"",consumption_mix_calcs!AR11,"") -> 0.09519363647 | AT58: =IF(consumption_mix_calcs!AS11<>"",consumption_mix_calcs!AS11,"") -> 0.02880607773 | AU58: =IF(consumption_mix_calcs!AT11<>"",consumption_mix_calcs!AT11,"") -> 3.611097371 | AV58: =IF(consumption_mix_calcs!AU11<>"",consumption_mix_calcs!AU11,"") -> 4.0297136e-09 | AW58: =IF(consumption_mix_calcs!AV11<>"",consumption_mix_calcs!AV11,"") -> 0.5186796133 | AX58: =IF(consumption_mix_calcs!AW11<>"",consumption_mix_calcs!AW11,"") -> 0.09172211762 | AY58: =IF(consumption_mix_calcs!AX11<>"",consumption_mix_calcs!AX11,"") -> 0.08858599993 | AZ58: =IF(consumption_mix_calcs!AY11<>"",consumption_mix_calcs!AY11,"") -> 0.1118586483 | BA58: =IF(consumption_mix_calcs!AZ11<>"",consumption_mix_calcs!AZ11,"") -> 0.2178816359 | BB58: =IF(consumption_mix_calcs!BA11<>"",consumption_mix_calcs!BA11,"") -> 0.2003706579 | BC58: =IF(consumption_mix_calcs!BB11<>"",consumption_mix_calcs!BB11,"") -> 5.271874282e-08 | BD58: =IF(consumption_mix_calcs!BC11<>"",consumption_mix_calcs!BC11,"") -> 5.04722382e-08 | BE58: =IF(consumption_mix_calcs!BD11<>"",consumption_mix_calcs!BD11,"") -> 0.1113074198 | BF58: =IF(consumption_mix_calcs!BE11<>"",consumption_mix_calcs!BE11,"") -> 0.3355881431 | BG58: =IF(consumption_mix_calcs!BF11<>"",consumption_mix_calcs!BF11,"") -> 0.002908360765 | BH58: =IF(consumption_mix_calcs!BG11<>"",consumption_mix_calcs!BG11,"") -> 0.05555035261 | BI58: =IF(consumption_mix_calcs!BH11<>"",consumption_mix_calcs!BH11,"") -> 0.1223304941 | BJ58: =IF(consumption_mix_calcs!BI11<>"",consumption_mix_calcs!BI11,"") -> 0.1389707769 | BK58: =IF(consumption_mix_calcs!BJ11<>"",consumption_mix_calcs!BJ11,"") -> 2.990311624e-05 | BL58: =IF(consumption_mix_calcs!BK11<>"",consumption_mix_calcs!BK11,"") -> 1.618054623 | BM58: =IF(consumption_mix_calcs!BL11<>"",consumption_mix_calcs!BL11,"") -> 1.563554817 | BN58: =IF(consumption_mix_calcs!BM11<>"",consumption_mix_calcs!BM11,"") -> 0.01194466757 | BO58: =IF(consumption_mix_calcs!BN11<>"",consumption_mix_calcs!BN11,"") -> 0.03186417278 | BP58: =IF(consumption_mix_calcs!BO11<>"",consumption_mix_calcs!BO11,"") -> 0.1989423199 | BQ58: =IF(consumption_mix_calcs!BP11<>"",consumption_mix_calcs!BP11,"") -> 0.653220878 | BR58: =IF(consumption_mix_calcs!BQ11<>"",consumption_mix_calcs!BQ11,"") -> 0.06976181 | BS58: =IF(consumption_mix_calcs!BR11<>"",consumption_mix_calcs!BR11,"") -> 0.06208158254 | BT58: =IF(consumption_mix_calcs!BS11<>"",consumption_mix_calcs!BS11,"") -> 0.07950906336 | BU58: =IF(consumption_mix_calcs!BT11<>"",consumption_mix_calcs!BT11,"") -> 0.242202788 | BV58: =IF(consumption_mix_calcs!BU11<>"",consumption_mix_calcs!BU11,"") -> 5.740558063e-05 | BW58: =IF(consumption_mix_calcs!BV11<>"",consumption_mix_calcs!BV11,"") ->  | BX58: =IF(consumption_mix_calcs!BW11<>"",consumption_mix_calcs!BW11,"") -> 
B59: Global Warming Potential | C59: 586.4598456 | D59: =IF(consumption_mix_calcs!C12<>"",consumption_mix_calcs!C12,"") -> 0.0023347519 | E59: =IF(consumption_mix_calcs!D12<>"",consumption_mix_calcs!D12,"") -> 4.073190696 | F59: =IF(consumption_mix_calcs!E12<>"",consumption_mix_calcs!E12,"") -> 0.2712934294 | G59: =IF(consumption_mix_calcs!F12<>"",consumption_mix_calcs!F12,"") -> 4.54408433 | H59: =IF(consumption_mix_calcs!G12<>"",consumption_mix_calcs!G12,"") -> 0.4917783678 | I59: =IF(consumption_mix_calcs!H12<>"",consumption_mix_calcs!H12,"") -> 0.4111536608 | J59: =IF(consumption_mix_calcs!I12<>"",consumption_mix_calcs!I12,"") -> 1.341916022 | K59: =IF(consumption_mix_calcs!J12<>"",consumption_mix_calcs!J12,"") -> 4.264478647 | L59: =IF(consumption_mix_calcs!K12<>"",consumption_mix_calcs!K12,"") -> 17.31627892 | M59: =IF(consumption_mix_calcs!L12<>"",consumption_mix_calcs!L12,"") -> 0.3382255854 | N59: =IF(consumption_mix_calcs!M12<>"",consumption_mix_calcs!M12,"") -> 9.042659868 | O59: =IF(consumption_mix_calcs!N12<>"",consumption_mix_calcs!N12,"") -> 8.550738763 | P59: =IF(consumption_mix_calcs!O12<>"",consumption_mix_calcs!O12,"") -> 6.774815668 | Q59: =IF(consumption_mix_calcs!P12<>"",consumption_mix_calcs!P12,"") -> 0 | R59: =IF(consumption_mix_calcs!Q12<>"",consumption_mix_calcs!Q12,"") -> 1.243612807 | S59: =IF(consumption_mix_calcs!R12<>"",consumption_mix_calcs!R12,"") -> 0.8229014342 | T59: =IF(consumption_mix_calcs!S12<>"",consumption_mix_calcs!S12,"") -> 52.54023403 | U59: =IF(consumption_mix_calcs!T12<>"",consumption_mix_calcs!T12,"") -> 4.093620588 | V59: =IF(consumption_mix_calcs!U12<>"",consumption_mix_calcs!U12,"") -> 13.29047276 | W59: =IF(consumption_mix_calcs!V12<>"",consumption_mix_calcs!V12,"") -> 0.4321802008 | X59: =IF(consumption_mix_calcs!W12<>"",consumption_mix_calcs!W12,"") -> 0.980120555 | Y59: =IF(consumption_mix_calcs!X12<>"",consumption_mix_calcs!X12,"") -> 0 | Z59: =IF(consumption_mix_calcs!Y12<>"",consumption_mix_calcs!Y12,"") -> 0.2984008289 | AA59: =IF(consumption_mix_calcs!Z12<>"",consumption_mix_calcs!Z12,"") -> 0.002293231249 | AB59: =IF(consumption_mix_calcs!AA12<>"",consumption_mix_calcs!AA12,"") -> 0.1491356682 | AC59: =IF(consumption_mix_calcs!AB12<>"",consumption_mix_calcs!AB12,"") -> 12.53100502 | AD59: =IF(consumption_mix_calcs!AC12<>"",consumption_mix_calcs!AC12,"") -> 0.3902894035 | AE59: =IF(consumption_mix_calcs!AD12<>"",consumption_mix_calcs!AD12,"") -> 0.4215562583 | AF59: =IF(consumption_mix_calcs!AE12<>"",consumption_mix_calcs!AE12,"") -> 7.11968767 | AG59: =IF(consumption_mix_calcs!AF12<>"",consumption_mix_calcs!AF12,"") -> 8.64684174 | AH59: =IF(consumption_mix_calcs!AG12<>"",consumption_mix_calcs!AG12,"") -> 6.906572422 | AI59: =IF(consumption_mix_calcs!AH12<>"",consumption_mix_calcs!AH12,"") -> 0.02970563277 | AJ59: =IF(consumption_mix_calcs!AI12<>"",consumption_mix_calcs!AI12,"") -> 116.1383533 | AK59: =IF(consumption_mix_calcs!AJ12<>"",consumption_mix_calcs!AJ12,"") -> 0.02774663144 | AL59: =IF(consumption_mix_calcs!AK12<>"",consumption_mix_calcs!AK12,"") -> 0.003071636529 | AM59: =IF(consumption_mix_calcs!AL12<>"",consumption_mix_calcs!AL12,"") -> 3.991756428 | AN59: =IF(consumption_mix_calcs!AM12<>"",consumption_mix_calcs!AM12,"") -> 0.178685964 | AO59: =IF(consumption_mix_calcs!AN12<>"",consumption_mix_calcs!AN12,"") -> 0.4577876429 | AP59: =IF(consumption_mix_calcs!AO12<>"",consumption_mix_calcs!AO12,"") -> 0 | AQ59: =IF(consumption_mix_calcs!AP12<>"",consumption_mix_calcs!AP12,"") -> 12.63333022 | AR59: =IF(consumption_mix_calcs!AQ12<>"",consumption_mix_calcs!AQ12,"") -> 5.250673732 | AS59: =IF(consumption_mix_calcs!AR12<>"",consumption_mix_calcs!AR12,"") -> 2.835896309 | AT59: =IF(consumption_mix_calcs!AS12<>"",consumption_mix_calcs!AS12,"") -> 0.3715437873 | AU59: =IF(consumption_mix_calcs!AT12<>"",consumption_mix_calcs!AT12,"") -> 107.7338505 | AV59: =IF(consumption_mix_calcs!AU12<>"",consumption_mix_calcs!AU12,"") -> 0.0006675118861 | AW59: =IF(consumption_mix_calcs!AV12<>"",consumption_mix_calcs!AV12,"") -> 13.23355974 | AX59: =IF(consumption_mix_calcs!AW12<>"",consumption_mix_calcs!AW12,"") -> 1.922708473 | AY59: =IF(consumption_mix_calcs!AX12<>"",consumption_mix_calcs!AX12,"") -> 1.158826309 | AZ59: =IF(consumption_mix_calcs!AY12<>"",consumption_mix_calcs!AY12,"") -> 2.094438861 | BA59: =IF(consumption_mix_calcs!AZ12<>"",consumption_mix_calcs!AZ12,"") -> 5.864697706 | BB59: =IF(consumption_mix_calcs!BA12<>"",consumption_mix_calcs!BA12,"") -> 5.442582102 | BC59: =IF(consumption_mix_calcs!BB12<>"",consumption_mix_calcs!BB12,"") -> 0.004669061092 | BD59: =IF(consumption_mix_calcs!BC12<>"",consumption_mix_calcs!BC12,"") -> 0.008235434745 | BE59: =IF(consumption_mix_calcs!BD12<>"",consumption_mix_calcs!BD12,"") -> 1.708451065 | BF59: =IF(consumption_mix_calcs!BE12<>"",consumption_mix_calcs!BE12,"") -> 8.021360738 | BG59: =IF(consumption_mix_calcs!BF12<>"",consumption_mix_calcs!BF12,"") -> 0.007063822911 | BH59: =IF(consumption_mix_calcs!BG12<>"",consumption_mix_calcs!BG12,"") -> 2.373320387 | BI59: =IF(consumption_mix_calcs!BH12<>"",consumption_mix_calcs!BH12,"") -> 3.696183411 | BJ59: =IF(consumption_mix_calcs!BI12<>"",consumption_mix_calcs!BI12,"") -> 6.094884987 | BK59: =IF(consumption_mix_calcs!BJ12<>"",consumption_mix_calcs!BJ12,"") -> 0.0006265797824 | BL59: =IF(consumption_mix_calcs!BK12<>"",consumption_mix_calcs!BK12,"") -> 36.67695187 | BM59: =IF(consumption_mix_calcs!BL12<>"",consumption_mix_calcs!BL12,"") -> 41.40831655 | BN59: =IF(consumption_mix_calcs!BM12<>"",consumption_mix_calcs!BM12,"") -> 0.4421209791 | BO59: =IF(consumption_mix_calcs!BN12<>"",consumption_mix_calcs!BN12,"") -> 0.6076155751 | BP59: =IF(consumption_mix_calcs!BO12<>"",consumption_mix_calcs!BO12,"") -> 4.556853859 | BQ59: =IF(consumption_mix_calcs!BP12<>"",consumption_mix_calcs!BP12,"") -> 19.51822234 | BR59: =IF(consumption_mix_calcs!BQ12<>"",consumption_mix_calcs!BQ12,"") -> 2.345319485 | BS59: =IF(consumption_mix_calcs!BR12<>"",consumption_mix_calcs!BR12,"") -> 1.491488029 | BT59: =IF(consumption_mix_calcs!BS12<>"",consumption_mix_calcs!BS12,"") -> 1.581161927 | BU59: =IF(consumption_mix_calcs!BT12<>"",consumption_mix_calcs!BT12,"") -> 9.231004271 | BV59: =IF(consumption_mix_calcs!BU12<>"",consumption_mix_calcs!BU12,"") -> 0.02423935456 | BW59: =IF(consumption_mix_calcs!BV12<>"",consumption_mix_calcs!BV12,"") ->  | BX59: =IF(consumption_mix_calcs!BW12<>"",consumption_mix_calcs!BW12,"") -> 
B60: Ozone Depletion Potential | C60: 8.565200642e-06 | D60: =IF(consumption_mix_calcs!C13<>"",consumption_mix_calcs!C13,"") -> 0 | E60: =IF(consumption_mix_calcs!D13<>"",consumption_mix_calcs!D13,"") -> 5.898677211e-08 | F60: =IF(consumption_mix_calcs!E13<>"",consumption_mix_calcs!E13,"") -> 3.134468456e-10 | G60: =IF(consumption_mix_calcs!F13<>"",consumption_mix_calcs!F13,"") -> 9.322599007e-08 | H60: =IF(consumption_mix_calcs!G13<>"",consumption_mix_calcs!G13,"") -> 2.359131945e-08 | I60: =IF(consumption_mix_calcs!H13<>"",consumption_mix_calcs!H13,"") -> 1.941696847e-08 | J60: =IF(consumption_mix_calcs!I13<>"",consumption_mix_calcs!I13,"") -> 1.2151997e-09 | K60: =IF(consumption_mix_calcs!J13<>"",consumption_mix_calcs!J13,"") -> 8.186066515e-08 | L60: =IF(consumption_mix_calcs!K13<>"",consumption_mix_calcs!K13,"") -> 6.011387968e-08 | M60: =IF(consumption_mix_calcs!L13<>"",consumption_mix_calcs!L13,"") -> 7.947616235e-24 | N60: =IF(consumption_mix_calcs!M13<>"",consumption_mix_calcs!M13,"") -> 1.186408512e-07 | O60: =IF(consumption_mix_calcs!N13<>"",consumption_mix_calcs!N13,"") -> 7.157371918e-08 | P60: =IF(consumption_mix_calcs!O13<>"",consumption_mix_calcs!O13,"") -> 1.213201938e-07 | Q60: =IF(consumption_mix_calcs!P13<>"",consumption_mix_calcs!P13,"") -> 0 | R60: =IF(consumption_mix_calcs!Q13<>"",consumption_mix_calcs!Q13,"") -> 1.648169176e-09 | S60: =IF(consumption_mix_calcs!R13<>"",consumption_mix_calcs!R13,"") -> 2.217809193e-08 | T60: =IF(consumption_mix_calcs!S13<>"",consumption_mix_calcs!S13,"") -> 6.0584033e-07 | U60: =IF(consumption_mix_calcs!T13<>"",consumption_mix_calcs!T13,"") -> 4.526867871e-08 | V60: =IF(consumption_mix_calcs!U13<>"",consumption_mix_calcs!U13,"") -> 1.665624589e-08 | W60: =IF(consumption_mix_calcs!V13<>"",consumption_mix_calcs!V13,"") -> 4.302627352e-09 | X60: =IF(consumption_mix_calcs!W13<>"",consumption_mix_calcs!W13,"") -> 1.288712007e-09 | Y60: =IF(consumption_mix_calcs!X13<>"",consumption_mix_calcs!X13,"") -> 0 | Z60: =IF(consumption_mix_calcs!Y13<>"",consumption_mix_calcs!Y13,"") -> 2.87185999e-10 | AA60: =IF(consumption_mix_calcs!Z13<>"",consumption_mix_calcs!Z13,"") -> 1.876780446e-11 | AB60: =IF(consumption_mix_calcs!AA13<>"",consumption_mix_calcs!AA13,"") -> 4.051776526e-09 | AC60: =IF(consumption_mix_calcs!AB13<>"",consumption_mix_calcs!AB13,"") -> 2.084226312e-07 | AD60: =IF(consumption_mix_calcs!AC13<>"",consumption_mix_calcs!AC13,"") -> 5.048467777e-10 | AE60: =IF(consumption_mix_calcs!AD13<>"",consumption_mix_calcs!AD13,"") -> 2.929350939e-10 | AF60: =IF(consumption_mix_calcs!AE13<>"",consumption_mix_calcs!AE13,"") -> 9.455372174e-08 | AG60: =IF(consumption_mix_calcs!AF13<>"",consumption_mix_calcs!AF13,"") -> 1.030712743e-07 | AH60: =IF(consumption_mix_calcs!AG13<>"",consumption_mix_calcs!AG13,"") -> 9.22053386e-08 | AI60: =IF(consumption_mix_calcs!AH13<>"",consumption_mix_calcs!AH13,"") -> 4.781643071e-12 | AJ60: =IF(consumption_mix_calcs!AI13<>"",consumption_mix_calcs!AI13,"") -> 2.440828252e-06 | AK60: =IF(consumption_mix_calcs!AJ13<>"",consumption_mix_calcs!AJ13,"") -> 1.420229812e-11 | AL60: =IF(consumption_mix_calcs!AK13<>"",consumption_mix_calcs!AK13,"") -> 1.530917937e-12 | AM60: =IF(consumption_mix_calcs!AL13<>"",consumption_mix_calcs!AL13,"") -> 1.499950722e-08 | AN60: =IF(consumption_mix_calcs!AM13<>"",consumption_mix_calcs!AM13,"") -> 3.347804494e-09 | AO60: =IF(consumption_mix_calcs!AN13<>"",consumption_mix_calcs!AN13,"") -> 5.827504387e-10 | AP60: =IF(consumption_mix_calcs!AO13<>"",consumption_mix_calcs!AO13,"") -> 0 | AQ60: =IF(consumption_mix_calcs!AP13<>"",consumption_mix_calcs!AP13,"") -> 3.568514543e-08 | AR60: =IF(consumption_mix_calcs!AQ13<>"",consumption_mix_calcs!AQ13,"") -> 1.208660792e-07 | AS60: =IF(consumption_mix_calcs!AR13<>"",consumption_mix_calcs!AR13,"") -> 5.641566322e-08 | AT60: =IF(consumption_mix_calcs!AS13<>"",consumption_mix_calcs!AS13,"") -> 4.031448169e-09 | AU60: =IF(consumption_mix_calcs!AT13<>"",consumption_mix_calcs!AT13,"") -> 1.361330744e-06 | AV60: =IF(consumption_mix_calcs!AU13<>"",consumption_mix_calcs!AU13,"") -> 0 | AW60: =IF(consumption_mix_calcs!AV13<>"",consumption_mix_calcs!AV13,"") -> 2.81088543e-07 | AX60: =IF(consumption_mix_calcs!AW13<>"",consumption_mix_calcs!AW13,"") -> 1.117720932e-08 | AY60: =IF(consumption_mix_calcs!AX13<>"",consumption_mix_calcs!AX13,"") -> 1.557422863e-09 | AZ60: =IF(consumption_mix_calcs!AY13<>"",consumption_mix_calcs!AY13,"") -> 1.968632192e-08 | BA60: =IF(consumption_mix_calcs!AZ13<>"",consumption_mix_calcs!AZ13,"") -> 9.109075985e-08 | BB60: =IF(consumption_mix_calcs!BA13<>"",consumption_mix_calcs!BA13,"") -> 1.082640659e-07 | BC60: =IF(consumption_mix_calcs!BB13<>"",consumption_mix_calcs!BB13,"") -> 0 | BD60: =IF(consumption_mix_calcs!BC13<>"",consumption_mix_calcs!BC13,"") -> 0 | BE60: =IF(consumption_mix_calcs!BD13<>"",consumption_mix_calcs!BD13,"") -> 1.949958897e-09 | BF60: =IF(consumption_mix_calcs!BE13<>"",consumption_mix_calcs!BE13,"") -> 1.168354437e-07 | BG60: =IF(consumption_mix_calcs!BF13<>"",consumption_mix_calcs!BF13,"") -> 0 | BH60: =IF(consumption_mix_calcs!BG13<>"",consumption_mix_calcs!BG13,"") -> 3.554765485e-08 | BI60: =IF(consumption_mix_calcs!BH13<>"",consumption_mix_calcs!BH13,"") -> 4.179655964e-08 | BJ60: =IF(consumption_mix_calcs!BI13<>"",consumption_mix_calcs!BI13,"") -> 1.17572338e-07 | BK60: =IF(consumption_mix_calcs!BJ13<>"",consumption_mix_calcs!BJ13,"") -> 1.270146621e-11 | BL60: =IF(consumption_mix_calcs!BK13<>"",consumption_mix_calcs!BK13,"") -> 3.974254162e-07 | BM60: =IF(consumption_mix_calcs!BL13<>"",consumption_mix_calcs!BL13,"") -> 8.787297523e-07 | BN60: =IF(consumption_mix_calcs!BM13<>"",consumption_mix_calcs!BM13,"") -> 9.74331694e-09 | BO60: =IF(consumption_mix_calcs!BN13<>"",consumption_mix_calcs!BN13,"") -> 7.470466505e-10 | BP60: =IF(consumption_mix_calcs!BO13<>"",consumption_mix_calcs!BO13,"") -> 3.810924209e-08 | BQ60: =IF(consumption_mix_calcs!BP13<>"",consumption_mix_calcs!BP13,"") -> 2.903863823e-07 | BR60: =IF(consumption_mix_calcs!BQ13<>"",consumption_mix_calcs!BQ13,"") -> 5.748425827e-08 | BS60: =IF(consumption_mix_calcs!BR13<>"",consumption_mix_calcs!BR13,"") -> 1.764876479e-09 | BT60: =IF(consumption_mix_calcs!BS13<>"",consumption_mix_calcs!BS13,"") -> 2.922061016e-08 | BU60: =IF(consumption_mix_calcs!BT13<>"",consumption_mix_calcs!BT13,"") -> 1.460513589e-07 | BV60: =IF(consumption_mix_calcs!BU13<>"",consumption_mix_calcs!BU13,"") -> 1.154387292e-12 | BW60: =IF(consumption_mix_calcs!BV13<>"",consumption_mix_calcs!BV13,"") ->  | BX60: =IF(consumption_mix_calcs!BW13<>"",consumption_mix_calcs!BW13,"") -> 
B61: Water Consumption | C61: 2333.812762 | D61: =IF(consumption_mix_calcs!C14<>"",consumption_mix_calcs!C14,"") -> 0 | E61: =IF(consumption_mix_calcs!D14<>"",consumption_mix_calcs!D14,"") -> 9.510234726 | F61: =IF(consumption_mix_calcs!E14<>"",consumption_mix_calcs!E14,"") -> 0.4995997674 | G61: =IF(consumption_mix_calcs!F14<>"",consumption_mix_calcs!F14,"") -> 56.47192835 | H61: =IF(consumption_mix_calcs!G14<>"",consumption_mix_calcs!G14,"") -> 0.1081279915 | I61: =IF(consumption_mix_calcs!H14<>"",consumption_mix_calcs!H14,"") -> 0.08652985429 | J61: =IF(consumption_mix_calcs!I14<>"",consumption_mix_calcs!I14,"") -> 0.4102729363 | K61: =IF(consumption_mix_calcs!J14<>"",consumption_mix_calcs!J14,"") -> 39.80720784 | L61: =IF(consumption_mix_calcs!K14<>"",consumption_mix_calcs!K14,"") -> 6.772176392 | M61: =IF(consumption_mix_calcs!L14<>"",consumption_mix_calcs!L14,"") -> 4.055084054e-05 | N61: =IF(consumption_mix_calcs!M14<>"",consumption_mix_calcs!M14,"") -> 14.83509901 | O61: =IF(consumption_mix_calcs!N14<>"",consumption_mix_calcs!N14,"") -> 34.50789326 | P61: =IF(consumption_mix_calcs!O14<>"",consumption_mix_calcs!O14,"") -> 17.43648622 | Q61: =IF(consumption_mix_calcs!P14<>"",consumption_mix_calcs!P14,"") -> 0 | R61: =IF(consumption_mix_calcs!Q14<>"",consumption_mix_calcs!Q14,"") -> 4.114109708 | S61: =IF(consumption_mix_calcs!R14<>"",consumption_mix_calcs!R14,"") -> 11.15390082 | T61: =IF(consumption_mix_calcs!S14<>"",consumption_mix_calcs!S14,"") -> 263.8835474 | U61: =IF(consumption_mix_calcs!T14<>"",consumption_mix_calcs!T14,"") -> -1.85370311 | V61: =IF(consumption_mix_calcs!U14<>"",consumption_mix_calcs!U14,"") -> -367.8919494 | W61: =IF(consumption_mix_calcs!V14<>"",consumption_mix_calcs!V14,"") -> 0.1620854527 | X61: =IF(consumption_mix_calcs!W14<>"",consumption_mix_calcs!W14,"") -> 0.4074632526 | Y61: =IF(consumption_mix_calcs!X14<>"",consumption_mix_calcs!X14,"") -> 0 | Z61: =IF(consumption_mix_calcs!Y14<>"",consumption_mix_calcs!Y14,"") -> 0.528780989 | AA61: =IF(consumption_mix_calcs!Z14<>"",consumption_mix_calcs!Z14,"") -> 0.005957536359 | AB61: =IF(consumption_mix_calcs!AA14<>"",consumption_mix_calcs!AA14,"") -> 0.005478568599 | AC61: =IF(consumption_mix_calcs!AB14<>"",consumption_mix_calcs!AB14,"") -> 6.002460377 | AD61: =IF(consumption_mix_calcs!AC14<>"",consumption_mix_calcs!AC14,"") -> 0.5284570805 | AE61: =IF(consumption_mix_calcs!AD14<>"",consumption_mix_calcs!AD14,"") -> 0.4807502824 | AF61: =IF(consumption_mix_calcs!AE14<>"",consumption_mix_calcs!AE14,"") -> 3.188051639 | AG61: =IF(consumption_mix_calcs!AF14<>"",consumption_mix_calcs!AF14,"") -> 24.06399737 | AH61: =IF(consumption_mix_calcs!AG14<>"",consumption_mix_calcs!AG14,"") -> 12.90497882 | AI61: =IF(consumption_mix_calcs!AH14<>"",consumption_mix_calcs!AH14,"") -> 0.001314225257 | AJ61: =IF(consumption_mix_calcs!AI14<>"",consumption_mix_calcs!AI14,"") -> 905.7804886 | AK61: =IF(consumption_mix_calcs!AJ14<>"",consumption_mix_calcs!AJ14,"") -> -2.395851942e-05 | AL61: =IF(consumption_mix_calcs!AK14<>"",consumption_mix_calcs!AK14,"") -> -2.619793965e-06 | AM61: =IF(consumption_mix_calcs!AL14<>"",consumption_mix_calcs!AL14,"") -> 5.837626588 | AN61: =IF(consumption_mix_calcs!AM14<>"",consumption_mix_calcs!AM14,"") -> 1.593935686 | AO61: =IF(consumption_mix_calcs!AN14<>"",consumption_mix_calcs!AN14,"") -> 0.821370877 | AP61: =IF(consumption_mix_calcs!AO14<>"",consumption_mix_calcs!AO14,"") -> 0 | AQ61: =IF(consumption_mix_calcs!AP14<>"",consumption_mix_calcs!AP14,"") -> 14.87914936 | AR61: =IF(consumption_mix_calcs!AQ14<>"",consumption_mix_calcs!AQ14,"") -> 113.455114 | AS61: =IF(consumption_mix_calcs!AR14<>"",consumption_mix_calcs!AR14,"") -> 2.702857462 | AT61: =IF(consumption_mix_calcs!AS14<>"",consumption_mix_calcs!AS14,"") -> 18.80591327 | AU61: =IF(consumption_mix_calcs!AT14<>"",consumption_mix_calcs!AT14,"") -> 250.6654492 | AV61: =IF(consumption_mix_calcs!AU14<>"",consumption_mix_calcs!AU14,"") -> 0 | AW61: =IF(consumption_mix_calcs!AV14<>"",consumption_mix_calcs!AV14,"") -> 63.24383243 | AX61: =IF(consumption_mix_calcs!AW14<>"",consumption_mix_calcs!AW14,"") -> 0.4782955481 | AY61: =IF(consumption_mix_calcs!AX14<>"",consumption_mix_calcs!AX14,"") -> 1.981201135 | AZ61: =IF(consumption_mix_calcs!AY14<>"",consumption_mix_calcs!AY14,"") -> 2.941882912 | BA61: =IF(consumption_mix_calcs!AZ14<>"",consumption_mix_calcs!AZ14,"") -> -92.49033865 | BB61: =IF(consumption_mix_calcs!BA14<>"",consumption_mix_calcs!BA14,"") -> 11.26635853 | BC61: =IF(consumption_mix_calcs!BB14<>"",consumption_mix_calcs!BB14,"") -> 0 | BD61: =IF(consumption_mix_calcs!BC14<>"",consumption_mix_calcs!BC14,"") -> 0 | BE61: =IF(consumption_mix_calcs!BD14<>"",consumption_mix_calcs!BD14,"") -> 0.6183454399 | BF61: =IF(consumption_mix_calcs!BE14<>"",consumption_mix_calcs!BE14,"") -> 34.52911429 | BG61: =IF(consumption_mix_calcs!BF14<>"",consumption_mix_calcs!BF14,"") -> 0 | BH61: =IF(consumption_mix_calcs!BG14<>"",consumption_mix_calcs!BG14,"") -> 3.875305517 | BI61: =IF(consumption_mix_calcs!BH14<>"",consumption_mix_calcs!BH14,"") -> 2.558492105 | BJ61: =IF(consumption_mix_calcs!BI14<>"",consumption_mix_calcs!BI14,"") -> 13.09177212 | BK61: =IF(consumption_mix_calcs!BJ14<>"",consumption_mix_calcs!BJ14,"") -> -2.007757694e-06 | BL61: =IF(consumption_mix_calcs!BK14<>"",consumption_mix_calcs!BK14,"") -> 182.1196059 | BM61: =IF(consumption_mix_calcs!BL14<>"",consumption_mix_calcs!BL14,"") -> 461.65653 | BN61: =IF(consumption_mix_calcs!BM14<>"",consumption_mix_calcs!BM14,"") -> 6.391423525 | BO61: =IF(consumption_mix_calcs!BN14<>"",consumption_mix_calcs!BN14,"") -> 0.7440233054 | BP61: =IF(consumption_mix_calcs!BO14<>"",consumption_mix_calcs!BO14,"") -> 2.143141686 | BQ61: =IF(consumption_mix_calcs!BP14<>"",consumption_mix_calcs!BP14,"") -> 63.37871519 | BR61: =IF(consumption_mix_calcs!BQ14<>"",consumption_mix_calcs!BQ14,"") -> 16.47249336 | BS61: =IF(consumption_mix_calcs!BR14<>"",consumption_mix_calcs!BR14,"") -> 0.5951612674 | BT61: =IF(consumption_mix_calcs!BS14<>"",consumption_mix_calcs!BS14,"") -> 2.707161735 | BU61: =IF(consumption_mix_calcs!BT14<>"",consumption_mix_calcs!BT14,"") -> 102.837092 | BV61: =IF(consumption_mix_calcs!BU14<>"",consumption_mix_calcs!BU14,"") -> -1.773490789e-06 | BW61: =IF(consumption_mix_calcs!BV14<>"",consumption_mix_calcs!BV14,"") ->  | BX61: =IF(consumption_mix_calcs!BW14<>"",consumption_mix_calcs!BW14,"") -> 
A62: Category | B62: Emission | C62: Total | D62: =IF(consumption_mix_calcs!C22<>"",consumption_mix_calcs!C22&" ("&IFERROR(INDEX(ba_ferc_mapping!$B$2:$B$71,MATCH(consumption_mix_calcs!C22,ba_ferc_mapping!$A$2:$A$71,0),1)&")","Canada)"),"") -> Alcoa Power Generating, Inc. - Yadkin Division (Southeast) | E62: =IF(consumption_mix_calcs!D22<>"",consumption_mix_calcs!D22&" ("&IFERROR(INDEX(ba_ferc_mapping!$B$2:$B$71,MATCH(consumption_mix_calcs!D22,ba_ferc_mapping!$A$2:$A$71,0),1)&")","Canada)"),"") -> Arizona Public Service Company (Southwest) | F62: =IF(consumption_mix_calcs!E22<>"",consumption_mix_calcs!E22&" ("&IFERROR(INDEX(ba_ferc_mapping!$B$2:$B$71,MATCH(consumption_mix_calcs!E22,ba_ferc_mapping!$A$2:$A$71,0),1)&")","Canada)"),"") -> Arlington Valley, LLC - AVBA (Southwest) | G62: =IF(consumption_mix_calcs!F22<>"",consumption_mix_calcs!F22&" ("&IFERROR(INDEX(ba_ferc_mapping!$B$2:$B$71,MATCH(consumption_mix_calcs!F22,ba_ferc_mapping!$A$2:$A$71,0),1)&")","Canada)"),"") -> Associated Electric Cooperative, Inc. (MISO) | H62: =IF(consumption_mix_calcs!G22<>"",consumption_mix_calcs!G22&" ("&IFERROR(INDEX(ba_ferc_mapping!$B$2:$B$71,MATCH(consumption_mix_calcs!G22,ba_ferc_mapping!$A$2:$A$71,0),1)&")","Canada)"),"") -> Avista Corporation (Northwest) | I62: =IF(consumption_mix_calcs!H22<>"",consumption_mix_calcs!H22&" ("&IFERROR(INDEX(ba_ferc_mapping!$B$2:$B$71,MATCH(consumption_mix_calcs!H22,ba_ferc_mapping!$A$2:$A$71,0),1)&")","Canada)"),"") -> B.C. Hydro & Power Authority (Canada) | J62: =IF(consumption_mix_calcs!I22<>"",consumption_mix_calcs!I22&" ("&IFERROR(INDEX(ba_ferc_mapping!$B$2:$B$71,MATCH(consumption_mix_calcs!I22,ba_ferc_mapping!$A$2:$A$71,0),1)&")","Canada)"),"") -> Balancing Authority of Northern California (CAISO) | K62: =IF(consumption_mix_calcs!J22<>"",consumption_mix_calcs!J22&" ("&IFERROR(INDEX(ba_ferc_mapping!$B$2:$B$71,MATCH(consumption_mix_calcs!J22,ba_ferc_mapping!$A$2:$A$71,0),1)&")","Canada)"),"") -> Bonneville Power Administration (Northwest) | L62: =IF(consumption_mix_calcs!K22<>"",consumption_mix_calcs!K22&" ("&IFERROR(INDEX(ba_ferc_mapping!$B$2:$B$71,MATCH(consumption_mix_calcs!K22,ba_ferc_mapping!$A$2:$A$71,0),1)&")","Canada)"),"") -> California Independent System Operator (CAISO) | M62: =IF(consumption_mix_calcs!L22<>"",consumption_mix_calcs!L22&" ("&IFERROR(INDEX(ba_ferc_mapping!$B$2:$B$71,MATCH(consumption_mix_calcs!L22,ba_ferc_mapping!$A$2:$A$71,0),1)&")","Canada)"),"") -> City of Tacoma, Department of Public Utilities, Light Division (Northwest) | N62: =IF(consumption_mix_calcs!M22<>"",consumption_mix_calcs!M22&" ("&IFERROR(INDEX(ba_ferc_mapping!$B$2:$B$71,MATCH(consumption_mix_calcs!M22,ba_ferc_mapping!$A$2:$A$71,0),1)&")","Canada)"),"") -> Duke Energy Carolinas (Southeast) | O62: =IF(consumption_mix_calcs!N22<>"",consumption_mix_calcs!N22&" ("&IFERROR(INDEX(ba_ferc_mapping!$B$2:$B$71,MATCH(consumption_mix_calcs!N22,ba_ferc_mapping!$A$2:$A$71,0),1)&")","Canada)"),"") -> Duke Energy Florida, Inc. (Southeast) | P62: =IF(consumption_mix_calcs!O22<>"",consumption_mix_calcs!O22&" ("&IFERROR(INDEX(ba_ferc_mapping!$B$2:$B$71,MATCH(consumption_mix_calcs!O22,ba_ferc_mapping!$A$2:$A$71,0),1)&")","Canada)"),"") -> Duke Energy Progress East (Southeast) | Q62: =IF(consumption_mix_calcs!P22<>"",consumption_mix_calcs!P22&" ("&IFERROR(INDEX(ba_ferc_mapping!$B$2:$B$71,MATCH(consumption_mix_calcs!P22,ba_ferc_mapping!$A$2:$A$71,0),1)&")","Canada)"),"") -> Duke Energy Progress West (Southeast) | R62: =IF(consumption_mix_calcs!Q22<>"",consumption_mix_calcs!Q22&" ("&IFERROR(INDEX(ba_ferc_mapping!$B$2:$B$71,MATCH(consumption_mix_calcs!Q22,ba_ferc_mapping!$A$2:$A$71,0),1)&")","Canada)"),"") -> El Paso Electric Company (Southwest) | S62: =IF(consumption_mix_calcs!R22<>"",consumption_mix_calcs!R22&" ("&IFERROR(INDEX(ba_ferc_mapping!$B$2:$B$71,MATCH(consumption_mix_calcs!R22,ba_ferc_mapping!$A$2:$A$71,0),1)&")","Canada)"),"") -> Electric Energy, Inc. (MISO) | T62: =IF(consumption_mix_calcs!S22<>"",consumption_mix_calcs!S22&" ("&IFERROR(INDEX(ba_ferc_mapping!$B$2:$B$71,MATCH(consumption_mix_calcs!S22,ba_ferc_mapping!$A$2:$A$71,0),1)&")","Canada)"),"") -> Electric Reliability Council of Texas, Inc. (ERCOT) | U62: =IF(consumption_mix_calcs!T22<>"",consumption_mix_calcs!T22&" ("&IFERROR(INDEX(ba_ferc_mapping!$B$2:$B$71,MATCH(consumption_mix_calcs!T22,ba_ferc_mapping!$A$2:$A$71,0),1)&")","Canada)"),"") -> Florida Municipal Power Pool (Southeast) | V62: =IF(consumption_mix_calcs!U22<>"",consumption_mix_calcs!U22&" ("&IFERROR(INDEX(ba_ferc_mapping!$B$2:$B$71,MATCH(consumption_mix_calcs!U22,ba_ferc_mapping!$A$2:$A$71,0),1)&")","Canada)"),"") -> Florida Power & Light Co. (Southeast) | W62: =IF(consumption_mix_calcs!V22<>"",consumption_mix_calcs!V22&" ("&IFERROR(INDEX(ba_ferc_mapping!$B$2:$B$71,MATCH(consumption_mix_calcs!V22,ba_ferc_mapping!$A$2:$A$71,0),1)&")","Canada)"),"") -> Gainesville Regional Utilities (Southeast) | X62: =IF(consumption_mix_calcs!W22<>"",consumption_mix_calcs!W22&" ("&IFERROR(INDEX(ba_ferc_mapping!$B$2:$B$71,MATCH(consumption_mix_calcs!W22,ba_ferc_mapping!$A$2:$A$71,0),1)&")","Canada)"),"") -> Gila River Power, LLC (Southwest) | Y62: =IF(consumption_mix_calcs!X22<>"",consumption_mix_calcs!X22&" ("&IFERROR(INDEX(ba_ferc_mapping!$B$2:$B$71,MATCH(consumption_mix_calcs!X22,ba_ferc_mapping!$A$2:$A$71,0),1)&")","Canada)"),"") -> Gridforce South (Southwest) | Z62: =IF(consumption_mix_calcs!Y22<>"",consumption_mix_calcs!Y22&" ("&IFERROR(INDEX(ba_ferc_mapping!$B$2:$B$71,MATCH(consumption_mix_calcs!Y22,ba_ferc_mapping!$A$2:$A$71,0),1)&")","Canada)"),"") -> Griffith Energy, LLC (Southwest) | AA62: =IF(consumption_mix_calcs!Z22<>"",consumption_mix_calcs!Z22&" ("&IFERROR(INDEX(ba_ferc_mapping!$B$2:$B$71,MATCH(consumption_mix_calcs!Z22,ba_ferc_mapping!$A$2:$A$71,0),1)&")","Canada)"),"") -> Homestead, City of (Southeast) | AB62: =IF(consumption_mix_calcs!AA22<>"",consumption_mix_calcs!AA22&" ("&IFERROR(INDEX(ba_ferc_mapping!$B$2:$B$71,MATCH(consumption_mix_calcs!AA22,ba_ferc_mapping!$A$2:$A$71,0),1)&")","Canada)"),"") -> Hydro-Quebec TransEnergie (Canada) | AC62: =IF(consumption_mix_calcs!AB22<>"",consumption_mix_calcs!AB22&" ("&IFERROR(INDEX(ba_ferc_mapping!$B$2:$B$71,MATCH(consumption_mix_calcs!AB22,ba_ferc_mapping!$A$2:$A$71,0),1)&")","Canada)"),"") -> ISO-NE (ISO-NE) | AD62: =IF(consumption_mix_calcs!AC22<>"",consumption_mix_calcs!AC22&" ("&IFERROR(INDEX(ba_ferc_mapping!$B$2:$B$71,MATCH(consumption_mix_calcs!AC22,ba_ferc_mapping!$A$2:$A$71,0),1)&")","Canada)"),"") -> Idaho Power Company (Northwest) | AE62: =IF(consumption_mix_calcs!AD22<>"",consumption_mix_calcs!AD22&" ("&IFERROR(INDEX(ba_ferc_mapping!$B$2:$B$71,MATCH(consumption_mix_calcs!AD22,ba_ferc_mapping!$A$2:$A$71,0),1)&")","Canada)"),"") -> Imperial Irrigation District (CAISO) | AF62: =IF(consumption_mix_calcs!AE22<>"",consumption_mix_calcs!AE22&" ("&IFERROR(INDEX(ba_ferc_mapping!$B$2:$B$71,MATCH(consumption_mix_calcs!AE22,ba_ferc_mapping!$A$2:$A$71,0),1)&")","Canada)"),"") -> JEA (Southeast) | AG62: =IF(consumption_mix_calcs!AF22<>"",consumption_mix_calcs!AF22&" ("&IFERROR(INDEX(ba_ferc_mapping!$B$2:$B$71,MATCH(consumption_mix_calcs!AF22,ba_ferc_mapping!$A$2:$A$71,0),1)&")","Canada)"),"") -> LG&E and KU Services Company as agent for Louisville Gas and Electric Company and Kentucky Utilities Company (MISO) | AH62: =IF(consumption_mix_calcs!AG22<>"",consumption_mix_calcs!AG22&" ("&IFERROR(INDEX(ba_ferc_mapping!$B$2:$B$71,MATCH(consumption_mix_calcs!AG22,ba_ferc_mapping!$A$2:$A$71,0),1)&")","Canada)"),"") -> Los Angeles Department of Water and Power (CAISO) | AI62: =IF(consumption_mix_calcs!AH22<>"",consumption_mix_calcs!AH22&" ("&IFERROR(INDEX(ba_ferc_mapping!$B$2:$B$71,MATCH(consumption_mix_calcs!AH22,ba_ferc_mapping!$A$2:$A$71,0),1)&")","Canada)"),"") -> Manitoba Hydro (Canada) | AJ62: =IF(consumption_mix_calcs!AI22<>"",consumption_mix_calcs!AI22&" ("&IFERROR(INDEX(ba_ferc_mapping!$B$2:$B$71,MATCH(consumption_mix_calcs!AI22,ba_ferc_mapping!$A$2:$A$71,0),1)&")","Canada)"),"") -> Midcontinent Independent System Operator, Inc. (MISO) | AK62: =IF(consumption_mix_calcs!AJ22<>"",consumption_mix_calcs!AJ22&" ("&IFERROR(INDEX(ba_ferc_mapping!$B$2:$B$71,MATCH(consumption_mix_calcs!AJ22,ba_ferc_mapping!$A$2:$A$71,0),1)&")","Canada)"),"") -> NaturEner Power Watch, LLC (GWA) (Northwest) | AL62: =IF(consumption_mix_calcs!AK22<>"",consumption_mix_calcs!AK22&" ("&IFERROR(INDEX(ba_ferc_mapping!$B$2:$B$71,MATCH(consumption_mix_calcs!AK22,ba_ferc_mapping!$A$2:$A$71,0),1)&")","Canada)"),"") -> NaturEner Wind Watch, LLC (Northwest) | AM62: =IF(consumption_mix_calcs!AL22<>"",consumption_mix_calcs!AL22&" ("&IFERROR(INDEX(ba_ferc_mapping!$B$2:$B$71,MATCH(consumption_mix_calcs!AL22,ba_ferc_mapping!$A$2:$A$71,0),1)&")","Canada)"),"") -> Nevada Power Company (Northwest) | AN62: =IF(consumption_mix_calcs!AM22<>"",consumption_mix_calcs!AM22&" ("&IFERROR(INDEX(ba_ferc_mapping!$B$2:$B$71,MATCH(consumption_mix_calcs!AM22,ba_ferc_mapping!$A$2:$A$71,0),1)&")","Canada)"),"") -> New Brunswick System Operator (Canada) | AO62: =IF(consumption_mix_calcs!AN22<>"",consumption_mix_calcs!AN22&" ("&IFERROR(INDEX(ba_ferc_mapping!$B$2:$B$71,MATCH(consumption_mix_calcs!AN22,ba_ferc_mapping!$A$2:$A$71,0),1)&")","Canada)"),"") -> New Harquahala Generating Company, LLC - HGBA (Southwest) | AP62: =IF(consumption_mix_calcs!AO22<>"",consumption_mix_calcs!AO22&" ("&IFERROR(INDEX(ba_ferc_mapping!$B$2:$B$71,MATCH(consumption_mix_calcs!AO22,ba_ferc_mapping!$A$2:$A$71,0),1)&")","Canada)"),"") -> New Smyrna Beach, Utilities Commission of (Southeast) | AQ62: =IF(consumption_mix_calcs!AP22<>"",consumption_mix_calcs!AP22&" ("&IFERROR(INDEX(ba_ferc_mapping!$B$2:$B$71,MATCH(consumption_mix_calcs!AP22,ba_ferc_mapping!$A$2:$A$71,0),1)&")","Canada)"),"") -> New York Independent System Operator (NYISO) | AR62: =IF(consumption_mix_calcs!AQ22<>"",consumption_mix_calcs!AQ22&" ("&IFERROR(INDEX(ba_ferc_mapping!$B$2:$B$71,MATCH(consumption_mix_calcs!AQ22,ba_ferc_mapping!$A$2:$A$71,0),1)&")","Canada)"),"") -> NorthWestern Corporation (Northwest) | AS62: =IF(consumption_mix_calcs!AR22<>"",consumption_mix_calcs!AR22&" ("&IFERROR(INDEX(ba_ferc_mapping!$B$2:$B$71,MATCH(consumption_mix_calcs!AR22,ba_ferc_mapping!$A$2:$A$71,0),1)&")","Canada)"),"") -> Ohio Valley Electric Corporation (PJM) | AT62: =IF(consumption_mix_calcs!AS22<>"",consumption_mix_calcs!AS22&" ("&IFERROR(INDEX(ba_ferc_mapping!$B$2:$B$71,MATCH(consumption_mix_calcs!AS22,ba_ferc_mapping!$A$2:$A$71,0),1)&")","Canada)"),"") -> Ontario IESO (Canada) | AU62: =IF(consumption_mix_calcs!AT22<>"",consumption_mix_calcs!AT22&" ("&IFERROR(INDEX(ba_ferc_mapping!$B$2:$B$71,MATCH(consumption_mix_calcs!AT22,ba_ferc_mapping!$A$2:$A$71,0),1)&")","Canada)"),"") -> PJM Interconnection, LLC (PJM) | AV62: =IF(consumption_mix_calcs!AU22<>"",consumption_mix_calcs!AU22&" ("&IFERROR(INDEX(ba_ferc_mapping!$B$2:$B$71,MATCH(consumption_mix_calcs!AU22,ba_ferc_mapping!$A$2:$A$71,0),1)&")","Canada)"),"") -> PUD No. 1 of Douglas County (Northwest) | AW62: =IF(consumption_mix_calcs!AV22<>"",consumption_mix_calcs!AV22&" ("&IFERROR(INDEX(ba_ferc_mapping!$B$2:$B$71,MATCH(consumption_mix_calcs!AV22,ba_ferc_mapping!$A$2:$A$71,0),1)&")","Canada)"),"") -> PacifiCorp East (Northwest) | AX62: =IF(consumption_mix_calcs!AW22<>"",consumption_mix_calcs!AW22&" ("&IFERROR(INDEX(ba_ferc_mapping!$B$2:$B$71,MATCH(consumption_mix_calcs!AW22,ba_ferc_mapping!$A$2:$A$71,0),1)&")","Canada)"),"") -> PacifiCorp West (Northwest) | AY62: =IF(consumption_mix_calcs!AX22<>"",consumption_mix_calcs!AX22&" ("&IFERROR(INDEX(ba_ferc_mapping!$B$2:$B$71,MATCH(consumption_mix_calcs!AX22,ba_ferc_mapping!$A$2:$A$71,0),1)&")","Canada)"),"") -> Portland General Electric Company (Northwest) | AZ62: =IF(consumption_mix_calcs!AY22<>"",consumption_mix_calcs!AY22&" ("&IFERROR(INDEX(ba_ferc_mapping!$B$2:$B$71,MATCH(consumption_mix_calcs!AY22,ba_ferc_mapping!$A$2:$A$71,0),1)&")","Canada)"),"") -> PowerSouth Energy Cooperative (Southeast) | BA62: =IF(consumption_mix_calcs!AZ22<>"",consumption_mix_calcs!AZ22&" ("&IFERROR(INDEX(ba_ferc_mapping!$B$2:$B$71,MATCH(consumption_mix_calcs!AZ22,ba_ferc_mapping!$A$2:$A$71,0),1)&")","Canada)"),"") -> Public Service Company of Colorado (Northwest) | BB62: =IF(consumption_mix_calcs!BA22<>"",consumption_mix_calcs!BA22&" ("&IFERROR(INDEX(ba_ferc_mapping!$B$2:$B$71,MATCH(consumption_mix_calcs!BA22,ba_ferc_mapping!$A$2:$A$71,0),1)&")","Canada)"),"") -> Public Service Company of New Mexico (Southwest) | BC62: =IF(consumption_mix_calcs!BB22<>"",consumption_mix_calcs!BB22&" ("&IFERROR(INDEX(ba_ferc_mapping!$B$2:$B$71,MATCH(consumption_mix_calcs!BB22,ba_ferc_mapping!$A$2:$A$71,0),1)&")","Canada)"),"") -> Public Utility District No. 1 of Chelan County (Northwest) | BD62: =IF(consumption_mix_calcs!BC22<>"",consumption_mix_calcs!BC22&" ("&IFERROR(INDEX(ba_ferc_mapping!$B$2:$B$71,MATCH(consumption_mix_calcs!BC22,ba_ferc_mapping!$A$2:$A$71,0),1)&")","Canada)"),"") -> Public Utility District No. 2 of Grant County, Washington (Northwest) | BE62: =IF(consumption_mix_calcs!BD22<>"",consumption_mix_calcs!BD22&" ("&IFERROR(INDEX(ba_ferc_mapping!$B$2:$B$71,MATCH(consumption_mix_calcs!BD22,ba_ferc_mapping!$A$2:$A$71,0),1)&")","Canada)"),"") -> Puget Sound Energy, Inc. (Northwest) | BF62: =IF(consumption_mix_calcs!BE22<>"",consumption_mix_calcs!BE22&" ("&IFERROR(INDEX(ba_ferc_mapping!$B$2:$B$71,MATCH(consumption_mix_calcs!BE22,ba_ferc_mapping!$A$2:$A$71,0),1)&")","Canada)"),"") -> Salt River Project Agricultural Improvement and Power District (Southwest) | BG62: =IF(consumption_mix_calcs!BF22<>"",consumption_mix_calcs!BF22&" ("&IFERROR(INDEX(ba_ferc_mapping!$B$2:$B$71,MATCH(consumption_mix_calcs!BF22,ba_ferc_mapping!$A$2:$A$71,0),1)&")","Canada)"),"") -> Seattle City Light (Northwest) | BH62: =IF(consumption_mix_calcs!BG22<>"",consumption_mix_calcs!BG22&" ("&IFERROR(INDEX(ba_ferc_mapping!$B$2:$B$71,MATCH(consumption_mix_calcs!BG22,ba_ferc_mapping!$A$2:$A$71,0),1)&")","Canada)"),"") -> Seminole Electric Cooperative (Southeast) | BI62: =IF(consumption_mix_calcs!BH22<>"",consumption_mix_calcs!BH22&" ("&IFERROR(INDEX(ba_ferc_mapping!$B$2:$B$71,MATCH(consumption_mix_calcs!BH22,ba_ferc_mapping!$A$2:$A$71,0),1)&")","Canada)"),"") -> South Carolina Electric & Gas Company (Southeast) | BJ62: =IF(consumption_mix_calcs!BI22<>"",consumption_mix_calcs!BI22&" ("&IFERROR(INDEX(ba_ferc_mapping!$B$2:$B$71,MATCH(consumption_mix_calcs!BI22,ba_ferc_mapping!$A$2:$A$71,0),1)&")","Canada)"),"") -> South Carolina Public Service Authority (Southeast) | BK62: =IF(consumption_mix_calcs!BJ22<>"",consumption_mix_calcs!BJ22&" ("&IFERROR(INDEX(ba_ferc_mapping!$B$2:$B$71,MATCH(consumption_mix_calcs!BJ22,ba_ferc_mapping!$A$2:$A$71,0),1)&")","Canada)"),"") -> Southeastern Power Administration (Southeast) | BL62: =IF(consumption_mix_calcs!BK22<>"",consumption_mix_calcs!BK22&" ("&IFERROR(INDEX(ba_ferc_mapping!$B$2:$B$71,MATCH(consumption_mix_calcs!BK22,ba_ferc_mapping!$A$2:$A$71,0),1)&")","Canada)"),"") -> Southern Company Services, Inc. - Trans (Southeast) | BM62: =IF(consumption_mix_calcs!BL22<>"",consumption_mix_calcs!BL22&" ("&IFERROR(INDEX(ba_ferc_mapping!$B$2:$B$71,MATCH(consumption_mix_calcs!BL22,ba_ferc_mapping!$A$2:$A$71,0),1)&")","Canada)"),"") -> Southwest Power Pool (SPP) | BN62: =IF(consumption_mix_calcs!BM22<>"",consumption_mix_calcs!BM22&" ("&IFERROR(INDEX(ba_ferc_mapping!$B$2:$B$71,MATCH(consumption_mix_calcs!BM22,ba_ferc_mapping!$A$2:$A$71,0),1)&")","Canada)"),"") -> Southwestern Power Administration (SPP) | BO62: =IF(consumption_mix_calcs!BN22<>"",consumption_mix_calcs!BN22&" ("&IFERROR(INDEX(ba_ferc_mapping!$B$2:$B$71,MATCH(consumption_mix_calcs!BN22,ba_ferc_mapping!$A$2:$A$71,0),1)&")","Canada)"),"") -> Tallahassee, City of (Southeast) | BP62: =IF(consumption_mix_calcs!BO22<>"",consumption_mix_calcs!BO22&" ("&IFERROR(INDEX(ba_ferc_mapping!$B$2:$B$71,MATCH(consumption_mix_calcs!BO22,ba_ferc_mapping!$A$2:$A$71,0),1)&")","Canada)"),"") -> Tampa Electric Company (Southeast) | BQ62: =IF(consumption_mix_calcs!BP22<>"",consumption_mix_calcs!BP22&" ("&IFERROR(INDEX(ba_ferc_mapping!$B$2:$B$71,MATCH(consumption_mix_calcs!BP22,ba_ferc_mapping!$A$2:$A$71,0),1)&")","Canada)"),"") -> Tennessee Valley Authority (Southeast) | BR62: =IF(consumption_mix_calcs!BQ22<>"",consumption_mix_calcs!BQ22&" ("&IFERROR(INDEX(ba_ferc_mapping!$B$2:$B$71,MATCH(consumption_mix_calcs!BQ22,ba_ferc_mapping!$A$2:$A$71,0),1)&")","Canada)"),"") -> Tucson Electric Power (Southwest) | BS62: =IF(consumption_mix_calcs!BR22<>"",consumption_mix_calcs!BR22&" ("&IFERROR(INDEX(ba_ferc_mapping!$B$2:$B$71,MATCH(consumption_mix_calcs!BR22,ba_ferc_mapping!$A$2:$A$71,0),1)&")","Canada)"),"") -> Turlock Irrigation District (CAISO) | BT62: =IF(consumption_mix_calcs!BS22<>"",consumption_mix_calcs!BS22&" ("&IFERROR(INDEX(ba_ferc_mapping!$B$2:$B$71,MATCH(consumption_mix_calcs!BS22,ba_ferc_mapping!$A$2:$A$71,0),1)&")","Canada)"),"") -> Western Area Power Administration - Desert Southwest Region (Southwest) | BU62: =IF(consumption_mix_calcs!BT22<>"",consumption_mix_calcs!BT22&" ("&IFERROR(INDEX(ba_ferc_mapping!$B$2:$B$71,MATCH(consumption_mix_calcs!BT22,ba_ferc_mapping!$A$2:$A$71,0),1)&")","Canada)"),"") -> Western Area Power Administration - Rocky Mountain Region (Northwest) | BV62: =IF(consumption_mix_calcs!BU22<>"",consumption_mix_calcs!BU22&" ("&IFERROR(INDEX(ba_ferc_mapping!$B$2:$B$71,MATCH(consumption_mix_calcs!BU22,ba_ferc_mapping!$A$2:$A$71,0),1)&")","Canada)"),"") -> Western Area Power Administration - Upper Great Plains West (Northwest) | BW62: =IF(consumption_mix_calcs!BV22<>"",consumption_mix_calcs!BV22&" ("&IFERROR(INDEX(ba_ferc_mapping!$B$2:$B$71,MATCH(consumption_mix_calcs!BV22,ba_ferc_mapping!$A$2:$A$71,0),1)&")","Canada)"),"") ->  | BX62: =IF(consumption_mix_calcs!BW22<>"",consumption_mix_calcs!BW22&" ("&IFERROR(INDEX(ba_ferc_mapping!$B$2:$B$71,MATCH(consumption_mix_calcs!BW22,ba_ferc_mapping!$A$2:$A$71,0),1)&")","Canada)"),"") -> 
A63: Elementary flows/resource | B63: Heat | C63: =SUM(D63:BX63) -> 10449.89155 | D63: =IF(consumption_mix_calcs!C23<>"",consumption_mix_calcs!C23,"") -> 4.896439042 | E63: =IF(consumption_mix_calcs!D23<>"",consumption_mix_calcs!D23,"") -> 51.05658276 | F63: =IF(consumption_mix_calcs!E23<>"",consumption_mix_calcs!E23,"") -> 3.507164381 | G63: =IF(consumption_mix_calcs!F23<>"",consumption_mix_calcs!F23,"") -> 54.05457949 | H63: =IF(consumption_mix_calcs!G23<>"",consumption_mix_calcs!G23,"") -> 22.30578235 | I63: =IF(consumption_mix_calcs!H23<>"",consumption_mix_calcs!H23,"") -> 32.54168642 | J63: =IF(consumption_mix_calcs!I23<>"",consumption_mix_calcs!I23,"") -> 25.83097538 | K63: =IF(consumption_mix_calcs!J23<>"",consumption_mix_calcs!J23,"") -> 321.6969645 | L63: =IF(consumption_mix_calcs!K23<>"",consumption_mix_calcs!K23,"") -> 425.8789339 | M63: =IF(consumption_mix_calcs!L23<>"",consumption_mix_calcs!L23,"") -> 11.80113744 | N63: =IF(consumption_mix_calcs!M23<>"",consumption_mix_calcs!M23,"") -> 265.3711827 | O63: =IF(consumption_mix_calcs!N23<>"",consumption_mix_calcs!N23,"") -> 112.8065584 | P63: =IF(consumption_mix_calcs!O23<>"",consumption_mix_calcs!O23,"") -> 167.4269949 | Q63: =IF(consumption_mix_calcs!P23<>"",consumption_mix_calcs!P23,"") -> 0 | R63: =IF(consumption_mix_calcs!Q23<>"",consumption_mix_calcs!Q23,"") -> 19.95520639 | S63: =IF(consumption_mix_calcs!R23<>"",consumption_mix_calcs!R23,"") -> 8.828044117 | T63: =IF(consumption_mix_calcs!S23<>"",consumption_mix_calcs!S23,"") -> 772.0384476 | U63: =IF(consumption_mix_calcs!T23<>"",consumption_mix_calcs!T23,"") -> 51.61400762 | V63: =IF(consumption_mix_calcs!U23<>"",consumption_mix_calcs!U23,"") -> 269.8849079 | W63: =IF(consumption_mix_calcs!V23<>"",consumption_mix_calcs!V23,"") -> 5.421030774 | X63: =IF(consumption_mix_calcs!W23<>"",consumption_mix_calcs!W23,"") -> 32.53122396 | Y63: =IF(consumption_mix_calcs!X23<>"",consumption_mix_calcs!X23,"") -> 0 | Z63: =IF(consumption_mix_calcs!Y23<>"",consumption_mix_calcs!Y23,"") -> 3.854893351 | AA63: =IF(consumption_mix_calcs!Z23<>"",consumption_mix_calcs!Z23,"") -> 0.0279975985 | AB63: =IF(consumption_mix_calcs!AA23<>"",consumption_mix_calcs!AA23,"") -> 59.50840176 | AC63: =IF(consumption_mix_calcs!AB23<>"",consumption_mix_calcs!AB23,"") -> 282.7720789 | AD63: =IF(consumption_mix_calcs!AC23<>"",consumption_mix_calcs!AC23,"") -> 33.42662427 | AE63: =IF(consumption_mix_calcs!AD23<>"",consumption_mix_calcs!AD23,"") -> 13.52020078 | AF63: =IF(consumption_mix_calcs!AE23<>"",consumption_mix_calcs!AE23,"") -> 72.29806644 | AG63: =IF(consumption_mix_calcs!AF23<>"",consumption_mix_calcs!AF23,"") -> 97.01840401 | AH63: =IF(consumption_mix_calcs!AG23<>"",consumption_mix_calcs!AG23,"") -> 92.75887421 | AI63: =IF(consumption_mix_calcs!AH23<>"",consumption_mix_calcs!AH23,"") -> 22.6740582 | AJ63: =IF(consumption_mix_calcs!AI23<>"",consumption_mix_calcs!AI23,"") -> 1603.437205 | AK63: =IF(consumption_mix_calcs!AJ23<>"",consumption_mix_calcs!AJ23,"") -> 10.66347777 | AL63: =IF(consumption_mix_calcs!AK23<>"",consumption_mix_calcs!AK23,"") -> 1.523750538 | AM63: =IF(consumption_mix_calcs!AL23<>"",consumption_mix_calcs!AL23,"") -> 61.60676711 | AN63: =IF(consumption_mix_calcs!AM23<>"",consumption_mix_calcs!AM23,"") -> 4.44579317 | AO63: =IF(consumption_mix_calcs!AN23<>"",consumption_mix_calcs!AN23,"") -> 5.887819776 | AP63: =IF(consumption_mix_calcs!AO23<>"",consumption_mix_calcs!AO23,"") -> 0 | AQ63: =IF(consumption_mix_calcs!AP23<>"",consumption_mix_calcs!AP23,"") -> 367.0587877 | AR63: =IF(consumption_mix_calcs!AQ23<>"",consumption_mix_calcs!AQ23,"") -> 67.86415315 | AS63: =IF(consumption_mix_calcs!AR23<>"",consumption_mix_calcs!AR23,"") -> 28.56286533 | AT63: =IF(consumption_mix_calcs!AS23<>"",consumption_mix_calcs!AS23,"") -> 50.74364793 | AU63: =IF(consumption_mix_calcs!AT23<>"",consumption_mix_calcs!AT23,"") -> 2030.122955 | AV63: =IF(consumption_mix_calcs!AU23<>"",consumption_mix_calcs!AU23,"") -> 9.321347629 | AW63: =IF(consumption_mix_calcs!AV23<>"",consumption_mix_calcs!AV23,"") -> 166.235801 | AX63: =IF(consumption_mix_calcs!AW23<>"",consumption_mix_calcs!AW23,"") -> 58.63625308 | AY63: =IF(consumption_mix_calcs!AX23<>"",consumption_mix_calcs!AX23,"") -> 31.76234257 | AZ63: =IF(consumption_mix_calcs!AY23<>"",consumption_mix_calcs!AY23,"") -> 26.92801403 | BA63: =IF(consumption_mix_calcs!AZ23<>"",consumption_mix_calcs!AZ23,"") -> 101.5778705 | BB63: =IF(consumption_mix_calcs!BA23<>"",consumption_mix_calcs!BA23,"") -> 67.85282905 | BC63: =IF(consumption_mix_calcs!BB23<>"",consumption_mix_calcs!BB23,"") -> 23.29966216 | BD63: =IF(consumption_mix_calcs!BC23<>"",consumption_mix_calcs!BC23,"") -> 21.70422858 | BE63: =IF(consumption_mix_calcs!BD23<>"",consumption_mix_calcs!BD23,"") -> 31.15991973 | BF63: =IF(consumption_mix_calcs!BE23<>"",consumption_mix_calcs!BE23,"") -> 195.137616 | BG63: =IF(consumption_mix_calcs!BF23<>"",consumption_mix_calcs!BF23,"") -> 22.65614651 | BH63: =IF(consumption_mix_calcs!BG23<>"",consumption_mix_calcs!BG23,"") -> 27.14773473 | BI63: =IF(consumption_mix_calcs!BH23<>"",consumption_mix_calcs!BH23,"") -> 66.9832908 | BJ63: =IF(consumption_mix_calcs!BI23<>"",consumption_mix_calcs!BI23,"") -> 70.10493677 | BK63: =IF(consumption_mix_calcs!BJ23<>"",consumption_mix_calcs!BJ23,"") -> 9.266716545 | BL63: =IF(consumption_mix_calcs!BK23<>"",consumption_mix_calcs!BK23,"") -> 576.9321675 | BM63: =IF(consumption_mix_calcs!BL23<>"",consumption_mix_calcs!BL23,"") -> 645.4565966 | BN63: =IF(consumption_mix_calcs!BM23<>"",consumption_mix_calcs!BM23,"") -> 15.50374169 | BO63: =IF(consumption_mix_calcs!BN23<>"",consumption_mix_calcs!BN23,"") -> 8.99683088 | BP63: =IF(consumption_mix_calcs!BO23<>"",consumption_mix_calcs!BO23,"") -> 59.86374294 | BQ63: =IF(consumption_mix_calcs!BP23<>"",consumption_mix_calcs!BP23,"") -> 398.3243882 | BR63: =IF(consumption_mix_calcs!BQ23<>"",consumption_mix_calcs!BQ23,"") -> 26.57220054 | BS63: =IF(consumption_mix_calcs!BR23<>"",consumption_mix_calcs!BR23,"") -> 25.79177443 | BT63: =IF(consumption_mix_calcs!BS23<>"",consumption_mix_calcs!BS23,"") -> 76.16836785 | BU63: =IF(consumption_mix_calcs!BT23<>"",consumption_mix_calcs!BT23,"") -> 106.8186356 | BV63: =IF(consumption_mix_calcs!BU23<>"",consumption_mix_calcs!BU23,"") -> 10.46371832 | BW63: =IF(consumption_mix_calcs!BV23<>"",consumption_mix_calcs!BV23,"") ->  | BX63: =IF(consumption_mix_calcs!BW23<>"",consumption_mix_calcs!BW23,"") -> 
A64: Elementary flows/resource | B64: Water | C64: =SUM(D64:BX64) -> 322.2858756 | D64: =IF(consumption_mix_calcs!C24<>"",consumption_mix_calcs!C24,"") -> 0 | E64: =IF(consumption_mix_calcs!D24<>"",consumption_mix_calcs!D24,"") -> 0 | F64: =IF(consumption_mix_calcs!E24<>"",consumption_mix_calcs!E24,"") -> 0 | G64: =IF(consumption_mix_calcs!F24<>"",consumption_mix_calcs!F24,"") -> 0 | H64: =IF(consumption_mix_calcs!G24<>"",consumption_mix_calcs!G24,"") -> 0 | I64: =IF(consumption_mix_calcs!H24<>"",consumption_mix_calcs!H24,"") -> 0.03462163255 | J64: =IF(consumption_mix_calcs!I24<>"",consumption_mix_calcs!I24,"") -> 0 | K64: =IF(consumption_mix_calcs!J24<>"",consumption_mix_calcs!J24,"") -> 0.2216091159 | L64: =IF(consumption_mix_calcs!K24<>"",consumption_mix_calcs!K24,"") -> 0.7996837878 | M64: =IF(consumption_mix_calcs!L24<>"",consumption_mix_calcs!L24,"") -> 0 | N64: =IF(consumption_mix_calcs!M24<>"",consumption_mix_calcs!M24,"") -> 1.13717594 | O64: =IF(consumption_mix_calcs!N24<>"",consumption_mix_calcs!N24,"") -> 0 | P64: =IF(consumption_mix_calcs!O24<>"",consumption_mix_calcs!O24,"") -> 0.3808627368 | Q64: =IF(consumption_mix_calcs!P24<>"",consumption_mix_calcs!P24,"") -> 0 | R64: =IF(consumption_mix_calcs!Q24<>"",consumption_mix_calcs!Q24,"") -> 0 | S64: =IF(consumption_mix_calcs!R24<>"",consumption_mix_calcs!R24,"") -> 0 | T64: =IF(consumption_mix_calcs!S24<>"",consumption_mix_calcs!S24,"") -> 1.443165717 | U64: =IF(consumption_mix_calcs!T24<>"",consumption_mix_calcs!T24,"") -> 0 | V64: =IF(consumption_mix_calcs!U24<>"",consumption_mix_calcs!U24,"") -> 0 | W64: =IF(consumption_mix_calcs!V24<>"",consumption_mix_calcs!V24,"") -> 0 | X64: =IF(consumption_mix_calcs!W24<>"",consumption_mix_calcs!W24,"") -> 0 | Y64: =IF(consumption_mix_calcs!X24<>"",consumption_mix_calcs!X24,"") -> 0 | Z64: =IF(consumption_mix_calcs!Y24<>"",consumption_mix_calcs!Y24,"") -> 0 | AA64: =IF(consumption_mix_calcs!Z24<>"",consumption_mix_calcs!Z24,"") -> 0 | AB64: =IF(consumption_mix_calcs!AA24<>"",consumption_mix_calcs!AA24,"") -> 0 | AC64: =IF(consumption_mix_calcs!AB24<>"",consumption_mix_calcs!AB24,"") -> 0 | AD64: =IF(consumption_mix_calcs!AC24<>"",consumption_mix_calcs!AC24,"") -> 0 | AE64: =IF(consumption_mix_calcs!AD24<>"",consumption_mix_calcs!AD24,"") -> 0 | AF64: =IF(consumption_mix_calcs!AE24<>"",consumption_mix_calcs!AE24,"") -> 0 | AG64: =IF(consumption_mix_calcs!AF24<>"",consumption_mix_calcs!AF24,"") -> 0 | AH64: =IF(consumption_mix_calcs!AG24<>"",consumption_mix_calcs!AG24,"") -> 315.6894538 | AI64: =IF(consumption_mix_calcs!AH24<>"",consumption_mix_calcs!AH24,"") -> 0 | AJ64: =IF(consumption_mix_calcs!AI24<>"",consumption_mix_calcs!AI24,"") -> 0.5679070913 | AK64: =IF(consumption_mix_calcs!AJ24<>"",consumption_mix_calcs!AJ24,"") -> 0 | AL64: =IF(consumption_mix_calcs!AK24<>"",consumption_mix_calcs!AK24,"") -> 0 | AM64: =IF(consumption_mix_calcs!AL24<>"",consumption_mix_calcs!AL24,"") -> 0.248025874 | AN64: =IF(consumption_mix_calcs!AM24<>"",consumption_mix_calcs!AM24,"") -> 0.03604479934 | AO64: =IF(consumption_mix_calcs!AN24<>"",consumption_mix_calcs!AN24,"") -> 0 | AP64: =IF(consumption_mix_calcs!AO24<>"",consumption_mix_calcs!AO24,"") -> 0 | AQ64: =IF(consumption_mix_calcs!AP24<>"",consumption_mix_calcs!AP24,"") -> 0 | AR64: =IF(consumption_mix_calcs!AQ24<>"",consumption_mix_calcs!AQ24,"") -> 0 | AS64: =IF(consumption_mix_calcs!AR24<>"",consumption_mix_calcs!AR24,"") -> 0 | AT64: =IF(consumption_mix_calcs!AS24<>"",consumption_mix_calcs!AS24,"") -> 0.2092598527 | AU64: =IF(consumption_mix_calcs!AT24<>"",consumption_mix_calcs!AT24,"") -> 0.5617418048 | AV64: =IF(consumption_mix_calcs!AU24<>"",consumption_mix_calcs!AU24,"") -> 0 | AW64: =IF(consumption_mix_calcs!AV24<>"",consumption_mix_calcs!AV24,"") -> 0 | AX64: =IF(consumption_mix_calcs!AW24<>"",consumption_mix_calcs!AW24,"") -> 0 | AY64: =IF(consumption_mix_calcs!AX24<>"",consumption_mix_calcs!AX24,"") -> 0 | AZ64: =IF(consumption_mix_calcs!AY24<>"",consumption_mix_calcs!AY24,"") -> 0 | BA64: =IF(consumption_mix_calcs!AZ24<>"",consumption_mix_calcs!AZ24,"") -> 0 | BB64: =IF(consumption_mix_calcs!BA24<>"",consumption_mix_calcs!BA24,"") -> 0 | BC64: =IF(consumption_mix_calcs!BB24<>"",consumption_mix_calcs!BB24,"") -> 0 | BD64: =IF(consumption_mix_calcs!BC24<>"",consumption_mix_calcs!BC24,"") -> 0 | BE64: =IF(consumption_mix_calcs!BD24<>"",consumption_mix_calcs!BD24,"") -> 0 | BF64: =IF(consumption_mix_calcs!BE24<>"",consumption_mix_calcs!BE24,"") -> 0 | BG64: =IF(consumption_mix_calcs!BF24<>"",consumption_mix_calcs!BF24,"") -> 0 | BH64: =IF(consumption_mix_calcs!BG24<>"",consumption_mix_calcs!BG24,"") -> 0 | BI64: =IF(consumption_mix_calcs!BH24<>"",consumption_mix_calcs!BH24,"") -> 0 | BJ64: =IF(consumption_mix_calcs!BI24<>"",consumption_mix_calcs!BI24,"") -> 0 | BK64: =IF(consumption_mix_calcs!BJ24<>"",consumption_mix_calcs!BJ24,"") -> 0 | BL64: =IF(consumption_mix_calcs!BK24<>"",consumption_mix_calcs!BK24,"") -> 0 | BM64: =IF(consumption_mix_calcs!BL24<>"",consumption_mix_calcs!BL24,"") -> 0.9563234084 | BN64: =IF(consumption_mix_calcs!BM24<>"",consumption_mix_calcs!BM24,"") -> 0 | BO64: =IF(consumption_mix_calcs!BN24<>"",consumption_mix_calcs!BN24,"") -> 0 | BP64: =IF(consumption_mix_calcs!BO24<>"",consumption_mix_calcs!BO24,"") -> 0 | BQ64: =IF(consumption_mix_calcs!BP24<>"",consumption_mix_calcs!BP24,"") -> 0 | BR64: =IF(consumption_mix_calcs!BQ24<>"",consumption_mix_calcs!BQ24,"") -> 0 | BS64: =IF(consumption_mix_calcs!BR24<>"",consumption_mix_calcs!BR24,"") -> 0 | BT64: =IF(consumption_mix_calcs!BS24<>"",consumption_mix_calcs!BS24,"") -> 0 | BU64: =IF(consumption_mix_calcs!BT24<>"",consumption_mix_calcs!BT24,"") -> 0 | BV64: =IF(consumption_mix_calcs!BU24<>"",consumption_mix_calcs!BU24,"") -> 0 | BW64: =IF(consumption_mix_calcs!BV24<>"",consumption_mix_calcs!BV24,"") ->  | BX64: =IF(consumption_mix_calcs!BW24<>"",consumption_mix_calcs!BW24,"") -> 
A65: Elementary flows/resource | B65: Water, brackish | C65: 3287.236566 | D65: =IF(consumption_mix_calcs!C25<>"",consumption_mix_calcs!C25,"") -> 0 | E65: =IF(consumption_mix_calcs!D25<>"",consumption_mix_calcs!D25,"") -> 0 | F65: =IF(consumption_mix_calcs!E25<>"",consumption_mix_calcs!E25,"") -> 0 | G65: =IF(consumption_mix_calcs!F25<>"",consumption_mix_calcs!F25,"") -> 0 | H65: =IF(consumption_mix_calcs!G25<>"",consumption_mix_calcs!G25,"") -> 0 | I65: =IF(consumption_mix_calcs!H25<>"",consumption_mix_calcs!H25,"") -> 0.5689538439 | J65: =IF(consumption_mix_calcs!I25<>"",consumption_mix_calcs!I25,"") -> 0 | K65: =IF(consumption_mix_calcs!J25<>"",consumption_mix_calcs!J25,"") -> 0 | L65: =IF(consumption_mix_calcs!K25<>"",consumption_mix_calcs!K25,"") -> 8.553312383 | M65: =IF(consumption_mix_calcs!L25<>"",consumption_mix_calcs!L25,"") -> 0 | N65: =IF(consumption_mix_calcs!M25<>"",consumption_mix_calcs!M25,"") -> 0 | O65: =IF(consumption_mix_calcs!N25<>"",consumption_mix_calcs!N25,"") -> 179.2660716 | P65: =IF(consumption_mix_calcs!O25<>"",consumption_mix_calcs!O25,"") -> 231.4888167 | Q65: =IF(consumption_mix_calcs!P25<>"",consumption_mix_calcs!P25,"") -> 0 | R65: =IF(consumption_mix_calcs!Q25<>"",consumption_mix_calcs!Q25,"") -> 0 | S65: =IF(consumption_mix_calcs!R25<>"",consumption_mix_calcs!R25,"") -> 0 | T65: =IF(consumption_mix_calcs!S25<>"",consumption_mix_calcs!S25,"") -> 0 | U65: =IF(consumption_mix_calcs!T25<>"",consumption_mix_calcs!T25,"") -> 0 | V65: =IF(consumption_mix_calcs!U25<>"",consumption_mix_calcs!U25,"") -> 925.5298056 | W65: =IF(consumption_mix_calcs!V25<>"",consumption_mix_calcs!V25,"") -> 0 | X65: =IF(consumption_mix_calcs!W25<>"",consumption_mix_calcs!W25,"") -> 0 | Y65: =IF(consumption_mix_calcs!X25<>"",consumption_mix_calcs!X25,"") -> 0 | Z65: =IF(consumption_mix_calcs!Y25<>"",consumption_mix_calcs!Y25,"") -> 0 | AA65: =IF(consumption_mix_calcs!Z25<>"",consumption_mix_calcs!Z25,"") -> 0 | AB65: =IF(consumption_mix_calcs!AA25<>"",consumption_mix_calcs!AA25,"") -> 0 | AC65: =IF(consumption_mix_calcs!AB25<>"",consumption_mix_calcs!AB25,"") -> 1431.120575 | AD65: =IF(consumption_mix_calcs!AC25<>"",consumption_mix_calcs!AC25,"") -> 0 | AE65: =IF(consumption_mix_calcs!AD25<>"",consumption_mix_calcs!AD25,"") -> 0 | AF65: =IF(consumption_mix_calcs!AE25<>"",consumption_mix_calcs!AE25,"") -> 0 | AG65: =IF(consumption_mix_calcs!AF25<>"",consumption_mix_calcs!AF25,"") -> 0 | AH65: =IF(consumption_mix_calcs!AG25<>"",consumption_mix_calcs!AG25,"") -> 0 | AI65: =IF(consumption_mix_calcs!AH25<>"",consumption_mix_calcs!AH25,"") -> 0 | AJ65: =IF(consumption_mix_calcs!AI25<>"",consumption_mix_calcs!AI25,"") -> 225.0138003 | AK65: =IF(consumption_mix_calcs!AJ25<>"",consumption_mix_calcs!AJ25,"") -> 0 | AL65: =IF(consumption_mix_calcs!AK25<>"",consumption_mix_calcs!AK25,"") -> 0 | AM65: =IF(consumption_mix_calcs!AL25<>"",consumption_mix_calcs!AL25,"") -> 0 | AN65: =IF(consumption_mix_calcs!AM25<>"",consumption_mix_calcs!AM25,"") -> 0.6615512752 | AO65: =IF(consumption_mix_calcs!AN25<>"",consumption_mix_calcs!AN25,"") -> 0 | AP65: =IF(consumption_mix_calcs!AO25<>"",consumption_mix_calcs!AO25,"") -> 0 | AQ65: =IF(consumption_mix_calcs!AP25<>"",consumption_mix_calcs!AP25,"") -> 0 | AR65: =IF(consumption_mix_calcs!AQ25<>"",consumption_mix_calcs!AQ25,"") -> 0 | AS65: =IF(consumption_mix_calcs!AR25<>"",consumption_mix_calcs!AR25,"") -> 0 | AT65: =IF(consumption_mix_calcs!AS25<>"",consumption_mix_calcs!AS25,"") -> 3.603160159 | AU65: =IF(consumption_mix_calcs!AT25<>"",consumption_mix_calcs!AT25,"") -> 261.020134 | AV65: =IF(consumption_mix_calcs!AU25<>"",consumption_mix_calcs!AU25,"") -> 0 | AW65: =IF(consumption_mix_calcs!AV25<>"",consumption_mix_calcs!AV25,"") -> 0 | AX65: =IF(consumption_mix_calcs!AW25<>"",consumption_mix_calcs!AW25,"") -> 0 | AY65: =IF(consumption_mix_calcs!AX25<>"",consumption_mix_calcs!AX25,"") -> 0 | AZ65: =IF(consumption_mix_calcs!AY25<>"",consumption_mix_calcs!AY25,"") -> 0 | BA65: =IF(consumption_mix_calcs!AZ25<>"",consumption_mix_calcs!AZ25,"") -> 0 | BB65: =IF(consumption_mix_calcs!BA25<>"",consumption_mix_calcs!BA25,"") -> 0 | BC65: =IF(consumption_mix_calcs!BB25<>"",consumption_mix_calcs!BB25,"") -> 0 | BD65: =IF(consumption_mix_calcs!BC25<>"",consumption_mix_calcs!BC25,"") -> 0 | BE65: =IF(consumption_mix_calcs!BD25<>"",consumption_mix_calcs!BD25,"") -> 0 | BF65: =IF(consumption_mix_calcs!BE25<>"",consumption_mix_calcs!BE25,"") -> 0 | BG65: =IF(consumption_mix_calcs!BF25<>"",consumption_mix_calcs!BF25,"") -> 0 | BH65: =IF(consumption_mix_calcs!BG25<>"",consumption_mix_calcs!BG25,"") -> 0 | BI65: =IF(consumption_mix_calcs!BH25<>"",consumption_mix_calcs!BH25,"") -> 0 | BJ65: =IF(consumption_mix_calcs!BI25<>"",consumption_mix_calcs!BI25,"") -> 0 | BK65: =IF(consumption_mix_calcs!BJ25<>"",consumption_mix_calcs!BJ25,"") -> 0 | BL65: =IF(consumption_mix_calcs!BK25<>"",consumption_mix_calcs!BK25,"") -> 19.38078669 | BM65: =IF(consumption_mix_calcs!BL25<>"",consumption_mix_calcs!BL25,"") -> 0 | BN65: =IF(consumption_mix_calcs!BM25<>"",consumption_mix_calcs!BM25,"") -> 0 | BO65: =IF(consumption_mix_calcs!BN25<>"",consumption_mix_calcs!BN25,"") -> 0.3625220239 | BP65: =IF(consumption_mix_calcs!BO25<>"",consumption_mix_calcs!BO25,"") -> 0 | BQ65: =IF(consumption_mix_calcs!BP25<>"",consumption_mix_calcs!BP25,"") -> 0.6670765894 | BR65: =IF(consumption_mix_calcs!BQ25<>"",consumption_mix_calcs!BQ25,"") -> 0 | BS65: =IF(consumption_mix_calcs!BR25<>"",consumption_mix_calcs!BR25,"") -> 0 | BT65: =IF(consumption_mix_calcs!BS25<>"",consumption_mix_calcs!BS25,"") -> 0 | BU65: =IF(consumption_mix_calcs!BT25<>"",consumption_mix_calcs!BT25,"") -> 0 | BV65: =IF(consumption_mix_calcs!BU25<>"",consumption_mix_calcs!BU25,"") -> 0 | BW65: =IF(consumption_mix_calcs!BV25<>"",consumption_mix_calcs!BV25,"") ->  | BX65: =IF(consumption_mix_calcs!BW25<>"",consumption_mix_calcs!BW25,"") -> 
A66: Elementary flows/resource | B66: Water, fresh | C66: 22983.01949 | D66: =IF(consumption_mix_calcs!C26<>"",consumption_mix_calcs!C26,"") -> 0 | E66: =IF(consumption_mix_calcs!D26<>"",consumption_mix_calcs!D26,"") -> 12.14882055 | F66: =IF(consumption_mix_calcs!E26<>"",consumption_mix_calcs!E26,"") -> 0.4393502194 | G66: =IF(consumption_mix_calcs!F26<>"",consumption_mix_calcs!F26,"") -> 424.7628344 | H66: =IF(consumption_mix_calcs!G26<>"",consumption_mix_calcs!G26,"") -> 0 | I66: =IF(consumption_mix_calcs!H26<>"",consumption_mix_calcs!H26,"") -> 1.426106699 | J66: =IF(consumption_mix_calcs!I26<>"",consumption_mix_calcs!I26,"") -> 0 | K66: =IF(consumption_mix_calcs!J26<>"",consumption_mix_calcs!J26,"") -> 10.78215704 | L66: =IF(consumption_mix_calcs!K26<>"",consumption_mix_calcs!K26,"") -> 2.27676795 | M66: =IF(consumption_mix_calcs!L26<>"",consumption_mix_calcs!L26,"") -> 0 | N66: =IF(consumption_mix_calcs!M26<>"",consumption_mix_calcs!M26,"") -> 1319.364742 | O66: =IF(consumption_mix_calcs!N26<>"",consumption_mix_calcs!N26,"") -> 34.37859969 | P66: =IF(consumption_mix_calcs!O26<>"",consumption_mix_calcs!O26,"") -> 260.3284204 | Q66: =IF(consumption_mix_calcs!P26<>"",consumption_mix_calcs!P26,"") -> 0 | R66: =IF(consumption_mix_calcs!Q26<>"",consumption_mix_calcs!Q26,"") -> 4.493774499 | S66: =IF(consumption_mix_calcs!R26<>"",consumption_mix_calcs!R26,"") -> 0 | T66: =IF(consumption_mix_calcs!S26<>"",consumption_mix_calcs!S26,"") -> 2849.238142 | U66: =IF(consumption_mix_calcs!T26<>"",consumption_mix_calcs!T26,"") -> 0 | V66: =IF(consumption_mix_calcs!U26<>"",consumption_mix_calcs!U26,"") -> 3474.774554 | W66: =IF(consumption_mix_calcs!V26<>"",consumption_mix_calcs!V26,"") -> 0.01283207197 | X66: =IF(consumption_mix_calcs!W26<>"",consumption_mix_calcs!W26,"") -> 0 | Y66: =IF(consumption_mix_calcs!X26<>"",consumption_mix_calcs!X26,"") -> 0 | Z66: =IF(consumption_mix_calcs!Y26<>"",consumption_mix_calcs!Y26,"") -> 0.4808180737 | AA66: =IF(consumption_mix_calcs!Z26<>"",consumption_mix_calcs!Z26,"") -> 0 | AB66: =IF(consumption_mix_calcs!AA26<>"",consumption_mix_calcs!AA26,"") -> 0.002103337938 | AC66: =IF(consumption_mix_calcs!AB26<>"",consumption_mix_calcs!AB26,"") -> 27.95732505 | AD66: =IF(consumption_mix_calcs!AC26<>"",consumption_mix_calcs!AC26,"") -> 0.3718310021 | AE66: =IF(consumption_mix_calcs!AD26<>"",consumption_mix_calcs!AD26,"") -> 0.3295054462 | AF66: =IF(consumption_mix_calcs!AE26<>"",consumption_mix_calcs!AE26,"") -> 0.8056572234 | AG66: =IF(consumption_mix_calcs!AF26<>"",consumption_mix_calcs!AF26,"") -> 83.92585212 | AH66: =IF(consumption_mix_calcs!AG26<>"",consumption_mix_calcs!AG26,"") -> 5.819833173 | AI66: =IF(consumption_mix_calcs!AH26<>"",consumption_mix_calcs!AH26,"") -> 0 | AJ66: =IF(consumption_mix_calcs!AI26<>"",consumption_mix_calcs!AI26,"") -> 5818.088966 | AK66: =IF(consumption_mix_calcs!AJ26<>"",consumption_mix_calcs!AJ26,"") -> 0 | AL66: =IF(consumption_mix_calcs!AK26<>"",consumption_mix_calcs!AK26,"") -> 0 | AM66: =IF(consumption_mix_calcs!AL26<>"",consumption_mix_calcs!AL26,"") -> 239.6710498 | AN66: =IF(consumption_mix_calcs!AM26<>"",consumption_mix_calcs!AM26,"") -> 7.620315892 | AO66: =IF(consumption_mix_calcs!AN26<>"",consumption_mix_calcs!AN26,"") -> 0.6976846085 | AP66: =IF(consumption_mix_calcs!AO26<>"",consumption_mix_calcs!AO26,"") -> 0 | AQ66: =IF(consumption_mix_calcs!AP26<>"",consumption_mix_calcs!AP26,"") -> 49.55188686 | AR66: =IF(consumption_mix_calcs!AQ26<>"",consumption_mix_calcs!AQ26,"") -> 45.30510912 | AS66: =IF(consumption_mix_calcs!AR26<>"",consumption_mix_calcs!AR26,"") -> 0 | AT66: =IF(consumption_mix_calcs!AS26<>"",consumption_mix_calcs!AS26,"") -> 76.0578704 | AU66: =IF(consumption_mix_calcs!AT26<>"",consumption_mix_calcs!AT26,"") -> 2625.872403 | AV66: =IF(consumption_mix_calcs!AU26<>"",consumption_mix_calcs!AU26,"") -> 0 | AW66: =IF(consumption_mix_calcs!AV26<>"",consumption_mix_calcs!AV26,"") -> 78.40583313 | AX66: =IF(consumption_mix_calcs!AW26<>"",consumption_mix_calcs!AW26,"") -> 0 | AY66: =IF(consumption_mix_calcs!AX26<>"",consumption_mix_calcs!AX26,"") -> 1.612408967 | AZ66: =IF(consumption_mix_calcs!AY26<>"",consumption_mix_calcs!AY26,"") -> 2.142634674 | BA66: =IF(consumption_mix_calcs!AZ26<>"",consumption_mix_calcs!AZ26,"") -> 16.78933166 | BB66: =IF(consumption_mix_calcs!BA26<>"",consumption_mix_calcs!BA26,"") -> 9.59443506 | BC66: =IF(consumption_mix_calcs!BB26<>"",consumption_mix_calcs!BB26,"") -> 0 | BD66: =IF(consumption_mix_calcs!BC26<>"",consumption_mix_calcs!BC26,"") -> 0 | BE66: =IF(consumption_mix_calcs!BD26<>"",consumption_mix_calcs!BD26,"") -> 0 | BF66: =IF(consumption_mix_calcs!BE26<>"",consumption_mix_calcs!BE26,"") -> 10.43522184 | BG66: =IF(consumption_mix_calcs!BF26<>"",consumption_mix_calcs!BF26,"") -> 0 | BH66: =IF(consumption_mix_calcs!BG26<>"",consumption_mix_calcs!BG26,"") -> 4.045629906 | BI66: =IF(consumption_mix_calcs!BH26<>"",consumption_mix_calcs!BH26,"") -> 226.9392878 | BJ66: =IF(consumption_mix_calcs!BI26<>"",consumption_mix_calcs!BI26,"") -> 65.7043038 | BK66: =IF(consumption_mix_calcs!BJ26<>"",consumption_mix_calcs!BJ26,"") -> 0 | BL66: =IF(consumption_mix_calcs!BK26<>"",consumption_mix_calcs!BK26,"") -> 377.7377257 | BM66: =IF(consumption_mix_calcs!BL26<>"",consumption_mix_calcs!BL26,"") -> 2439.158201 | BN66: =IF(consumption_mix_calcs!BM26<>"",consumption_mix_calcs!BM26,"") -> 0.9672317971 | BO66: =IF(consumption_mix_calcs!BN26<>"",consumption_mix_calcs!BN26,"") -> 0.6936687478 | BP66: =IF(consumption_mix_calcs!BO26<>"",consumption_mix_calcs!BO26,"") -> 0 | BQ66: =IF(consumption_mix_calcs!BP26<>"",consumption_mix_calcs!BP26,"") -> 2364.260656 | BR66: =IF(consumption_mix_calcs!BQ26<>"",consumption_mix_calcs!BQ26,"") -> 0 | BS66: =IF(consumption_mix_calcs!BR26<>"",consumption_mix_calcs!BR26,"") -> 0 | BT66: =IF(consumption_mix_calcs!BS26<>"",consumption_mix_calcs!BS26,"") -> 0 | BU66: =IF(consumption_mix_calcs!BT26<>"",consumption_mix_calcs!BT26,"") -> 7.547606865 | BV66: =IF(consumption_mix_calcs!BU26<>"",consumption_mix_calcs!BU26,"") -> 0 | BW66: =IF(consumption_mix_calcs!BV26<>"",consumption_mix_calcs!BV26,"") ->  | BX66: =IF(consumption_mix_calcs!BW26<>"",consumption_mix_calcs!BW26,"") -> 
A67: Elementary flows/resource | B67: Water, reclaimed | C67: 601.0812543 | D67: =IF(consumption_mix_calcs!C27<>"",consumption_mix_calcs!C27,"") -> 0 | E67: =IF(consumption_mix_calcs!D27<>"",consumption_mix_calcs!D27,"") -> 0 | F67: =IF(consumption_mix_calcs!E27<>"",consumption_mix_calcs!E27,"") -> 0 | G67: =IF(consumption_mix_calcs!F27<>"",consumption_mix_calcs!F27,"") -> 0 | H67: =IF(consumption_mix_calcs!G27<>"",consumption_mix_calcs!G27,"") -> 0 | I67: =IF(consumption_mix_calcs!H27<>"",consumption_mix_calcs!H27,"") -> 0.005473496785 | J67: =IF(consumption_mix_calcs!I27<>"",consumption_mix_calcs!I27,"") -> 0 | K67: =IF(consumption_mix_calcs!J27<>"",consumption_mix_calcs!J27,"") -> 0 | L67: =IF(consumption_mix_calcs!K27<>"",consumption_mix_calcs!K27,"") -> 2.849733243 | M67: =IF(consumption_mix_calcs!L27<>"",consumption_mix_calcs!L27,"") -> 0 | N67: =IF(consumption_mix_calcs!M27<>"",consumption_mix_calcs!M27,"") -> 0 | O67: =IF(consumption_mix_calcs!N27<>"",consumption_mix_calcs!N27,"") -> 0 | P67: =IF(consumption_mix_calcs!O27<>"",consumption_mix_calcs!O27,"") -> 0 | Q67: =IF(consumption_mix_calcs!P27<>"",consumption_mix_calcs!P27,"") -> 0 | R67: =IF(consumption_mix_calcs!Q27<>"",consumption_mix_calcs!Q27,"") -> 0 | S67: =IF(consumption_mix_calcs!R27<>"",consumption_mix_calcs!R27,"") -> 0 | T67: =IF(consumption_mix_calcs!S27<>"",consumption_mix_calcs!S27,"") -> 5.02849241 | U67: =IF(consumption_mix_calcs!T27<>"",consumption_mix_calcs!T27,"") -> 14.40009905 | V67: =IF(consumption_mix_calcs!U27<>"",consumption_mix_calcs!U27,"") -> 400.6143865 | W67: =IF(consumption_mix_calcs!V27<>"",consumption_mix_calcs!V27,"") -> 0 | X67: =IF(consumption_mix_calcs!W27<>"",consumption_mix_calcs!W27,"") -> 0 | Y67: =IF(consumption_mix_calcs!X27<>"",consumption_mix_calcs!X27,"") -> 0 | Z67: =IF(consumption_mix_calcs!Y27<>"",consumption_mix_calcs!Y27,"") -> 0 | AA67: =IF(consumption_mix_calcs!Z27<>"",consumption_mix_calcs!Z27,"") -> 0 | AB67: =IF(consumption_mix_calcs!AA27<>"",consumption_mix_calcs!AA27,"") -> 0 | AC67: =IF(consumption_mix_calcs!AB27<>"",consumption_mix_calcs!AB27,"") -> 2.038896738 | AD67: =IF(consumption_mix_calcs!AC27<>"",consumption_mix_calcs!AC27,"") -> 0 | AE67: =IF(consumption_mix_calcs!AD27<>"",consumption_mix_calcs!AD27,"") -> 0 | AF67: =IF(consumption_mix_calcs!AE27<>"",consumption_mix_calcs!AE27,"") -> 0 | AG67: =IF(consumption_mix_calcs!AF27<>"",consumption_mix_calcs!AF27,"") -> 0 | AH67: =IF(consumption_mix_calcs!AG27<>"",consumption_mix_calcs!AG27,"") -> 0.6512272852 | AI67: =IF(consumption_mix_calcs!AH27<>"",consumption_mix_calcs!AH27,"") -> 0 | AJ67: =IF(consumption_mix_calcs!AI27<>"",consumption_mix_calcs!AI27,"") -> 1.419906125 | AK67: =IF(consumption_mix_calcs!AJ27<>"",consumption_mix_calcs!AJ27,"") -> 0 | AL67: =IF(consumption_mix_calcs!AK27<>"",consumption_mix_calcs!AK27,"") -> 0 | AM67: =IF(consumption_mix_calcs!AL27<>"",consumption_mix_calcs!AL27,"") -> 0.1911790088 | AN67: =IF(consumption_mix_calcs!AM27<>"",consumption_mix_calcs!AM27,"") -> 0.05320802973 | AO67: =IF(consumption_mix_calcs!AN27<>"",consumption_mix_calcs!AN27,"") -> 0 | AP67: =IF(consumption_mix_calcs!AO27<>"",consumption_mix_calcs!AO27,"") -> 0 | AQ67: =IF(consumption_mix_calcs!AP27<>"",consumption_mix_calcs!AP27,"") -> 2.786913812e-25 | AR67: =IF(consumption_mix_calcs!AQ27<>"",consumption_mix_calcs!AQ27,"") -> 0 | AS67: =IF(consumption_mix_calcs!AR27<>"",consumption_mix_calcs!AR27,"") -> 0 | AT67: =IF(consumption_mix_calcs!AS27<>"",consumption_mix_calcs!AS27,"") -> 0.3557168964 | AU67: =IF(consumption_mix_calcs!AT27<>"",consumption_mix_calcs!AT27,"") -> 0.6978457772 | AV67: =IF(consumption_mix_calcs!AU27<>"",consumption_mix_calcs!AU27,"") -> 0 | AW67: =IF(consumption_mix_calcs!AV27<>"",consumption_mix_calcs!AV27,"") -> 0 | AX67: =IF(consumption_mix_calcs!AW27<>"",consumption_mix_calcs!AW27,"") -> 0 | AY67: =IF(consumption_mix_calcs!AX27<>"",consumption_mix_calcs!AX27,"") -> 0 | AZ67: =IF(consumption_mix_calcs!AY27<>"",consumption_mix_calcs!AY27,"") -> 0 | BA67: =IF(consumption_mix_calcs!AZ27<>"",consumption_mix_calcs!AZ27,"") -> 128.1702414 | BB67: =IF(consumption_mix_calcs!BA27<>"",consumption_mix_calcs!BA27,"") -> 0 | BC67: =IF(consumption_mix_calcs!BB27<>"",consumption_mix_calcs!BB27,"") -> 0 | BD67: =IF(consumption_mix_calcs!BC27<>"",consumption_mix_calcs!BC27,"") -> 0 | BE67: =IF(consumption_mix_calcs!BD27<>"",consumption_mix_calcs!BD27,"") -> 0 | BF67: =IF(consumption_mix_calcs!BE27<>"",consumption_mix_calcs!BE27,"") -> 26.62835766 | BG67: =IF(consumption_mix_calcs!BF27<>"",consumption_mix_calcs!BF27,"") -> 0 | BH67: =IF(consumption_mix_calcs!BG27<>"",consumption_mix_calcs!BG27,"") -> 0 | BI67: =IF(consumption_mix_calcs!BH27<>"",consumption_mix_calcs!BH27,"") -> 0 | BJ67: =IF(consumption_mix_calcs!BI27<>"",consumption_mix_calcs!BI27,"") -> 0 | BK67: =IF(consumption_mix_calcs!BJ27<>"",consumption_mix_calcs!BJ27,"") -> 0 | BL67: =IF(consumption_mix_calcs!BK27<>"",consumption_mix_calcs!BK27,"") -> 5.560790342 | BM67: =IF(consumption_mix_calcs!BL27<>"",consumption_mix_calcs!BL27,"") -> 10.58206023 | BN67: =IF(consumption_mix_calcs!BM27<>"",consumption_mix_calcs!BM27,"") -> 0 | BO67: =IF(consumption_mix_calcs!BN27<>"",consumption_mix_calcs!BN27,"") -> 0 | BP67: =IF(consumption_mix_calcs!BO27<>"",consumption_mix_calcs!BO27,"") -> 0.7458119285 | BQ67: =IF(consumption_mix_calcs!BP27<>"",consumption_mix_calcs!BP27,"") -> 0.8527656029 | BR67: =IF(consumption_mix_calcs!BQ27<>"",consumption_mix_calcs!BQ27,"") -> 0 | BS67: =IF(consumption_mix_calcs!BR27<>"",consumption_mix_calcs!BR27,"") -> 0 | BT67: =IF(consumption_mix_calcs!BS27<>"",consumption_mix_calcs!BS27,"") -> 0 | BU67: =IF(consumption_mix_calcs!BT27<>"",consumption_mix_calcs!BT27,"") -> 0.235062659 | BV67: =IF(consumption_mix_calcs!BU27<>"",consumption_mix_calcs!BU27,"") -> 0 | BW67: =IF(consumption_mix_calcs!BV27<>"",consumption_mix_calcs!BV27,"") ->  | BX67: =IF(consumption_mix_calcs!BW27<>"",consumption_mix_calcs!BW27,"") -> 
A68: Elementary flows/resource | B68: Water, reclaimed | C68: 2.337063776 | D68: =IF(consumption_mix_calcs!C28<>"",consumption_mix_calcs!C28,"") -> 0 | E68: =IF(consumption_mix_calcs!D28<>"",consumption_mix_calcs!D28,"") -> 0.02704152627 | F68: =IF(consumption_mix_calcs!E28<>"",consumption_mix_calcs!E28,"") -> 0 | G68: =IF(consumption_mix_calcs!F28<>"",consumption_mix_calcs!F28,"") -> 0.03161606351 | H68: =IF(consumption_mix_calcs!G28<>"",consumption_mix_calcs!G28,"") -> 0 | I68: =IF(consumption_mix_calcs!H28<>"",consumption_mix_calcs!H28,"") -> 0.005473496785 | J68: =IF(consumption_mix_calcs!I28<>"",consumption_mix_calcs!I28,"") -> 0 | K68: =IF(consumption_mix_calcs!J28<>"",consumption_mix_calcs!J28,"") -> 0.01726265166 | L68: =IF(consumption_mix_calcs!K28<>"",consumption_mix_calcs!K28,"") -> 0 | M68: =IF(consumption_mix_calcs!L28<>"",consumption_mix_calcs!L28,"") -> 0 | N68: =IF(consumption_mix_calcs!M28<>"",consumption_mix_calcs!M28,"") -> 0.0005620445841 | O68: =IF(consumption_mix_calcs!N28<>"",consumption_mix_calcs!N28,"") -> 0.08146395822 | P68: =IF(consumption_mix_calcs!O28<>"",consumption_mix_calcs!O28,"") -> 0.0007586605728 | Q68: =IF(consumption_mix_calcs!P28<>"",consumption_mix_calcs!P28,"") -> 0 | R68: =IF(consumption_mix_calcs!Q28<>"",consumption_mix_calcs!Q28,"") -> 0 | S68: =IF(consumption_mix_calcs!R28<>"",consumption_mix_calcs!R28,"") -> 0.006306964973 | T68: =IF(consumption_mix_calcs!S28<>"",consumption_mix_calcs!S28,"") -> 0.1228409437 | U68: =IF(consumption_mix_calcs!T28<>"",consumption_mix_calcs!T28,"") -> 0.004474321954 | V68: =IF(consumption_mix_calcs!U28<>"",consumption_mix_calcs!U28,"") -> 3.259965809e-06 | W68: =IF(consumption_mix_calcs!V28<>"",consumption_mix_calcs!V28,"") -> 0 | X68: =IF(consumption_mix_calcs!W28<>"",consumption_mix_calcs!W28,"") -> 0 | Y68: =IF(consumption_mix_calcs!X28<>"",consumption_mix_calcs!X28,"") -> 0 | Z68: =IF(consumption_mix_calcs!Y28<>"",consumption_mix_calcs!Y28,"") -> 0 | AA68: =IF(consumption_mix_calcs!Z28<>"",consumption_mix_calcs!Z28,"") -> 0 | AB68: =IF(consumption_mix_calcs!AA28<>"",consumption_mix_calcs!AA28,"") -> 0 | AC68: =IF(consumption_mix_calcs!AB28<>"",consumption_mix_calcs!AB28,"") -> 0.0005571951481 | AD68: =IF(consumption_mix_calcs!AC28<>"",consumption_mix_calcs!AC28,"") -> 0 | AE68: =IF(consumption_mix_calcs!AD28<>"",consumption_mix_calcs!AD28,"") -> 0 | AF68: =IF(consumption_mix_calcs!AE28<>"",consumption_mix_calcs!AE28,"") -> 8.925754633e-05 | AG68: =IF(consumption_mix_calcs!AF28<>"",consumption_mix_calcs!AF28,"") -> 0.01316685219 | AH68: =IF(consumption_mix_calcs!AG28<>"",consumption_mix_calcs!AG28,"") -> 0.1368550011 | AI68: =IF(consumption_mix_calcs!AH28<>"",consumption_mix_calcs!AH28,"") -> 0 | AJ68: =IF(consumption_mix_calcs!AI28<>"",consumption_mix_calcs!AI28,"") -> 0.4376756025 | AK68: =IF(consumption_mix_calcs!AJ28<>"",consumption_mix_calcs!AJ28,"") -> 0 | AL68: =IF(consumption_mix_calcs!AK28<>"",consumption_mix_calcs!AK28,"") -> 0 | AM68: =IF(consumption_mix_calcs!AL28<>"",consumption_mix_calcs!AL28,"") -> 0.00821824656 | AN68: =IF(consumption_mix_calcs!AM28<>"",consumption_mix_calcs!AM28,"") -> 0.05320802973 | AO68: =IF(consumption_mix_calcs!AN28<>"",consumption_mix_calcs!AN28,"") -> 0 | AP68: =IF(consumption_mix_calcs!AO28<>"",consumption_mix_calcs!AO28,"") -> 0 | AQ68: =IF(consumption_mix_calcs!AP28<>"",consumption_mix_calcs!AP28,"") -> 9.453405831e-05 | AR68: =IF(consumption_mix_calcs!AQ28<>"",consumption_mix_calcs!AQ28,"") -> 0.04087981407 | AS68: =IF(consumption_mix_calcs!AR28<>"",consumption_mix_calcs!AR28,"") -> 0.003373993784 | AT68: =IF(consumption_mix_calcs!AS28<>"",consumption_mix_calcs!AS28,"") -> 0.3557168964 | AU68: =IF(consumption_mix_calcs!AT28<>"",consumption_mix_calcs!AT28,"") -> 0.06556426311 | AV68: =IF(consumption_mix_calcs!AU28<>"",consumption_mix_calcs!AU28,"") -> 0 | AW68: =IF(consumption_mix_calcs!AV28<>"",consumption_mix_calcs!AV28,"") -> 0.2547755452 | AX68: =IF(consumption_mix_calcs!AW28<>"",consumption_mix_calcs!AW28,"") -> 0 | AY68: =IF(consumption_mix_calcs!AX28<>"",consumption_mix_calcs!AX28,"") -> 0 | AZ68: =IF(consumption_mix_calcs!AY28<>"",consumption_mix_calcs!AY28,"") -> 0.001903140919 | BA68: =IF(consumption_mix_calcs!AZ28<>"",consumption_mix_calcs!AZ28,"") -> 0.09487701578 | BB68: =IF(consumption_mix_calcs!BA28<>"",consumption_mix_calcs!BA28,"") -> 0.03495720919 | BC68: =IF(consumption_mix_calcs!BB28<>"",consumption_mix_calcs!BB28,"") -> 0 | BD68: =IF(consumption_mix_calcs!BC28<>"",consumption_mix_calcs!BC28,"") -> 0 | BE68: =IF(consumption_mix_calcs!BD28<>"",consumption_mix_calcs!BD28,"") -> 0 | BF68: =IF(consumption_mix_calcs!BE28<>"",consumption_mix_calcs!BE28,"") -> 0.03693805428 | BG68: =IF(consumption_mix_calcs!BF28<>"",consumption_mix_calcs!BF28,"") -> 0 | BH68: =IF(consumption_mix_calcs!BG28<>"",consumption_mix_calcs!BG28,"") -> 0.004012632607 | BI68: =IF(consumption_mix_calcs!BH28<>"",consumption_mix_calcs!BH28,"") -> 0.0001121954079 | BJ68: =IF(consumption_mix_calcs!BI28<>"",consumption_mix_calcs!BI28,"") -> 0.004047749279 | BK68: =IF(consumption_mix_calcs!BJ28<>"",consumption_mix_calcs!BJ28,"") -> 0 | BL68: =IF(consumption_mix_calcs!BK28<>"",consumption_mix_calcs!BK28,"") -> 0.1101468459 | BM68: =IF(consumption_mix_calcs!BL28<>"",consumption_mix_calcs!BL28,"") -> 0.2362286179 | BN68: =IF(consumption_mix_calcs!BM28<>"",consumption_mix_calcs!BM28,"") -> 0.003333055572 | BO68: =IF(consumption_mix_calcs!BN28<>"",consumption_mix_calcs!BN28,"") -> 0 | BP68: =IF(consumption_mix_calcs!BO28<>"",consumption_mix_calcs!BO28,"") -> 0.003098341299 | BQ68: =IF(consumption_mix_calcs!BP28<>"",consumption_mix_calcs!BP28,"") -> 0.03481751899 | BR68: =IF(consumption_mix_calcs!BQ28<>"",consumption_mix_calcs!BQ28,"") -> 0.01799980976 | BS68: =IF(consumption_mix_calcs!BR28<>"",consumption_mix_calcs!BR28,"") -> 0 | BT68: =IF(consumption_mix_calcs!BS28<>"",consumption_mix_calcs!BS28,"") -> 0.01983217307 | BU68: =IF(consumption_mix_calcs!BT28<>"",consumption_mix_calcs!BT28,"") -> 0.06678029211 | BV68: =IF(consumption_mix_calcs!BU28<>"",consumption_mix_calcs!BU28,"") -> 0 | BW68: =IF(consumption_mix_calcs!BV28<>"",consumption_mix_calcs!BV28,"") ->  | BX68: =IF(consumption_mix_calcs!BW28<>"",consumption_mix_calcs!BW28,"") -> 
A69: Elementary flows/resource | B69: Water, saline | C69: 3453.51386 | D69: =IF(consumption_mix_calcs!C29<>"",consumption_mix_calcs!C29,"") -> 0 | E69: =IF(consumption_mix_calcs!D29<>"",consumption_mix_calcs!D29,"") -> 0 | F69: =IF(consumption_mix_calcs!E29<>"",consumption_mix_calcs!E29,"") -> 0 | G69: =IF(consumption_mix_calcs!F29<>"",consumption_mix_calcs!F29,"") -> 0 | H69: =IF(consumption_mix_calcs!G29<>"",consumption_mix_calcs!G29,"") -> 0 | I69: =IF(consumption_mix_calcs!H29<>"",consumption_mix_calcs!H29,"") -> 0.3348673097 | J69: =IF(consumption_mix_calcs!I29<>"",consumption_mix_calcs!I29,"") -> 0 | K69: =IF(consumption_mix_calcs!J29<>"",consumption_mix_calcs!J29,"") -> 0 | L69: =IF(consumption_mix_calcs!K29<>"",consumption_mix_calcs!K29,"") -> 710.5407612 | M69: =IF(consumption_mix_calcs!L29<>"",consumption_mix_calcs!L29,"") -> 0 | N69: =IF(consumption_mix_calcs!M29<>"",consumption_mix_calcs!M29,"") -> 0 | O69: =IF(consumption_mix_calcs!N29<>"",consumption_mix_calcs!N29,"") -> 46.33171866 | P69: =IF(consumption_mix_calcs!O29<>"",consumption_mix_calcs!O29,"") -> 481.6419393 | Q69: =IF(consumption_mix_calcs!P29<>"",consumption_mix_calcs!P29,"") -> 0 | R69: =IF(consumption_mix_calcs!Q29<>"",consumption_mix_calcs!Q29,"") -> 0 | S69: =IF(consumption_mix_calcs!R29<>"",consumption_mix_calcs!R29,"") -> 0 | T69: =IF(consumption_mix_calcs!S29<>"",consumption_mix_calcs!S29,"") -> 2.79853139 | U69: =IF(consumption_mix_calcs!T29<>"",consumption_mix_calcs!T29,"") -> 1.138267854 | V69: =IF(consumption_mix_calcs!U29<>"",consumption_mix_calcs!U29,"") -> 919.6724598 | W69: =IF(consumption_mix_calcs!V29<>"",consumption_mix_calcs!V29,"") -> 0 | X69: =IF(consumption_mix_calcs!W29<>"",consumption_mix_calcs!W29,"") -> 0 | Y69: =IF(consumption_mix_calcs!X29<>"",consumption_mix_calcs!X29,"") -> 0 | Z69: =IF(consumption_mix_calcs!Y29<>"",consumption_mix_calcs!Y29,"") -> 0 | AA69: =IF(consumption_mix_calcs!Z29<>"",consumption_mix_calcs!Z29,"") -> 0 | AB69: =IF(consumption_mix_calcs!AA29<>"",consumption_mix_calcs!AA29,"") -> 0 | AC69: =IF(consumption_mix_calcs!AB29<>"",consumption_mix_calcs!AB29,"") -> 63.92046243 | AD69: =IF(consumption_mix_calcs!AC29<>"",consumption_mix_calcs!AC29,"") -> 0 | AE69: =IF(consumption_mix_calcs!AD29<>"",consumption_mix_calcs!AD29,"") -> 0 | AF69: =IF(consumption_mix_calcs!AE29<>"",consumption_mix_calcs!AE29,"") -> 5.437043281 | AG69: =IF(consumption_mix_calcs!AF29<>"",consumption_mix_calcs!AF29,"") -> 0 | AH69: =IF(consumption_mix_calcs!AG29<>"",consumption_mix_calcs!AG29,"") -> 0 | AI69: =IF(consumption_mix_calcs!AH29<>"",consumption_mix_calcs!AH29,"") -> 0 | AJ69: =IF(consumption_mix_calcs!AI29<>"",consumption_mix_calcs!AI29,"") -> 0 | AK69: =IF(consumption_mix_calcs!AJ29<>"",consumption_mix_calcs!AJ29,"") -> 0 | AL69: =IF(consumption_mix_calcs!AK29<>"",consumption_mix_calcs!AK29,"") -> 0 | AM69: =IF(consumption_mix_calcs!AL29<>"",consumption_mix_calcs!AL29,"") -> 0 | AN69: =IF(consumption_mix_calcs!AM29<>"",consumption_mix_calcs!AM29,"") -> 4.558160473 | AO69: =IF(consumption_mix_calcs!AN29<>"",consumption_mix_calcs!AN29,"") -> 0 | AP69: =IF(consumption_mix_calcs!AO29<>"",consumption_mix_calcs!AO29,"") -> 0 | AQ69: =IF(consumption_mix_calcs!AP29<>"",consumption_mix_calcs!AP29,"") -> 451.1798584 | AR69: =IF(consumption_mix_calcs!AQ29<>"",consumption_mix_calcs!AQ29,"") -> 0 | AS69: =IF(consumption_mix_calcs!AR29<>"",consumption_mix_calcs!AR29,"") -> 0 | AT69: =IF(consumption_mix_calcs!AS29<>"",consumption_mix_calcs!AS29,"") -> 17.09816577 | AU69: =IF(consumption_mix_calcs!AT29<>"",consumption_mix_calcs!AT29,"") -> 18.74374391 | AV69: =IF(consumption_mix_calcs!AU29<>"",consumption_mix_calcs!AU29,"") -> 0 | AW69: =IF(consumption_mix_calcs!AV29<>"",consumption_mix_calcs!AV29,"") -> 0 | AX69: =IF(consumption_mix_calcs!AW29<>"",consumption_mix_calcs!AW29,"") -> 0 | AY69: =IF(consumption_mix_calcs!AX29<>"",consumption_mix_calcs!AX29,"") -> 0 | AZ69: =IF(consumption_mix_calcs!AY29<>"",consumption_mix_calcs!AY29,"") -> 0 | BA69: =IF(consumption_mix_calcs!AZ29<>"",consumption_mix_calcs!AZ29,"") -> 0 | BB69: =IF(consumption_mix_calcs!BA29<>"",consumption_mix_calcs!BA29,"") -> 0 | BC69: =IF(consumption_mix_calcs!BB29<>"",consumption_mix_calcs!BB29,"") -> 0 | BD69: =IF(consumption_mix_calcs!BC29<>"",consumption_mix_calcs!BC29,"") -> 0 | BE69: =IF(consumption_mix_calcs!BD29<>"",consumption_mix_calcs!BD29,"") -> 0 | BF69: =IF(consumption_mix_calcs!BE29<>"",consumption_mix_calcs!BE29,"") -> 0 | BG69: =IF(consumption_mix_calcs!BF29<>"",consumption_mix_calcs!BF29,"") -> 0 | BH69: =IF(consumption_mix_calcs!BG29<>"",consumption_mix_calcs!BG29,"") -> 0 | BI69: =IF(consumption_mix_calcs!BH29<>"",consumption_mix_calcs!BH29,"") -> 0 | BJ69: =IF(consumption_mix_calcs!BI29<>"",consumption_mix_calcs!BI29,"") -> 0 | BK69: =IF(consumption_mix_calcs!BJ29<>"",consumption_mix_calcs!BJ29,"") -> 0 | BL69: =IF(consumption_mix_calcs!BK29<>"",consumption_mix_calcs!BK29,"") -> 0 | BM69: =IF(consumption_mix_calcs!BL29<>"",consumption_mix_calcs!BL29,"") -> 0 | BN69: =IF(consumption_mix_calcs!BM29<>"",consumption_mix_calcs!BM29,"") -> 0 | BO69: =IF(consumption_mix_calcs!BN29<>"",consumption_mix_calcs!BN29,"") -> 0 | BP69: =IF(consumption_mix_calcs!BO29<>"",consumption_mix_calcs!BO29,"") -> 730.1178801 | BQ69: =IF(consumption_mix_calcs!BP29<>"",consumption_mix_calcs!BP29,"") -> 0 | BR69: =IF(consumption_mix_calcs!BQ29<>"",consumption_mix_calcs!BQ29,"") -> 0 | BS69: =IF(consumption_mix_calcs!BR29<>"",consumption_mix_calcs!BR29,"") -> 0 | BT69: =IF(consumption_mix_calcs!BS29<>"",consumption_mix_calcs!BS29,"") -> 0 | BU69: =IF(consumption_mix_calcs!BT29<>"",consumption_mix_calcs!BT29,"") -> 0 | BV69: =IF(consumption_mix_calcs!BU29<>"",consumption_mix_calcs!BU29,"") -> 0 | BW69: =IF(consumption_mix_calcs!BV29<>"",consumption_mix_calcs!BV29,"") ->  | BX69: =IF(consumption_mix_calcs!BW29<>"",consumption_mix_calcs!BW29,"") -> 
A70: Elementary flows/resource/air | B70: Air | C70: 2.677686014 | D70: =IF(consumption_mix_calcs!C30<>"",consumption_mix_calcs!C30,"") -> 0 | E70: =IF(consumption_mix_calcs!D30<>"",consumption_mix_calcs!D30,"") -> 4.994350994e-06 | F70: =IF(consumption_mix_calcs!E30<>"",consumption_mix_calcs!E30,"") -> 0 | G70: =IF(consumption_mix_calcs!F30<>"",consumption_mix_calcs!F30,"") -> 5.839230989e-06 | H70: =IF(consumption_mix_calcs!G30<>"",consumption_mix_calcs!G30,"") -> 0 | I70: =IF(consumption_mix_calcs!H30<>"",consumption_mix_calcs!H30,"") -> 7.132088786e-10 | J70: =IF(consumption_mix_calcs!I30<>"",consumption_mix_calcs!I30,"") -> 0 | K70: =IF(consumption_mix_calcs!J30<>"",consumption_mix_calcs!J30,"") -> 0.03463253281 | L70: =IF(consumption_mix_calcs!K30<>"",consumption_mix_calcs!K30,"") -> 0.07184016737 | M70: =IF(consumption_mix_calcs!L30<>"",consumption_mix_calcs!L30,"") -> 0 | N70: =IF(consumption_mix_calcs!M30<>"",consumption_mix_calcs!M30,"") -> 0.1806916185 | O70: =IF(consumption_mix_calcs!N30<>"",consumption_mix_calcs!N30,"") -> 0.0001519242728 | P70: =IF(consumption_mix_calcs!O30<>"",consumption_mix_calcs!O30,"") -> 0.1017208053 | Q70: =IF(consumption_mix_calcs!P30<>"",consumption_mix_calcs!P30,"") -> 0 | R70: =IF(consumption_mix_calcs!Q30<>"",consumption_mix_calcs!Q30,"") -> 0 | S70: =IF(consumption_mix_calcs!R30<>"",consumption_mix_calcs!R30,"") -> 1.164845374e-06 | T70: =IF(consumption_mix_calcs!S30<>"",consumption_mix_calcs!S30,"") -> 0.1206436108 | U70: =IF(consumption_mix_calcs!T30<>"",consumption_mix_calcs!T30,"") -> 0.000183874495 | V70: =IF(consumption_mix_calcs!U30<>"",consumption_mix_calcs!U30,"") -> 0.101156972 | W70: =IF(consumption_mix_calcs!V30<>"",consumption_mix_calcs!V30,"") -> 0 | X70: =IF(consumption_mix_calcs!W30<>"",consumption_mix_calcs!W30,"") -> 0 | Y70: =IF(consumption_mix_calcs!X30<>"",consumption_mix_calcs!X30,"") -> 0 | Z70: =IF(consumption_mix_calcs!Y30<>"",consumption_mix_calcs!Y30,"") -> 0 | AA70: =IF(consumption_mix_calcs!Z30<>"",consumption_mix_calcs!Z30,"") -> 0 | AB70: =IF(consumption_mix_calcs!AA30<>"",consumption_mix_calcs!AA30,"") -> 0 | AC70: =IF(consumption_mix_calcs!AB30<>"",consumption_mix_calcs!AB30,"") -> 0.119117444 | AD70: =IF(consumption_mix_calcs!AC30<>"",consumption_mix_calcs!AC30,"") -> 5.100087168e-05 | AE70: =IF(consumption_mix_calcs!AD30<>"",consumption_mix_calcs!AD30,"") -> 0.0007631708481 | AF70: =IF(consumption_mix_calcs!AE30<>"",consumption_mix_calcs!AE30,"") -> 3.230650339e-06 | AG70: =IF(consumption_mix_calcs!AF30<>"",consumption_mix_calcs!AF30,"") -> 0.0004500395508 | AH70: =IF(consumption_mix_calcs!AG30<>"",consumption_mix_calcs!AG30,"") -> 0.0001659478093 | AI70: =IF(consumption_mix_calcs!AH30<>"",consumption_mix_calcs!AH30,"") -> 0 | AJ70: =IF(consumption_mix_calcs!AI30<>"",consumption_mix_calcs!AI30,"") -> 0.310771214 | AK70: =IF(consumption_mix_calcs!AJ30<>"",consumption_mix_calcs!AJ30,"") -> 0 | AL70: =IF(consumption_mix_calcs!AK30<>"",consumption_mix_calcs!AK30,"") -> 0 | AM70: =IF(consumption_mix_calcs!AL30<>"",consumption_mix_calcs!AL30,"") -> 0.0006202658688 | AN70: =IF(consumption_mix_calcs!AM30<>"",consumption_mix_calcs!AM30,"") -> 0.00165955668 | AO70: =IF(consumption_mix_calcs!AN30<>"",consumption_mix_calcs!AN30,"") -> 0 | AP70: =IF(consumption_mix_calcs!AO30<>"",consumption_mix_calcs!AO30,"") -> 0 | AQ70: =IF(consumption_mix_calcs!AP30<>"",consumption_mix_calcs!AP30,"") -> 0.145491506 | AR70: =IF(consumption_mix_calcs!AQ30<>"",consumption_mix_calcs!AQ30,"") -> 7.550170725e-06 | AS70: =IF(consumption_mix_calcs!AR30<>"",consumption_mix_calcs!AR30,"") -> 0.0003466318479 | AT70: =IF(consumption_mix_calcs!AS30<>"",consumption_mix_calcs!AS30,"") -> 0.03732311819 | AU70: =IF(consumption_mix_calcs!AT30<>"",consumption_mix_calcs!AT30,"") -> 0.920680854 | AV70: =IF(consumption_mix_calcs!AU30<>"",consumption_mix_calcs!AU30,"") -> 0 | AW70: =IF(consumption_mix_calcs!AV30<>"",consumption_mix_calcs!AV30,"") -> 0.0003730659832 | AX70: =IF(consumption_mix_calcs!AW30<>"",consumption_mix_calcs!AW30,"") -> 2.285000661e-06 | AY70: =IF(consumption_mix_calcs!AX30<>"",consumption_mix_calcs!AX30,"") -> 0 | AZ70: =IF(consumption_mix_calcs!AY30<>"",consumption_mix_calcs!AY30,"") -> 6.899828454e-05 | BA70: =IF(consumption_mix_calcs!AZ30<>"",consumption_mix_calcs!AZ30,"") -> 0.0001022558457 | BB70: =IF(consumption_mix_calcs!BA30<>"",consumption_mix_calcs!BA30,"") -> 1.147015754e-05 | BC70: =IF(consumption_mix_calcs!BB30<>"",consumption_mix_calcs!BB30,"") -> 0 | BD70: =IF(consumption_mix_calcs!BC30<>"",consumption_mix_calcs!BC30,"") -> 0 | BE70: =IF(consumption_mix_calcs!BD30<>"",consumption_mix_calcs!BD30,"") -> 0 | BF70: =IF(consumption_mix_calcs!BE30<>"",consumption_mix_calcs!BE30,"") -> 0.1180094963 | BG70: =IF(consumption_mix_calcs!BF30<>"",consumption_mix_calcs!BF30,"") -> 0 | BH70: =IF(consumption_mix_calcs!BG30<>"",consumption_mix_calcs!BG30,"") -> 0.0001454778065 | BI70: =IF(consumption_mix_calcs!BH30<>"",consumption_mix_calcs!BH30,"") -> 0.02998801107 | BJ70: =IF(consumption_mix_calcs!BI30<>"",consumption_mix_calcs!BI30,"") -> 0.0003488648464 | BK70: =IF(consumption_mix_calcs!BJ30<>"",consumption_mix_calcs!BJ30,"") -> 0 | BL70: =IF(consumption_mix_calcs!BK30<>"",consumption_mix_calcs!BK30,"") -> 0.152387914 | BM70: =IF(consumption_mix_calcs!BL30<>"",consumption_mix_calcs!BL30,"") -> 0.05561278984 | BN70: =IF(consumption_mix_calcs!BM30<>"",consumption_mix_calcs!BM30,"") -> 6.155883821e-07 | BO70: =IF(consumption_mix_calcs!BN30<>"",consumption_mix_calcs!BN30,"") -> 0 | BP70: =IF(consumption_mix_calcs!BO30<>"",consumption_mix_calcs!BO30,"") -> 0.0001870857594 | BQ70: =IF(consumption_mix_calcs!BP30<>"",consumption_mix_calcs!BP30,"") -> 0.1719178904 | BR70: =IF(consumption_mix_calcs!BQ30<>"",consumption_mix_calcs!BQ30,"") -> 3.324419148e-06 | BS70: =IF(consumption_mix_calcs!BR30<>"",consumption_mix_calcs!BR30,"") -> 0 | BT70: =IF(consumption_mix_calcs!BS30<>"",consumption_mix_calcs!BS30,"") -> 1.910370736e-05 | BU70: =IF(consumption_mix_calcs!BT30<>"",consumption_mix_calcs!BT30,"") -> 2.232941883e-05 | BV70: =IF(consumption_mix_calcs!BU30<>"",consumption_mix_calcs!BU30,"") -> 0 | BW70: =IF(consumption_mix_calcs!BV30<>"",consumption_mix_calcs!BV30,"") ->  | BX70: =IF(consumption_mix_calcs!BW30<>"",consumption_mix_calcs!BW30,"") -> 
A71: Elementary flows/resource/air | B71: Carbon dioxide | C71: 0.03837220846 | D71: =IF(consumption_mix_calcs!C31<>"",consumption_mix_calcs!C31,"") -> 0 | E71: =IF(consumption_mix_calcs!D31<>"",consumption_mix_calcs!D31,"") -> 2.687020203e-06 | F71: =IF(consumption_mix_calcs!E31<>"",consumption_mix_calcs!E31,"") -> 4.217526549e-07 | G71: =IF(consumption_mix_calcs!F31<>"",consumption_mix_calcs!F31,"") -> 2.796280695e-06 | H71: =IF(consumption_mix_calcs!G31<>"",consumption_mix_calcs!G31,"") -> 2.452120289e-07 | I71: =IF(consumption_mix_calcs!H31<>"",consumption_mix_calcs!H31,"") -> 3.885777281e-08 | J71: =IF(consumption_mix_calcs!I31<>"",consumption_mix_calcs!I31,"") -> 3.509768309e-06 | K71: =IF(consumption_mix_calcs!J31<>"",consumption_mix_calcs!J31,"") -> 0.0004936048379 | L71: =IF(consumption_mix_calcs!K31<>"",consumption_mix_calcs!K31,"") -> 0.001048161412 | M71: =IF(consumption_mix_calcs!L31<>"",consumption_mix_calcs!L31,"") -> 3.467839373e-09 | N71: =IF(consumption_mix_calcs!M31<>"",consumption_mix_calcs!M31,"") -> 0.002560543169 | O71: =IF(consumption_mix_calcs!N31<>"",consumption_mix_calcs!N31,"") -> 8.986515244e-06 | P71: =IF(consumption_mix_calcs!O31<>"",consumption_mix_calcs!O31,"") -> 0.001446135467 | Q71: =IF(consumption_mix_calcs!P31<>"",consumption_mix_calcs!P31,"") -> 0 | R71: =IF(consumption_mix_calcs!Q31<>"",consumption_mix_calcs!Q31,"") -> 5.893964408e-07 | S71: =IF(consumption_mix_calcs!R31<>"",consumption_mix_calcs!R31,"") -> 4.358285376e-07 | T71: =IF(consumption_mix_calcs!S31<>"",consumption_mix_calcs!S31,"") -> 0.001746184444 | U71: =IF(consumption_mix_calcs!T31<>"",consumption_mix_calcs!T31,"") -> 7.480725589e-06 | V71: =IF(consumption_mix_calcs!U31<>"",consumption_mix_calcs!U31,"") -> 0.001438469279 | W71: =IF(consumption_mix_calcs!V31<>"",consumption_mix_calcs!V31,"") -> 1.290043467e-07 | X71: =IF(consumption_mix_calcs!W31<>"",consumption_mix_calcs!W31,"") -> 1.505382023e-06 | Y71: =IF(consumption_mix_calcs!X31<>"",consumption_mix_calcs!X31,"") -> 0 | Z71: =IF(consumption_mix_calcs!Y31<>"",consumption_mix_calcs!Y31,"") -> 4.657662492e-07 | AA71: =IF(consumption_mix_calcs!Z31<>"",consumption_mix_calcs!Z31,"") -> 1.606212587e-09 | AB71: =IF(consumption_mix_calcs!AA31<>"",consumption_mix_calcs!AA31,"") -> 6.662581999e-10 | AC71: =IF(consumption_mix_calcs!AB31<>"",consumption_mix_calcs!AB31,"") -> 0.00169006812 | AD71: =IF(consumption_mix_calcs!AC31<>"",consumption_mix_calcs!AC31,"") -> 1.417937078e-06 | AE71: =IF(consumption_mix_calcs!AD31<>"",consumption_mix_calcs!AD31,"") -> 9.111972935e-06 | AF71: =IF(consumption_mix_calcs!AE31<>"",consumption_mix_calcs!AE31,"") -> 1.026720074e-06 | AG71: =IF(consumption_mix_calcs!AF31<>"",consumption_mix_calcs!AF31,"") -> 1.7454341e-05 | AH71: =IF(consumption_mix_calcs!AG31<>"",consumption_mix_calcs!AG31,"") -> 1.458296993e-05 | AI71: =IF(consumption_mix_calcs!AH31<>"",consumption_mix_calcs!AH31,"") -> 9.675426219e-11 | AJ71: =IF(consumption_mix_calcs!AI31<>"",consumption_mix_calcs!AI31,"") -> 0.004475559598 | AK71: =IF(consumption_mix_calcs!AJ31<>"",consumption_mix_calcs!AJ31,"") -> 0 | AL71: =IF(consumption_mix_calcs!AK31<>"",consumption_mix_calcs!AK31,"") -> 0 | AM71: =IF(consumption_mix_calcs!AL31<>"",consumption_mix_calcs!AL31,"") -> 1.665538527e-05 | AN71: =IF(consumption_mix_calcs!AM31<>"",consumption_mix_calcs!AM31,"") -> 2.360102581e-05 | AO71: =IF(consumption_mix_calcs!AN31<>"",consumption_mix_calcs!AN31,"") -> 7.177245816e-07 | AP71: =IF(consumption_mix_calcs!AO31<>"",consumption_mix_calcs!AO31,"") -> 0 | AQ71: =IF(consumption_mix_calcs!AP31<>"",consumption_mix_calcs!AP31,"") -> 0.002064923083 | AR71: =IF(consumption_mix_calcs!AQ31<>"",consumption_mix_calcs!AQ31,"") -> 2.221426409e-06 | AS71: =IF(consumption_mix_calcs!AR31<>"",consumption_mix_calcs!AR31,"") -> 9.703416046e-06 | AT71: =IF(consumption_mix_calcs!AS31<>"",consumption_mix_calcs!AS31,"") -> 0.0005283849789 | AU71: =IF(consumption_mix_calcs!AT31<>"",consumption_mix_calcs!AT31,"") -> 0.01313176511 | AV71: =IF(consumption_mix_calcs!AU31<>"",consumption_mix_calcs!AU31,"") -> 0 | AW71: =IF(consumption_mix_calcs!AV31<>"",consumption_mix_calcs!AV31,"") -> 1.894890433e-05 | AX71: =IF(consumption_mix_calcs!AW31<>"",consumption_mix_calcs!AW31,"") -> 3.014738551e-06 | AY71: =IF(consumption_mix_calcs!AX31<>"",consumption_mix_calcs!AX31,"") -> 2.854931751e-06 | AZ71: =IF(consumption_mix_calcs!AY31<>"",consumption_mix_calcs!AY31,"") -> 3.218249891e-06 | BA71: =IF(consumption_mix_calcs!AZ31<>"",consumption_mix_calcs!AZ31,"") -> 7.180534155e-06 | BB71: =IF(consumption_mix_calcs!BA31<>"",consumption_mix_calcs!BA31,"") -> 2.439087801e-06 | BC71: =IF(consumption_mix_calcs!BB31<>"",consumption_mix_calcs!BB31,"") -> 0 | BD71: =IF(consumption_mix_calcs!BC31<>"",consumption_mix_calcs!BC31,"") -> 0 | BE71: =IF(consumption_mix_calcs!BD31<>"",consumption_mix_calcs!BD31,"") -> 1.311400715e-06 | BF71: =IF(consumption_mix_calcs!BE31<>"",consumption_mix_calcs!BE31,"") -> 0.001675866304 | BG71: =IF(consumption_mix_calcs!BF31<>"",consumption_mix_calcs!BF31,"") -> 0 | BH71: =IF(consumption_mix_calcs!BG31<>"",consumption_mix_calcs!BG31,"") -> 5.659528648e-06 | BI71: =IF(consumption_mix_calcs!BH31<>"",consumption_mix_calcs!BH31,"") -> 0.0004258610571 | BJ71: =IF(consumption_mix_calcs!BI31<>"",consumption_mix_calcs!BI31,"") -> 1.062429864e-05 | BK71: =IF(consumption_mix_calcs!BJ31<>"",consumption_mix_calcs!BJ31,"") -> 0 | BL71: =IF(consumption_mix_calcs!BK31<>"",consumption_mix_calcs!BK31,"") -> 0.002182989008 | BM71: =IF(consumption_mix_calcs!BL31<>"",consumption_mix_calcs!BL31,"") -> 0.0008119577095 | BN71: =IF(consumption_mix_calcs!BM31<>"",consumption_mix_calcs!BM31,"") -> 1.72935522e-07 | BO71: =IF(consumption_mix_calcs!BN31<>"",consumption_mix_calcs!BN31,"") -> 3.26480946e-07 | BP71: =IF(consumption_mix_calcs!BO31<>"",consumption_mix_calcs!BO31,"") -> 6.972528064e-06 | BQ71: =IF(consumption_mix_calcs!BP31<>"",consumption_mix_calcs!BP31,"") -> 0.002451274422 | BR71: =IF(consumption_mix_calcs!BQ31<>"",consumption_mix_calcs!BQ31,"") -> 1.222273744e-06 | BS71: =IF(consumption_mix_calcs!BR31<>"",consumption_mix_calcs!BR31,"") -> 3.843300178e-06 | BT71: =IF(consumption_mix_calcs!BS31<>"",consumption_mix_calcs!BS31,"") -> 1.418342904e-06 | BU71: =IF(consumption_mix_calcs!BT31<>"",consumption_mix_calcs!BT31,"") -> 5.462662975e-06 | BV71: =IF(consumption_mix_calcs!BU31<>"",consumption_mix_calcs!BU31,"") -> 0 | BW71: =IF(consumption_mix_calcs!BV31<>"",consumption_mix_calcs!BV31,"") ->  | BX71: =IF(consumption_mix_calcs!BW31<>"",consumption_mix_calcs!BW31,"") -> 
A72: Elementary flows/resource/air | B72: Energy, solar | C72: 0.2307823097 | D72: =IF(consumption_mix_calcs!C32<>"",consumption_mix_calcs!C32,"") -> 0 | E72: =IF(consumption_mix_calcs!D32<>"",consumption_mix_calcs!D32,"") -> 0.002092225278 | F72: =IF(consumption_mix_calcs!E32<>"",consumption_mix_calcs!E32,"") -> 0.0001146358386 | G72: =IF(consumption_mix_calcs!F32<>"",consumption_mix_calcs!F32,"") -> 0.001834917447 | H72: =IF(consumption_mix_calcs!G32<>"",consumption_mix_calcs!G32,"") -> 0.0001223250716 | I72: =IF(consumption_mix_calcs!H32<>"",consumption_mix_calcs!H32,"") -> 1.879528031e-05 | J72: =IF(consumption_mix_calcs!I32<>"",consumption_mix_calcs!I32,"") -> 0.0004346326056 | K72: =IF(consumption_mix_calcs!J32<>"",consumption_mix_calcs!J32,"") -> 0.001762808275 | L72: =IF(consumption_mix_calcs!K32<>"",consumption_mix_calcs!K32,"") -> 0.006914882467 | M72: =IF(consumption_mix_calcs!L32<>"",consumption_mix_calcs!L32,"") -> 0 | N72: =IF(consumption_mix_calcs!M32<>"",consumption_mix_calcs!M32,"") -> 0.004755870173 | O72: =IF(consumption_mix_calcs!N32<>"",consumption_mix_calcs!N32,"") -> 0.003223246742 | P72: =IF(consumption_mix_calcs!O32<>"",consumption_mix_calcs!O32,"") -> 0.003045499081 | Q72: =IF(consumption_mix_calcs!P32<>"",consumption_mix_calcs!P32,"") -> 0 | R72: =IF(consumption_mix_calcs!Q32<>"",consumption_mix_calcs!Q32,"") -> 0.0005907906156 | S72: =IF(consumption_mix_calcs!R32<>"",consumption_mix_calcs!R32,"") -> 0.0005420626231 | T72: =IF(consumption_mix_calcs!S32<>"",consumption_mix_calcs!S32,"") -> 0.01744465188 | U72: =IF(consumption_mix_calcs!T32<>"",consumption_mix_calcs!T32,"") -> 0.001669772473 | V72: =IF(consumption_mix_calcs!U32<>"",consumption_mix_calcs!U32,"") -> 0.004654991972 | W72: =IF(consumption_mix_calcs!V32<>"",consumption_mix_calcs!V32,"") -> 0.0002273650328 | X72: =IF(consumption_mix_calcs!W32<>"",consumption_mix_calcs!W32,"") -> 0.0004713162176 | Y72: =IF(consumption_mix_calcs!X32<>"",consumption_mix_calcs!X32,"") -> 0 | Z72: =IF(consumption_mix_calcs!Y32<>"",consumption_mix_calcs!Y32,"") -> 0.0001050315493 | AA72: =IF(consumption_mix_calcs!Z32<>"",consumption_mix_calcs!Z32,"") -> 6.846099343e-06 | AB72: =IF(consumption_mix_calcs!AA32<>"",consumption_mix_calcs!AA32,"") -> 4.123389218e-06 | AC72: =IF(consumption_mix_calcs!AB32<>"",consumption_mix_calcs!AB32,"") -> 0.00542302878 | AD72: =IF(consumption_mix_calcs!AC32<>"",consumption_mix_calcs!AC32,"") -> 0.0001645957616 | AE72: =IF(consumption_mix_calcs!AD32<>"",consumption_mix_calcs!AD32,"") -> 9.841511805e-05 | AF72: =IF(consumption_mix_calcs!AE32<>"",consumption_mix_calcs!AE32,"") -> 0.002619522189 | AG72: =IF(consumption_mix_calcs!AF32<>"",consumption_mix_calcs!AF32,"") -> 0.00373044193 | AH72: =IF(consumption_mix_calcs!AG32<>"",consumption_mix_calcs!AG32,"") -> 0.003001372762 | AI72: =IF(consumption_mix_calcs!AH32<>"",consumption_mix_calcs!AH32,"") -> 1.516844817e-06 | AJ72: =IF(consumption_mix_calcs!AI32<>"",consumption_mix_calcs!AI32,"") -> 0.04346021603 | AK72: =IF(consumption_mix_calcs!AJ32<>"",consumption_mix_calcs!AJ32,"") -> 0 | AL72: =IF(consumption_mix_calcs!AK32<>"",consumption_mix_calcs!AK32,"") -> 0 | AM72: =IF(consumption_mix_calcs!AL32<>"",consumption_mix_calcs!AL32,"") -> 0.001613950477 | AN72: =IF(consumption_mix_calcs!AM32<>"",consumption_mix_calcs!AM32,"") -> 7.430776068e-05 | AO72: =IF(consumption_mix_calcs!AN32<>"",consumption_mix_calcs!AN32,"") -> 0.0002131273171 | AP72: =IF(consumption_mix_calcs!AO32<>"",consumption_mix_calcs!AO32,"") -> 0 | AQ72: =IF(consumption_mix_calcs!AP32<>"",consumption_mix_calcs!AP32,"") -> 0.005770098 | AR72: =IF(consumption_mix_calcs!AQ32<>"",consumption_mix_calcs!AQ32,"") -> 0.001499357976 | AS72: =IF(consumption_mix_calcs!AR32<>"",consumption_mix_calcs!AR32,"") -> 0.001111960988 | AT72: =IF(consumption_mix_calcs!AS32<>"",consumption_mix_calcs!AS32,"") -> 9.74500464e-05 | AU72: =IF(consumption_mix_calcs!AT32<>"",consumption_mix_calcs!AT32,"") -> 0.04457927118 | AV72: =IF(consumption_mix_calcs!AU32<>"",consumption_mix_calcs!AU32,"") -> 0 | AW72: =IF(consumption_mix_calcs!AV32<>"",consumption_mix_calcs!AV32,"") -> 0.004615361992 | AX72: =IF(consumption_mix_calcs!AW32<>"",consumption_mix_calcs!AW32,"") -> 0.0005184857764 | AY72: =IF(consumption_mix_calcs!AX32<>"",consumption_mix_calcs!AX32,"") -> 0.0005682876353 | AZ72: =IF(consumption_mix_calcs!AY32<>"",consumption_mix_calcs!AY32,"") -> 0.0009591873281 | BA72: =IF(consumption_mix_calcs!AZ32<>"",consumption_mix_calcs!AZ32,"") -> 0.002671932333 | BB72: =IF(consumption_mix_calcs!BA32<>"",consumption_mix_calcs!BA32,"") -> 0.001875971597 | BC72: =IF(consumption_mix_calcs!BB32<>"",consumption_mix_calcs!BB32,"") -> 0 | BD72: =IF(consumption_mix_calcs!BC32<>"",consumption_mix_calcs!BC32,"") -> 0 | BE72: =IF(consumption_mix_calcs!BD32<>"",consumption_mix_calcs!BD32,"") -> 0.0007008683579 | BF72: =IF(consumption_mix_calcs!BE32<>"",consumption_mix_calcs!BE32,"") -> 0.002930948711 | BG72: =IF(consumption_mix_calcs!BF32<>"",consumption_mix_calcs!BF32,"") -> 0 | BH72: =IF(consumption_mix_calcs!BG32<>"",consumption_mix_calcs!BG32,"") -> 0.0008781807494 | BI72: =IF(consumption_mix_calcs!BH32<>"",consumption_mix_calcs!BH32,"") -> 0.001470563877 | BJ72: =IF(consumption_mix_calcs!BI32<>"",consumption_mix_calcs!BI32,"") -> 0.002699711335 | BK72: =IF(consumption_mix_calcs!BJ32<>"",consumption_mix_calcs!BJ32,"") -> 0 | BL72: =IF(consumption_mix_calcs!BK32<>"",consumption_mix_calcs!BK32,"") -> 0.01398843167 | BM72: =IF(consumption_mix_calcs!BL32<>"",consumption_mix_calcs!BL32,"") -> 0.01759563371 | BN72: =IF(consumption_mix_calcs!BM32<>"",consumption_mix_calcs!BM32,"") -> 0.0001195955723 | BO72: =IF(consumption_mix_calcs!BN32<>"",consumption_mix_calcs!BN32,"") -> 0.0002731797656 | BP72: =IF(consumption_mix_calcs!BO32<>"",consumption_mix_calcs!BO32,"") -> 0.001780555105 | BQ72: =IF(consumption_mix_calcs!BP32<>"",consumption_mix_calcs!BP32,"") -> 0.008071356206 | BR72: =IF(consumption_mix_calcs!BQ32<>"",consumption_mix_calcs!BQ32,"") -> 0.0008882040145 | BS72: =IF(consumption_mix_calcs!BR32<>"",consumption_mix_calcs!BR32,"") -> 0.0006454622149 | BT72: =IF(consumption_mix_calcs!BS32<>"",consumption_mix_calcs!BS32,"") -> 0.001112775073 | BU72: =IF(consumption_mix_calcs!BT32<>"",consumption_mix_calcs!BT32,"") -> 0.002922193377 | BV72: =IF(consumption_mix_calcs!BU32<>"",consumption_mix_calcs!BU32,"") -> 0 | BW72: =IF(consumption_mix_calcs!BV32<>"",consumption_mix_calcs!BV32,"") ->  | BX72: =IF(consumption_mix_calcs!BW32<>"",consumption_mix_calcs!BW32,"") -> 
A73: Elementary flows/resource/air | B73: Energy, wind | C73: 0.817599629 | D73: =IF(consumption_mix_calcs!C33<>"",consumption_mix_calcs!C33,"") -> 0 | E73: =IF(consumption_mix_calcs!D33<>"",consumption_mix_calcs!D33,"") -> 0.007412073264 | F73: =IF(consumption_mix_calcs!E33<>"",consumption_mix_calcs!E33,"") -> 0.0004061566986 | G73: =IF(consumption_mix_calcs!F33<>"",consumption_mix_calcs!F33,"") -> 0.006500573972 | H73: =IF(consumption_mix_calcs!G33<>"",consumption_mix_calcs!G33,"") -> 0.00043339978 | I73: =IF(consumption_mix_calcs!H33<>"",consumption_mix_calcs!H33,"") -> 6.659197854e-05 | J73: =IF(consumption_mix_calcs!I33<>"",consumption_mix_calcs!I33,"") -> 0.001539910611 | K73: =IF(consumption_mix_calcs!J33<>"",consumption_mix_calcs!J33,"") -> 0.006245166099 | L73: =IF(consumption_mix_calcs!K33<>"",consumption_mix_calcs!K33,"") -> 0.02449953559 | M73: =IF(consumption_mix_calcs!L33<>"",consumption_mix_calcs!L33,"") -> 0 | N73: =IF(consumption_mix_calcs!M33<>"",consumption_mix_calcs!M33,"") -> 0.01684864031 | O73: =IF(consumption_mix_calcs!N33<>"",consumption_mix_calcs!N33,"") -> 0.01141935595 | P73: =IF(consumption_mix_calcs!O33<>"",consumption_mix_calcs!O33,"") -> 0.0107892978 | Q73: =IF(consumption_mix_calcs!P33<>"",consumption_mix_calcs!P33,"") -> 0 | R73: =IF(consumption_mix_calcs!Q33<>"",consumption_mix_calcs!Q33,"") -> 0.002093181059 | S73: =IF(consumption_mix_calcs!R33<>"",consumption_mix_calcs!R33,"") -> 0.001920313377 | T73: =IF(consumption_mix_calcs!S33<>"",consumption_mix_calcs!S33,"") -> 0.06180287641 | U73: =IF(consumption_mix_calcs!T33<>"",consumption_mix_calcs!T33,"") -> 0.005915575573 | V73: =IF(consumption_mix_calcs!U33<>"",consumption_mix_calcs!U33,"") -> 0.01649262491 | W73: =IF(consumption_mix_calcs!V33<>"",consumption_mix_calcs!V33,"") -> 0.0008054900613 | X73: =IF(consumption_mix_calcs!W33<>"",consumption_mix_calcs!W33,"") -> 0.001669881263 | Y73: =IF(consumption_mix_calcs!X33<>"",consumption_mix_calcs!X33,"") -> 0 | Z73: =IF(consumption_mix_calcs!Y33<>"",consumption_mix_calcs!Y33,"") -> 0.0003721285407 | AA73: =IF(consumption_mix_calcs!Z33<>"",consumption_mix_calcs!Z33,"") -> 2.425584478e-05 | AB73: =IF(consumption_mix_calcs!AA33<>"",consumption_mix_calcs!AA33,"") -> 1.46091966e-05 | AC73: =IF(consumption_mix_calcs!AB33<>"",consumption_mix_calcs!AB33,"") -> 0.01921336528 | AD73: =IF(consumption_mix_calcs!AC33<>"",consumption_mix_calcs!AC33,"") -> 0.0005831655438 | AE73: =IF(consumption_mix_calcs!AD33<>"",consumption_mix_calcs!AD33,"") -> 0.0003486864137 | AF73: =IF(consumption_mix_calcs!AE33<>"",consumption_mix_calcs!AE33,"") -> 0.009280176207 | AG73: =IF(consumption_mix_calcs!AF33<>"",consumption_mix_calcs!AF33,"") -> 0.01321557507 | AH73: =IF(consumption_mix_calcs!AG33<>"",consumption_mix_calcs!AG33,"") -> 0.0106331219 | AI73: =IF(consumption_mix_calcs!AH33<>"",consumption_mix_calcs!AH33,"") -> 5.37419879e-06 | AJ73: =IF(consumption_mix_calcs!AI33<>"",consumption_mix_calcs!AI33,"") -> 0.1539661488 | AK73: =IF(consumption_mix_calcs!AJ33<>"",consumption_mix_calcs!AJ33,"") -> 0 | AL73: =IF(consumption_mix_calcs!AK33<>"",consumption_mix_calcs!AK33,"") -> 0 | AM73: =IF(consumption_mix_calcs!AL33<>"",consumption_mix_calcs!AL33,"") -> 0.005718040079 | AN73: =IF(consumption_mix_calcs!AM33<>"",consumption_mix_calcs!AM33,"") -> 0.0002632554455 | AO73: =IF(consumption_mix_calcs!AN33<>"",consumption_mix_calcs!AN33,"") -> 0.0007551136585 | AP73: =IF(consumption_mix_calcs!AO33<>"",consumption_mix_calcs!AO33,"") -> 0 | AQ73: =IF(consumption_mix_calcs!AP33<>"",consumption_mix_calcs!AP33,"") -> 0.02044327292 | AR73: =IF(consumption_mix_calcs!AQ33<>"",consumption_mix_calcs!AQ33,"") -> 0.005311610203 | AS73: =IF(consumption_mix_calcs!AR33<>"",consumption_mix_calcs!AR33,"") -> 0.003939104916 | AT73: =IF(consumption_mix_calcs!AS33<>"",consumption_mix_calcs!AS33,"") -> 0.0003452670266 | AU73: =IF(consumption_mix_calcs!AT33<>"",consumption_mix_calcs!AT33,"") -> 0.1579283275 | AV73: =IF(consumption_mix_calcs!AU33<>"",consumption_mix_calcs!AU33,"") -> 0 | AW73: =IF(consumption_mix_calcs!AV33<>"",consumption_mix_calcs!AV33,"") -> 0.01635032217 | AX73: =IF(consumption_mix_calcs!AW33<>"",consumption_mix_calcs!AW33,"") -> 0.001837003801 | AY73: =IF(consumption_mix_calcs!AX33<>"",consumption_mix_calcs!AX33,"") -> 0.002013452622 | AZ73: =IF(consumption_mix_calcs!AY33<>"",consumption_mix_calcs!AY33,"") -> 0.003398183534 | BA73: =IF(consumption_mix_calcs!AZ33<>"",consumption_mix_calcs!AZ33,"") -> 0.009466055228 | BB73: =IF(consumption_mix_calcs!BA33<>"",consumption_mix_calcs!BA33,"") -> 0.006645976485 | BC73: =IF(consumption_mix_calcs!BB33<>"",consumption_mix_calcs!BB33,"") -> 0 | BD73: =IF(consumption_mix_calcs!BC33<>"",consumption_mix_calcs!BC33,"") -> 0 | BE73: =IF(consumption_mix_calcs!BD33<>"",consumption_mix_calcs!BD33,"") -> 0.002483188346 | BF73: =IF(consumption_mix_calcs!BE33<>"",consumption_mix_calcs!BE33,"") -> 0.01038363484 | BG73: =IF(consumption_mix_calcs!BF33<>"",consumption_mix_calcs!BF33,"") -> 0 | BH73: =IF(consumption_mix_calcs!BG33<>"",consumption_mix_calcs!BG33,"") -> 0.003111082213 | BI73: =IF(consumption_mix_calcs!BH33<>"",consumption_mix_calcs!BH33,"") -> 0.005209816821 | BJ73: =IF(consumption_mix_calcs!BI33<>"",consumption_mix_calcs!BI33,"") -> 0.009563933652 | BK73: =IF(consumption_mix_calcs!BJ33<>"",consumption_mix_calcs!BJ33,"") -> 0 | BL73: =IF(consumption_mix_calcs!BK33<>"",consumption_mix_calcs!BK33,"") -> 0.04955731978 | BM73: =IF(consumption_mix_calcs!BL33<>"",consumption_mix_calcs!BL33,"") -> 0.06233638269 | BN73: =IF(consumption_mix_calcs!BM33<>"",consumption_mix_calcs!BM33,"") -> 0.0004236784169 | BO73: =IF(consumption_mix_calcs!BN33<>"",consumption_mix_calcs!BN33,"") -> 0.0009678804909 | BP73: =IF(consumption_mix_calcs!BO33<>"",consumption_mix_calcs!BO33,"") -> 0.006308056485 | BQ73: =IF(consumption_mix_calcs!BP33<>"",consumption_mix_calcs!BP33,"") -> 0.02859437495 | BR73: =IF(consumption_mix_calcs!BQ33<>"",consumption_mix_calcs!BQ33,"") -> 0.00314657815 | BS73: =IF(consumption_mix_calcs!BR33<>"",consumption_mix_calcs!BR33,"") -> 0.002286883452 | BT73: =IF(consumption_mix_calcs!BS33<>"",consumption_mix_calcs!BS33,"") -> 0.003942395871 | BU73: =IF(consumption_mix_calcs!BT33<>"",consumption_mix_calcs!BT33,"") -> 0.01035218562 | BV73: =IF(consumption_mix_calcs!BU33<>"",consumption_mix_calcs!BU33,"") -> 0 | BW73: =IF(consumption_mix_calcs!BV33<>"",consumption_mix_calcs!BV33,"") ->  | BX73: =IF(consumption_mix_calcs!BW33<>"",consumption_mix_calcs!BW33,"") -> 
A74: Elementary flows/resource/air | B74: Methane | C74: 6.639335719e-05 | D74: =IF(consumption_mix_calcs!C34<>"",consumption_mix_calcs!C34,"") -> 0 | E74: =IF(consumption_mix_calcs!D34<>"",consumption_mix_calcs!D34,"") -> 1.218491496e-10 | F74: =IF(consumption_mix_calcs!E34<>"",consumption_mix_calcs!E34,"") -> 0 | G74: =IF(consumption_mix_calcs!F34<>"",consumption_mix_calcs!F34,"") -> 1.424620199e-10 | H74: =IF(consumption_mix_calcs!G34<>"",consumption_mix_calcs!G34,"") -> 0 | I74: =IF(consumption_mix_calcs!H34<>"",consumption_mix_calcs!H34,"") -> 1.775075637e-14 | J74: =IF(consumption_mix_calcs!I34<>"",consumption_mix_calcs!I34,"") -> 0 | K74: =IF(consumption_mix_calcs!J34<>"",consumption_mix_calcs!J34,"") -> 8.59302886e-07 | L74: =IF(consumption_mix_calcs!K34<>"",consumption_mix_calcs!K34,"") -> 1.742533836e-06 | M74: =IF(consumption_mix_calcs!L34<>"",consumption_mix_calcs!L34,"") -> 0 | N74: =IF(consumption_mix_calcs!M34<>"",consumption_mix_calcs!M34,"") -> 4.48511216e-06 | O74: =IF(consumption_mix_calcs!N34<>"",consumption_mix_calcs!N34,"") -> 3.763297956e-09 | P74: =IF(consumption_mix_calcs!O34<>"",consumption_mix_calcs!O34,"") -> 2.524900803e-06 | Q74: =IF(consumption_mix_calcs!P34<>"",consumption_mix_calcs!P34,"") -> 0 | R74: =IF(consumption_mix_calcs!Q34<>"",consumption_mix_calcs!Q34,"") -> 0 | S74: =IF(consumption_mix_calcs!R34<>"",consumption_mix_calcs!R34,"") -> 2.84191917e-11 | T74: =IF(consumption_mix_calcs!S34<>"",consumption_mix_calcs!S34,"") -> 2.994603473e-06 | U74: =IF(consumption_mix_calcs!T34<>"",consumption_mix_calcs!T34,"") -> 4.560909423e-09 | V74: =IF(consumption_mix_calcs!U34<>"",consumption_mix_calcs!U34,"") -> 2.510915378e-06 | W74: =IF(consumption_mix_calcs!V34<>"",consumption_mix_calcs!V34,"") -> 0 | X74: =IF(consumption_mix_calcs!W34<>"",consumption_mix_calcs!W34,"") -> 0 | Y74: =IF(consumption_mix_calcs!X34<>"",consumption_mix_calcs!X34,"") -> 0 | Z74: =IF(consumption_mix_calcs!Y34<>"",consumption_mix_calcs!Y34,"") -> 0 | AA74: =IF(consumption_mix_calcs!Z34<>"",consumption_mix_calcs!Z34,"") -> 0 | AB74: =IF(consumption_mix_calcs!AA34<>"",consumption_mix_calcs!AA34,"") -> 0 | AC74: =IF(consumption_mix_calcs!AB34<>"",consumption_mix_calcs!AB34,"") -> 2.956728134e-06 | AD74: =IF(consumption_mix_calcs!AC34<>"",consumption_mix_calcs!AC34,"") -> 2.69981399e-10 | AE74: =IF(consumption_mix_calcs!AD34<>"",consumption_mix_calcs!AD34,"") -> 4.039968856e-09 | AF74: =IF(consumption_mix_calcs!AE34<>"",consumption_mix_calcs!AE34,"") -> 8.033302949e-11 | AG74: =IF(consumption_mix_calcs!AF34<>"",consumption_mix_calcs!AF34,"") -> 1.116633077e-08 | AH74: =IF(consumption_mix_calcs!AG34<>"",consumption_mix_calcs!AG34,"") -> 4.106691324e-09 | AI74: =IF(consumption_mix_calcs!AH34<>"",consumption_mix_calcs!AH34,"") -> 0 | AJ74: =IF(consumption_mix_calcs!AI34<>"",consumption_mix_calcs!AI34,"") -> 7.713884726e-06 | AK74: =IF(consumption_mix_calcs!AJ34<>"",consumption_mix_calcs!AJ34,"") -> 0 | AL74: =IF(consumption_mix_calcs!AK34<>"",consumption_mix_calcs!AK34,"") -> 0 | AM74: =IF(consumption_mix_calcs!AL34<>"",consumption_mix_calcs!AL34,"") -> 3.434335433e-09 | AN74: =IF(consumption_mix_calcs!AM34<>"",consumption_mix_calcs!AM34,"") -> 4.119323277e-08 | AO74: =IF(consumption_mix_calcs!AN34<>"",consumption_mix_calcs!AN34,"") -> 0 | AP74: =IF(consumption_mix_calcs!AO34<>"",consumption_mix_calcs!AO34,"") -> 0 | AQ74: =IF(consumption_mix_calcs!AP34<>"",consumption_mix_calcs!AP34,"") -> 3.61138143e-06 | AR74: =IF(consumption_mix_calcs!AQ34<>"",consumption_mix_calcs!AQ34,"") -> 1.84204491e-10 | AS74: =IF(consumption_mix_calcs!AR34<>"",consumption_mix_calcs!AR34,"") -> 8.587029248e-09 | AT74: =IF(consumption_mix_calcs!AS34<>"",consumption_mix_calcs!AS34,"") -> 9.264332859e-07 | AU74: =IF(consumption_mix_calcs!AT34<>"",consumption_mix_calcs!AT34,"") -> 2.285259056e-05 | AV74: =IF(consumption_mix_calcs!AU34<>"",consumption_mix_calcs!AU34,"") -> 0 | AW74: =IF(consumption_mix_calcs!AV34<>"",consumption_mix_calcs!AV34,"") -> 6.972212608e-09 | AX74: =IF(consumption_mix_calcs!AW34<>"",consumption_mix_calcs!AW34,"") -> 1.209602218e-11 | AY74: =IF(consumption_mix_calcs!AX34<>"",consumption_mix_calcs!AX34,"") -> 0 | AZ74: =IF(consumption_mix_calcs!AY34<>"",consumption_mix_calcs!AY34,"") -> 1.712092149e-09 | BA74: =IF(consumption_mix_calcs!AZ34<>"",consumption_mix_calcs!AZ34,"") -> 2.52971045e-09 | BB74: =IF(consumption_mix_calcs!BA34<>"",consumption_mix_calcs!BA34,"") -> 1.84058824e-10 | BC74: =IF(consumption_mix_calcs!BB34<>"",consumption_mix_calcs!BB34,"") -> 0 | BD74: =IF(consumption_mix_calcs!BC34<>"",consumption_mix_calcs!BC34,"") -> 0 | BE74: =IF(consumption_mix_calcs!BD34<>"",consumption_mix_calcs!BD34,"") -> 0 | BF74: =IF(consumption_mix_calcs!BE34<>"",consumption_mix_calcs!BE34,"") -> 2.929225171e-06 | BG74: =IF(consumption_mix_calcs!BF34<>"",consumption_mix_calcs!BF34,"") -> 0 | BH74: =IF(consumption_mix_calcs!BG34<>"",consumption_mix_calcs!BG34,"") -> 3.609820331e-09 | BI74: =IF(consumption_mix_calcs!BH34<>"",consumption_mix_calcs!BH34,"") -> 7.443648337e-07 | BJ74: =IF(consumption_mix_calcs!BI34<>"",consumption_mix_calcs!BI34,"") -> 8.643868199e-09 | BK74: =IF(consumption_mix_calcs!BJ34<>"",consumption_mix_calcs!BJ34,"") -> 0 | BL74: =IF(consumption_mix_calcs!BK34<>"",consumption_mix_calcs!BK34,"") -> 3.782542594e-06 | BM74: =IF(consumption_mix_calcs!BL34<>"",consumption_mix_calcs!BL34,"") -> 1.380401845e-06 | BN74: =IF(consumption_mix_calcs!BM34<>"",consumption_mix_calcs!BM34,"") -> 1.501875238e-11 | BO74: =IF(consumption_mix_calcs!BN34<>"",consumption_mix_calcs!BN34,"") -> 0 | BP74: =IF(consumption_mix_calcs!BO34<>"",consumption_mix_calcs!BO34,"") -> 4.637594884e-09 | BQ74: =IF(consumption_mix_calcs!BP34<>"",consumption_mix_calcs!BP34,"") -> 4.267337578e-06 | BR74: =IF(consumption_mix_calcs!BQ34<>"",consumption_mix_calcs!BQ34,"") -> 8.110716424e-11 | BS74: =IF(consumption_mix_calcs!BR34<>"",consumption_mix_calcs!BR34,"") -> 0 | BT74: =IF(consumption_mix_calcs!BS34<>"",consumption_mix_calcs!BS34,"") -> 4.724467526e-10 | BU74: =IF(consumption_mix_calcs!BT34<>"",consumption_mix_calcs!BT34,"") -> 5.49403097e-10 | BV74: =IF(consumption_mix_calcs!BU34<>"",consumption_mix_calcs!BU34,"") -> 0 | BW74: =IF(consumption_mix_calcs!BV34<>"",consumption_mix_calcs!BV34,"") ->  | BX74: =IF(consumption_mix_calcs!BW34<>"",consumption_mix_calcs!BW34,"") -> 
